Workbook

Sheet ملف وتحريري نصف العام صف رابع
P1: غائب | Q1: غائب | R1: غائب | S1: غائب | T1: غائب | U1: غائب | V1: غائب | W1: غائب | X1: غائب | Y1: غائب | Z1: غائب | AA1: غائب | AB1: غائب | AC1: غائب | AD1: غائب | AE1: غائب | AF1: غائب | AG1: غائب | AH1: غائب | AI1: غائب | AJ1: غائب | AK1: غائب | AL1: غائب | AM1: غائب | AN1: غائب | AO1: غائب | AP1: غائب | AQ1: غائب | AR1: غائب | AS1: غائب | AT1: غائب | AU1: غائب | AV1: غائب | AW1: غائب | AX1: غائب | AY1: غائب | AZ1: غائب | BA1: غائب | BB1: غائب | BC1: غائب | BD1: غائب | BE1: غائب | BF1: غائب | BG1: غائب | BH1: غائب | BI1: غائب | BJ1: غائب | BK1: غائب | BL1: غائب | BM1: غائب | BN1: غائب | BO1: غائب | BP1: غائب | BQ1: غائب | BR1: غائب | BS1: غائب | BT1: غائب | BU1: غائب | BV1: غائب | BW1: غائب | BY1: غائب | BZ1: غائب | CA1: غائب | CB1: غائب | CC1: غائب | CD1: غائب | CE1: غائب | CF1: غائب | CG1: غائب | CH1: غائب | CI1: غائب | CJ1: غائب | CK1: غائب | CL1: غائب | CM1: غائب | CN1: غائب | CO1: غائب | CP1: غائب | CQ1: غائب | CR1: غائب | CS1: غائب | CT1: غائب | CU1: غائب | CV1: غائب | CW1: غائب | CX1: غائب | CY1: غائب | CZ1: غائب | DA1: غائب | DB1: غائب | DC1: غائب | DD1: غائب | DE1: غائب | DF1: غائب | DG1: غائب | DH1: غائب | DI1: غائب
P2: =COUNTIF(P14:P233,"غ") -> 15 | Q2: =COUNTIF(Q14:Q233,"غ") -> 15 | R2: 0 | S2: 16 | T2: 16 | U2: 0 | V2: 15 | W2: 15 | X2: 0 | Y2: 15 | Z2: 15 | AA2: 0 | AB2: 15 | AC2: 15 | AD2: 0 | AE2: 15 | AF2: 15 | AG2: 0 | AH2: 15 | AI2: 15 | AJ2: 0 | AK2: 15 | AL2: 15 | AM2: 0 | AN2: 12 | AO2: 12 | AP2: 12 | AQ2: 12 | AR2: 14 | AS2: 15 | AT2: 15 | AU2: 13 | AV2: 0 | AW2: 12 | AX2: 12 | AY2: 12 | AZ2: 0 | BA2: 1 | BB2: 10 | BC2: 12 | BD2: 0 | BE2: 12 | BF2: 12 | BG2: 12 | BH2: 0 | BI2: 13 | BJ2: 13 | BK2: 12 | BL2: 0 | BM2: 14 | BN2: 14 | BO2: 13 | BP2: 0 | BQ2: 10 | BR2: 10 | BS2: 12 | BT2: 0 | BU2: 12 | BV2: 12 | BW2: 12 | BY2: =COUNTIF(BY14:BY233,"غ") -> 15 | BZ2: 15 | CA2: 13 | CB2: 0 | CC2: 12 | CD2: 12 | CE2: 12 | CF2: 0 | CG2: 1 | CH2: 10 | CI2: 12 | CJ2: 0 | CK2: 12 | CL2: 12 | CM2: 12 | CN2: 0 | CO2: 13 | CP2: 13 | CQ2: 12 | CR2: 0 | CS2: 14 | CT2: 14 | CU2: 13 | CV2: 0 | CW2: 10 | CX2: 10 | CY2: 12 | CZ2: 0 | DA2: 12 | DB2: 12 | DC2: 12 | DD2: 0 | DE2: 12 | DF2: 12 | DG2: 12 | DH2: 12 | DI2: 14
P4: مرصود | Q4: مرصود | R4: مرصود | S4: مرصود | T4: مرصود | U4: مرصود | V4: مرصود | W4: مرصود | X4: مرصود | Y4: مرصود | Z4: مرصود | AA4: مرصود | AB4: مرصود | AC4: مرصود | AD4: مرصود | AE4: مرصود | AF4: مرصود | AG4: مرصود | AH4: مرصود | AI4: مرصود | AJ4: مرصود | AK4: مرصود | AL4: مرصود | AM4: مرصود | AN4: مرصود | AO4: مرصود | AP4: مرصود | AQ4: مرصود | AR4: مرصود | AS4: مرصود | AT4: مرصود | AU4: مرصود | AV4: مرصود | AW4: مرصود | AX4: مرصود | AY4: مرصود | AZ4: مرصود | BA4: مرصود | BB4: مرصود | BC4: مرصود | BD4: مرصود | BE4: مرصود | BF4: مرصود | BG4: مرصود | BH4: مرصود | BI4: مرصود | BJ4: مرصود | BK4: مرصود | BL4: مرصود | BM4: مرصود | BN4: مرصود | BO4: مرصود | BP4: مرصود | BQ4: مرصود | BR4: مرصود | BS4: مرصود | BT4: مرصود | BU4: مرصود | BV4: مرصود | BW4: مرصود | BY4: مرصود | BZ4: مرصود | CA4: مرصود | CB4: مرصود | CC4: مرصود | CD4: مرصود | CE4: مرصود | CF4: مرصود | CG4: مرصود | CH4: مرصود | CI4: مرصود | CJ4: مرصود | CK4: مرصود | CL4: مرصود | CM4: مرصود | CN4: مرصود | CO4: مرصود | CP4: مرصود | CQ4: مرصود | CR4: مرصود | CS4: مرصود | CT4: مرصود | CU4: مرصود | CV4: مرصود | CW4: مرصود | CX4: مرصود | CY4: مرصود | CZ4: مرصود | DA4: مرصود | DB4: مرصود | DC4: مرصود | DD4: مرصود | DE4: مرصود | DF4: مرصود | DG4: مرصود | DH4: مرصود | DI4: مرصود
A5: لو عند جدول به بيانات زى اللى واضح امامنا ممكن نعمل فلتره بمجرد الوقوف على الخليه المراد عمل الفلتره عليها ونعمل دبل كليلك | P5: =COUNTA(P14:P233) -> 220 | Q5: =COUNTA(Q14:Q233) -> 220 | R5: 0 | S5: 220 | T5: 220 | U5: 0 | V5: 220 | W5: 220 | X5: 0 | Y5: 220 | Z5: 220 | AA5: 0 | AB5: 220 | AC5: 220 | AD5: 0 | AE5: 220 | AF5: 220 | AG5: 0 | AH5: 220 | AI5: 220 | AJ5: 0 | AK5: 220 | AL5: 220 | AM5: 0 | AN5: 220 | AO5: 220 | AP5: 220 | AQ5: 220 | AR5: 220 | AS5: 220 | AT5: 220 | AU5: 220 | AV5: 0 | AW5: 220 | AX5: 220 | AY5: 220 | AZ5: 0 | BA5: 220 | BB5: 220 | BC5: 220 | BD5: 0 | BE5: 220 | BF5: 220 | BG5: 220 | BH5: 0 | BI5: 220 | BJ5: 220 | BK5: 220 | BL5: 0 | BM5: 220 | BN5: 220 | BO5: 220 | BP5: 0 | BQ5: 220 | BR5: 220 | BS5: 220 | BT5: 0 | BU5: 220 | BV5: 220 | BW5: 220 | BY5: =COUNTA(BY14:BY233) -> 220 | BZ5: 220 | CA5: 220 | CB5: 0 | CC5: 220 | CD5: 220 | CE5: 220 | CF5: 0 | CG5: 220 | CH5: 220 | CI5: 220 | CJ5: 0 | CK5: 220 | CL5: 220 | CM5: 220 | CN5: 0 | CO5: 220 | CP5: 220 | CQ5: 220 | CR5: 0 | CS5: 220 | CT5: 220 | CU5: 220 | CV5: 0 | CW5: 220 | CX5: 220 | CY5: 220 | CZ5: 0 | DA5: 220 | DB5: 220 | DC5: 220 | DD5: 0 | DE5: 220 | DF5: 220 | DG5: 220 | DH5: 220 | DI5: 220
A6: ولألغاء الفلتره نضغط كليك يمين بالماوس فى اى خلية بالعمود المطلوب الغاء فلترته | P6: حاضر | Q6: حاضر | R6: حاضر | S6: حاضر | T6: حاضر | U6: حاضر | V6: حاضر | W6: حاضر | X6: حاضر | Y6: حاضر | Z6: حاضر | AA6: حاضر | AB6: حاضر | AC6: حاضر | AD6: حاضر | AE6: حاضر | AF6: حاضر | AG6: حاضر | AH6: حاضر | AI6: حاضر | AJ6: حاضر | AK6: حاضر | AL6: حاضر | AM6: حاضر | AN6: حاضر | AO6: حاضر | AP6: حاضر | AQ6: حاضر | AR6: حاضر | AS6: حاضر | AT6: حاضر | AU6: حاضر | AV6: حاضر | AW6: حاضر | AX6: حاضر | AY6: حاضر | AZ6: حاضر | BA6: حاضر | BB6: حاضر | BC6: حاضر | BD6: حاضر | BE6: حاضر | BF6: حاضر | BG6: حاضر | BH6: حاضر | BI6: حاضر | BJ6: حاضر | BK6: حاضر | BL6: حاضر | BM6: حاضر | BN6: حاضر | BO6: حاضر | BP6: حاضر | BQ6: حاضر | BR6: حاضر | BS6: حاضر | BT6: حاضر | BU6: حاضر | BV6: حاضر | BW6: حاضر | BY6: حاضر | BZ6: حاضر | CA6: حاضر | CB6: حاضر | CC6: حاضر | CD6: حاضر | CE6: حاضر | CF6: حاضر | CG6: حاضر | CH6: حاضر | CI6: حاضر | CJ6: حاضر | CK6: حاضر | CL6: حاضر | CM6: حاضر | CN6: حاضر | CO6: حاضر | CP6: حاضر | CQ6: حاضر | CR6: حاضر | CS6: حاضر | CT6: حاضر | CU6: حاضر | CV6: حاضر | CW6: حاضر | CX6: حاضر | CY6: حاضر | CZ6: حاضر | DA6: حاضر | DB6: حاضر | DC6: حاضر | DD6: حاضر | DE6: حاضر | DF6: حاضر | DG6: حاضر | DH6: حاضر | DI6: حاضر
P7: =P5-P2 -> 205 | Q7: =Q5-Q2 -> 205 | R7: 0 | S7: 204 | T7: 204 | U7: 0 | V7: 205 | W7: 205 | X7: 0 | Y7: 205 | Z7: 205 | AA7: 0 | AB7: 205 | AC7: 205 | AD7: 0 | AE7: 205 | AF7: 205 | AG7: 0 | AH7: 205 | AI7: 205 | AJ7: 0 | AK7: 205 | AL7: 205 | AM7: 0 | AN7: 208 | AO7: 208 | AP7: 208 | AQ7: 208 | AR7: 206 | AS7: =AS5-AS2 -> 205 | AT7: =AT5-AT2 -> 205 | AU7: 207 | AV7: 0 | AW7: 208 | AX7: 208 | AY7: 208 | AZ7: 0 | BA7: 219 | BB7: 210 | BC7: 208 | BD7: 0 | BE7: 208 | BF7: 208 | BG7: 208 | BH7: 0 | BI7: 207 | BJ7: 207 | BK7: 208 | BL7: 0 | BM7: 206 | BN7: 206 | BO7: 207 | BP7: 0 | BQ7: 210 | BR7: 210 | BS7: 208 | BT7: 0 | BU7: 208 | BV7: 208 | BW7: 208 | BY7: =BY5-BY2 -> 205 | BZ7: =BZ5-BZ2 -> 205 | CA7: 207 | CB7: 0 | CC7: 208 | CD7: 208 | CE7: 208 | CF7: 0 | CG7: 219 | CH7: 210 | CI7: 208 | CJ7: 0 | CK7: 208 | CL7: 208 | CM7: 208 | CN7: 0 | CO7: 207 | CP7: 207 | CQ7: 208 | CR7: 0 | CS7: 206 | CT7: 206 | CU7: 207 | CV7: 0 | CW7: 210 | CX7: 210 | CY7: 208 | CZ7: 0 | DA7: 208 | DB7: 208 | DC7: 208 | DD7: 0 | DE7: 208 | DF7: 208 | DG7: 208 | DH7: 208 | DI7: 206
A8: 1 | B8: 2 | C8: 3 | D8: 4 | E8: 5 | F8: 6 | G8: 7 | H8: 8 | I8: 9 | J8: 10 | K8: 11 | L8: 12 | M8: 13 | N8: 14 | O8: 15 | P8: 16 | Q8: 17 | R8: 18 | S8: 19 | T8: 20 | U8: 21 | V8: 22 | W8: 23 | X8: 24 | Y8: 25 | Z8: 26 | AA8: 27 | AB8: 28 | AC8: 29 | AD8: 30 | AE8: 31 | AF8: 32 | AG8: 33 | AH8: 34 | AI8: 35 | AJ8: 36 | AK8: 37 | AL8: 38 | AM8: 39 | AN8: 40 | AO8: 41 | AP8: 42 | AQ8: 43 | AR8: 44 | AS8: 45 | AT8: 46 | AU8: 47 | AV8: 48 | AW8: 49 | AX8: 50 | AY8: 51 | AZ8: 52 | BA8: 53 | BB8: 54 | BC8: 55 | BD8: 56 | BE8: 57 | BF8: 58 | BG8: 59 | BH8: 60 | BI8: 61 | BJ8: 62 | BK8: 63 | BL8: 64 | BM8: 65 | BN8: 66 | BO8: 67 | BP8: 68 | BQ8: 69 | BR8: 70 | BS8: 71 | BT8: 72 | BU8: 73 | BV8: 74 | BW8: 75 | BX8: 76 | BY8: 77 | BZ8: 78 | CA8: 79 | CB8: 80 | CC8: 81 | CD8: 82 | CE8: 83 | CF8: 84 | CG8: 85 | CH8: 86 | CI8: 87 | CJ8: 88 | CK8: 89 | CL8: 90 | CM8: 91 | CN8: 92 | CO8: 93 | CP8: 94 | CQ8: 95 | CR8: 96 | CS8: 97 | CT8: 98 | CU8: 99 | CV8: 100 | CW8: 101 | CX8: 102 | CY8: 103 | CZ8: 104 | DA8: 105 | DB8: 106 | DC8: 107 | DD8: 108 | DE8: 109 | DF8: 110 | DG8: 111 | DH8: 112 | DI8: 113
P13: ب | Q13: ب | R13: ب | S13: ب | T13: ب | U13: ب | V13: ب | W13: ب | X13: ب | Y13: ب | Z13: ب | AA13: ب | AB13: ب | AC13: ب | AD13: ب | AE13: ب | AF13: ب | AG13: ب | AH13: ب | AI13: ب | AJ13: ب | AK13: ب | AL13: ب | AM13: ب | AN13: ب | AO13: ب | AP13: ب | AQ13: ب | AR13: ب | AS13: ب | AT13: ب | AU13: ب | AV13: ب | AW13: ب | AX13: ب | AY13: ب | AZ13: ب | BA13: ب | BB13: ب | BC13: ب | BD13: ب | BE13: ب | BF13: ب | BG13: ب | BH13: ب | BI13: ب | BJ13: ب | BK13: ب | BL13: ب | BM13: ب | BN13: ب | BO13: ب | BP13: ب | BQ13: ب | BR13: ب | BS13: ب | BT13: ب | BU13: ب | BV13: ب | BW13: ب | BY13: ب | BZ13: ب | CA13: ب | CB13: ب | CC13: ب | CD13: ب | CE13: ب | CF13: ب | CG13: ب | CH13: ب | CI13: ب | CJ13: ب | CK13: ب | CL13: ب | CM13: ب | CN13: ب | CO13: ب | CP13: ب | CQ13: ب | CR13: ب | CS13: ب | CT13: ب | CU13: ب | CV13: ب | CW13: ب | CX13: ب | CY13: ب | CZ13: ب | DA13: ب | DB13: ب | DC13: ب | DD13: ب | DE13: ب | DF13: ب | DG13: ب | DH13: ب | DI13: ب
A14: =IF(C14="","",SUBTOTAL(3,$C$14:C14)) -> 1 | B14: ='[1]4'!O3 -> 401 | C14: س1 | D14: 15 | E14: ='[1]4'!N3 -> 1/4 | F14: ='[1]4'!I3 -> ذكر | G14: ='[1]4'!E3 -> 2011-12-19 | H14: ='[1]4'!F3 -> 12 | I14: ='[1]4'!G3 -> 9 | J14: ='[1]4'!H3 -> 9 | K14: ='[1]4'!J3 -> مسلم | L14: ='[1]4'!K3 -> ناجح ومنقول | M14: ='[1]4'!P3 -> 301 | P14: غ | Q14: غ | S14: غ | T14: غ | V14: غ | W14: غ | Y14: غ | Z14: غ | AB14: غ | AC14: غ | AE14: غ | AF14: غ | AH14: غ | AI14: غ | AK14: غ | AL14: غ | AN14: غ | AO14: غ | AP14: غ | AQ14: غ | AR14: غ | AS14: غ | AT14: غ | AU14: غ | AW14: غ | AX14: غ | AY14: غ | BA14: غ | BB14: غ | BC14: غ | BE14: غ | BF14: غ | BG14: غ | BI14: غ | BJ14: غ | BK14: غ | BM14: غ | BN14: غ | BO14: غ | BQ14: غ | BR14: غ | BS14: غ | BU14: غ | BV14: غ | BW14: غ | BY14: غ | BZ14: غ | CA14: غ | CC14: غ | CD14: غ | CE14: غ | CG14: غ | CH14: غ | CI14: غ | CK14: غ | CL14: غ | CM14: غ | CO14: غ | CP14: غ | CQ14: غ | CS14: غ | CT14: غ | CU14: غ | CW14: غ | CX14: غ | CY14: غ | DA14: غ | DB14: غ | DC14: غ | DE14: غ | DF14: غ | DG14: غ | DH14: غ | DI14: غ
A15: =IF(C15="","",SUBTOTAL(3,$C$14:C15)) -> 2 | B15: ='[1]4'!O4 -> 402 | C15: س2 | D15: 15 | E15: ='[1]4'!N4 -> 4/4 | F15: ='[1]4'!I4 -> ذكر | G15: ='[1]4'!E4 -> 2012-04-03 | H15: ='[1]4'!F4 -> 28 | I15: ='[1]4'!G4 -> 5 | J15: ='[1]4'!H4 -> 9 | K15: ='[1]4'!J4 -> مسلم | L15: ='[1]4'!K4 -> ناجح ومنقول | M15: ='[1]4'!P4 -> 302 | P15: 35 | Q15: 35 | S15: 40 | T15: 40 | V15: 35 | W15: 35 | Y15: 40 | Z15: 40 | AB15: 37 | AC15: 37 | AE15: 30 | AF15: 30 | AH15: 40 | AI15: 40 | AK15: 40 | AL15: 40 | AN15: 90 | AO15: 85 | AP15: 90 | AQ15: 90 | AR15: 90 | AS15: 13 | AT15: 13 | AU15: 20.5 | AW15: 15 | AX15: 15 | AY15: 30 | BA15: 12 | BB15: 12 | BC15: 22 | BE15: 15 | BF15: 15 | BG15: 30 | BI15: 15 | BJ15: 15 | BK15: 20 | BM15: 12 | BN15: 12 | BO15: 24 | BQ15: 13.5 | BR15: 13.5 | BS15: 24 | BU15: 13.5 | BV15: 13.5 | BW15: 22 | BY15: 13 | BZ15: 13 | CA15: 20.5 | CC15: 15 | CD15: 15 | CE15: 30 | CG15: 12 | CH15: 12 | CI15: 22 | CK15: 15 | CL15: 15 | CM15: 30 | CO15: 15 | CP15: 15 | CQ15: 20 | CS15: 12 | CT15: 12 | CU15: 24 | CW15: 13.5 | CX15: 13.5 | CY15: 24 | DA15: 13.5 | DB15: 13.5 | DC15: 22 | DE15: 90 | DF15: 85 | DG15: 90 | DH15: 90 | DI15: 90
A16: =IF(C16="","",SUBTOTAL(3,$C$14:C16)) -> 3 | B16: ='[1]4'!O5 -> 403 | C16: س3 | D16: 15 | E16: ='[1]4'!N5 -> 3/4 | F16: ='[1]4'!I5 -> ذكر | G16: ='[1]4'!E5 -> 2012-07-29 | H16: ='[1]4'!F5 -> 2 | I16: ='[1]4'!G5 -> 2 | J16: ='[1]4'!H5 -> 9 | K16: ='[1]4'!J5 -> مسلم | L16: ='[1]4'!K5 -> ناجح ومنقول | M16: ='[1]4'!P5 -> 303 | P16: 40 | Q16: 40 | S16: 40 | T16: 40 | V16: 40 | W16: 40 | Y16: 37 | Z16: 37 | AB16: 40 | AC16: 40 | AE16: 40 | AF16: 40 | AH16: 40 | AI16: 40 | AK16: 40 | AL16: 40 | AN16: 90 | AO16: 85 | AP16: 90 | AQ16: 90 | AR16: 90 | AS16: 13 | AT16: 13 | AU16: 16.5 | AW16: 15 | AX16: 15 | AY16: 30 | BA16: 9 | BB16: 9 | BC16: 22 | BE16: 15 | BF16: 15 | BG16: 30 | BI16: 15 | BJ16: 15 | BK16: 22 | BM16: 13.5 | BN16: 13.5 | BO16: 20 | BQ16: 12 | BR16: 12 | BS16: 26 | BU16: 15 | BV16: 15 | BW16: 20 | BY16: 13 | BZ16: 13 | CA16: 16.5 | CC16: 15 | CD16: 15 | CE16: 30 | CG16: 9 | CH16: 9 | CI16: 22 | CK16: 15 | CL16: 15 | CM16: 30 | CO16: 15 | CP16: 15 | CQ16: 22 | CS16: 13.5 | CT16: 13.5 | CU16: 20 | CW16: 12 | CX16: 12 | CY16: 26 | DA16: 15 | DB16: 15 | DC16: 20 | DE16: 90 | DF16: 85 | DG16: 90 | DH16: 90 | DI16: 90
A17: =IF(C17="","",SUBTOTAL(3,$C$14:C17)) -> 4 | B17: ='[1]4'!O6 -> 404 | C17: س4 | D17: 15 | E17: ='[1]4'!N6 -> 1/4 | F17: ='[1]4'!I6 -> ذكر | G17: ='[1]4'!E6 -> 2012-03-21 | H17: ='[1]4'!F6 -> 10 | I17: ='[1]4'!G6 -> 6 | J17: ='[1]4'!H6 -> 9 | K17: ='[1]4'!J6 -> مسلم | L17: ='[1]4'!K6 -> ناجح ومنقول | M17: ='[1]4'!P6 -> 304 | P17: 35 | Q17: 35 | S17: 40 | T17: 40 | V17: 40 | W17: 40 | Y17: 40 | Z17: 40 | AB17: 40 | AC17: 40 | AE17: 40 | AF17: 40 | AH17: 40 | AI17: 40 | AK17: 35 | AL17: 35 | AN17: 90 | AO17: 90 | AP17: 90 | AQ17: 90 | AR17: 95 | AS17: 13 | AT17: 13 | AU17: 23.5 | AW17: 15 | AX17: 15 | AY17: 30 | BA17: 13.5 | BB17: 13.5 | BC17: 22 | BE17: 15 | BF17: 15 | BG17: 30 | BI17: 15 | BJ17: 15 | BK17: 24 | BM17: 13.5 | BN17: 13.5 | BO17: 20 | BQ17: 12 | BR17: 12 | BS17: 30 | BU17: 13.5 | BV17: 13.5 | BW17: 24 | BY17: 13 | BZ17: 13 | CA17: 23.5 | CC17: 15 | CD17: 15 | CE17: 30 | CG17: 13.5 | CH17: 13.5 | CI17: 22 | CK17: 15 | CL17: 15 | CM17: 30 | CO17: 15 | CP17: 15 | CQ17: 24 | CS17: 13.5 | CT17: 13.5 | CU17: 20 | CW17: 12 | CX17: 12 | CY17: 30 | DA17: 13.5 | DB17: 13.5 | DC17: 24 | DE17: 90 | DF17: 90 | DG17: 90 | DH17: 90 | DI17: 95
A18: =IF(C18="","",SUBTOTAL(3,$C$14:C18)) -> 5 | B18: ='[1]4'!O7 -> 405 | C18: س5 | D18: 15 | E18: ='[1]4'!N7 -> 1/4 | F18: ='[1]4'!I7 -> ذكر | G18: ='[1]4'!E7 -> 2011-11-13 | H18: ='[1]4'!F7 -> 18 | I18: ='[1]4'!G7 -> 10 | J18: ='[1]4'!H7 -> 9 | K18: ='[1]4'!J7 -> مسلم | L18: ='[1]4'!K7 -> ناجح ومنقول | M18: ='[1]4'!P7 -> 305 | P18: 39 | Q18: 39 | S18: 40 | T18: 40 | V18: 35 | W18: 35 | Y18: 35 | Z18: 35 | AB18: 37 | AC18: 37 | AE18: 40 | AF18: 40 | AH18: 35 | AI18: 35 | AK18: 40 | AL18: 40 | AN18: 95 | AO18: 90 | AP18: 95 | AQ18: 90 | AR18: 90 | AS18: 13 | AT18: 13 | AU18: 10 | AW18: 14 | AX18: 14 | AY18: 26 | BA18: 9 | BB18: 9 | BC18: 20 | BE18: 15 | BF18: 15 | BG18: 30 | BI18: 15 | BJ18: 15 | BK18: 24 | BM18: 13.5 | BN18: 13.5 | BO18: 16 | BQ18: 7.5 | BR18: 7.5 | BS18: 26 | BU18: 13.5 | BV18: 13.5 | BW18: 24 | BY18: 13 | BZ18: 13 | CA18: 10 | CC18: 14 | CD18: 14 | CE18: 26 | CG18: 9 | CH18: 9 | CI18: 20 | CK18: 15 | CL18: 15 | CM18: 30 | CO18: 15 | CP18: 15 | CQ18: 24 | CS18: 13.5 | CT18: 13.5 | CU18: 16 | CW18: 7.5 | CX18: 7.5 | CY18: 26 | DA18: 13.5 | DB18: 13.5 | DC18: 24 | DE18: 95 | DF18: 90 | DG18: 95 | DH18: 90 | DI18: 90
A19: =IF(C19="","",SUBTOTAL(3,$C$14:C19)) -> 6 | B19: ='[1]4'!O8 -> 406 | C19: س6 | D19: 15 | E19: ='[1]4'!N8 -> 3/4 | F19: ='[1]4'!I8 -> ذكر | G19: ='[1]4'!E8 -> 2011-12-07 | H19: ='[1]4'!F8 -> 24 | I19: ='[1]4'!G8 -> 9 | J19: ='[1]4'!H8 -> 9 | K19: ='[1]4'!J8 -> مسلم | L19: ='[1]4'!K8 -> ناجح ومنقول | M19: ='[1]4'!P8 -> 306 | P19: 40 | Q19: 40 | S19: 40 | T19: 40 | V19: 40 | W19: 40 | Y19: 38 | Z19: 38 | AB19: 39 | AC19: 39 | AE19: 40 | AF19: 40 | AH19: 40 | AI19: 40 | AK19: 40 | AL19: 40 | AN19: 90 | AO19: 95 | AP19: 90 | AQ19: 95 | AR19: 90 | AS19: 14.5 | AT19: 14.5 | AU19: 22 | AW19: 13 | AX19: 13 | AY19: 30 | BA19: 9 | BB19: 9 | BC19: 16 | BE19: 13.5 | BF19: 13.5 | BG19: 30 | BI19: 15 | BJ19: 15 | BK19: 24 | BM19: 12 | BN19: 12 | BO19: 24 | BQ19: 6 | BR19: 6 | BS19: 8 | BU19: 13.5 | BV19: 13.5 | BW19: 24 | BY19: 14.5 | BZ19: 14.5 | CA19: 22 | CC19: 13 | CD19: 13 | CE19: 30 | CG19: 9 | CH19: 9 | CI19: 16 | CK19: 13.5 | CL19: 13.5 | CM19: 30 | CO19: 15 | CP19: 15 | CQ19: 24 | CS19: 12 | CT19: 12 | CU19: 24 | CW19: 6 | CX19: 6 | CY19: 8 | DA19: 13.5 | DB19: 13.5 | DC19: 24 | DE19: 90 | DF19: 95 | DG19: 90 | DH19: 95 | DI19: 90
A20: =IF(C20="","",SUBTOTAL(3,$C$14:C20)) -> 7 | B20: ='[1]4'!O9 -> 407 | C20: س7 | D20: 15 | E20: ='[1]4'!N9 -> 4/4 | F20: ='[1]4'!I9 -> ذكر | G20: ='[1]4'!E9 -> 2012-02-26 | H20: ='[1]4'!F9 -> 5 | I20: ='[1]4'!G9 -> 7 | J20: ='[1]4'!H9 -> 9 | K20: ='[1]4'!J9 -> مسلم | L20: ='[1]4'!K9 -> ناجح ومنقول | M20: ='[1]4'!P9 -> 307 | P20: 25 | Q20: 25 | S20: 35 | T20: 35 | V20: 35 | W20: 35 | Y20: 35 | Z20: 35 | AB20: 40 | AC20: 40 | AE20: 25 | AF20: 25 | AH20: 35 | AI20: 35 | AK20: 40 | AL20: 40 | AN20: 90 | AO20: 95 | AP20: 90 | AQ20: 95 | AR20: 95 | AS20: 14.5 | AT20: 14.5 | AU20: 19 | AW20: 15 | AX20: 15 | AY20: 26 | BA20: 15 | BB20: 15 | BC20: 24 | BE20: 15 | BF20: 15 | BG20: 30 | BI20: 15 | BJ20: 15 | BK20: 24 | BM20: 13.5 | BN20: 13.5 | BO20: 28 | BQ20: 12 | BR20: 12 | BS20: 24 | BU20: 15 | BV20: 15 | BW20: 24 | BY20: 14.5 | BZ20: 14.5 | CA20: 19 | CC20: 15 | CD20: 15 | CE20: 26 | CG20: 15 | CH20: 15 | CI20: 24 | CK20: 15 | CL20: 15 | CM20: 30 | CO20: 15 | CP20: 15 | CQ20: 24 | CS20: 13.5 | CT20: 13.5 | CU20: 28 | CW20: 12 | CX20: 12 | CY20: 24 | DA20: 15 | DB20: 15 | DC20: 24 | DE20: 90 | DF20: 95 | DG20: 90 | DH20: 95 | DI20: 95
A21: =IF(C21="","",SUBTOTAL(3,$C$14:C21)) -> 8 | B21: ='[1]4'!O10 -> 408 | C21: س8 | D21: 15 | E21: ='[1]4'!N10 -> 1/4 | F21: ='[1]4'!I10 -> ذكر | G21: ='[1]4'!E10 -> 2011-11-26 | H21: ='[1]4'!F10 -> 5 | I21: ='[1]4'!G10 -> 10 | J21: ='[1]4'!H10 -> 9 | K21: ='[1]4'!J10 -> مسلم | L21: ='[1]4'!K10 -> ناجح ومنقول | M21: ='[1]4'!P10 -> 308 | P21: 30 | Q21: 30 | S21: 35 | T21: 35 | V21: 35 | W21: 35 | Y21: 40 | Z21: 40 | AB21: 40 | AC21: 40 | AE21: 25 | AF21: 25 | AH21: 35 | AI21: 35 | AK21: 40 | AL21: 40 | AN21: 95 | AO21: 90 | AP21: 95 | AQ21: 90 | AR21: 95 | AS21: 14.5 | AT21: 14.5 | AU21: 13.5 | AW21: 15 | AX21: 15 | AY21: 28 | BA21: 15 | BB21: 15 | BC21: 18 | BE21: 15 | BF21: 15 | BG21: 22 | BI21: 15 | BJ21: 15 | BK21: 24 | BM21: 13.5 | BN21: 13.5 | BO21: 12 | BQ21: 4.5 | BR21: 4.5 | BS21: 24 | BU21: 15 | BV21: 15 | BW21: 22 | BY21: 14.5 | BZ21: 14.5 | CA21: 13.5 | CC21: 15 | CD21: 15 | CE21: 28 | CG21: 15 | CH21: 15 | CI21: 18 | CK21: 15 | CL21: 15 | CM21: 22 | CO21: 15 | CP21: 15 | CQ21: 24 | CS21: 13.5 | CT21: 13.5 | CU21: 12 | CW21: 4.5 | CX21: 4.5 | CY21: 24 | DA21: 15 | DB21: 15 | DC21: 22 | DE21: 95 | DF21: 90 | DG21: 95 | DH21: 90 | DI21: 95
A22: =IF(C22="","",SUBTOTAL(3,$C$14:C22)) -> 9 | B22: ='[1]4'!O11 -> 409 | C22: س9 | D22: 15 | E22: ='[1]4'!N11 -> 1/4 | F22: ='[1]4'!I11 -> ذكر | G22: ='[1]4'!E11 -> 2011-12-25 | H22: ='[1]4'!F11 -> 6 | I22: ='[1]4'!G11 -> 9 | J22: ='[1]4'!H11 -> 9 | K22: ='[1]4'!J11 -> مسلم | L22: ='[1]4'!K11 -> ناجح ومنقول | M22: ='[1]4'!P11 -> 309 | P22: 40 | Q22: 40 | S22: 35 | T22: 35 | V22: 40 | W22: 40 | Y22: 40 | Z22: 40 | AB22: 40 | AC22: 40 | AE22: 40 | AF22: 40 | AH22: 40 | AI22: 40 | AK22: 40 | AL22: 40 | AN22: 95 | AO22: 90 | AP22: 90 | AQ22: 90 | AR22: 90 | AS22: 14.5 | AT22: 14.5 | AU22: 21.5 | AW22: 15 | AX22: 15 | AY22: 30 | BA22: 15 | BB22: 15 | BC22: 24 | BE22: 15 | BF22: 15 | BG22: 30 | BI22: 15 | BJ22: 15 | BK22: 24 | BM22: 13.5 | BN22: 13.5 | BO22: 22 | BQ22: 12 | BR22: 12 | BS22: 30 | BU22: 15 | BV22: 15 | BW22: 24 | BY22: 14.5 | BZ22: 14.5 | CA22: 21.5 | CC22: 15 | CD22: 15 | CE22: 30 | CG22: 15 | CH22: 15 | CI22: 24 | CK22: 15 | CL22: 15 | CM22: 30 | CO22: 15 | CP22: 15 | CQ22: 24 | CS22: 13.5 | CT22: 13.5 | CU22: 22 | CW22: 12 | CX22: 12 | CY22: 30 | DA22: 15 | DB22: 15 | DC22: 24 | DE22: 95 | DF22: 90 | DG22: 90 | DH22: 90 | DI22: 90
A23: =IF(C23="","",SUBTOTAL(3,$C$14:C23)) -> 10 | B23: ='[1]4'!O12 -> 410 | C23: س10 | D23: 15 | E23: ='[1]4'!N12 -> 4/4 | F23: ='[1]4'!I12 -> ذكر | G23: ='[1]4'!E12 -> 2012-03-01 | H23: ='[1]4'!F12 -> 0 | I23: ='[1]4'!G12 -> 7 | J23: ='[1]4'!H12 -> 9 | K23: ='[1]4'!J12 -> مسلم | L23: ='[1]4'!K12 -> ناجح ومنقول | M23: ='[1]4'!P12 -> 310 | P23: 40 | Q23: 40 | S23: 40 | T23: 40 | V23: 40 | W23: 40 | Y23: 40 | Z23: 40 | AB23: 40 | AC23: 40 | AE23: 40 | AF23: 40 | AH23: 40 | AI23: 40 | AK23: 40 | AL23: 40 | AN23: 90 | AO23: 90 | AP23: 95 | AQ23: 90 | AR23: 90 | AS23: 14.5 | AT23: 14.5 | AU23: 28.5 | AW23: 15 | AX23: 15 | AY23: 30 | BA23: 15 | BB23: 13.5 | BC23: 22 | BE23: 15 | BF23: 15 | BG23: 30 | BI23: 15 | BJ23: 15 | BK23: 30 | BM23: 13.5 | BN23: 13.5 | BO23: 28 | BQ23: 12 | BR23: 12 | BS23: 26 | BU23: 15 | BV23: 15 | BW23: 24 | BY23: 14.5 | BZ23: 14.5 | CA23: 28.5 | CC23: 15 | CD23: 15 | CE23: 30 | CG23: 15 | CH23: 13.5 | CI23: 22 | CK23: 15 | CL23: 15 | CM23: 30 | CO23: 15 | CP23: 15 | CQ23: 30 | CS23: 13.5 | CT23: 13.5 | CU23: 28 | CW23: 12 | CX23: 12 | CY23: 26 | DA23: 15 | DB23: 15 | DC23: 24 | DE23: 90 | DF23: 90 | DG23: 95 | DH23: 90 | DI23: 90
A24: =IF(C24="","",SUBTOTAL(3,$C$14:C24)) -> 11 | B24: ='[1]4'!O13 -> 411 | C24: س11 | D24: 15 | E24: ='[1]4'!N13 -> 2/4 | F24: ='[1]4'!I13 -> ذكر | G24: ='[1]4'!E13 -> 2012-04-19 | H24: ='[1]4'!F13 -> 12 | I24: ='[1]4'!G13 -> 5 | J24: ='[1]4'!H13 -> 9 | K24: ='[1]4'!J13 -> مسلم | L24: ='[1]4'!K13 -> ناجح ومنقول | M24: ='[1]4'!P13 -> 311 | P24: 40 | Q24: 40 | S24: 40 | T24: 40 | V24: 30 | W24: 30 | Y24: 35 | Z24: 35 | AB24: 40 | AC24: 40 | AE24: 30 | AF24: 30 | AH24: 35 | AI24: 35 | AK24: 35 | AL24: 35 | AN24: 90 | AO24: 90 | AP24: 90 | AQ24: 90 | AR24: 90 | AS24: 14.5 | AT24: 14.5 | AU24: 11.5 | AW24: 14 | AX24: 14 | AY24: 24 | BA24: 15 | BB24: 10.5 | BC24: 22 | BE24: 13.5 | BF24: 13.5 | BG24: 22 | BI24: 10.5 | BJ24: 10.5 | BK24: 12 | BM24: 13.5 | BN24: 13.5 | BO24: 12 | BQ24: 10.5 | BR24: 10.5 | BS24: 24 | BU24: 13.5 | BV24: 13.5 | BW24: 22 | BY24: 14.5 | BZ24: 14.5 | CA24: 11.5 | CC24: 14 | CD24: 14 | CE24: 24 | CG24: 15 | CH24: 10.5 | CI24: 22 | CK24: 13.5 | CL24: 13.5 | CM24: 22 | CO24: 10.5 | CP24: 10.5 | CQ24: 12 | CS24: 13.5 | CT24: 13.5 | CU24: 12 | CW24: 10.5 | CX24: 10.5 | CY24: 24 | DA24: 13.5 | DB24: 13.5 | DC24: 22 | DE24: 90 | DF24: 90 | DG24: 90 | DH24: 90 | DI24: 90
A25: =IF(C25="","",SUBTOTAL(3,$C$14:C25)) -> 12 | B25: ='[1]4'!O14 -> 412 | C25: س12 | D25: 15 | E25: ='[1]4'!N14 -> 4/4 | F25: ='[1]4'!I14 -> ذكر | G25: ='[1]4'!E14 -> 2012-08-23 | H25: ='[1]4'!F14 -> 8 | I25: ='[1]4'!G14 -> 1 | J25: ='[1]4'!H14 -> 9 | K25: ='[1]4'!J14 -> مسلم | L25: ='[1]4'!K14 -> ناجح ومنقول | M25: ='[1]4'!P14 -> 312 | P25: 33 | Q25: 33 | S25: 40 | T25: 40 | V25: 40 | W25: 40 | Y25: 40 | Z25: 40 | AB25: 37 | AC25: 37 | AE25: 33 | AF25: 33 | AH25: 40 | AI25: 40 | AK25: 40 | AL25: 40 | AN25: 95 | AO25: 90 | AP25: 90 | AQ25: 90 | AR25: 90 | AS25: 14.5 | AT25: 14.5 | AU25: 10 | AW25: 15 | AX25: 15 | AY25: 24 | BA25: 15 | BB25: 13.5 | BC25: 22 | BE25: 15 | BF25: 15 | BG25: 30 | BI25: 15 | BJ25: 15 | BK25: 24 | BM25: 13.5 | BN25: 13.5 | BO25: 14 | BQ25: 10.5 | BR25: 10.5 | BS25: 22 | BU25: 15 | BV25: 15 | BW25: 24 | BY25: 14.5 | BZ25: 14.5 | CA25: 10 | CC25: 15 | CD25: 15 | CE25: 24 | CG25: 15 | CH25: 13.5 | CI25: 22 | CK25: 15 | CL25: 15 | CM25: 30 | CO25: 15 | CP25: 15 | CQ25: 24 | CS25: 13.5 | CT25: 13.5 | CU25: 14 | CW25: 10.5 | CX25: 10.5 | CY25: 22 | DA25: 15 | DB25: 15 | DC25: 24 | DE25: 95 | DF25: 90 | DG25: 90 | DH25: 90 | DI25: 90
A26: =IF(C26="","",SUBTOTAL(3,$C$14:C26)) -> 13 | B26: ='[1]4'!O15 -> 413 | C26: س13 | D26: 15 | E26: ='[1]4'!N15 -> 3/4 | F26: ='[1]4'!I15 -> ذكر | G26: ='[1]4'!E15 -> 2012-08-10 | H26: ='[1]4'!F15 -> 21 | I26: ='[1]4'!G15 -> 1 | J26: ='[1]4'!H15 -> 9 | K26: ='[1]4'!J15 -> مسلم | L26: ='[1]4'!K15 -> ناجح ومنقول | M26: ='[1]4'!P15 -> 313 | P26: 40 | Q26: 40 | S26: 40 | T26: 40 | V26: 35 | W26: 35 | Y26: 38 | Z26: 38 | AB26: 40 | AC26: 40 | AE26: 40 | AF26: 40 | AH26: 40 | AI26: 40 | AK26: 35 | AL26: 35 | AN26: 95 | AO26: 95 | AP26: 90 | AQ26: 90 | AR26: 90 | AS26: 14.5 | AT26: 14.5 | AU26: 16.5 | AW26: 14 | AX26: 14 | AY26: 28 | BA26: 15 | BB26: 7.5 | BC26: 18 | BE26: 15 | BF26: 15 | BG26: 30 | BI26: 13.5 | BJ26: 13.5 | BK26: 24 | BM26: 15 | BN26: 15 | BO26: 20 | BQ26: 12 | BR26: 12 | BS26: 14 | BU26: 15 | BV26: 15 | BW26: 22 | BY26: 14.5 | BZ26: 14.5 | CA26: 16.5 | CC26: 14 | CD26: 14 | CE26: 28 | CG26: 15 | CH26: 7.5 | CI26: 18 | CK26: 15 | CL26: 15 | CM26: 30 | CO26: 13.5 | CP26: 13.5 | CQ26: 24 | CS26: 15 | CT26: 15 | CU26: 20 | CW26: 12 | CX26: 12 | CY26: 14 | DA26: 15 | DB26: 15 | DC26: 22 | DE26: 95 | DF26: 95 | DG26: 90 | DH26: 90 | DI26: 90
A27: =IF(C27="","",SUBTOTAL(3,$C$14:C27)) -> 14 | B27: ='[1]4'!O16 -> 414 | C27: س14 | D27: 15 | E27: ='[1]4'!N16 -> 1/4 | F27: ='[1]4'!I16 -> ذكر | G27: ='[1]4'!E16 -> 2012-09-22 | H27: ='[1]4'!F16 -> 9 | I27: ='[1]4'!G16 -> 0 | J27: ='[1]4'!H16 -> 9 | K27: ='[1]4'!J16 -> مسلم | L27: ='[1]4'!K16 -> ناجح ومنقول | M27: ='[1]4'!P16 -> 314 | P27: 33 | Q27: 33 | S27: 38 | T27: 38 | V27: 35 | W27: 35 | Y27: 40 | Z27: 40 | AB27: 40 | AC27: 40 | AE27: 35 | AF27: 35 | AH27: 35 | AI27: 35 | AK27: 35 | AL27: 35 | AN27: 90 | AO27: 90 | AP27: 90 | AQ27: 90 | AR27: 90 | AS27: 13 | AT27: 13 | AU27: غ | AW27: 15 | AX27: 15 | AY27: 22 | BA27: 15 | BB27: 10.5 | BC27: 18 | BE27: 13.5 | BF27: 13.5 | BG27: 28 | BI27: 15 | BJ27: 15 | BK27: 26 | BM27: 12 | BN27: 12 | BO27: غ | BQ27: 10.5 | BR27: 10.5 | BS27: 18 | BU27: 15 | BV27: 15 | BW27: 20 | BY27: 13 | BZ27: 13 | CA27: غ | CC27: 15 | CD27: 15 | CE27: 22 | CG27: 15 | CH27: 10.5 | CI27: 18 | CK27: 13.5 | CL27: 13.5 | CM27: 28 | CO27: 15 | CP27: 15 | CQ27: 26 | CS27: 12 | CT27: 12 | CU27: غ | CW27: 10.5 | CX27: 10.5 | CY27: 18 | DA27: 15 | DB27: 15 | DC27: 20 | DE27: 90 | DF27: 90 | DG27: 90 | DH27: 90 | DI27: 90
A28: =IF(C28="","",SUBTOTAL(3,$C$14:C28)) -> 15 | B28: ='[1]4'!O17 -> 415 | C28: س15 | D28: 15 | E28: ='[1]4'!N17 -> 3/4 | F28: ='[1]4'!I17 -> ذكر | G28: ='[1]4'!E17 -> 2012-02-22 | H28: ='[1]4'!F17 -> 9 | I28: ='[1]4'!G17 -> 7 | J28: ='[1]4'!H17 -> 9 | K28: ='[1]4'!J17 -> مسلم | L28: ='[1]4'!K17 -> ناجح ومنقول | M28: ='[1]4'!P17 -> 315 | P28: غ | Q28: غ | S28: غ | T28: غ | V28: غ | W28: غ | Y28: غ | Z28: غ | AB28: غ | AC28: غ | AE28: غ | AF28: غ | AH28: غ | AI28: غ | AK28: غ | AL28: غ | AN28: 90 | AO28: 90 | AP28: 85 | AQ28: 90 | AR28: 95 | AS28: 8.5 | AT28: 8.5 | AU28: 10.5 | AW28: 15 | AX28: 15 | AY28: 28 | BA28: 15 | BB28: 9 | BC28: 18 | BE28: 13.5 | BF28: 13.5 | BG28: 28 | BI28: 7.5 | BJ28: 7.5 | BK28: 24 | BM28: 10.5 | BN28: 10.5 | BO28: 18 | BQ28: 12 | BR28: 12 | BS28: 18 | BU28: 15 | BV28: 15 | BW28: 20 | BY28: 8.5 | BZ28: 8.5 | CA28: 10.5 | CC28: 15 | CD28: 15 | CE28: 28 | CG28: 15 | CH28: 9 | CI28: 18 | CK28: 13.5 | CL28: 13.5 | CM28: 28 | CO28: 7.5 | CP28: 7.5 | CQ28: 24 | CS28: 10.5 | CT28: 10.5 | CU28: 18 | CW28: 12 | CX28: 12 | CY28: 18 | DA28: 15 | DB28: 15 | DC28: 20 | DE28: 90 | DF28: 90 | DG28: 85 | DH28: 90 | DI28: 95
A29: =IF(C29="","",SUBTOTAL(3,$C$14:C29)) -> 16 | B29: ='[1]4'!O18 -> 416 | C29: س16 | D29: 15 | E29: ='[1]4'!N18 -> 1/4 | F29: ='[1]4'!I18 -> ذكر | G29: ='[1]4'!E18 -> 2012-05-07 | H29: ='[1]4'!F18 -> 24 | I29: ='[1]4'!G18 -> 4 | J29: ='[1]4'!H18 -> 9 | K29: ='[1]4'!J18 -> مسلم | L29: ='[1]4'!K18 -> ناجح ومنقول | M29: ='[1]4'!P18 -> 316 | P29: 40 | Q29: 40 | S29: 40 | T29: 40 | V29: 40 | W29: 40 | Y29: 40 | Z29: 40 | AB29: 37 | AC29: 37 | AE29: 40 | AF29: 40 | AH29: 40 | AI29: 40 | AK29: 40 | AL29: 40 | AN29: 95 | AO29: 95 | AP29: 95 | AQ29: 95 | AR29: 90 | AS29: 13 | AT29: 13 | AU29: 13 | AW29: 15 | AX29: 15 | AY29: 30 | BA29: 15 | BB29: 13.5 | BC29: 22 | BE29: 15 | BF29: 15 | BG29: 30 | BI29: 15 | BJ29: 15 | BK29: 24 | BM29: 15 | BN29: 15 | BO29: 10 | BQ29: 12 | BR29: 12 | BS29: 20 | BU29: 15 | BV29: 15 | BW29: 22 | BY29: 13 | BZ29: 13 | CA29: 13 | CC29: 15 | CD29: 15 | CE29: 30 | CG29: 15 | CH29: 13.5 | CI29: 22 | CK29: 15 | CL29: 15 | CM29: 30 | CO29: 15 | CP29: 15 | CQ29: 24 | CS29: 15 | CT29: 15 | CU29: 10 | CW29: 12 | CX29: 12 | CY29: 20 | DA29: 15 | DB29: 15 | DC29: 22 | DE29: 95 | DF29: 95 | DG29: 95 | DH29: 95 | DI29: 90
A30: =IF(C30="","",SUBTOTAL(3,$C$14:C30)) -> 17 | B30: ='[1]4'!O19 -> 417 | C30: س17 | D30: 15 | E30: ='[1]4'!N19 -> 3/4 | F30: ='[1]4'!I19 -> ذكر | G30: ='[1]4'!E19 -> 2012-05-26 | H30: ='[1]4'!F19 -> 5 | I30: ='[1]4'!G19 -> 4 | J30: ='[1]4'!H19 -> 9 | K30: ='[1]4'!J19 -> مسلم | L30: ='[1]4'!K19 -> ناجح ومنقول | M30: ='[1]4'!P19 -> 317 | P30: 30 | Q30: 30 | S30: 40 | T30: 40 | V30: 40 | W30: 40 | Y30: 36 | Z30: 36 | AB30: 35 | AC30: 35 | AE30: 40 | AF30: 40 | AH30: 40 | AI30: 40 | AK30: 35 | AL30: 35 | AN30: 90 | AO30: 90 | AP30: 90 | AQ30: 90 | AR30: 90 | AS30: 13 | AT30: 13 | AU30: 11.5 | AW30: 8 | AX30: 8 | AY30: 26 | BA30: 15 | BB30: 12 | BC30: 20 | BE30: 13.5 | BF30: 13.5 | BG30: 24 | BI30: 13.5 | BJ30: 13.5 | BK30: 22 | BM30: 12 | BN30: 12 | BO30: 14 | BQ30: 10.5 | BR30: 10.5 | BS30: 18 | BU30: 15 | BV30: 15 | BW30: 22 | BY30: 13 | BZ30: 13 | CA30: 11.5 | CC30: 8 | CD30: 8 | CE30: 26 | CG30: 15 | CH30: 12 | CI30: 20 | CK30: 13.5 | CL30: 13.5 | CM30: 24 | CO30: 13.5 | CP30: 13.5 | CQ30: 22 | CS30: 12 | CT30: 12 | CU30: 14 | CW30: 10.5 | CX30: 10.5 | CY30: 18 | DA30: 15 | DB30: 15 | DC30: 22 | DE30: 90 | DF30: 90 | DG30: 90 | DH30: 90 | DI30: 90
A31: =IF(C31="","",SUBTOTAL(3,$C$14:C31)) -> 18 | B31: ='[1]4'!O20 -> 418 | C31: س18 | D31: 15 | E31: ='[1]4'!N20 -> 2/4 | F31: ='[1]4'!I20 -> ذكر | G31: ='[1]4'!E20 -> 2012-08-12 | H31: ='[1]4'!F20 -> 19 | I31: ='[1]4'!G20 -> 1 | J31: ='[1]4'!H20 -> 9 | K31: ='[1]4'!J20 -> مسلم | L31: ='[1]4'!K20 -> ناجح ومنقول | M31: ='[1]4'!P20 -> 318 | P31: 30 | Q31: 30 | S31: 40 | T31: 40 | V31: 35 | W31: 35 | Y31: 20 | Z31: 20 | AB31: 35 | AC31: 35 | AE31: 30 | AF31: 30 | AH31: 40 | AI31: 40 | AK31: 40 | AL31: 40 | AN31: 90 | AO31: 90 | AP31: 90 | AQ31: 90 | AR31: 85 | AS31: 14.5 | AT31: 14.5 | AU31: 15 | AW31: 15 | AX31: 15 | AY31: 28 | BA31: 15 | BB31: 12 | BC31: 24 | BE31: 15 | BF31: 15 | BG31: 30 | BI31: 15 | BJ31: 15 | BK31: 24 | BM31: 10.5 | BN31: 10.5 | BO31: 20 | BQ31: 12 | BR31: 12 | BS31: 12 | BU31: 15 | BV31: 15 | BW31: 16 | BY31: 14.5 | BZ31: 14.5 | CA31: 15 | CC31: 15 | CD31: 15 | CE31: 28 | CG31: 15 | CH31: 12 | CI31: 24 | CK31: 15 | CL31: 15 | CM31: 30 | CO31: 15 | CP31: 15 | CQ31: 24 | CS31: 10.5 | CT31: 10.5 | CU31: 20 | CW31: 12 | CX31: 12 | CY31: 12 | DA31: 15 | DB31: 15 | DC31: 16 | DE31: 90 | DF31: 90 | DG31: 90 | DH31: 90 | DI31: 85
A32: =IF(C32="","",SUBTOTAL(3,$C$14:C32)) -> 19 | B32: ='[1]4'!O21 -> 419 | C32: س19 | D32: 15 | E32: ='[1]4'!N21 -> 4/4 | F32: ='[1]4'!I21 -> ذكر | G32: ='[1]4'!E21 -> 2011-11-02 | H32: ='[1]4'!F21 -> 29 | I32: ='[1]4'!G21 -> 10 | J32: ='[1]4'!H21 -> 9 | K32: ='[1]4'!J21 -> مسلم | L32: ='[1]4'!K21 -> ناجح ومنقول | M32: ='[1]4'!P21 -> 319 | P32: 35 | Q32: 35 | S32: 40 | T32: 40 | V32: 35 | W32: 35 | Y32: 40 | Z32: 40 | AB32: 37 | AC32: 37 | AE32: 40 | AF32: 40 | AH32: 40 | AI32: 40 | AK32: 35 | AL32: 35 | AN32: 85 | AO32: 85 | AP32: 90 | AQ32: 85 | AR32: 90 | AS32: 14.5 | AT32: 14.5 | AU32: 24 | AW32: 15 | AX32: 15 | AY32: 30 | BA32: 15 | BB32: 15 | BC32: 26 | BE32: 15 | BF32: 15 | BG32: 30 | BI32: 15 | BJ32: 15 | BK32: 24 | BM32: 12 | BN32: 12 | BO32: 24 | BQ32: 12 | BR32: 12 | BS32: 22 | BU32: 15 | BV32: 15 | BW32: 24 | BY32: 14.5 | BZ32: 14.5 | CA32: 24 | CC32: 15 | CD32: 15 | CE32: 30 | CG32: 15 | CH32: 15 | CI32: 26 | CK32: 15 | CL32: 15 | CM32: 30 | CO32: 15 | CP32: 15 | CQ32: 24 | CS32: 12 | CT32: 12 | CU32: 24 | CW32: 12 | CX32: 12 | CY32: 22 | DA32: 15 | DB32: 15 | DC32: 24 | DE32: 85 | DF32: 85 | DG32: 90 | DH32: 85 | DI32: 90
A33: =IF(C33="","",SUBTOTAL(3,$C$14:C33)) -> 20 | B33: ='[1]4'!O22 -> 420 | C33: س20 | D33: 15 | E33: ='[1]4'!N22 -> 1/4 | F33: ='[1]4'!I22 -> ذكر | G33: ='[1]4'!E22 -> 2012-09-04 | H33: ='[1]4'!F22 -> 27 | I33: ='[1]4'!G22 -> 0 | J33: ='[1]4'!H22 -> 9 | K33: ='[1]4'!J22 -> مسلم | L33: ='[1]4'!K22 -> ناجح ومنقول | M33: ='[1]4'!P22 -> 320 | P33: 40 | Q33: 40 | S33: 40 | T33: 40 | V33: 40 | W33: 40 | Y33: 40 | Z33: 40 | AB33: 40 | AC33: 40 | AE33: 40 | AF33: 40 | AH33: 40 | AI33: 40 | AK33: 40 | AL33: 40 | AN33: 90 | AO33: 90 | AP33: 90 | AQ33: 90 | AR33: 90 | AS33: 14.5 | AT33: 14.5 | AU33: 14 | AW33: 15 | AX33: 15 | AY33: 30 | BA33: 15 | BB33: 15 | BC33: 24 | BE33: 15 | BF33: 15 | BG33: 28 | BI33: 15 | BJ33: 15 | BK33: 24 | BM33: 15 | BN33: 15 | BO33: 18 | BQ33: 12 | BR33: 12 | BS33: 28 | BU33: 15 | BV33: 15 | BW33: 26 | BY33: 14.5 | BZ33: 14.5 | CA33: 14 | CC33: 15 | CD33: 15 | CE33: 30 | CG33: 15 | CH33: 15 | CI33: 24 | CK33: 15 | CL33: 15 | CM33: 28 | CO33: 15 | CP33: 15 | CQ33: 24 | CS33: 15 | CT33: 15 | CU33: 18 | CW33: 12 | CX33: 12 | CY33: 28 | DA33: 15 | DB33: 15 | DC33: 26 | DE33: 90 | DF33: 90 | DG33: 90 | DH33: 90 | DI33: 90
A34: =IF(C34="","",SUBTOTAL(3,$C$14:C34)) -> 21 | B34: ='[1]4'!O23 -> 421 | C34: س21 | D34: 15 | E34: ='[1]4'!N23 -> 2/4 | F34: ='[1]4'!I23 -> ذكر | G34: ='[1]4'!E23 -> 2012-04-30 | H34: ='[1]4'!F23 -> 1 | I34: ='[1]4'!G23 -> 5 | J34: ='[1]4'!H23 -> 9 | K34: ='[1]4'!J23 -> مسلم | L34: ='[1]4'!K23 -> ناجح ومنقول | M34: ='[1]4'!P23 -> 321 | P34: 35 | Q34: 35 | S34: 40 | T34: 40 | V34: 25 | W34: 25 | Y34: 40 | Z34: 40 | AB34: 40 | AC34: 40 | AE34: 35 | AF34: 35 | AH34: 40 | AI34: 40 | AK34: 35 | AL34: 35 | AN34: 90 | AO34: 90 | AP34: 90 | AQ34: 90 | AR34: 90 | AS34: 14.5 | AT34: 14.5 | AU34: 17 | AW34: 15 | AX34: 15 | AY34: 30 | BA34: 15 | BB34: 15 | BC34: 22 | BE34: 15 | BF34: 15 | BG34: 20 | BI34: 15 | BJ34: 15 | BK34: 30 | BM34: 12 | BN34: 12 | BO34: 28 | BQ34: 13.5 | BR34: 13.5 | BS34: 30 | BU34: 15 | BV34: 15 | BW34: 30 | BY34: 14.5 | BZ34: 14.5 | CA34: 17 | CC34: 15 | CD34: 15 | CE34: 30 | CG34: 15 | CH34: 15 | CI34: 22 | CK34: 15 | CL34: 15 | CM34: 20 | CO34: 15 | CP34: 15 | CQ34: 30 | CS34: 12 | CT34: 12 | CU34: 28 | CW34: 13.5 | CX34: 13.5 | CY34: 30 | DA34: 15 | DB34: 15 | DC34: 30 | DE34: 90 | DF34: 90 | DG34: 90 | DH34: 90 | DI34: 90
A35: =IF(C35="","",SUBTOTAL(3,$C$14:C35)) -> 22 | B35: ='[1]4'!O24 -> 422 | C35: س22 | D35: 15 | E35: ='[1]4'!N24 -> 4/4 | F35: ='[1]4'!I24 -> ذكر | G35: ='[1]4'!E24 -> 2011-12-19 | H35: ='[1]4'!F24 -> 12 | I35: ='[1]4'!G24 -> 9 | J35: ='[1]4'!H24 -> 9 | K35: ='[1]4'!J24 -> مسلم | L35: ='[1]4'!K24 -> ناجح ومنقول | M35: ='[1]4'!P24 -> 322 | P35: 40 | Q35: 40 | S35: 40 | T35: 40 | V35: 40 | W35: 40 | Y35: 40 | Z35: 40 | AB35: 40 | AC35: 40 | AE35: 40 | AF35: 40 | AH35: 30 | AI35: 30 | AK35: 40 | AL35: 40 | AN35: 90 | AO35: 90 | AP35: 95 | AQ35: 90 | AR35: 80 | AS35: 14.5 | AT35: 14.5 | AU35: 27 | AW35: 15 | AX35: 15 | AY35: 30 | BA35: 15 | BB35: 15 | BC35: 24 | BE35: 15 | BF35: 15 | BG35: 30 | BI35: 15 | BJ35: 15 | BK35: 30 | BM35: 13.5 | BN35: 13.5 | BO35: 28 | BQ35: 13.5 | BR35: 13.5 | BS35: 30 | BU35: 15 | BV35: 15 | BW35: 30 | BY35: 14.5 | BZ35: 14.5 | CA35: 27 | CC35: 15 | CD35: 15 | CE35: 30 | CG35: 15 | CH35: 15 | CI35: 24 | CK35: 15 | CL35: 15 | CM35: 30 | CO35: 15 | CP35: 15 | CQ35: 30 | CS35: 13.5 | CT35: 13.5 | CU35: 28 | CW35: 13.5 | CX35: 13.5 | CY35: 30 | DA35: 15 | DB35: 15 | DC35: 30 | DE35: 90 | DF35: 90 | DG35: 95 | DH35: 90 | DI35: 80
A36: =IF(C36="","",SUBTOTAL(3,$C$14:C36)) -> 23 | B36: ='[1]4'!O25 -> 423 | C36: س23 | D36: 15 | E36: ='[1]4'!N25 -> 2/4 | F36: ='[1]4'!I25 -> ذكر | G36: ='[1]4'!E25 -> 2012-04-09 | H36: ='[1]4'!F25 -> 22 | I36: ='[1]4'!G25 -> 5 | J36: ='[1]4'!H25 -> 9 | K36: ='[1]4'!J25 -> مسلم | L36: ='[1]4'!K25 -> ناجح ومنقول | M36: ='[1]4'!P25 -> 323 | P36: 30 | Q36: 30 | S36: 40 | T36: 40 | V36: 39 | W36: 39 | Y36: 35 | Z36: 35 | AB36: 40 | AC36: 40 | AE36: 30 | AF36: 30 | AH36: 30 | AI36: 30 | AK36: 40 | AL36: 40 | AN36: 80 | AO36: 80 | AP36: 95 | AQ36: 80 | AR36: 80 | AS36: 14.5 | AT36: 14.5 | AU36: 17.5 | AW36: 15 | AX36: 15 | AY36: 28 | BA36: 15 | BB36: 12 | BC36: 24 | BE36: 15 | BF36: 15 | BG36: 30 | BI36: 15 | BJ36: 15 | BK36: 30 | BM36: 9 | BN36: 9 | BO36: 26 | BQ36: 9 | BR36: 9 | BS36: 24 | BU36: 15 | BV36: 15 | BW36: 26 | BY36: 14.5 | BZ36: 14.5 | CA36: 17.5 | CC36: 15 | CD36: 15 | CE36: 28 | CG36: 15 | CH36: 12 | CI36: 24 | CK36: 15 | CL36: 15 | CM36: 30 | CO36: 15 | CP36: 15 | CQ36: 30 | CS36: 9 | CT36: 9 | CU36: 26 | CW36: 9 | CX36: 9 | CY36: 24 | DA36: 15 | DB36: 15 | DC36: 26 | DE36: 80 | DF36: 80 | DG36: 95 | DH36: 80 | DI36: 80
A37: =IF(C37="","",SUBTOTAL(3,$C$14:C37)) -> 24 | B37: ='[1]4'!O26 -> 424 | C37: س24 | D37: 15 | E37: ='[1]4'!N26 -> 3/4 | F37: ='[1]4'!I26 -> ذكر | G37: ='[1]4'!E26 -> 2011-10-30 | H37: ='[1]4'!F26 -> 1 | I37: ='[1]4'!G26 -> 11 | J37: ='[1]4'!H26 -> 9 | K37: ='[1]4'!J26 -> مسلم | L37: ='[1]4'!K26 -> ناجح ومنقول | M37: ='[1]4'!P26 -> 324 | P37: 25 | Q37: 25 | S37: 40 | T37: 40 | V37: 40 | W37: 40 | Y37: 39 | Z37: 39 | AB37: 40 | AC37: 40 | AE37: 40 | AF37: 40 | AH37: 40 | AI37: 40 | AK37: 40 | AL37: 40 | AN37: 80 | AO37: 80 | AP37: 95 | AQ37: 80 | AR37: 80 | AS37: 15 | AT37: 15 | AU37: 18 | AW37: 15 | AX37: 15 | AY37: 30 | BA37: 15 | BB37: 13.5 | BC37: 20 | BE37: 15 | BF37: 15 | BG37: 30 | BI37: 15 | BJ37: 15 | BK37: 30 | BM37: 13.5 | BN37: 13.5 | BO37: 26 | BQ37: 13.5 | BR37: 13.5 | BS37: 22 | BU37: 15 | BV37: 15 | BW37: 30 | BY37: 15 | BZ37: 15 | CA37: 18 | CC37: 15 | CD37: 15 | CE37: 30 | CG37: 15 | CH37: 13.5 | CI37: 20 | CK37: 15 | CL37: 15 | CM37: 30 | CO37: 15 | CP37: 15 | CQ37: 30 | CS37: 13.5 | CT37: 13.5 | CU37: 26 | CW37: 13.5 | CX37: 13.5 | CY37: 22 | DA37: 15 | DB37: 15 | DC37: 30 | DE37: 80 | DF37: 80 | DG37: 95 | DH37: 80 | DI37: 80
A38: =IF(C38="","",SUBTOTAL(3,$C$14:C38)) -> 25 | B38: ='[1]4'!O27 -> 425 | C38: س25 | D38: 15 | E38: ='[1]4'!N27 -> 2/4 | F38: ='[1]4'!I27 -> ذكر | G38: ='[1]4'!E27 -> 2012-06-11 | H38: ='[1]4'!F27 -> 20 | I38: ='[1]4'!G27 -> 3 | J38: ='[1]4'!H27 -> 9 | K38: ='[1]4'!J27 -> مسلم | L38: ='[1]4'!K27 -> ناجح ومنقول | M38: ='[1]4'!P27 -> 325 | P38: 40 | Q38: 40 | S38: 35 | T38: 35 | V38: 40 | W38: 40 | Y38: 39 | Z38: 39 | AB38: 39 | AC38: 39 | AE38: 35 | AF38: 35 | AH38: 40 | AI38: 40 | AK38: 35 | AL38: 35 | AN38: 90 | AO38: 90 | AP38: 90 | AQ38: 90 | AR38: 90 | AS38: 15 | AT38: 15 | AU38: 19.5 | AW38: 15 | AX38: 15 | AY38: 28 | BA38: 15 | BB38: 13.5 | BC38: 28 | BE38: 15 | BF38: 15 | BG38: 24 | BI38: 15 | BJ38: 15 | BK38: 30 | BM38: 13.5 | BN38: 13.5 | BO38: 26 | BQ38: 13.5 | BR38: 13.5 | BS38: 20 | BU38: 15 | BV38: 15 | BW38: 30 | BY38: 15 | BZ38: 15 | CA38: 19.5 | CC38: 15 | CD38: 15 | CE38: 28 | CG38: 15 | CH38: 13.5 | CI38: 28 | CK38: 15 | CL38: 15 | CM38: 24 | CO38: 15 | CP38: 15 | CQ38: 30 | CS38: 13.5 | CT38: 13.5 | CU38: 26 | CW38: 13.5 | CX38: 13.5 | CY38: 20 | DA38: 15 | DB38: 15 | DC38: 30 | DE38: 90 | DF38: 90 | DG38: 90 | DH38: 90 | DI38: 90
A39: =IF(C39="","",SUBTOTAL(3,$C$14:C39)) -> 26 | B39: ='[1]4'!O28 -> 426 | C39: س26 | D39: 15 | E39: ='[1]4'!N28 -> 3/4 | F39: ='[1]4'!I28 -> ذكر | G39: ='[1]4'!E28 -> 2012-05-28 | H39: ='[1]4'!F28 -> 3 | I39: ='[1]4'!G28 -> 4 | J39: ='[1]4'!H28 -> 9 | K39: ='[1]4'!J28 -> مسلم | L39: ='[1]4'!K28 -> ناجح ومنقول | M39: ='[1]4'!P28 -> 326 | P39: 40 | Q39: 40 | S39: 40 | T39: 40 | V39: 40 | W39: 40 | Y39: 39 | Z39: 39 | AB39: 40 | AC39: 40 | AE39: 40 | AF39: 40 | AH39: 40 | AI39: 40 | AK39: 40 | AL39: 40 | AN39: 90 | AO39: 90 | AP39: 90 | AQ39: 90 | AR39: 90 | AS39: 15 | AT39: 15 | AU39: 15 | AW39: 15 | AX39: 15 | AY39: 28 | BA39: 15 | BB39: 15 | BC39: 22 | BE39: 15 | BF39: 15 | BG39: 24 | BI39: 15 | BJ39: 15 | BK39: 26 | BM39: 9 | BN39: 9 | BO39: 26 | BQ39: 13.5 | BR39: 13.5 | BS39: 24 | BU39: 15 | BV39: 15 | BW39: 30 | BY39: 15 | BZ39: 15 | CA39: 15 | CC39: 15 | CD39: 15 | CE39: 28 | CG39: 15 | CH39: 15 | CI39: 22 | CK39: 15 | CL39: 15 | CM39: 24 | CO39: 15 | CP39: 15 | CQ39: 26 | CS39: 9 | CT39: 9 | CU39: 26 | CW39: 13.5 | CX39: 13.5 | CY39: 24 | DA39: 15 | DB39: 15 | DC39: 30 | DE39: 90 | DF39: 90 | DG39: 90 | DH39: 90 | DI39: 90
A40: =IF(C40="","",SUBTOTAL(3,$C$14:C40)) -> 27 | B40: ='[1]4'!O29 -> 427 | C40: س27 | D40: 15 | E40: ='[1]4'!N29 -> 2/4 | F40: ='[1]4'!I29 -> ذكر | G40: ='[1]4'!E29 -> 2010-12-08 | H40: ='[1]4'!F29 -> 23 | I40: ='[1]4'!G29 -> 9 | J40: ='[1]4'!H29 -> 10 | K40: ='[1]4'!J29 -> مسلم | L40: ='[1]4'!K29 -> ناجح ومنقول | M40: ='[1]4'!P29 -> 327 | P40: 35 | Q40: 35 | S40: 40 | T40: 40 | V40: 40 | W40: 40 | Y40: 39 | Z40: 39 | AB40: 37 | AC40: 37 | AE40: 35 | AF40: 35 | AH40: 40 | AI40: 40 | AK40: 40 | AL40: 40 | AN40: 90 | AO40: 90 | AP40: 90 | AQ40: 90 | AR40: 90 | AS40: 15 | AT40: 15 | AU40: 13.5 | AW40: 15 | AX40: 15 | AY40: 28 | BA40: 15 | BB40: 15 | BC40: 16 | BE40: 15 | BF40: 15 | BG40: 20 | BI40: 15 | BJ40: 15 | BK40: 30 | BM40: 7.5 | BN40: 7.5 | BO40: 26 | BQ40: 13.5 | BR40: 13.5 | BS40: 20 | BU40: 15 | BV40: 15 | BW40: 28 | BY40: 15 | BZ40: 15 | CA40: 13.5 | CC40: 15 | CD40: 15 | CE40: 28 | CG40: 15 | CH40: 15 | CI40: 16 | CK40: 15 | CL40: 15 | CM40: 20 | CO40: 15 | CP40: 15 | CQ40: 30 | CS40: 7.5 | CT40: 7.5 | CU40: 26 | CW40: 13.5 | CX40: 13.5 | CY40: 20 | DA40: 15 | DB40: 15 | DC40: 28 | DE40: 90 | DF40: 90 | DG40: 90 | DH40: 90 | DI40: 90
A41: =IF(C41="","",SUBTOTAL(3,$C$14:C41)) -> 28 | B41: ='[1]4'!O30 -> 428 | C41: س28 | D41: 15 | E41: ='[1]4'!N30 -> 1/4 | F41: ='[1]4'!I30 -> ذكر | G41: ='[1]4'!E30 -> 2012-03-18 | H41: ='[1]4'!F30 -> 13 | I41: ='[1]4'!G30 -> 6 | J41: ='[1]4'!H30 -> 9 | K41: ='[1]4'!J30 -> مسلم | L41: ='[1]4'!K30 -> ناجح ومنقول | M41: ='[1]4'!P30 -> 328 | P41: 39 | Q41: 39 | S41: 40 | T41: 40 | V41: 40 | W41: 40 | Y41: 37 | Z41: 37 | AB41: 40 | AC41: 40 | AE41: 40 | AF41: 40 | AH41: 40 | AI41: 40 | AK41: 40 | AL41: 40 | AN41: 95 | AO41: 95 | AP41: 95 | AQ41: 95 | AR41: 95 | AS41: 13.5 | AT41: 13.5 | AU41: 12.5 | AW41: 15 | AX41: 15 | AY41: 26 | BA41: 15 | BB41: 13.5 | BC41: 22 | BE41: 15 | BF41: 15 | BG41: 20 | BI41: 15 | BJ41: 15 | BK41: 30 | BM41: 6 | BN41: 6 | BO41: 16 | BQ41: 12 | BR41: 12 | BS41: 18 | BU41: 15 | BV41: 15 | BW41: 26 | BY41: 13.5 | BZ41: 13.5 | CA41: 12.5 | CC41: 15 | CD41: 15 | CE41: 26 | CG41: 15 | CH41: 13.5 | CI41: 22 | CK41: 15 | CL41: 15 | CM41: 20 | CO41: 15 | CP41: 15 | CQ41: 30 | CS41: 6 | CT41: 6 | CU41: 16 | CW41: 12 | CX41: 12 | CY41: 18 | DA41: 15 | DB41: 15 | DC41: 26 | DE41: 95 | DF41: 95 | DG41: 95 | DH41: 95 | DI41: 95
A42: =IF(C42="","",SUBTOTAL(3,$C$14:C42)) -> 29 | B42: ='[1]4'!O31 -> 429 | C42: س29 | D42: 15 | E42: ='[1]4'!N31 -> 3/4 | F42: ='[1]4'!I31 -> ذكر | G42: ='[1]4'!E31 -> 2013-01-04 | H42: ='[1]4'!F31 -> 27 | I42: ='[1]4'!G31 -> 8 | J42: ='[1]4'!H31 -> 8 | K42: ='[1]4'!J31 -> مسلم | L42: ='[1]4'!K31 -> ناجح ومنقول | M42: ='[1]4'!P31 -> 329 | P42: 20 | Q42: 20 | S42: 40 | T42: 40 | V42: 35 | W42: 35 | Y42: 30 | Z42: 30 | AB42: 35 | AC42: 35 | AE42: 20 | AF42: 20 | AH42: 40 | AI42: 40 | AK42: 35 | AL42: 35 | AN42: 95 | AO42: 95 | AP42: 95 | AQ42: 95 | AR42: 95 | AS42: 9 | AT42: 9 | AU42: 13.5 | AW42: 10 | AX42: 10 | AY42: 24 | BA42: 15 | BB42: 13.5 | BC42: 18 | BE42: غ | BF42: غ | BG42: 20 | BI42: 15 | BJ42: 15 | BK42: 28 | BM42: 6 | BN42: 6 | BO42: 10 | BQ42: 10.5 | BR42: 10.5 | BS42: 16 | BU42: غ | BV42: غ | BW42: 26 | BY42: 9 | BZ42: 9 | CA42: 13.5 | CC42: 10 | CD42: 10 | CE42: 24 | CG42: 15 | CH42: 13.5 | CI42: 18 | CK42: غ | CL42: غ | CM42: 20 | CO42: 15 | CP42: 15 | CQ42: 28 | CS42: 6 | CT42: 6 | CU42: 10 | CW42: 10.5 | CX42: 10.5 | CY42: 16 | DA42: غ | DB42: غ | DC42: 26 | DE42: 95 | DF42: 95 | DG42: 95 | DH42: 95 | DI42: 95
A43: =IF(C43="","",SUBTOTAL(3,$C$14:C43)) -> 30 | B43: ='[1]4'!O32 -> 430 | C43: س30 | D43: 15 | E43: ='[1]4'!N32 -> 4/4 | F43: ='[1]4'!I32 -> ذكر | G43: ='[1]4'!E32 -> 2012-01-19 | H43: ='[1]4'!F32 -> 12 | I43: ='[1]4'!G32 -> 8 | J43: ='[1]4'!H32 -> 9 | K43: ='[1]4'!J32 -> مسلم | L43: ='[1]4'!K32 -> ناجح ومنقول | M43: ='[1]4'!P32 -> 330 | P43: 23 | Q43: 23 | S43: 40 | T43: 40 | V43: 40 | W43: 40 | Y43: 40 | Z43: 40 | AB43: 39 | AC43: 39 | AE43: 40 | AF43: 40 | AH43: 30 | AI43: 30 | AK43: 40 | AL43: 40 | AN43: 80 | AO43: 80 | AP43: 90 | AQ43: 80 | AR43: 80 | AS43: 10.5 | AT43: 10.5 | AU43: 11.5 | AW43: 10 | AX43: 10 | AY43: 28 | BA43: 15 | BB43: 15 | BC43: 22 | BE43: 15 | BF43: 15 | BG43: 20 | BI43: 15 | BJ43: 15 | BK43: 24 | BM43: 4.5 | BN43: 4.5 | BO43: 24 | BQ43: 10.5 | BR43: 10.5 | BS43: 20 | BU43: 15 | BV43: 15 | BW43: 30 | BY43: 10.5 | BZ43: 10.5 | CA43: 11.5 | CC43: 10 | CD43: 10 | CE43: 28 | CG43: 15 | CH43: 15 | CI43: 22 | CK43: 15 | CL43: 15 | CM43: 20 | CO43: 15 | CP43: 15 | CQ43: 24 | CS43: 4.5 | CT43: 4.5 | CU43: 24 | CW43: 10.5 | CX43: 10.5 | CY43: 20 | DA43: 15 | DB43: 15 | DC43: 30 | DE43: 80 | DF43: 80 | DG43: 90 | DH43: 80 | DI43: 80
A44: =IF(C44="","",SUBTOTAL(3,$C$14:C44)) -> 31 | B44: ='[1]4'!O33 -> 431 | C44: س31 | D44: 15 | E44: ='[1]4'!N33 -> 2/4 | F44: ='[1]4'!I33 -> ذكر | G44: ='[1]4'!E33 -> 2012-06-16 | H44: ='[1]4'!F33 -> 15 | I44: ='[1]4'!G33 -> 3 | J44: ='[1]4'!H33 -> 9 | K44: ='[1]4'!J33 -> مسلم | L44: ='[1]4'!K33 -> ناجح ومنقول | M44: ='[1]4'!P33 -> 331 | P44: 35 | Q44: 35 | S44: 40 | T44: 40 | V44: 40 | W44: 40 | Y44: 40 | Z44: 40 | AB44: 40 | AC44: 40 | AE44: 35 | AF44: 35 | AH44: 35 | AI44: 35 | AK44: 40 | AL44: 40 | AN44: 85 | AO44: 85 | AP44: 90 | AQ44: 85 | AR44: 85 | AS44: 15 | AT44: 15 | AU44: 16.5 | AW44: 15 | AX44: 15 | AY44: 28 | BA44: 15 | BB44: 15 | BC44: 18 | BE44: 15 | BF44: 15 | BG44: 20 | BI44: 15 | BJ44: 15 | BK44: 24 | BM44: 13.5 | BN44: 13.5 | BO44: 18 | BQ44: 12 | BR44: 12 | BS44: 20 | BU44: 15 | BV44: 15 | BW44: 30 | BY44: 15 | BZ44: 15 | CA44: 16.5 | CC44: 15 | CD44: 15 | CE44: 28 | CG44: 15 | CH44: 15 | CI44: 18 | CK44: 15 | CL44: 15 | CM44: 20 | CO44: 15 | CP44: 15 | CQ44: 24 | CS44: 13.5 | CT44: 13.5 | CU44: 18 | CW44: 12 | CX44: 12 | CY44: 20 | DA44: 15 | DB44: 15 | DC44: 30 | DE44: 85 | DF44: 85 | DG44: 90 | DH44: 85 | DI44: 85
A45: =IF(C45="","",SUBTOTAL(3,$C$14:C45)) -> 32 | B45: ='[1]4'!O34 -> 432 | C45: س32 | D45: 15 | E45: ='[1]4'!N34 -> 4/4 | F45: ='[1]4'!I34 -> ذكر | G45: ='[1]4'!E34 -> 2012-07-23 | H45: ='[1]4'!F34 -> 8 | I45: ='[1]4'!G34 -> 2 | J45: ='[1]4'!H34 -> 9 | K45: ='[1]4'!J34 -> مسلم | L45: ='[1]4'!K34 -> ناجح ومنقول | M45: ='[1]4'!P34 -> 332 | P45: 25 | Q45: 25 | S45: 40 | T45: 40 | V45: 30 | W45: 30 | Y45: 40 | Z45: 40 | AB45: 37 | AC45: 37 | AE45: 40 | AF45: 40 | AH45: 30 | AI45: 30 | AK45: 40 | AL45: 40 | AN45: 85 | AO45: 85 | AP45: 95 | AQ45: 85 | AR45: 85 | AS45: 13.5 | AT45: 13.5 | AU45: 10 | AW45: 10 | AX45: 10 | AY45: 24 | BA45: 15 | BB45: 12 | BC45: 20 | BE45: 13.5 | BF45: 13.5 | BG45: 20 | BI45: 7.5 | BJ45: 7.5 | BK45: 16 | BM45: 7.5 | BN45: 7.5 | BO45: 22 | BQ45: 7.5 | BR45: 7.5 | BS45: 20 | BU45: 15 | BV45: 15 | BW45: 28 | BY45: 13.5 | BZ45: 13.5 | CA45: 10 | CC45: 10 | CD45: 10 | CE45: 24 | CG45: 15 | CH45: 12 | CI45: 20 | CK45: 13.5 | CL45: 13.5 | CM45: 20 | CO45: 7.5 | CP45: 7.5 | CQ45: 16 | CS45: 7.5 | CT45: 7.5 | CU45: 22 | CW45: 7.5 | CX45: 7.5 | CY45: 20 | DA45: 15 | DB45: 15 | DC45: 28 | DE45: 85 | DF45: 85 | DG45: 95 | DH45: 85 | DI45: 85
A46: =IF(C46="","",SUBTOTAL(3,$C$14:C46)) -> 33 | B46: ='[1]4'!O35 -> 433 | C46: س33 | D46: 15 | E46: ='[1]4'!N35 -> 2/4 | F46: ='[1]4'!I35 -> ذكر | G46: ='[1]4'!E35 -> 2013-01-20 | H46: ='[1]4'!F35 -> 11 | I46: ='[1]4'!G35 -> 8 | J46: ='[1]4'!H35 -> 8 | K46: ='[1]4'!J35 -> مسلم | L46: ='[1]4'!K35 -> ناجح ومنقول | M46: ='[1]4'!P35 -> 333 | P46: 35 | Q46: 35 | S46: 40 | T46: 40 | V46: 40 | W46: 40 | Y46: 39 | Z46: 39 | AB46: 39 | AC46: 39 | AE46: 35 | AF46: 35 | AH46: 35 | AI46: 35 | AK46: 35 | AL46: 35 | AN46: 85 | AO46: 90 | AP46: 90 | AQ46: 90 | AR46: 95 | AS46: 13.5 | AT46: 13.5 | AU46: 7.5 | AW46: 15 | AX46: 15 | AY46: 28 | BA46: 15 | BB46: 13.5 | BC46: 22 | BE46: 15 | BF46: 15 | BG46: 20 | BI46: 7.5 | BJ46: 7.5 | BK46: 24 | BM46: 10.5 | BN46: 10.5 | BO46: 20 | BQ46: 10.5 | BR46: 10.5 | BS46: 10 | BU46: 15 | BV46: 15 | BW46: 28 | BY46: 13.5 | BZ46: 13.5 | CA46: 7.5 | CC46: 15 | CD46: 15 | CE46: 28 | CG46: 15 | CH46: 13.5 | CI46: 22 | CK46: 15 | CL46: 15 | CM46: 20 | CO46: 7.5 | CP46: 7.5 | CQ46: 24 | CS46: 10.5 | CT46: 10.5 | CU46: 20 | CW46: 10.5 | CX46: 10.5 | CY46: 10 | DA46: 15 | DB46: 15 | DC46: 28 | DE46: 85 | DF46: 90 | DG46: 90 | DH46: 90 | DI46: 95
A47: =IF(C47="","",SUBTOTAL(3,$C$14:C47)) -> 34 | B47: ='[1]4'!O36 -> 434 | C47: س34 | D47: 15 | E47: ='[1]4'!N36 -> 3/4 | F47: ='[1]4'!I36 -> ذكر | G47: ='[1]4'!E36 -> 2011-12-15 | H47: ='[1]4'!F36 -> 16 | I47: ='[1]4'!G36 -> 9 | J47: ='[1]4'!H36 -> 9 | K47: ='[1]4'!J36 -> مسلم | L47: ='[1]4'!K36 -> ناجح ومنقول | M47: ='[1]4'!P36 -> 334 | P47: 40 | Q47: 40 | S47: 40 | T47: 40 | V47: 40 | W47: 40 | Y47: 39 | Z47: 39 | AB47: 40 | AC47: 40 | AE47: 40 | AF47: 40 | AH47: 40 | AI47: 40 | AK47: 40 | AL47: 40 | AN47: 85 | AO47: 90 | AP47: 90 | AQ47: 90 | AR47: 95 | AS47: 10.5 | AT47: 10.5 | AU47: 16 | AW47: 15 | AX47: 15 | AY47: 30 | BA47: 15 | BB47: 15 | BC47: 22 | BE47: 15 | BF47: 15 | BG47: 20 | BI47: 15 | BJ47: 15 | BK47: 24 | BM47: 9 | BN47: 9 | BO47: 26 | BQ47: 12 | BR47: 12 | BS47: 16 | BU47: 15 | BV47: 15 | BW47: 30 | BY47: 10.5 | BZ47: 10.5 | CA47: 16 | CC47: 15 | CD47: 15 | CE47: 30 | CG47: 15 | CH47: 15 | CI47: 22 | CK47: 15 | CL47: 15 | CM47: 20 | CO47: 15 | CP47: 15 | CQ47: 24 | CS47: 9 | CT47: 9 | CU47: 26 | CW47: 12 | CX47: 12 | CY47: 16 | DA47: 15 | DB47: 15 | DC47: 30 | DE47: 85 | DF47: 90 | DG47: 90 | DH47: 90 | DI47: 95
A48: =IF(C48="","",SUBTOTAL(3,$C$14:C48)) -> 35 | B48: ='[1]4'!O37 -> 435 | C48: س35 | D48: 15 | E48: ='[1]4'!N37 -> 2/4 | F48: ='[1]4'!I37 -> ذكر | G48: ='[1]4'!E37 -> 2012-09-18 | H48: ='[1]4'!F37 -> 13 | I48: ='[1]4'!G37 -> 0 | J48: ='[1]4'!H37 -> 9 | K48: ='[1]4'!J37 -> مسلم | L48: ='[1]4'!K37 -> ناجح ومنقول | M48: ='[1]4'!P37 -> 335 | P48: 30 | Q48: 30 | S48: 35 | T48: 35 | V48: 30 | W48: 30 | Y48: 30 | Z48: 30 | AB48: 30 | AC48: 30 | AE48: 30 | AF48: 30 | AH48: 30 | AI48: 30 | AK48: 40 | AL48: 40 | AN48: 85 | AO48: 90 | AP48: 95 | AQ48: 90 | AR48: 95 | AS48: 10.5 | AT48: 10.5 | AU48: 9 | AW48: 15 | AX48: 15 | AY48: 22 | BA48: 15 | BB48: 15 | BC48: 24 | BE48: 13.5 | BF48: 13.5 | BG48: 24 | BI48: 15 | BJ48: 15 | BK48: 24 | BM48: 7.5 | BN48: 7.5 | BO48: 18 | BQ48: 12 | BR48: 12 | BS48: 14 | BU48: 15 | BV48: 15 | BW48: 22 | BY48: 10.5 | BZ48: 10.5 | CA48: 9 | CC48: 15 | CD48: 15 | CE48: 22 | CG48: 15 | CH48: 15 | CI48: 24 | CK48: 13.5 | CL48: 13.5 | CM48: 24 | CO48: 15 | CP48: 15 | CQ48: 24 | CS48: 7.5 | CT48: 7.5 | CU48: 18 | CW48: 12 | CX48: 12 | CY48: 14 | DA48: 15 | DB48: 15 | DC48: 22 | DE48: 85 | DF48: 90 | DG48: 95 | DH48: 90 | DI48: 95
A49: =IF(C49="","",SUBTOTAL(3,$C$14:C49)) -> 36 | B49: ='[1]4'!O38 -> 436 | C49: س36 | D49: 15 | E49: ='[1]4'!N38 -> 3/4 | F49: ='[1]4'!I38 -> ذكر | G49: ='[1]4'!E38 -> 2011-11-18 | H49: ='[1]4'!F38 -> 13 | I49: ='[1]4'!G38 -> 10 | J49: ='[1]4'!H38 -> 9 | K49: ='[1]4'!J38 -> مسلم | L49: ='[1]4'!K38 -> ناجح ومنقول | M49: ='[1]4'!P38 -> 336 | P49: 40 | Q49: 40 | S49: 38 | T49: 38 | V49: 40 | W49: 40 | Y49: 39 | Z49: 39 | AB49: 40 | AC49: 40 | AE49: 40 | AF49: 40 | AH49: 35 | AI49: 35 | AK49: 40 | AL49: 40 | AN49: 85 | AO49: 90 | AP49: 95 | AQ49: 90 | AR49: 95 | AS49: 12 | AT49: 12 | AU49: 16.5 | AW49: 9 | AX49: 9 | AY49: 30 | BA49: 15 | BB49: 13.5 | BC49: 20 | BE49: 15 | BF49: 15 | BG49: 28 | BI49: 15 | BJ49: 15 | BK49: 30 | BM49: 6 | BN49: 6 | BO49: 26 | BQ49: 13.5 | BR49: 13.5 | BS49: 22 | BU49: 15 | BV49: 15 | BW49: 22 | BY49: 12 | BZ49: 12 | CA49: 16.5 | CC49: 9 | CD49: 9 | CE49: 30 | CG49: 15 | CH49: 13.5 | CI49: 20 | CK49: 15 | CL49: 15 | CM49: 28 | CO49: 15 | CP49: 15 | CQ49: 30 | CS49: 6 | CT49: 6 | CU49: 26 | CW49: 13.5 | CX49: 13.5 | CY49: 22 | DA49: 15 | DB49: 15 | DC49: 22 | DE49: 85 | DF49: 90 | DG49: 95 | DH49: 90 | DI49: 95
A50: =IF(C50="","",SUBTOTAL(3,$C$14:C50)) -> 37 | B50: ='[1]4'!O39 -> 437 | C50: س37 | D50: 15 | E50: ='[1]4'!N39 -> 3/4 | F50: ='[1]4'!I39 -> ذكر | G50: ='[1]4'!E39 -> 2012-07-08 | H50: ='[1]4'!F39 -> 23 | I50: ='[1]4'!G39 -> 2 | J50: ='[1]4'!H39 -> 9 | K50: ='[1]4'!J39 -> مسلم | L50: ='[1]4'!K39 -> ناجح ومنقول | M50: ='[1]4'!P39 -> 337 | P50: 40 | Q50: 40 | S50: 40 | T50: 40 | V50: 40 | W50: 40 | Y50: 37 | Z50: 37 | AB50: 40 | AC50: 40 | AE50: 40 | AF50: 40 | AH50: 40 | AI50: 40 | AK50: 40 | AL50: 40 | AN50: 85 | AO50: 90 | AP50: 95 | AQ50: 90 | AR50: 95 | AS50: 13.5 | AT50: 13.5 | AU50: 18 | AW50: 13 | AX50: 13 | AY50: 26 | BA50: 15 | BB50: 12 | BC50: 20 | BE50: 13.5 | BF50: 13.5 | BG50: 20 | BI50: 15 | BJ50: 15 | BK50: 24 | BM50: 6 | BN50: 6 | BO50: 24 | BQ50: 10.5 | BR50: 10.5 | BS50: 20 | BU50: 15 | BV50: 15 | BW50: 28 | BY50: 13.5 | BZ50: 13.5 | CA50: 18 | CC50: 13 | CD50: 13 | CE50: 26 | CG50: 15 | CH50: 12 | CI50: 20 | CK50: 13.5 | CL50: 13.5 | CM50: 20 | CO50: 15 | CP50: 15 | CQ50: 24 | CS50: 6 | CT50: 6 | CU50: 24 | CW50: 10.5 | CX50: 10.5 | CY50: 20 | DA50: 15 | DB50: 15 | DC50: 28 | DE50: 85 | DF50: 90 | DG50: 95 | DH50: 90 | DI50: 95
A51: =IF(C51="","",SUBTOTAL(3,$C$14:C51)) -> 38 | B51: ='[1]4'!O40 -> 438 | C51: س38 | D51: 15 | E51: ='[1]4'!N40 -> 4/4 | F51: ='[1]4'!I40 -> ذكر | G51: ='[1]4'!E40 -> 2011-12-24 | H51: ='[1]4'!F40 -> 7 | I51: ='[1]4'!G40 -> 9 | J51: ='[1]4'!H40 -> 9 | K51: ='[1]4'!J40 -> مسلم | L51: ='[1]4'!K40 -> ناجح ومنقول | M51: ='[1]4'!P40 -> 338 | P51: غ | Q51: غ | S51: غ | T51: غ | V51: غ | W51: غ | Y51: غ | Z51: غ | AB51: غ | AC51: غ | AE51: غ | AF51: غ | AH51: غ | AI51: غ | AK51: غ | AL51: غ | AN51: غ | AO51: غ | AP51: غ | AQ51: غ | AR51: غ | AS51: غ | AT51: غ | AU51: غ | AW51: غ | AX51: غ | AY51: غ | BA51: 15 | BB51: غ | BC51: غ | BE51: غ | BF51: غ | BG51: غ | BI51: غ | BJ51: غ | BK51: غ | BM51: غ | BN51: غ | BO51: غ | BQ51: غ | BR51: غ | BS51: غ | BU51: غ | BV51: غ | BW51: غ | BY51: غ | BZ51: غ | CA51: غ | CC51: غ | CD51: غ | CE51: غ | CG51: 15 | CH51: غ | CI51: غ | CK51: غ | CL51: غ | CM51: غ | CO51: غ | CP51: غ | CQ51: غ | CS51: غ | CT51: غ | CU51: غ | CW51: غ | CX51: غ | CY51: غ | DA51: غ | DB51: غ | DC51: غ | DE51: غ | DF51: غ | DG51: غ | DH51: غ | DI51: غ
A52: =IF(C52="","",SUBTOTAL(3,$C$14:C52)) -> 39 | B52: ='[1]4'!O41 -> 439 | C52: س39 | D52: 15 | E52: ='[1]4'!N41 -> 1/4 | F52: ='[1]4'!I41 -> ذكر | G52: ='[1]4'!E41 -> 2012-09-27 | H52: ='[1]4'!F41 -> 4 | I52: ='[1]4'!G41 -> 0 | J52: ='[1]4'!H41 -> 9 | K52: ='[1]4'!J41 -> مسلم | L52: ='[1]4'!K41 -> ناجح ومنقول | M52: ='[1]4'!P41 -> 339 | P52: 40 | Q52: 40 | S52: 40 | T52: 40 | V52: 35 | W52: 35 | Y52: 40 | Z52: 40 | AB52: 40 | AC52: 40 | AE52: 40 | AF52: 40 | AH52: 35 | AI52: 35 | AK52: 40 | AL52: 40 | AN52: 90 | AO52: 90 | AP52: 95 | AQ52: 90 | AR52: 90 | AS52: 12 | AT52: 12 | AU52: 22.5 | AW52: 15 | AX52: 15 | AY52: 30 | BA52: 15 | BB52: 15 | BC52: 26 | BE52: 15 | BF52: 15 | BG52: 30 | BI52: 15 | BJ52: 15 | BK52: 30 | BM52: 9 | BN52: 9 | BO52: 24 | BQ52: 13.5 | BR52: 13.5 | BS52: 20 | BU52: 15 | BV52: 15 | BW52: 30 | BY52: 12 | BZ52: 12 | CA52: 22.5 | CC52: 15 | CD52: 15 | CE52: 30 | CG52: 15 | CH52: 15 | CI52: 26 | CK52: 15 | CL52: 15 | CM52: 30 | CO52: 15 | CP52: 15 | CQ52: 30 | CS52: 9 | CT52: 9 | CU52: 24 | CW52: 13.5 | CX52: 13.5 | CY52: 20 | DA52: 15 | DB52: 15 | DC52: 30 | DE52: 90 | DF52: 90 | DG52: 95 | DH52: 90 | DI52: 90
A53: =IF(C53="","",SUBTOTAL(3,$C$14:C53)) -> 40 | B53: ='[1]4'!O42 -> 440 | C53: س40 | D53: 15 | E53: ='[1]4'!N42 -> 4/4 | F53: ='[1]4'!I42 -> ذكر | G53: ='[1]4'!E42 -> 2012-06-03 | H53: ='[1]4'!F42 -> 28 | I53: ='[1]4'!G42 -> 3 | J53: ='[1]4'!H42 -> 9 | K53: ='[1]4'!J42 -> مسلم | L53: ='[1]4'!K42 -> ناجح ومنقول | M53: ='[1]4'!P42 -> 340 | P53: 25 | Q53: 25 | S53: 40 | T53: 40 | V53: 35 | W53: 35 | Y53: 25 | Z53: 25 | AB53: 40 | AC53: 40 | AE53: 25 | AF53: 25 | AH53: 25 | AI53: 25 | AK53: 35 | AL53: 35 | AN53: 90 | AO53: 90 | AP53: 95 | AQ53: 90 | AR53: 90 | AS53: 10.5 | AT53: 10.5 | AU53: 16.5 | AW53: 12 | AX53: 12 | AY53: 28 | BA53: 15 | BB53: 15 | BC53: 24 | BE53: 15 | BF53: 15 | BG53: 30 | BI53: 15 | BJ53: 15 | BK53: 30 | BM53: 4.5 | BN53: 4.5 | BO53: 18 | BQ53: 12 | BR53: 12 | BS53: 20 | BU53: 15 | BV53: 15 | BW53: 30 | BY53: 10.5 | BZ53: 10.5 | CA53: 16.5 | CC53: 12 | CD53: 12 | CE53: 28 | CG53: 15 | CH53: 15 | CI53: 24 | CK53: 15 | CL53: 15 | CM53: 30 | CO53: 15 | CP53: 15 | CQ53: 30 | CS53: 4.5 | CT53: 4.5 | CU53: 18 | CW53: 12 | CX53: 12 | CY53: 20 | DA53: 15 | DB53: 15 | DC53: 30 | DE53: 90 | DF53: 90 | DG53: 95 | DH53: 90 | DI53: 90
A54: =IF(C54="","",SUBTOTAL(3,$C$14:C54)) -> 41 | B54: ='[1]4'!O43 -> 441 | C54: س41 | D54: 15 | E54: ='[1]4'!N43 -> 3/4 | F54: ='[1]4'!I43 -> ذكر | G54: ='[1]4'!E43 -> 2012-05-24 | H54: ='[1]4'!F43 -> 7 | I54: ='[1]4'!G43 -> 4 | J54: ='[1]4'!H43 -> 9 | K54: ='[1]4'!J43 -> مسلم | L54: ='[1]4'!K43 -> ناجح ومنقول | M54: ='[1]4'!P43 -> 341 | P54: 30 | Q54: 30 | S54: 40 | T54: 40 | V54: 40 | W54: 40 | Y54: 37 | Z54: 37 | AB54: 35 | AC54: 35 | AE54: 40 | AF54: 40 | AH54: 35 | AI54: 35 | AK54: 35 | AL54: 35 | AN54: 90 | AO54: 90 | AP54: 95 | AQ54: 90 | AR54: 90 | AS54: 15 | AT54: 15 | AU54: 24 | AW54: 15 | AX54: 15 | AY54: 26 | BA54: 15 | BB54: 15 | BC54: 20 | BE54: 13.5 | BF54: 13.5 | BG54: 24 | BI54: 15 | BJ54: 15 | BK54: 30 | BM54: 12 | BN54: 12 | BO54: 26 | BQ54: 9 | BR54: 9 | BS54: 26 | BU54: 15 | BV54: 15 | BW54: 28 | BY54: 15 | BZ54: 15 | CA54: 24 | CC54: 15 | CD54: 15 | CE54: 26 | CG54: 15 | CH54: 15 | CI54: 20 | CK54: 13.5 | CL54: 13.5 | CM54: 24 | CO54: 15 | CP54: 15 | CQ54: 30 | CS54: 12 | CT54: 12 | CU54: 26 | CW54: 9 | CX54: 9 | CY54: 26 | DA54: 15 | DB54: 15 | DC54: 28 | DE54: 90 | DF54: 90 | DG54: 95 | DH54: 90 | DI54: 90
A55: =IF(C55="","",SUBTOTAL(3,$C$14:C55)) -> 42 | B55: ='[1]4'!O44 -> 442 | C55: س42 | D55: 15 | E55: ='[1]4'!N44 -> 3/4 | F55: ='[1]4'!I44 -> ذكر | G55: ='[1]4'!E44 -> 2012-05-22 | H55: ='[1]4'!F44 -> 9 | I55: ='[1]4'!G44 -> 4 | J55: ='[1]4'!H44 -> 9 | K55: ='[1]4'!J44 -> مسلم | L55: ='[1]4'!K44 -> ناجح ومنقول | M55: ='[1]4'!P44 -> 342 | P55: 40 | Q55: 40 | S55: 40 | T55: 40 | V55: 40 | W55: 40 | Y55: 39 | Z55: 39 | AB55: 40 | AC55: 40 | AE55: 40 | AF55: 40 | AH55: 40 | AI55: 40 | AK55: 35 | AL55: 35 | AN55: 85 | AO55: 85 | AP55: 95 | AQ55: 85 | AR55: 85 | AS55: 15 | AT55: 15 | AU55: 27 | AW55: 15 | AX55: 15 | AY55: 30 | BA55: 15 | BB55: 15 | BC55: 26 | BE55: 15 | BF55: 15 | BG55: 30 | BI55: 15 | BJ55: 15 | BK55: 30 | BM55: 13.5 | BN55: 13.5 | BO55: 26 | BQ55: 12 | BR55: 12 | BS55: 26 | BU55: 15 | BV55: 15 | BW55: 30 | BY55: 15 | BZ55: 15 | CA55: 27 | CC55: 15 | CD55: 15 | CE55: 30 | CG55: 15 | CH55: 15 | CI55: 26 | CK55: 15 | CL55: 15 | CM55: 30 | CO55: 15 | CP55: 15 | CQ55: 30 | CS55: 13.5 | CT55: 13.5 | CU55: 26 | CW55: 12 | CX55: 12 | CY55: 26 | DA55: 15 | DB55: 15 | DC55: 30 | DE55: 85 | DF55: 85 | DG55: 95 | DH55: 85 | DI55: 85
A56: =IF(C56="","",SUBTOTAL(3,$C$14:C56)) -> 43 | B56: ='[1]4'!O45 -> 443 | C56: س43 | D56: 15 | E56: ='[1]4'!N45 -> 4/4 | F56: ='[1]4'!I45 -> ذكر | G56: ='[1]4'!E45 -> 2010-12-21 | H56: ='[1]4'!F45 -> 10 | I56: ='[1]4'!G45 -> 9 | J56: ='[1]4'!H45 -> 10 | K56: ='[1]4'!J45 -> مسلم | L56: ='[1]4'!K45 -> راسب وباق للاعادة | M56: ='[1]4'!P45 -> 343 | P56: غ | Q56: غ | S56: غ | T56: غ | V56: غ | W56: غ | Y56: غ | Z56: غ | AB56: غ | AC56: غ | AE56: غ | AF56: غ | AH56: غ | AI56: غ | AK56: غ | AL56: غ | AN56: غ | AO56: غ | AP56: غ | AQ56: غ | AR56: غ | AS56: غ | AT56: غ | AU56: غ | AW56: غ | AX56: غ | AY56: غ | BA56: 15 | BB56: غ | BC56: غ | BE56: غ | BF56: غ | BG56: غ | BI56: غ | BJ56: غ | BK56: غ | BM56: غ | BN56: غ | BO56: غ | BQ56: غ | BR56: غ | BS56: غ | BU56: غ | BV56: غ | BW56: غ | BY56: غ | BZ56: غ | CA56: غ | CC56: غ | CD56: غ | CE56: غ | CG56: 15 | CH56: غ | CI56: غ | CK56: غ | CL56: غ | CM56: غ | CO56: غ | CP56: غ | CQ56: غ | CS56: غ | CT56: غ | CU56: غ | CW56: غ | CX56: غ | CY56: غ | DA56: غ | DB56: غ | DC56: غ | DE56: غ | DF56: غ | DG56: غ | DH56: غ | DI56: غ
A57: =IF(C57="","",SUBTOTAL(3,$C$14:C57)) -> 44 | B57: ='[1]4'!O46 -> 444 | C57: س44 | D57: 15 | E57: ='[1]4'!N46 -> 3/4 | F57: ='[1]4'!I46 -> ذكر | G57: ='[1]4'!E46 -> 2011-11-13 | H57: ='[1]4'!F46 -> 18 | I57: ='[1]4'!G46 -> 10 | J57: ='[1]4'!H46 -> 9 | K57: ='[1]4'!J46 -> مسلم | L57: ='[1]4'!K46 -> ناجح ومنقول | M57: ='[1]4'!P46 -> 344 | P57: 40 | Q57: 40 | S57: 40 | T57: 40 | V57: 40 | W57: 40 | Y57: 39 | Z57: 39 | AB57: 35 | AC57: 35 | AE57: 40 | AF57: 40 | AH57: 40 | AI57: 40 | AK57: 35 | AL57: 35 | AN57: 90 | AO57: 90 | AP57: 90 | AQ57: 90 | AR57: 90 | AS57: 15 | AT57: 15 | AU57: 15 | AW57: 15 | AX57: 15 | AY57: 30 | BA57: 15 | BB57: 15 | BC57: 24 | BE57: 15 | BF57: 15 | BG57: 26 | BI57: 15 | BJ57: 15 | BK57: 30 | BM57: 15 | BN57: 15 | BO57: 18 | BQ57: 12 | BR57: 12 | BS57: 26 | BU57: 15 | BV57: 15 | BW57: 22 | BY57: 15 | BZ57: 15 | CA57: 15 | CC57: 15 | CD57: 15 | CE57: 30 | CG57: 15 | CH57: 15 | CI57: 24 | CK57: 15 | CL57: 15 | CM57: 26 | CO57: 15 | CP57: 15 | CQ57: 30 | CS57: 15 | CT57: 15 | CU57: 18 | CW57: 12 | CX57: 12 | CY57: 26 | DA57: 15 | DB57: 15 | DC57: 22 | DE57: 90 | DF57: 90 | DG57: 90 | DH57: 90 | DI57: 90
A58: =IF(C58="","",SUBTOTAL(3,$C$14:C58)) -> 45 | B58: ='[1]4'!O47 -> 445 | C58: س45 | D58: 15 | E58: ='[1]4'!N47 -> 3/4 | F58: ='[1]4'!I47 -> ذكر | G58: ='[1]4'!E47 -> 2012-09-19 | H58: ='[1]4'!F47 -> 12 | I58: ='[1]4'!G47 -> 0 | J58: ='[1]4'!H47 -> 9 | K58: ='[1]4'!J47 -> مسلم | L58: ='[1]4'!K47 -> ناجح ومنقول | M58: ='[1]4'!P47 -> 345 | P58: غ | Q58: غ | S58: غ | T58: غ | V58: غ | W58: غ | Y58: غ | Z58: غ | AB58: غ | AC58: غ | AE58: غ | AF58: غ | AH58: غ | AI58: غ | AK58: غ | AL58: غ | AN58: غ | AO58: غ | AP58: غ | AQ58: غ | AR58: غ | AS58: غ | AT58: غ | AU58: غ | AW58: غ | AX58: غ | AY58: غ | BA58: 15 | BB58: غ | BC58: غ | BE58: غ | BF58: غ | BG58: غ | BI58: غ | BJ58: غ | BK58: غ | BM58: غ | BN58: غ | BO58: غ | BQ58: غ | BR58: غ | BS58: غ | BU58: غ | BV58: غ | BW58: غ | BY58: غ | BZ58: غ | CA58: غ | CC58: غ | CD58: غ | CE58: غ | CG58: 15 | CH58: غ | CI58: غ | CK58: غ | CL58: غ | CM58: غ | CO58: غ | CP58: غ | CQ58: غ | CS58: غ | CT58: غ | CU58: غ | CW58: غ | CX58: غ | CY58: غ | DA58: غ | DB58: غ | DC58: غ | DE58: غ | DF58: غ | DG58: غ | DH58: غ | DI58: غ
A59: =IF(C59="","",SUBTOTAL(3,$C$14:C59)) -> 46 | B59: ='[1]4'!O48 -> 446 | C59: س46 | D59: 15 | E59: ='[1]4'!N48 -> 1/4 | F59: ='[1]4'!I48 -> ذكر | G59: ='[1]4'!E48 -> 2012-07-16 | H59: ='[1]4'!F48 -> 15 | I59: ='[1]4'!G48 -> 2 | J59: ='[1]4'!H48 -> 9 | K59: ='[1]4'!J48 -> مسلم | L59: ='[1]4'!K48 -> ناجح ومنقول | M59: ='[1]4'!P48 -> 346 | P59: 40 | Q59: 40 | S59: 40 | T59: 40 | V59: 40 | W59: 40 | Y59: 40 | Z59: 40 | AB59: 40 | AC59: 40 | AE59: 40 | AF59: 40 | AH59: 40 | AI59: 40 | AK59: 35 | AL59: 35 | AN59: 90 | AO59: 85 | AP59: 90 | AQ59: 90 | AR59: 90 | AS59: 15 | AT59: 15 | AU59: 18 | AW59: 15 | AX59: 15 | AY59: 28 | BA59: 15 | BB59: 15 | BC59: 24 | BE59: 15 | BF59: 15 | BG59: 30 | BI59: 15 | BJ59: 15 | BK59: 30 | BM59: 13.5 | BN59: 13.5 | BO59: 26 | BQ59: 12 | BR59: 12 | BS59: 26 | BU59: 15 | BV59: 15 | BW59: 26 | BY59: 15 | BZ59: 15 | CA59: 18 | CC59: 15 | CD59: 15 | CE59: 28 | CG59: 15 | CH59: 15 | CI59: 24 | CK59: 15 | CL59: 15 | CM59: 30 | CO59: 15 | CP59: 15 | CQ59: 30 | CS59: 13.5 | CT59: 13.5 | CU59: 26 | CW59: 12 | CX59: 12 | CY59: 26 | DA59: 15 | DB59: 15 | DC59: 26 | DE59: 90 | DF59: 85 | DG59: 90 | DH59: 90 | DI59: 90
A60: =IF(C60="","",SUBTOTAL(3,$C$14:C60)) -> 47 | B60: ='[1]4'!O49 -> 447 | C60: س47 | D60: 15 | E60: ='[1]4'!N49 -> 1/4 | F60: ='[1]4'!I49 -> ذكر | G60: ='[1]4'!E49 -> 2011-11-17 | H60: ='[1]4'!F49 -> 14 | I60: ='[1]4'!G49 -> 10 | J60: ='[1]4'!H49 -> 9 | K60: ='[1]4'!J49 -> مسلم | L60: ='[1]4'!K49 -> ناجح ومنقول | M60: ='[1]4'!P49 -> 347 | P60: 40 | Q60: 40 | S60: 40 | T60: 40 | V60: 40 | W60: 40 | Y60: 39 | Z60: 39 | AB60: 40 | AC60: 40 | AE60: 40 | AF60: 40 | AH60: 40 | AI60: 40 | AK60: 40 | AL60: 40 | AN60: 90 | AO60: 85 | AP60: 95 | AQ60: 90 | AR60: 90 | AS60: 13.5 | AT60: 13.5 | AU60: 21 | AW60: 15 | AX60: 15 | AY60: 30 | BA60: 15 | BB60: 15 | BC60: 24 | BE60: 15 | BF60: 15 | BG60: 30 | BI60: 15 | BJ60: 15 | BK60: 28 | BM60: 13.5 | BN60: 13.5 | BO60: 28 | BQ60: 12 | BR60: 12 | BS60: 26 | BU60: 15 | BV60: 15 | BW60: 22 | BY60: 13.5 | BZ60: 13.5 | CA60: 21 | CC60: 15 | CD60: 15 | CE60: 30 | CG60: 15 | CH60: 15 | CI60: 24 | CK60: 15 | CL60: 15 | CM60: 30 | CO60: 15 | CP60: 15 | CQ60: 28 | CS60: 13.5 | CT60: 13.5 | CU60: 28 | CW60: 12 | CX60: 12 | CY60: 26 | DA60: 15 | DB60: 15 | DC60: 22 | DE60: 90 | DF60: 85 | DG60: 95 | DH60: 90 | DI60: 90
A61: =IF(C61="","",SUBTOTAL(3,$C$14:C61)) -> 48 | B61: ='[1]4'!O50 -> 448 | C61: س48 | D61: 15 | E61: ='[1]4'!N50 -> 2/4 | F61: ='[1]4'!I50 -> ذكر | G61: ='[1]4'!E50 -> 2012-01-16 | H61: ='[1]4'!F50 -> 15 | I61: ='[1]4'!G50 -> 8 | J61: ='[1]4'!H50 -> 9 | K61: ='[1]4'!J50 -> مسلم | L61: ='[1]4'!K50 -> ناجح ومنقول | M61: ='[1]4'!P50 -> 348 | P61: 35 | Q61: 35 | S61: 40 | T61: 40 | V61: 35 | W61: 35 | Y61: 39 | Z61: 39 | AB61: 40 | AC61: 40 | AE61: 35 | AF61: 35 | AH61: 35 | AI61: 35 | AK61: 35 | AL61: 35 | AN61: 90 | AO61: 85 | AP61: 95 | AQ61: 90 | AR61: 90 | AS61: 15 | AT61: 15 | AU61: 19.5 | AW61: 15 | AX61: 15 | AY61: 30 | BA61: 15 | BB61: 13.5 | BC61: 24 | BE61: 15 | BF61: 15 | BG61: 26 | BI61: 15 | BJ61: 15 | BK61: 30 | BM61: 15 | BN61: 15 | BO61: 28 | BQ61: 12 | BR61: 12 | BS61: 12 | BU61: 15 | BV61: 15 | BW61: 22 | BY61: 15 | BZ61: 15 | CA61: 19.5 | CC61: 15 | CD61: 15 | CE61: 30 | CG61: 15 | CH61: 13.5 | CI61: 24 | CK61: 15 | CL61: 15 | CM61: 26 | CO61: 15 | CP61: 15 | CQ61: 30 | CS61: 15 | CT61: 15 | CU61: 28 | CW61: 12 | CX61: 12 | CY61: 12 | DA61: 15 | DB61: 15 | DC61: 22 | DE61: 90 | DF61: 85 | DG61: 95 | DH61: 90 | DI61: 90
A62: =IF(C62="","",SUBTOTAL(3,$C$14:C62)) -> 49 | B62: ='[1]4'!O51 -> 449 | C62: س49 | D62: 15 | E62: ='[1]4'!N51 -> 4/4 | F62: ='[1]4'!I51 -> ذكر | G62: ='[1]4'!E51 -> 2012-09-06 | H62: ='[1]4'!F51 -> 25 | I62: ='[1]4'!G51 -> 0 | J62: ='[1]4'!H51 -> 9 | K62: ='[1]4'!J51 -> مسلم | L62: ='[1]4'!K51 -> ناجح ومنقول | M62: ='[1]4'!P51 -> 349 | P62: 30 | Q62: 30 | S62: 35 | T62: 35 | V62: 40 | W62: 40 | Y62: 39 | Z62: 39 | AB62: 37 | AC62: 37 | AE62: 25 | AF62: 25 | AH62: 40 | AI62: 40 | AK62: 40 | AL62: 40 | AN62: 90 | AO62: 85 | AP62: 95 | AQ62: 90 | AR62: 90 | AS62: 14.5 | AT62: 14.5 | AU62: 12 | AW62: 15 | AX62: 15 | AY62: 24 | BA62: 15 | BB62: 15 | BC62: 22 | BE62: 15 | BF62: 15 | BG62: 22 | BI62: 14 | BJ62: 14 | BK62: 30 | BM62: 13.5 | BN62: 13.5 | BO62: 28 | BQ62: 6 | BR62: 6 | BS62: 18 | BU62: 15 | BV62: 15 | BW62: 18 | BY62: 14.5 | BZ62: 14.5 | CA62: 12 | CC62: 15 | CD62: 15 | CE62: 24 | CG62: 15 | CH62: 15 | CI62: 22 | CK62: 15 | CL62: 15 | CM62: 22 | CO62: 14 | CP62: 14 | CQ62: 30 | CS62: 13.5 | CT62: 13.5 | CU62: 28 | CW62: 6 | CX62: 6 | CY62: 18 | DA62: 15 | DB62: 15 | DC62: 18 | DE62: 90 | DF62: 85 | DG62: 95 | DH62: 90 | DI62: 90
A63: =IF(C63="","",SUBTOTAL(3,$C$14:C63)) -> 50 | B63: ='[1]4'!O52 -> 450 | C63: س50 | D63: 15 | E63: ='[1]4'!N52 -> 4/4 | F63: ='[1]4'!I52 -> ذكر | G63: ='[1]4'!E52 -> 2012-11-19 | H63: ='[1]4'!F52 -> 12 | I63: ='[1]4'!G52 -> 10 | J63: ='[1]4'!H52 -> 8 | K63: ='[1]4'!J52 -> مسلم | L63: ='[1]4'!K52 -> ناجح ومنقول | M63: ='[1]4'!P52 -> 350 | P63: 35 | Q63: 35 | S63: 40 | T63: 40 | V63: 35 | W63: 35 | Y63: 39 | Z63: 39 | AB63: 38 | AC63: 38 | AE63: 35 | AF63: 35 | AH63: 40 | AI63: 40 | AK63: 40 | AL63: 40 | AN63: 90 | AO63: 85 | AP63: 90 | AQ63: 90 | AR63: 90 | AS63: 15 | AT63: 15 | AU63: 25.5 | AW63: 15 | AX63: 15 | AY63: 30 | BA63: 15 | BB63: 15 | BC63: 22 | BE63: 15 | BF63: 15 | BG63: 30 | BI63: 15 | BJ63: 15 | BK63: 30 | BM63: 12 | BN63: 12 | BO63: 20 | BQ63: 12 | BR63: 12 | BS63: 14 | BU63: 15 | BV63: 15 | BW63: 24 | BY63: 15 | BZ63: 15 | CA63: 25.5 | CC63: 15 | CD63: 15 | CE63: 30 | CG63: 15 | CH63: 15 | CI63: 22 | CK63: 15 | CL63: 15 | CM63: 30 | CO63: 15 | CP63: 15 | CQ63: 30 | CS63: 12 | CT63: 12 | CU63: 20 | CW63: 12 | CX63: 12 | CY63: 14 | DA63: 15 | DB63: 15 | DC63: 24 | DE63: 90 | DF63: 85 | DG63: 90 | DH63: 90 | DI63: 90
A64: =IF(C64="","",SUBTOTAL(3,$C$14:C64)) -> 51 | B64: ='[1]4'!O53 -> 451 | C64: س51 | D64: 15 | E64: ='[1]4'!N53 -> 1/4 | F64: ='[1]4'!I53 -> ذكر | G64: ='[1]4'!E53 -> 2013-02-16 | H64: ='[1]4'!F53 -> 15 | I64: ='[1]4'!G53 -> 7 | J64: ='[1]4'!H53 -> 8 | K64: ='[1]4'!J53 -> مسلم | L64: ='[1]4'!K53 -> ناجح ومنقول | M64: ='[1]4'!P53 -> 351 | P64: 39 | Q64: 39 | S64: 40 | T64: 40 | V64: 40 | W64: 40 | Y64: 39 | Z64: 39 | AB64: 37 | AC64: 37 | AE64: 40 | AF64: 40 | AH64: 40 | AI64: 40 | AK64: 35 | AL64: 35 | AN64: 90 | AO64: 85 | AP64: 90 | AQ64: 90 | AR64: 90 | AS64: 15 | AT64: 15 | AU64: 22.5 | AW64: 15 | AX64: 15 | AY64: 28 | BA64: 15 | BB64: 15 | BC64: 22 | BE64: 15 | BF64: 15 | BG64: 30 | BI64: 15 | BJ64: 15 | BK64: 30 | BM64: 10.5 | BN64: 10.5 | BO64: 28 | BQ64: 12 | BR64: 12 | BS64: 14 | BU64: 15 | BV64: 15 | BW64: 20 | BY64: 15 | BZ64: 15 | CA64: 22.5 | CC64: 15 | CD64: 15 | CE64: 28 | CG64: 15 | CH64: 15 | CI64: 22 | CK64: 15 | CL64: 15 | CM64: 30 | CO64: 15 | CP64: 15 | CQ64: 30 | CS64: 10.5 | CT64: 10.5 | CU64: 28 | CW64: 12 | CX64: 12 | CY64: 14 | DA64: 15 | DB64: 15 | DC64: 20 | DE64: 90 | DF64: 85 | DG64: 90 | DH64: 90 | DI64: 90
A65: =IF(C65="","",SUBTOTAL(3,$C$14:C65)) -> 52 | B65: ='[1]4'!O54 -> 452 | C65: س52 | D65: 15 | E65: ='[1]4'!N54 -> 1/4 | F65: ='[1]4'!I54 -> ذكر | G65: ='[1]4'!E54 -> 2012-07-09 | H65: ='[1]4'!F54 -> 22 | I65: ='[1]4'!G54 -> 2 | J65: ='[1]4'!H54 -> 9 | K65: ='[1]4'!J54 -> مسلم | L65: ='[1]4'!K54 -> ناجح ومنقول | M65: ='[1]4'!P54 -> 352 | P65: 35 | Q65: 35 | S65: 40 | T65: 40 | V65: 40 | W65: 40 | Y65: 40 | Z65: 40 | AB65: 37 | AC65: 37 | AE65: 40 | AF65: 40 | AH65: 40 | AI65: 40 | AK65: 35 | AL65: 35 | AN65: 90 | AO65: 85 | AP65: 90 | AQ65: 90 | AR65: 90 | AS65: 15 | AT65: 15 | AU65: 19 | AW65: 15 | AX65: 15 | AY65: 30 | BA65: 15 | BB65: 15 | BC65: 20 | BE65: 15 | BF65: 15 | BG65: 22 | BI65: 15 | BJ65: 15 | BK65: 30 | BM65: 13.5 | BN65: 13.5 | BO65: 22 | BQ65: 12 | BR65: 12 | BS65: 26 | BU65: 15 | BV65: 15 | BW65: 26 | BY65: 15 | BZ65: 15 | CA65: 19 | CC65: 15 | CD65: 15 | CE65: 30 | CG65: 15 | CH65: 15 | CI65: 20 | CK65: 15 | CL65: 15 | CM65: 22 | CO65: 15 | CP65: 15 | CQ65: 30 | CS65: 13.5 | CT65: 13.5 | CU65: 22 | CW65: 12 | CX65: 12 | CY65: 26 | DA65: 15 | DB65: 15 | DC65: 26 | DE65: 90 | DF65: 85 | DG65: 90 | DH65: 90 | DI65: 90
A66: =IF(C66="","",SUBTOTAL(3,$C$14:C66)) -> 53 | B66: ='[1]4'!O55 -> 453 | C66: س53 | D66: 15 | E66: ='[1]4'!N55 -> 1/4 | F66: ='[1]4'!I55 -> ذكر | G66: ='[1]4'!E55 -> 2012-07-11 | H66: ='[1]4'!F55 -> 20 | I66: ='[1]4'!G55 -> 2 | J66: ='[1]4'!H55 -> 9 | K66: ='[1]4'!J55 -> مسلم | L66: ='[1]4'!K55 -> ناجح ومنقول | M66: ='[1]4'!P55 -> 353 | P66: 39 | Q66: 39 | S66: 40 | T66: 40 | V66: 35 | W66: 35 | Y66: 40 | Z66: 40 | AB66: 40 | AC66: 40 | AE66: 40 | AF66: 40 | AH66: 40 | AI66: 40 | AK66: 35 | AL66: 35 | AN66: 90 | AO66: 85 | AP66: 95 | AQ66: 90 | AR66: 90 | AS66: 12 | AT66: 12 | AU66: 15.5 | AW66: 15 | AX66: 15 | AY66: 30 | BA66: 15 | BB66: 15 | BC66: 22 | BE66: 15 | BF66: 15 | BG66: 24 | BI66: 15 | BJ66: 15 | BK66: 30 | BM66: 12 | BN66: 12 | BO66: 22 | BQ66: 12 | BR66: 12 | BS66: 24 | BU66: 15 | BV66: 15 | BW66: 28 | BY66: 12 | BZ66: 12 | CA66: 15.5 | CC66: 15 | CD66: 15 | CE66: 30 | CG66: 15 | CH66: 15 | CI66: 22 | CK66: 15 | CL66: 15 | CM66: 24 | CO66: 15 | CP66: 15 | CQ66: 30 | CS66: 12 | CT66: 12 | CU66: 22 | CW66: 12 | CX66: 12 | CY66: 24 | DA66: 15 | DB66: 15 | DC66: 28 | DE66: 90 | DF66: 85 | DG66: 95 | DH66: 90 | DI66: 90
A67: =IF(C67="","",SUBTOTAL(3,$C$14:C67)) -> 54 | B67: ='[1]4'!O56 -> 454 | C67: س54 | D67: 15 | E67: ='[1]4'!N56 -> 4/4 | F67: ='[1]4'!I56 -> ذكر | G67: ='[1]4'!E56 -> 2012-05-01 | H67: ='[1]4'!F56 -> 0 | I67: ='[1]4'!G56 -> 5 | J67: ='[1]4'!H56 -> 9 | K67: ='[1]4'!J56 -> مسلم | L67: ='[1]4'!K56 -> ناجح ومنقول | M67: ='[1]4'!P56 -> 354 | P67: 30 | Q67: 30 | S67: 40 | T67: 40 | V67: 40 | W67: 40 | Y67: 40 | Z67: 40 | AB67: 37 | AC67: 37 | AE67: 30 | AF67: 30 | AH67: 40 | AI67: 40 | AK67: 35 | AL67: 35 | AN67: 90 | AO67: 85 | AP67: 90 | AQ67: 90 | AR67: 90 | AS67: 14.5 | AT67: 14.5 | AU67: 17 | AW67: 13 | AX67: 13 | AY67: 28 | BA67: 15 | BB67: 12 | BC67: 22 | BE67: 15 | BF67: 15 | BG67: 28 | BI67: 15 | BJ67: 15 | BK67: 30 | BM67: 13.5 | BN67: 13.5 | BO67: 30 | BQ67: 12 | BR67: 12 | BS67: 20 | BU67: 15 | BV67: 15 | BW67: 22 | BY67: 14.5 | BZ67: 14.5 | CA67: 17 | CC67: 13 | CD67: 13 | CE67: 28 | CG67: 15 | CH67: 12 | CI67: 22 | CK67: 15 | CL67: 15 | CM67: 28 | CO67: 15 | CP67: 15 | CQ67: 30 | CS67: 13.5 | CT67: 13.5 | CU67: 30 | CW67: 12 | CX67: 12 | CY67: 20 | DA67: 15 | DB67: 15 | DC67: 22 | DE67: 90 | DF67: 85 | DG67: 90 | DH67: 90 | DI67: 90
A68: =IF(C68="","",SUBTOTAL(3,$C$14:C68)) -> 55 | B68: ='[1]4'!O57 -> 455 | C68: س55 | D68: 15 | E68: ='[1]4'!N57 -> 1/4 | F68: ='[1]4'!I57 -> ذكر | G68: ='[1]4'!E57 -> 2012-07-10 | H68: ='[1]4'!F57 -> 21 | I68: ='[1]4'!G57 -> 2 | J68: ='[1]4'!H57 -> 9 | K68: ='[1]4'!J57 -> مسلم | L68: ='[1]4'!K57 -> ناجح ومنقول | M68: ='[1]4'!P57 -> 355 | P68: 40 | Q68: 40 | S68: 40 | T68: 40 | V68: 40 | W68: 40 | Y68: 40 | Z68: 40 | AB68: 40 | AC68: 40 | AE68: 40 | AF68: 40 | AH68: 40 | AI68: 40 | AK68: 40 | AL68: 40 | AN68: 90 | AO68: 85 | AP68: 95 | AQ68: 90 | AR68: 90 | AS68: 15 | AT68: 15 | AU68: 21 | AW68: 15 | AX68: 15 | AY68: 30 | BA68: 15 | BB68: 15 | BC68: 26 | BE68: 15 | BF68: 15 | BG68: 28 | BI68: 15 | BJ68: 15 | BK68: 30 | BM68: 12 | BN68: 12 | BO68: 22 | BQ68: 12 | BR68: 12 | BS68: 18 | BU68: 15 | BV68: 15 | BW68: 24 | BY68: 15 | BZ68: 15 | CA68: 21 | CC68: 15 | CD68: 15 | CE68: 30 | CG68: 15 | CH68: 15 | CI68: 26 | CK68: 15 | CL68: 15 | CM68: 28 | CO68: 15 | CP68: 15 | CQ68: 30 | CS68: 12 | CT68: 12 | CU68: 22 | CW68: 12 | CX68: 12 | CY68: 18 | DA68: 15 | DB68: 15 | DC68: 24 | DE68: 90 | DF68: 85 | DG68: 95 | DH68: 90 | DI68: 90
A69: =IF(C69="","",SUBTOTAL(3,$C$14:C69)) -> 56 | B69: ='[1]4'!O58 -> 456 | C69: س56 | D69: 15 | E69: ='[1]4'!N58 -> 3/4 | F69: ='[1]4'!I58 -> ذكر | G69: ='[1]4'!E58 -> 2012-06-20 | H69: ='[1]4'!F58 -> 11 | I69: ='[1]4'!G58 -> 3 | J69: ='[1]4'!H58 -> 9 | K69: ='[1]4'!J58 -> مسلم | L69: ='[1]4'!K58 -> ناجح ومنقول | M69: ='[1]4'!P58 -> 356 | P69: 20 | Q69: 20 | S69: 38 | T69: 38 | V69: 35 | W69: 35 | Y69: 39 | Z69: 39 | AB69: 30 | AC69: 30 | AE69: 20 | AF69: 20 | AH69: 40 | AI69: 40 | AK69: 35 | AL69: 35 | AN69: 90 | AO69: 85 | AP69: 95 | AQ69: 90 | AR69: 90 | AS69: 13.5 | AT69: 13.5 | AU69: 7.5 | AW69: 15 | AX69: 15 | AY69: 24 | BA69: 15 | BB69: 10.5 | BC69: 18 | BE69: 15 | BF69: 15 | BG69: 20 | BI69: 15 | BJ69: 15 | BK69: 26 | BM69: 10.5 | BN69: 10.5 | BO69: 12 | BQ69: 12 | BR69: 12 | BS69: 18 | BU69: 15 | BV69: 15 | BW69: 22 | BY69: 13.5 | BZ69: 13.5 | CA69: 7.5 | CC69: 15 | CD69: 15 | CE69: 24 | CG69: 15 | CH69: 10.5 | CI69: 18 | CK69: 15 | CL69: 15 | CM69: 20 | CO69: 15 | CP69: 15 | CQ69: 26 | CS69: 10.5 | CT69: 10.5 | CU69: 12 | CW69: 12 | CX69: 12 | CY69: 18 | DA69: 15 | DB69: 15 | DC69: 22 | DE69: 90 | DF69: 85 | DG69: 95 | DH69: 90 | DI69: 90
A70: =IF(C70="","",SUBTOTAL(3,$C$14:C70)) -> 57 | B70: ='[1]4'!O59 -> 457 | C70: س57 | D70: 15 | E70: ='[1]4'!N59 -> 4/4 | F70: ='[1]4'!I59 -> ذكر | G70: ='[1]4'!E59 -> 2011-11-11 | H70: ='[1]4'!F59 -> 20 | I70: ='[1]4'!G59 -> 10 | J70: ='[1]4'!H59 -> 9 | K70: ='[1]4'!J59 -> مسلم | L70: ='[1]4'!K59 -> ناجح ومنقول | M70: ='[1]4'!P59 -> 357 | P70: 21 | Q70: 21 | S70: 25 | T70: 25 | V70: 40 | W70: 40 | Y70: 40 | Z70: 40 | AB70: 39 | AC70: 39 | AE70: 36 | AF70: 36 | AH70: 36 | AI70: 36 | AK70: 40 | AL70: 40 | AN70: 90 | AO70: 85 | AP70: 90 | AQ70: 90 | AR70: 90 | AS70: 15 | AT70: 15 | AU70: 19.5 | AW70: 15 | AX70: 15 | AY70: 30 | BA70: 15 | BB70: 15 | BC70: 22 | BE70: 15 | BF70: 15 | BG70: 30 | BI70: 15 | BJ70: 15 | BK70: 30 | BM70: 13.5 | BN70: 13.5 | BO70: 28 | BQ70: 12 | BR70: 12 | BS70: 22 | BU70: 15 | BV70: 15 | BW70: 26 | BY70: 15 | BZ70: 15 | CA70: 19.5 | CC70: 15 | CD70: 15 | CE70: 30 | CG70: 15 | CH70: 15 | CI70: 22 | CK70: 15 | CL70: 15 | CM70: 30 | CO70: 15 | CP70: 15 | CQ70: 30 | CS70: 13.5 | CT70: 13.5 | CU70: 28 | CW70: 12 | CX70: 12 | CY70: 22 | DA70: 15 | DB70: 15 | DC70: 26 | DE70: 90 | DF70: 85 | DG70: 90 | DH70: 90 | DI70: 90
A71: =IF(C71="","",SUBTOTAL(3,$C$14:C71)) -> 58 | B71: ='[1]4'!O60 -> 458 | C71: س58 | D71: 15 | E71: ='[1]4'!N60 -> 1/4 | F71: ='[1]4'!I60 -> ذكر | G71: ='[1]4'!E60 -> 2012-09-30 | H71: ='[1]4'!F60 -> 1 | I71: ='[1]4'!G60 -> 0 | J71: ='[1]4'!H60 -> 9 | K71: ='[1]4'!J60 -> مسلم | L71: ='[1]4'!K60 -> ناجح ومنقول | M71: ='[1]4'!P60 -> 358 | P71: 30 | Q71: 30 | S71: 40 | T71: 40 | V71: 35 | W71: 35 | Y71: 40 | Z71: 40 | AB71: 40 | AC71: 40 | AE71: 25 | AF71: 25 | AH71: 25 | AI71: 25 | AK71: 40 | AL71: 40 | AN71: 90 | AO71: 85 | AP71: 90 | AQ71: 90 | AR71: 90 | AS71: 15 | AT71: 15 | AU71: 10.5 | AW71: 15 | AX71: 15 | AY71: 28 | BA71: 15 | BB71: 15 | BC71: 24 | BE71: 15 | BF71: 15 | BG71: 26 | BI71: 15 | BJ71: 15 | BK71: 30 | BM71: 12 | BN71: 12 | BO71: 22 | BQ71: 13.5 | BR71: 13.5 | BS71: 22 | BU71: 15 | BV71: 15 | BW71: 26 | BY71: 15 | BZ71: 15 | CA71: 10.5 | CC71: 15 | CD71: 15 | CE71: 28 | CG71: 15 | CH71: 15 | CI71: 24 | CK71: 15 | CL71: 15 | CM71: 26 | CO71: 15 | CP71: 15 | CQ71: 30 | CS71: 12 | CT71: 12 | CU71: 22 | CW71: 13.5 | CX71: 13.5 | CY71: 22 | DA71: 15 | DB71: 15 | DC71: 26 | DE71: 90 | DF71: 85 | DG71: 90 | DH71: 90 | DI71: 90
A72: =IF(C72="","",SUBTOTAL(3,$C$14:C72)) -> 59 | B72: ='[1]4'!O61 -> 459 | C72: س59 | D72: 15 | E72: ='[1]4'!N61 -> 1/4 | F72: ='[1]4'!I61 -> ذكر | G72: ='[1]4'!E61 -> 2012-09-25 | H72: ='[1]4'!F61 -> 6 | I72: ='[1]4'!G61 -> 0 | J72: ='[1]4'!H61 -> 9 | K72: ='[1]4'!J61 -> مسلم | L72: ='[1]4'!K61 -> ناجح ومنقول | M72: ='[1]4'!P61 -> 359 | P72: 38 | Q72: 38 | S72: 40 | T72: 40 | V72: 40 | W72: 40 | Y72: 40 | Z72: 40 | AB72: 40 | AC72: 40 | AE72: 40 | AF72: 40 | AH72: 40 | AI72: 40 | AK72: 40 | AL72: 40 | AN72: 90 | AO72: 85 | AP72: 95 | AQ72: 90 | AR72: 90 | AS72: 15 | AT72: 15 | AU72: 16 | AW72: 15 | AX72: 15 | AY72: 30 | BA72: 15 | BB72: 15 | BC72: 24 | BE72: 15 | BF72: 15 | BG72: 26 | BI72: 15 | BJ72: 15 | BK72: 30 | BM72: 10.5 | BN72: 10.5 | BO72: 24 | BQ72: 12 | BR72: 12 | BS72: 22 | BU72: 15 | BV72: 15 | BW72: 28 | BY72: 15 | BZ72: 15 | CA72: 16 | CC72: 15 | CD72: 15 | CE72: 30 | CG72: 15 | CH72: 15 | CI72: 24 | CK72: 15 | CL72: 15 | CM72: 26 | CO72: 15 | CP72: 15 | CQ72: 30 | CS72: 10.5 | CT72: 10.5 | CU72: 24 | CW72: 12 | CX72: 12 | CY72: 22 | DA72: 15 | DB72: 15 | DC72: 28 | DE72: 90 | DF72: 85 | DG72: 95 | DH72: 90 | DI72: 90
A73: =IF(C73="","",SUBTOTAL(3,$C$14:C73)) -> 60 | B73: ='[1]4'!O62 -> 460 | C73: س60 | D73: 15 | E73: ='[1]4'!N62 -> 2/4 | F73: ='[1]4'!I62 -> ذكر | G73: ='[1]4'!E62 -> 2012-08-11 | H73: ='[1]4'!F62 -> 20 | I73: ='[1]4'!G62 -> 1 | J73: ='[1]4'!H62 -> 9 | K73: ='[1]4'!J62 -> مسلم | L73: ='[1]4'!K62 -> ناجح ومنقول | M73: ='[1]4'!P62 -> 360 | P73: 35 | Q73: 35 | S73: 40 | T73: 40 | V73: 30 | W73: 30 | Y73: 32 | Z73: 32 | AB73: 40 | AC73: 40 | AE73: 35 | AF73: 35 | AH73: 40 | AI73: 40 | AK73: 40 | AL73: 40 | AN73: 90 | AO73: 85 | AP73: 90 | AQ73: 90 | AR73: 90 | AS73: 15 | AT73: 15 | AU73: 19.5 | AW73: 15 | AX73: 15 | AY73: 30 | BA73: 15 | BB73: 15 | BC73: 20 | BE73: 15 | BF73: 15 | BG73: 26 | BI73: 15 | BJ73: 15 | BK73: 30 | BM73: 15 | BN73: 15 | BO73: 30 | BQ73: 12 | BR73: 12 | BS73: 26 | BU73: 15 | BV73: 15 | BW73: 30 | BY73: 15 | BZ73: 15 | CA73: 19.5 | CC73: 15 | CD73: 15 | CE73: 30 | CG73: 15 | CH73: 15 | CI73: 20 | CK73: 15 | CL73: 15 | CM73: 26 | CO73: 15 | CP73: 15 | CQ73: 30 | CS73: 15 | CT73: 15 | CU73: 30 | CW73: 12 | CX73: 12 | CY73: 26 | DA73: 15 | DB73: 15 | DC73: 30 | DE73: 90 | DF73: 85 | DG73: 90 | DH73: 90 | DI73: 90
A74: =IF(C74="","",SUBTOTAL(3,$C$14:C74)) -> 61 | B74: ='[1]4'!O63 -> 461 | C74: س61 | D74: 15 | E74: ='[1]4'!N63 -> 1/4 | F74: ='[1]4'!I63 -> ذكر | G74: ='[1]4'!E63 -> 2011-11-11 | H74: ='[1]4'!F63 -> 20 | I74: ='[1]4'!G63 -> 10 | J74: ='[1]4'!H63 -> 9 | K74: ='[1]4'!J63 -> مسلم | L74: ='[1]4'!K63 -> ناجح ومنقول | M74: ='[1]4'!P63 -> 361 | P74: 40 | Q74: 40 | S74: 40 | T74: 40 | V74: 40 | W74: 40 | Y74: 40 | Z74: 40 | AB74: 40 | AC74: 40 | AE74: 40 | AF74: 40 | AH74: 40 | AI74: 40 | AK74: 40 | AL74: 40 | AN74: 90 | AO74: 85 | AP74: 95 | AQ74: 90 | AR74: 90 | AS74: 15 | AT74: 15 | AU74: 28.5 | AW74: 15 | AX74: 15 | AY74: 30 | BA74: 15 | BB74: 15 | BC74: 26 | BE74: 15 | BF74: 15 | BG74: 30 | BI74: 15 | BJ74: 15 | BK74: 30 | BM74: 13.5 | BN74: 13.5 | BO74: 26 | BQ74: 12 | BR74: 12 | BS74: 30 | BU74: 15 | BV74: 15 | BW74: 28 | BY74: 15 | BZ74: 15 | CA74: 28.5 | CC74: 15 | CD74: 15 | CE74: 30 | CG74: 15 | CH74: 15 | CI74: 26 | CK74: 15 | CL74: 15 | CM74: 30 | CO74: 15 | CP74: 15 | CQ74: 30 | CS74: 13.5 | CT74: 13.5 | CU74: 26 | CW74: 12 | CX74: 12 | CY74: 30 | DA74: 15 | DB74: 15 | DC74: 28 | DE74: 90 | DF74: 85 | DG74: 95 | DH74: 90 | DI74: 90
A75: =IF(C75="","",SUBTOTAL(3,$C$14:C75)) -> 62 | B75: ='[1]4'!O64 -> 462 | C75: س62 | D75: 15 | E75: ='[1]4'!N64 -> 3/4 | F75: ='[1]4'!I64 -> ذكر | G75: ='[1]4'!E64 -> 2011-12-08 | H75: ='[1]4'!F64 -> 23 | I75: ='[1]4'!G64 -> 9 | J75: ='[1]4'!H64 -> 9 | K75: ='[1]4'!J64 -> مسلم | L75: ='[1]4'!K64 -> ناجح ومنقول | M75: ='[1]4'!P64 -> 362 | P75: 40 | Q75: 40 | S75: 40 | T75: 40 | V75: 40 | W75: 40 | Y75: 39 | Z75: 39 | AB75: 40 | AC75: 40 | AE75: 40 | AF75: 40 | AH75: 40 | AI75: 40 | AK75: 35 | AL75: 35 | AN75: 90 | AO75: 85 | AP75: 95 | AQ75: 90 | AR75: 90 | AS75: 12 | AT75: 12 | AU75: 19 | AW75: 15 | AX75: 15 | AY75: 30 | BA75: 15 | BB75: 13.5 | BC75: 24 | BE75: 15 | BF75: 15 | BG75: 28 | BI75: 15 | BJ75: 15 | BK75: 30 | BM75: 10.5 | BN75: 10.5 | BO75: 28 | BQ75: 12 | BR75: 12 | BS75: 30 | BU75: 15 | BV75: 15 | BW75: 28 | BY75: 12 | BZ75: 12 | CA75: 19 | CC75: 15 | CD75: 15 | CE75: 30 | CG75: 15 | CH75: 13.5 | CI75: 24 | CK75: 15 | CL75: 15 | CM75: 28 | CO75: 15 | CP75: 15 | CQ75: 30 | CS75: 10.5 | CT75: 10.5 | CU75: 28 | CW75: 12 | CX75: 12 | CY75: 30 | DA75: 15 | DB75: 15 | DC75: 28 | DE75: 90 | DF75: 85 | DG75: 95 | DH75: 90 | DI75: 90
A76: =IF(C76="","",SUBTOTAL(3,$C$14:C76)) -> 63 | B76: ='[1]4'!O65 -> 463 | C76: س63 | D76: 15 | E76: ='[1]4'!N65 -> 3/4 | F76: ='[1]4'!I65 -> ذكر | G76: ='[1]4'!E65 -> 2012-05-10 | H76: ='[1]4'!F65 -> 21 | I76: ='[1]4'!G65 -> 4 | J76: ='[1]4'!H65 -> 9 | K76: ='[1]4'!J65 -> مسلم | L76: ='[1]4'!K65 -> ناجح ومنقول | M76: ='[1]4'!P65 -> 363 | P76: 40 | Q76: 40 | S76: 40 | T76: 40 | V76: 40 | W76: 40 | Y76: 39 | Z76: 39 | AB76: 35 | AC76: 35 | AE76: 40 | AF76: 40 | AH76: 40 | AI76: 40 | AK76: 35 | AL76: 35 | AN76: 90 | AO76: 85 | AP76: 90 | AQ76: 90 | AR76: 90 | AS76: 11.5 | AT76: 11.5 | AU76: 26.5 | AW76: 15 | AX76: 15 | AY76: 26 | BA76: 15 | BB76: 15 | BC76: 28 | BE76: 15 | BF76: 15 | BG76: 28 | BI76: 15 | BJ76: 15 | BK76: 30 | BM76: 13.5 | BN76: 13.5 | BO76: 20 | BQ76: 12 | BR76: 12 | BS76: 30 | BU76: 15 | BV76: 15 | BW76: 24 | BY76: 11.5 | BZ76: 11.5 | CA76: 26.5 | CC76: 15 | CD76: 15 | CE76: 26 | CG76: 15 | CH76: 15 | CI76: 28 | CK76: 15 | CL76: 15 | CM76: 28 | CO76: 15 | CP76: 15 | CQ76: 30 | CS76: 13.5 | CT76: 13.5 | CU76: 20 | CW76: 12 | CX76: 12 | CY76: 30 | DA76: 15 | DB76: 15 | DC76: 24 | DE76: 90 | DF76: 85 | DG76: 90 | DH76: 90 | DI76: 90
A77: =IF(C77="","",SUBTOTAL(3,$C$14:C77)) -> 64 | B77: ='[1]4'!O66 -> 464 | C77: س64 | D77: 15 | E77: ='[1]4'!N66 -> 4/4 | F77: ='[1]4'!I66 -> ذكر | G77: ='[1]4'!E66 -> 2011-12-07 | H77: ='[1]4'!F66 -> 24 | I77: ='[1]4'!G66 -> 9 | J77: ='[1]4'!H66 -> 9 | K77: ='[1]4'!J66 -> مسلم | L77: ='[1]4'!K66 -> ناجح ومنقول | M77: ='[1]4'!P66 -> 364 | P77: 30 | Q77: 30 | S77: 40 | T77: 40 | V77: 35 | W77: 35 | Y77: 40 | Z77: 40 | AB77: 37 | AC77: 37 | AE77: 25 | AF77: 25 | AH77: 25 | AI77: 25 | AK77: 40 | AL77: 40 | AN77: 90 | AO77: 85 | AP77: 95 | AQ77: 90 | AR77: 90 | AS77: 7.5 | AT77: 7.5 | AU77: 15.5 | AW77: 15 | AX77: 15 | AY77: 28 | BA77: 15 | BB77: 15 | BC77: 22 | BE77: 15 | BF77: 15 | BG77: 28 | BI77: 15 | BJ77: 15 | BK77: 30 | BM77: 4.5 | BN77: 4.5 | BO77: 20 | BQ77: 10.5 | BR77: 10.5 | BS77: 22 | BU77: 15 | BV77: 15 | BW77: 20 | BY77: 7.5 | BZ77: 7.5 | CA77: 15.5 | CC77: 15 | CD77: 15 | CE77: 28 | CG77: 15 | CH77: 15 | CI77: 22 | CK77: 15 | CL77: 15 | CM77: 28 | CO77: 15 | CP77: 15 | CQ77: 30 | CS77: 4.5 | CT77: 4.5 | CU77: 20 | CW77: 10.5 | CX77: 10.5 | CY77: 22 | DA77: 15 | DB77: 15 | DC77: 20 | DE77: 90 | DF77: 85 | DG77: 95 | DH77: 90 | DI77: 90
A78: =IF(C78="","",SUBTOTAL(3,$C$14:C78)) -> 65 | B78: ='[1]4'!O67 -> 465 | C78: س65 | D78: 15 | E78: ='[1]4'!N67 -> 3/4 | F78: ='[1]4'!I67 -> ذكر | G78: ='[1]4'!E67 -> 2011-12-12 | H78: ='[1]4'!F67 -> 19 | I78: ='[1]4'!G67 -> 9 | J78: ='[1]4'!H67 -> 9 | K78: ='[1]4'!J67 -> مسلم | L78: ='[1]4'!K67 -> ناجح ومنقول | M78: ='[1]4'!P67 -> 365 | P78: 40 | Q78: 40 | S78: 40 | T78: 40 | V78: 40 | W78: 40 | Y78: 30 | Z78: 30 | AB78: 30 | AC78: 30 | AE78: 40 | AF78: 40 | AH78: 40 | AI78: 40 | AK78: 40 | AL78: 40 | AN78: 90 | AO78: 90 | AP78: 90 | AQ78: 90 | AR78: 90 | AS78: 8.5 | AT78: 8.5 | AU78: 7.5 | AW78: 15 | AX78: 15 | AY78: 24 | BA78: 15 | BB78: 12 | BC78: 20 | BE78: 15 | BF78: 15 | BG78: 22 | BI78: 15 | BJ78: 15 | BK78: 24 | BM78: 7.5 | BN78: 7.5 | BO78: 12 | BQ78: 12 | BR78: 12 | BS78: 26 | BU78: 15 | BV78: 15 | BW78: 16 | BY78: 8.5 | BZ78: 8.5 | CA78: 7.5 | CC78: 15 | CD78: 15 | CE78: 24 | CG78: 15 | CH78: 12 | CI78: 20 | CK78: 15 | CL78: 15 | CM78: 22 | CO78: 15 | CP78: 15 | CQ78: 24 | CS78: 7.5 | CT78: 7.5 | CU78: 12 | CW78: 12 | CX78: 12 | CY78: 26 | DA78: 15 | DB78: 15 | DC78: 16 | DE78: 90 | DF78: 90 | DG78: 90 | DH78: 90 | DI78: 90
A79: =IF(C79="","",SUBTOTAL(3,$C$14:C79)) -> 66 | B79: ='[1]4'!O68 -> 466 | C79: س66 | D79: 15 | E79: ='[1]4'!N68 -> 1/4 | F79: ='[1]4'!I68 -> ذكر | G79: ='[1]4'!E68 -> 2012-06-24 | H79: ='[1]4'!F68 -> 7 | I79: ='[1]4'!G68 -> 3 | J79: ='[1]4'!H68 -> 9 | K79: ='[1]4'!J68 -> مسلم | L79: ='[1]4'!K68 -> ناجح ومنقول | M79: ='[1]4'!P68 -> 366 | P79: 30 | Q79: 30 | S79: 40 | T79: 40 | V79: 30 | W79: 30 | Y79: 40 | Z79: 40 | AB79: 38 | AC79: 38 | AE79: 30 | AF79: 30 | AH79: 30 | AI79: 30 | AK79: 40 | AL79: 40 | AN79: 90 | AO79: 90 | AP79: 95 | AQ79: 80 | AR79: 80 | AS79: 8.5 | AT79: 8.5 | AU79: 12 | AW79: 10 | AX79: 10 | AY79: 26 | BA79: 15 | BB79: 12 | BC79: 22 | BE79: 13.5 | BF79: 13.5 | BG79: 22 | BI79: 15 | BJ79: 15 | BK79: 26 | BM79: 7.5 | BN79: 7.5 | BO79: 14 | BQ79: 10.5 | BR79: 10.5 | BS79: 28 | BU79: 15 | BV79: 15 | BW79: 20 | BY79: 8.5 | BZ79: 8.5 | CA79: 12 | CC79: 10 | CD79: 10 | CE79: 26 | CG79: 15 | CH79: 12 | CI79: 22 | CK79: 13.5 | CL79: 13.5 | CM79: 22 | CO79: 15 | CP79: 15 | CQ79: 26 | CS79: 7.5 | CT79: 7.5 | CU79: 14 | CW79: 10.5 | CX79: 10.5 | CY79: 28 | DA79: 15 | DB79: 15 | DC79: 20 | DE79: 90 | DF79: 90 | DG79: 95 | DH79: 80 | DI79: 80
A80: =IF(C80="","",SUBTOTAL(3,$C$14:C80)) -> 67 | B80: ='[1]4'!O69 -> 467 | C80: س67 | D80: 15 | E80: ='[1]4'!N69 -> 3/4 | F80: ='[1]4'!I69 -> ذكر | G80: ='[1]4'!E69 -> 2011-11-17 | H80: ='[1]4'!F69 -> 14 | I80: ='[1]4'!G69 -> 10 | J80: ='[1]4'!H69 -> 9 | K80: ='[1]4'!J69 -> مسلم | L80: ='[1]4'!K69 -> ناجح ومنقول | M80: ='[1]4'!P69 -> 367 | P80: 20 | Q80: 20 | S80: 35 | T80: 35 | V80: 40 | W80: 40 | Y80: 25 | Z80: 25 | AB80: 30 | AC80: 30 | AE80: 25 | AF80: 25 | AH80: 20 | AI80: 20 | AK80: 35 | AL80: 35 | AN80: 90 | AO80: 90 | AP80: 90 | AQ80: 80 | AR80: 80 | AS80: 12 | AT80: 12 | AU80: 10 | AW80: 10 | AX80: 10 | AY80: 26 | BA80: 15 | BB80: 13 | BC80: 18 | BE80: 15 | BF80: 15 | BG80: 20 | BI80: 15 | BJ80: 15 | BK80: 26 | BM80: 4.5 | BN80: 4.5 | BO80: 10 | BQ80: 10.5 | BR80: 10.5 | BS80: 28 | BU80: 15 | BV80: 15 | BW80: 14 | BY80: 12 | BZ80: 12 | CA80: 10 | CC80: 10 | CD80: 10 | CE80: 26 | CG80: 15 | CH80: 13 | CI80: 18 | CK80: 15 | CL80: 15 | CM80: 20 | CO80: 15 | CP80: 15 | CQ80: 26 | CS80: 4.5 | CT80: 4.5 | CU80: 10 | CW80: 10.5 | CX80: 10.5 | CY80: 28 | DA80: 15 | DB80: 15 | DC80: 14 | DE80: 90 | DF80: 90 | DG80: 90 | DH80: 80 | DI80: 80
A81: =IF(C81="","",SUBTOTAL(3,$C$14:C81)) -> 68 | B81: ='[1]4'!O70 -> 468 | C81: س68 | D81: 15 | E81: ='[1]4'!N70 -> 3/4 | F81: ='[1]4'!I70 -> ذكر | G81: ='[1]4'!E70 -> 2012-01-31 | H81: ='[1]4'!F70 -> 0 | I81: ='[1]4'!G70 -> 8 | J81: ='[1]4'!H70 -> 9 | K81: ='[1]4'!J70 -> مسلم | L81: ='[1]4'!K70 -> ناجح ومنقول | M81: ='[1]4'!P70 -> 368 | P81: 40 | Q81: 40 | S81: 40 | T81: 40 | V81: 40 | W81: 40 | Y81: 37 | Z81: 37 | AB81: 35 | AC81: 35 | AE81: 40 | AF81: 40 | AH81: 40 | AI81: 40 | AK81: 35 | AL81: 35 | AN81: 90 | AO81: 90 | AP81: 95 | AQ81: 80 | AR81: 80 | AS81: 8.5 | AT81: 8.5 | AU81: 16.5 | AW81: 11 | AX81: 11 | AY81: 30 | BA81: 15 | BB81: 15 | BC81: 22 | BE81: 13.5 | BF81: 13.5 | BG81: 28 | BI81: 14 | BJ81: 14 | BK81: 28 | BM81: 15 | BN81: 15 | BO81: 10 | BQ81: 6 | BR81: 6 | BS81: 30 | BU81: 15 | BV81: 15 | BW81: 26 | BY81: 8.5 | BZ81: 8.5 | CA81: 16.5 | CC81: 11 | CD81: 11 | CE81: 30 | CG81: 15 | CH81: 15 | CI81: 22 | CK81: 13.5 | CL81: 13.5 | CM81: 28 | CO81: 14 | CP81: 14 | CQ81: 28 | CS81: 15 | CT81: 15 | CU81: 10 | CW81: 6 | CX81: 6 | CY81: 30 | DA81: 15 | DB81: 15 | DC81: 26 | DE81: 90 | DF81: 90 | DG81: 95 | DH81: 80 | DI81: 80
A82: =IF(C82="","",SUBTOTAL(3,$C$14:C82)) -> 69 | B82: ='[1]4'!O71 -> 469 | C82: س69 | D82: 15 | E82: ='[1]4'!N71 -> 4/4 | F82: ='[1]4'!I71 -> ذكر | G82: ='[1]4'!E71 -> 2012-06-22 | H82: ='[1]4'!F71 -> 9 | I82: ='[1]4'!G71 -> 3 | J82: ='[1]4'!H71 -> 9 | K82: ='[1]4'!J71 -> مسلم | L82: ='[1]4'!K71 -> ناجح ومنقول | M82: ='[1]4'!P71 -> 369 | P82: 35 | Q82: 35 | S82: 40 | T82: 40 | V82: 40 | W82: 40 | Y82: 40 | Z82: 40 | AB82: 40 | AC82: 40 | AE82: 35 | AF82: 35 | AH82: 40 | AI82: 40 | AK82: 40 | AL82: 40 | AN82: 90 | AO82: 90 | AP82: 95 | AQ82: 80 | AR82: 80 | AS82: 10 | AT82: 10 | AU82: 22.5 | AW82: 15 | AX82: 15 | AY82: 28 | BA82: 15 | BB82: 15 | BC82: 20 | BE82: 15 | BF82: 15 | BG82: 28 | BI82: 13.5 | BJ82: 13.5 | BK82: 30 | BM82: 12 | BN82: 12 | BO82: 22 | BQ82: 12 | BR82: 12 | BS82: 30 | BU82: 15 | BV82: 15 | BW82: 20 | BY82: 10 | BZ82: 10 | CA82: 22.5 | CC82: 15 | CD82: 15 | CE82: 28 | CG82: 15 | CH82: 15 | CI82: 20 | CK82: 15 | CL82: 15 | CM82: 28 | CO82: 13.5 | CP82: 13.5 | CQ82: 30 | CS82: 12 | CT82: 12 | CU82: 22 | CW82: 12 | CX82: 12 | CY82: 30 | DA82: 15 | DB82: 15 | DC82: 20 | DE82: 90 | DF82: 90 | DG82: 95 | DH82: 80 | DI82: 80
A83: =IF(C83="","",SUBTOTAL(3,$C$14:C83)) -> 70 | B83: ='[1]4'!O72 -> 470 | C83: س70 | D83: 15 | E83: ='[1]4'!N72 -> 4/4 | F83: ='[1]4'!I72 -> ذكر | G83: ='[1]4'!E72 -> 2012-12-26 | H83: ='[1]4'!F72 -> 5 | I83: ='[1]4'!G72 -> 9 | J83: ='[1]4'!H72 -> 8 | K83: ='[1]4'!J72 -> مسلم | L83: ='[1]4'!K72 -> ناجح ومنقول | M83: ='[1]4'!P72 -> 370 | P83: 35 | Q83: 35 | S83: 40 | T83: 40 | V83: 40 | W83: 40 | Y83: 35 | Z83: 35 | AB83: 37 | AC83: 37 | AE83: 35 | AF83: 35 | AH83: 40 | AI83: 40 | AK83: 40 | AL83: 40 | AN83: 90 | AO83: 90 | AP83: 90 | AQ83: 80 | AR83: 80 | AS83: 11.5 | AT83: 11.5 | AU83: 18 | AW83: 15 | AX83: 15 | AY83: 26 | BA83: 15 | BB83: 15 | BC83: 18 | BE83: 13.5 | BF83: 13.5 | BG83: 26 | BI83: 15 | BJ83: 15 | BK83: 24 | BM83: 10.5 | BN83: 10.5 | BO83: 16 | BQ83: 13.5 | BR83: 13.5 | BS83: 30 | BU83: 15 | BV83: 15 | BW83: 18 | BY83: 11.5 | BZ83: 11.5 | CA83: 18 | CC83: 15 | CD83: 15 | CE83: 26 | CG83: 15 | CH83: 15 | CI83: 18 | CK83: 13.5 | CL83: 13.5 | CM83: 26 | CO83: 15 | CP83: 15 | CQ83: 24 | CS83: 10.5 | CT83: 10.5 | CU83: 16 | CW83: 13.5 | CX83: 13.5 | CY83: 30 | DA83: 15 | DB83: 15 | DC83: 18 | DE83: 90 | DF83: 90 | DG83: 90 | DH83: 80 | DI83: 80
A84: =IF(C84="","",SUBTOTAL(3,$C$14:C84)) -> 71 | B84: ='[1]4'!O73 -> 471 | C84: س71 | D84: 15 | E84: ='[1]4'!N73 -> 1/4 | F84: ='[1]4'!I73 -> ذكر | G84: ='[1]4'!E73 -> 2012-07-25 | H84: ='[1]4'!F73 -> 6 | I84: ='[1]4'!G73 -> 2 | J84: ='[1]4'!H73 -> 9 | K84: ='[1]4'!J73 -> مسلم | L84: ='[1]4'!K73 -> ناجح ومنقول | M84: ='[1]4'!P73 -> 371 | P84: 35 | Q84: 35 | S84: 40 | T84: 40 | V84: 40 | W84: 40 | Y84: 40 | Z84: 40 | AB84: 40 | AC84: 40 | AE84: 40 | AF84: 40 | AH84: 40 | AI84: 40 | AK84: 40 | AL84: 40 | AN84: 90 | AO84: 90 | AP84: 90 | AQ84: 80 | AR84: 80 | AS84: 13 | AT84: 13 | AU84: 25.5 | AW84: 12 | AX84: 12 | AY84: 28 | BA84: 15 | BB84: 15 | BC84: 26 | BE84: 15 | BF84: 15 | BG84: 30 | BI84: 15 | BJ84: 15 | BK84: 28 | BM84: 13.5 | BN84: 13.5 | BO84: 24 | BQ84: 13.5 | BR84: 13.5 | BS84: 30 | BU84: 15 | BV84: 15 | BW84: 24 | BY84: 13 | BZ84: 13 | CA84: 25.5 | CC84: 12 | CD84: 12 | CE84: 28 | CG84: 15 | CH84: 15 | CI84: 26 | CK84: 15 | CL84: 15 | CM84: 30 | CO84: 15 | CP84: 15 | CQ84: 28 | CS84: 13.5 | CT84: 13.5 | CU84: 24 | CW84: 13.5 | CX84: 13.5 | CY84: 30 | DA84: 15 | DB84: 15 | DC84: 24 | DE84: 90 | DF84: 90 | DG84: 90 | DH84: 80 | DI84: 80
A85: =IF(C85="","",SUBTOTAL(3,$C$14:C85)) -> 72 | B85: ='[1]4'!O74 -> 472 | C85: س72 | D85: 15 | E85: ='[1]4'!N74 -> 3/4 | F85: ='[1]4'!I74 -> ذكر | G85: ='[1]4'!E74 -> 2012-11-20 | H85: ='[1]4'!F74 -> 11 | I85: ='[1]4'!G74 -> 10 | J85: ='[1]4'!H74 -> 8 | K85: ='[1]4'!J74 -> مسلم | L85: ='[1]4'!K74 -> ناجح ومنقول | M85: ='[1]4'!P74 -> 372 | P85: 40 | Q85: 40 | S85: 40 | T85: 40 | V85: 40 | W85: 40 | Y85: 40 | Z85: 40 | AB85: 40 | AC85: 40 | AE85: 40 | AF85: 40 | AH85: 40 | AI85: 40 | AK85: 35 | AL85: 35 | AN85: 90 | AO85: 90 | AP85: 90 | AQ85: 80 | AR85: 80 | AS85: 14.5 | AT85: 14.5 | AU85: 19.5 | AW85: 15 | AX85: 15 | AY85: 28 | BA85: 15 | BB85: 15 | BC85: 22 | BE85: 12 | BF85: 12 | BG85: 30 | BI85: 15 | BJ85: 15 | BK85: 30 | BM85: 10.5 | BN85: 10.5 | BO85: 26 | BQ85: 12 | BR85: 12 | BS85: 30 | BU85: 15 | BV85: 15 | BW85: 24 | BY85: 14.5 | BZ85: 14.5 | CA85: 19.5 | CC85: 15 | CD85: 15 | CE85: 28 | CG85: 15 | CH85: 15 | CI85: 22 | CK85: 12 | CL85: 12 | CM85: 30 | CO85: 15 | CP85: 15 | CQ85: 30 | CS85: 10.5 | CT85: 10.5 | CU85: 26 | CW85: 12 | CX85: 12 | CY85: 30 | DA85: 15 | DB85: 15 | DC85: 24 | DE85: 90 | DF85: 90 | DG85: 90 | DH85: 80 | DI85: 80
A86: =IF(C86="","",SUBTOTAL(3,$C$14:C86)) -> 73 | B86: ='[1]4'!O75 -> 473 | C86: س73 | D86: 15 | E86: ='[1]4'!N75 -> 2/4 | F86: ='[1]4'!I75 -> ذكر | G86: ='[1]4'!E75 -> 2012-02-05 | H86: ='[1]4'!F75 -> 26 | I86: ='[1]4'!G75 -> 7 | J86: ='[1]4'!H75 -> 9 | K86: ='[1]4'!J75 -> مسلم | L86: ='[1]4'!K75 -> ناجح ومنقول | M86: ='[1]4'!P75 -> 373 | P86: 40 | Q86: 40 | S86: 40 | T86: 40 | V86: 40 | W86: 40 | Y86: 35 | Z86: 35 | AB86: 35 | AC86: 35 | AE86: 40 | AF86: 40 | AH86: 40 | AI86: 40 | AK86: 40 | AL86: 40 | AN86: 90 | AO86: 90 | AP86: 95 | AQ86: 80 | AR86: 80 | AS86: 14.5 | AT86: 14.5 | AU86: 24 | AW86: 11 | AX86: 11 | AY86: 28 | BA86: 15 | BB86: 13.5 | BC86: 22 | BE86: 15 | BF86: 15 | BG86: 24 | BI86: 15 | BJ86: 15 | BK86: 30 | BM86: 10.5 | BN86: 10.5 | BO86: 26 | BQ86: 10.5 | BR86: 10.5 | BS86: 30 | BU86: 15 | BV86: 15 | BW86: 28 | BY86: 14.5 | BZ86: 14.5 | CA86: 24 | CC86: 11 | CD86: 11 | CE86: 28 | CG86: 15 | CH86: 13.5 | CI86: 22 | CK86: 15 | CL86: 15 | CM86: 24 | CO86: 15 | CP86: 15 | CQ86: 30 | CS86: 10.5 | CT86: 10.5 | CU86: 26 | CW86: 10.5 | CX86: 10.5 | CY86: 30 | DA86: 15 | DB86: 15 | DC86: 28 | DE86: 90 | DF86: 90 | DG86: 95 | DH86: 80 | DI86: 80
A87: =IF(C87="","",SUBTOTAL(3,$C$14:C87)) -> 74 | B87: ='[1]4'!O76 -> 474 | C87: س74 | D87: 15 | E87: ='[1]4'!N76 -> 4/4 | F87: ='[1]4'!I76 -> ذكر | G87: ='[1]4'!E76 -> 2011-10-30 | H87: ='[1]4'!F76 -> 1 | I87: ='[1]4'!G76 -> 11 | J87: ='[1]4'!H76 -> 9 | K87: ='[1]4'!J76 -> مسلم | L87: ='[1]4'!K76 -> ناجح ومنقول | M87: ='[1]4'!P76 -> 374 | P87: 35 | Q87: 35 | S87: 40 | T87: 40 | V87: 40 | W87: 40 | Y87: 40 | Z87: 40 | AB87: 40 | AC87: 40 | AE87: 35 | AF87: 35 | AH87: 30 | AI87: 30 | AK87: 40 | AL87: 40 | AN87: 90 | AO87: 90 | AP87: 90 | AQ87: 80 | AR87: 80 | AS87: 14.5 | AT87: 14.5 | AU87: 24 | AW87: 15 | AX87: 15 | AY87: 28 | BA87: 15 | BB87: 15 | BC87: 18 | BE87: 15 | BF87: 15 | BG87: 26 | BI87: 15 | BJ87: 15 | BK87: 30 | BM87: 7.5 | BN87: 7.5 | BO87: 26 | BQ87: 10.5 | BR87: 10.5 | BS87: 28 | BU87: 15 | BV87: 15 | BW87: 28 | BY87: 14.5 | BZ87: 14.5 | CA87: 24 | CC87: 15 | CD87: 15 | CE87: 28 | CG87: 15 | CH87: 15 | CI87: 18 | CK87: 15 | CL87: 15 | CM87: 26 | CO87: 15 | CP87: 15 | CQ87: 30 | CS87: 7.5 | CT87: 7.5 | CU87: 26 | CW87: 10.5 | CX87: 10.5 | CY87: 28 | DA87: 15 | DB87: 15 | DC87: 28 | DE87: 90 | DF87: 90 | DG87: 90 | DH87: 80 | DI87: 80
A88: =IF(C88="","",SUBTOTAL(3,$C$14:C88)) -> 75 | B88: ='[1]4'!O77 -> 475 | C88: س75 | D88: 15 | E88: ='[1]4'!N77 -> 4/4 | F88: ='[1]4'!I77 -> ذكر | G88: ='[1]4'!E77 -> 2012-07-01 | H88: ='[1]4'!F77 -> 0 | I88: ='[1]4'!G77 -> 3 | J88: ='[1]4'!H77 -> 9 | K88: ='[1]4'!J77 -> مسلم | L88: ='[1]4'!K77 -> ناجح ومنقول | M88: ='[1]4'!P77 -> 375 | P88: 40 | Q88: 40 | S88: 40 | T88: 40 | V88: 35 | W88: 35 | Y88: 35 | Z88: 35 | AB88: 37 | AC88: 37 | AE88: 30 | AF88: 30 | AH88: 40 | AI88: 40 | AK88: 40 | AL88: 40 | AN88: 90 | AO88: 90 | AP88: 90 | AQ88: 80 | AR88: 80 | AS88: 14.5 | AT88: 14.5 | AU88: 18 | AW88: 14 | AX88: 14 | AY88: 28 | BA88: 15 | BB88: 15 | BC88: 16 | BE88: 15 | BF88: 15 | BG88: 24 | BI88: 15 | BJ88: 15 | BK88: 30 | BM88: 9 | BN88: 9 | BO88: 18 | BQ88: 12 | BR88: 12 | BS88: 30 | BU88: 15 | BV88: 15 | BW88: 18 | BY88: 14.5 | BZ88: 14.5 | CA88: 18 | CC88: 14 | CD88: 14 | CE88: 28 | CG88: 15 | CH88: 15 | CI88: 16 | CK88: 15 | CL88: 15 | CM88: 24 | CO88: 15 | CP88: 15 | CQ88: 30 | CS88: 9 | CT88: 9 | CU88: 18 | CW88: 12 | CX88: 12 | CY88: 30 | DA88: 15 | DB88: 15 | DC88: 18 | DE88: 90 | DF88: 90 | DG88: 90 | DH88: 80 | DI88: 80
A89: =IF(C89="","",SUBTOTAL(3,$C$14:C89)) -> 76 | B89: ='[1]4'!O78 -> 476 | C89: س76 | D89: 15 | E89: ='[1]4'!N78 -> 3/4 | F89: ='[1]4'!I78 -> ذكر | G89: ='[1]4'!E78 -> 2012-07-05 | H89: ='[1]4'!F78 -> 26 | I89: ='[1]4'!G78 -> 2 | J89: ='[1]4'!H78 -> 9 | K89: ='[1]4'!J78 -> مسلم | L89: ='[1]4'!K78 -> ناجح ومنقول | M89: ='[1]4'!P78 -> 376 | P89: 40 | Q89: 40 | S89: 40 | T89: 40 | V89: 40 | W89: 40 | Y89: 35 | Z89: 35 | AB89: 40 | AC89: 40 | AE89: 40 | AF89: 40 | AH89: 40 | AI89: 40 | AK89: 35 | AL89: 35 | AN89: 90 | AO89: 90 | AP89: 95 | AQ89: 80 | AR89: 80 | AS89: 13.5 | AT89: 13.5 | AU89: 22 | AW89: 13 | AX89: 13 | AY89: 28 | BA89: 15 | BB89: 15 | BC89: 18 | BE89: 15 | BF89: 15 | BG89: 30 | BI89: 15 | BJ89: 15 | BK89: 30 | BM89: 13.5 | BN89: 13.5 | BO89: 24 | BQ89: 12 | BR89: 12 | BS89: 30 | BU89: 15 | BV89: 15 | BW89: 24 | BY89: 13.5 | BZ89: 13.5 | CA89: 22 | CC89: 13 | CD89: 13 | CE89: 28 | CG89: 15 | CH89: 15 | CI89: 18 | CK89: 15 | CL89: 15 | CM89: 30 | CO89: 15 | CP89: 15 | CQ89: 30 | CS89: 13.5 | CT89: 13.5 | CU89: 24 | CW89: 12 | CX89: 12 | CY89: 30 | DA89: 15 | DB89: 15 | DC89: 24 | DE89: 90 | DF89: 90 | DG89: 95 | DH89: 80 | DI89: 80
A90: =IF(C90="","",SUBTOTAL(3,$C$14:C90)) -> 77 | B90: ='[1]4'!O79 -> 477 | C90: س77 | D90: 15 | E90: ='[1]4'!N79 -> 2/4 | F90: ='[1]4'!I79 -> ذكر | G90: ='[1]4'!E79 -> 2012-07-14 | H90: ='[1]4'!F79 -> 17 | I90: ='[1]4'!G79 -> 2 | J90: ='[1]4'!H79 -> 9 | K90: ='[1]4'!J79 -> مسلم | L90: ='[1]4'!K79 -> ناجح ومنقول | M90: ='[1]4'!P79 -> 377 | P90: 40 | Q90: 40 | S90: 40 | T90: 40 | V90: 40 | W90: 40 | Y90: 39 | Z90: 39 | AB90: 40 | AC90: 40 | AE90: 40 | AF90: 40 | AH90: 40 | AI90: 40 | AK90: 35 | AL90: 35 | AN90: 90 | AO90: 90 | AP90: 90 | AQ90: 80 | AR90: 80 | AS90: 14.5 | AT90: 14.5 | AU90: 28.5 | AW90: 15 | AX90: 15 | AY90: 26 | BA90: 15 | BB90: 15 | BC90: 20 | BE90: 15 | BF90: 15 | BG90: 30 | BI90: 15 | BJ90: 15 | BK90: 30 | BM90: 15 | BN90: 15 | BO90: 22 | BQ90: 12 | BR90: 12 | BS90: 30 | BU90: 15 | BV90: 15 | BW90: 24 | BY90: 14.5 | BZ90: 14.5 | CA90: 28.5 | CC90: 15 | CD90: 15 | CE90: 26 | CG90: 15 | CH90: 15 | CI90: 20 | CK90: 15 | CL90: 15 | CM90: 30 | CO90: 15 | CP90: 15 | CQ90: 30 | CS90: 15 | CT90: 15 | CU90: 22 | CW90: 12 | CX90: 12 | CY90: 30 | DA90: 15 | DB90: 15 | DC90: 24 | DE90: 90 | DF90: 90 | DG90: 90 | DH90: 80 | DI90: 80
A91: =IF(C91="","",SUBTOTAL(3,$C$14:C91)) -> 78 | B91: ='[1]4'!O80 -> 478 | C91: س78 | D91: 15 | E91: ='[1]4'!N80 -> 2/4 | F91: ='[1]4'!I80 -> ذكر | G91: ='[1]4'!E80 -> 2011-11-23 | H91: ='[1]4'!F80 -> 8 | I91: ='[1]4'!G80 -> 10 | J91: ='[1]4'!H80 -> 9 | K91: ='[1]4'!J80 -> مسلم | L91: ='[1]4'!K80 -> ناجح ومنقول | M91: ='[1]4'!P80 -> 378 | P91: 30 | Q91: 30 | S91: 40 | T91: 40 | V91: 30 | W91: 30 | Y91: 39 | Z91: 39 | AB91: 40 | AC91: 40 | AE91: 30 | AF91: 30 | AH91: 40 | AI91: 40 | AK91: 35 | AL91: 35 | AN91: 90 | AO91: 90 | AP91: 90 | AQ91: 80 | AR91: 80 | AS91: 13 | AT91: 13 | AU91: 25.5 | AW91: 15 | AX91: 15 | AY91: 28 | BA91: 15 | BB91: 15 | BC91: 22 | BE91: 15 | BF91: 15 | BG91: 30 | BI91: 15 | BJ91: 15 | BK91: 30 | BM91: 15 | BN91: 15 | BO91: 18 | BQ91: 13.5 | BR91: 13.5 | BS91: 30 | BU91: 15 | BV91: 15 | BW91: 22 | BY91: 13 | BZ91: 13 | CA91: 25.5 | CC91: 15 | CD91: 15 | CE91: 28 | CG91: 15 | CH91: 15 | CI91: 22 | CK91: 15 | CL91: 15 | CM91: 30 | CO91: 15 | CP91: 15 | CQ91: 30 | CS91: 15 | CT91: 15 | CU91: 18 | CW91: 13.5 | CX91: 13.5 | CY91: 30 | DA91: 15 | DB91: 15 | DC91: 22 | DE91: 90 | DF91: 90 | DG91: 90 | DH91: 80 | DI91: 80
A92: =IF(C92="","",SUBTOTAL(3,$C$14:C92)) -> 79 | B92: ='[1]4'!O81 -> 479 | C92: س79 | D92: 15 | E92: ='[1]4'!N81 -> 3/4 | F92: ='[1]4'!I81 -> ذكر | G92: ='[1]4'!E81 -> 2011-11-07 | H92: ='[1]4'!F81 -> 24 | I92: ='[1]4'!G81 -> 10 | J92: ='[1]4'!H81 -> 9 | K92: ='[1]4'!J81 -> مسلم | L92: ='[1]4'!K81 -> ناجح ومنقول | M92: ='[1]4'!P81 -> 379 | P92: 40 | Q92: 40 | S92: 40 | T92: 40 | V92: 40 | W92: 40 | Y92: 39 | Z92: 39 | AB92: 40 | AC92: 40 | AE92: 40 | AF92: 40 | AH92: 40 | AI92: 40 | AK92: 35 | AL92: 35 | AN92: 90 | AO92: 90 | AP92: 95 | AQ92: 80 | AR92: 80 | AS92: 13 | AT92: 13 | AU92: 22.5 | AW92: 15 | AX92: 15 | AY92: 28 | BA92: 15 | BB92: 15 | BC92: 28 | BE92: 15 | BF92: 15 | BG92: 28 | BI92: 15 | BJ92: 15 | BK92: 30 | BM92: 10.5 | BN92: 10.5 | BO92: 20 | BQ92: 13.5 | BR92: 13.5 | BS92: 28 | BU92: 15 | BV92: 15 | BW92: 24 | BY92: 13 | BZ92: 13 | CA92: 22.5 | CC92: 15 | CD92: 15 | CE92: 28 | CG92: 15 | CH92: 15 | CI92: 28 | CK92: 15 | CL92: 15 | CM92: 28 | CO92: 15 | CP92: 15 | CQ92: 30 | CS92: 10.5 | CT92: 10.5 | CU92: 20 | CW92: 13.5 | CX92: 13.5 | CY92: 28 | DA92: 15 | DB92: 15 | DC92: 24 | DE92: 90 | DF92: 90 | DG92: 95 | DH92: 80 | DI92: 80
A93: =IF(C93="","",SUBTOTAL(3,$C$14:C93)) -> 80 | B93: ='[1]4'!O82 -> 480 | C93: س80 | D93: 15 | E93: ='[1]4'!N82 -> 1/4 | F93: ='[1]4'!I82 -> ذكر | G93: ='[1]4'!E82 -> 2012-07-19 | H93: ='[1]4'!F82 -> 12 | I93: ='[1]4'!G82 -> 2 | J93: ='[1]4'!H82 -> 9 | K93: ='[1]4'!J82 -> مسلم | L93: ='[1]4'!K82 -> ناجح ومنقول | M93: ='[1]4'!P82 -> 380 | P93: 35 | Q93: 35 | S93: 40 | T93: 40 | V93: 40 | W93: 40 | Y93: 40 | Z93: 40 | AB93: 40 | AC93: 40 | AE93: 40 | AF93: 40 | AH93: 35 | AI93: 35 | AK93: 40 | AL93: 40 | AN93: 90 | AO93: 90 | AP93: 95 | AQ93: 80 | AR93: 80 | AS93: 13 | AT93: 13 | AU93: 15.5 | AW93: 15 | AX93: 15 | AY93: 28 | BA93: 15 | BB93: 15 | BC93: 24 | BE93: 15 | BF93: 15 | BG93: 28 | BI93: 15 | BJ93: 15 | BK93: 30 | BM93: 12 | BN93: 12 | BO93: 18 | BQ93: 9 | BR93: 9 | BS93: 28 | BU93: 15 | BV93: 15 | BW93: 24 | BY93: 13 | BZ93: 13 | CA93: 15.5 | CC93: 15 | CD93: 15 | CE93: 28 | CG93: 15 | CH93: 15 | CI93: 24 | CK93: 15 | CL93: 15 | CM93: 28 | CO93: 15 | CP93: 15 | CQ93: 30 | CS93: 12 | CT93: 12 | CU93: 18 | CW93: 9 | CX93: 9 | CY93: 28 | DA93: 15 | DB93: 15 | DC93: 24 | DE93: 90 | DF93: 90 | DG93: 95 | DH93: 80 | DI93: 80
A94: =IF(C94="","",SUBTOTAL(3,$C$14:C94)) -> 81 | B94: ='[1]4'!O83 -> 481 | C94: س81 | D94: 15 | E94: ='[1]4'!N83 -> 2/4 | F94: ='[1]4'!I83 -> ذكر | G94: ='[1]4'!E83 -> 2012-08-06 | H94: ='[1]4'!F83 -> 25 | I94: ='[1]4'!G83 -> 1 | J94: ='[1]4'!H83 -> 9 | K94: ='[1]4'!J83 -> مسلم | L94: ='[1]4'!K83 -> ناجح ومنقول | M94: ='[1]4'!P83 -> 381 | P94: 35 | Q94: 35 | S94: 35 | T94: 35 | V94: 40 | W94: 40 | Y94: 40 | Z94: 40 | AB94: 40 | AC94: 40 | AE94: 35 | AF94: 35 | AH94: 35 | AI94: 35 | AK94: 40 | AL94: 40 | AN94: 90 | AO94: 90 | AP94: 90 | AQ94: 80 | AR94: 80 | AS94: 14.5 | AT94: 14.5 | AU94: 12 | AW94: 15 | AX94: 15 | AY94: 26 | BA94: 15 | BB94: 15 | BC94: 20 | BE94: 15 | BF94: 15 | BG94: 26 | BI94: 15 | BJ94: 15 | BK94: 24 | BM94: 13.5 | BN94: 13.5 | BO94: 12 | BQ94: 12 | BR94: 12 | BS94: 12 | BU94: 15 | BV94: 15 | BW94: 22 | BY94: 14.5 | BZ94: 14.5 | CA94: 12 | CC94: 15 | CD94: 15 | CE94: 26 | CG94: 15 | CH94: 15 | CI94: 20 | CK94: 15 | CL94: 15 | CM94: 26 | CO94: 15 | CP94: 15 | CQ94: 24 | CS94: 13.5 | CT94: 13.5 | CU94: 12 | CW94: 12 | CX94: 12 | CY94: 12 | DA94: 15 | DB94: 15 | DC94: 22 | DE94: 90 | DF94: 90 | DG94: 90 | DH94: 80 | DI94: 80
A95: =IF(C95="","",SUBTOTAL(3,$C$14:C95)) -> 82 | B95: ='[1]4'!O84 -> 482 | C95: س82 | D95: 15 | E95: ='[1]4'!N84 -> 2/4 | F95: ='[1]4'!I84 -> ذكر | G95: ='[1]4'!E84 -> 2012-06-09 | H95: ='[1]4'!F84 -> 22 | I95: ='[1]4'!G84 -> 3 | J95: ='[1]4'!H84 -> 9 | K95: ='[1]4'!J84 -> مسلم | L95: ='[1]4'!K84 -> ناجح ومنقول | M95: ='[1]4'!P84 -> 382 | P95: 30 | Q95: 30 | S95: 40 | T95: 40 | V95: 40 | W95: 40 | Y95: 26 | Z95: 26 | AB95: 39 | AC95: 39 | AE95: 20 | AF95: 20 | AH95: 35 | AI95: 35 | AK95: 35 | AL95: 35 | AN95: 90 | AO95: 90 | AP95: 90 | AQ95: 80 | AR95: 80 | AS95: 10 | AT95: 10 | AU95: 9 | AW95: 15 | AX95: 15 | AY95: 26 | BA95: 15 | BB95: 13.5 | BC95: 18 | BE95: 15 | BF95: 15 | BG95: 26 | BI95: 15 | BJ95: 15 | BK95: 30 | BM95: 10.5 | BN95: 10.5 | BO95: 12 | BQ95: 12 | BR95: 12 | BS95: 10 | BU95: 15 | BV95: 15 | BW95: 20 | BY95: 10 | BZ95: 10 | CA95: 9 | CC95: 15 | CD95: 15 | CE95: 26 | CG95: 15 | CH95: 13.5 | CI95: 18 | CK95: 15 | CL95: 15 | CM95: 26 | CO95: 15 | CP95: 15 | CQ95: 30 | CS95: 10.5 | CT95: 10.5 | CU95: 12 | CW95: 12 | CX95: 12 | CY95: 10 | DA95: 15 | DB95: 15 | DC95: 20 | DE95: 90 | DF95: 90 | DG95: 90 | DH95: 80 | DI95: 80
A96: =IF(C96="","",SUBTOTAL(3,$C$14:C96)) -> 83 | B96: ='[1]4'!O85 -> 483 | C96: س83 | D96: 15 | E96: ='[1]4'!N85 -> 4/4 | F96: ='[1]4'!I85 -> ذكر | G96: ='[1]4'!E85 -> 2011-10-27 | H96: ='[1]4'!F85 -> 4 | I96: ='[1]4'!G85 -> 11 | J96: ='[1]4'!H85 -> 9 | K96: ='[1]4'!J85 -> مسلم | L96: ='[1]4'!K85 -> ناجح ومنقول | M96: ='[1]4'!P85 -> 383 | P96: 35 | Q96: 35 | S96: 35 | T96: 35 | V96: 35 | W96: 35 | Y96: 35 | Z96: 35 | AB96: 35 | AC96: 35 | AE96: 35 | AF96: 35 | AH96: 35 | AI96: 35 | AK96: 35 | AL96: 35 | AN96: 90 | AO96: 90 | AP96: 95 | AQ96: 80 | AR96: 80 | AS96: 14.5 | AT96: 14.5 | AU96: 13.5 | AW96: 15 | AX96: 15 | AY96: 30 | BA96: 15 | BB96: 12 | BC96: 20 | BE96: 15 | BF96: 15 | BG96: 28 | BI96: 15 | BJ96: 15 | BK96: 28 | BM96: 15 | BN96: 15 | BO96: 14 | BQ96: 12 | BR96: 12 | BS96: 22 | BU96: 15 | BV96: 15 | BW96: 22 | BY96: 14.5 | BZ96: 14.5 | CA96: 13.5 | CC96: 15 | CD96: 15 | CE96: 30 | CG96: 15 | CH96: 12 | CI96: 20 | CK96: 15 | CL96: 15 | CM96: 28 | CO96: 15 | CP96: 15 | CQ96: 28 | CS96: 15 | CT96: 15 | CU96: 14 | CW96: 12 | CX96: 12 | CY96: 22 | DA96: 15 | DB96: 15 | DC96: 22 | DE96: 90 | DF96: 90 | DG96: 95 | DH96: 80 | DI96: 80
A97: =IF(C97="","",SUBTOTAL(3,$C$14:C97)) -> 84 | B97: ='[1]4'!O86 -> 484 | C97: س84 | D97: 15 | E97: ='[1]4'!N86 -> 3/4 | F97: ='[1]4'!I86 -> ذكر | G97: ='[1]4'!E86 -> 2012-03-15 | H97: ='[1]4'!F86 -> 16 | I97: ='[1]4'!G86 -> 6 | J97: ='[1]4'!H86 -> 9 | K97: ='[1]4'!J86 -> مسلم | L97: ='[1]4'!K86 -> ناجح ومنقول | M97: ='[1]4'!P86 -> 384 | P97: 40 | Q97: 40 | S97: 40 | T97: 40 | V97: 40 | W97: 40 | Y97: 39 | Z97: 39 | AB97: 37 | AC97: 37 | AE97: 40 | AF97: 40 | AH97: 40 | AI97: 40 | AK97: 35 | AL97: 35 | AN97: 90 | AO97: 90 | AP97: 95 | AQ97: 80 | AR97: 80 | AS97: 8.5 | AT97: 8.5 | AU97: 13.5 | AW97: 10 | AX97: 10 | AY97: 26 | BA97: 15 | BB97: 10.5 | BC97: 22 | BE97: 15 | BF97: 15 | BG97: 20 | BI97: 15 | BJ97: 15 | BK97: 18 | BM97: 7.5 | BN97: 7.5 | BO97: 16 | BQ97: 12 | BR97: 12 | BS97: 12 | BU97: 15 | BV97: 15 | BW97: 20 | BY97: 8.5 | BZ97: 8.5 | CA97: 13.5 | CC97: 10 | CD97: 10 | CE97: 26 | CG97: 15 | CH97: 10.5 | CI97: 22 | CK97: 15 | CL97: 15 | CM97: 20 | CO97: 15 | CP97: 15 | CQ97: 18 | CS97: 7.5 | CT97: 7.5 | CU97: 16 | CW97: 12 | CX97: 12 | CY97: 12 | DA97: 15 | DB97: 15 | DC97: 20 | DE97: 90 | DF97: 90 | DG97: 95 | DH97: 80 | DI97: 80
A98: =IF(C98="","",SUBTOTAL(3,$C$14:C98)) -> 85 | B98: ='[1]4'!O87 -> 485 | C98: س85 | D98: 15 | E98: ='[1]4'!N87 -> 2/4 | F98: ='[1]4'!I87 -> ذكر | G98: ='[1]4'!E87 -> 2011-11-11 | H98: ='[1]4'!F87 -> 20 | I98: ='[1]4'!G87 -> 10 | J98: ='[1]4'!H87 -> 9 | K98: ='[1]4'!J87 -> مسلم | L98: ='[1]4'!K87 -> ناجح ومنقول | M98: ='[1]4'!P87 -> 385 | P98: 35 | Q98: 35 | S98: 40 | T98: 40 | V98: 40 | W98: 40 | Y98: 25 | Z98: 25 | AB98: 39 | AC98: 39 | AE98: 35 | AF98: 35 | AH98: 35 | AI98: 35 | AK98: 35 | AL98: 35 | AN98: 90 | AO98: 90 | AP98: 90 | AQ98: 80 | AR98: 80 | AS98: 12 | AT98: 12 | AU98: 10.5 | AW98: 15 | AX98: 15 | AY98: 26 | BA98: 15 | BB98: 15 | BC98: 22 | BE98: 10.5 | BF98: 10.5 | BG98: 22 | BI98: 12 | BJ98: 12 | BK98: 30 | BM98: 12 | BN98: 12 | BO98: 14 | BQ98: 10.5 | BR98: 10.5 | BS98: 26 | BU98: 15 | BV98: 15 | BW98: 22 | BY98: 12 | BZ98: 12 | CA98: 10.5 | CC98: 15 | CD98: 15 | CE98: 26 | CG98: 15 | CH98: 15 | CI98: 22 | CK98: 10.5 | CL98: 10.5 | CM98: 22 | CO98: 12 | CP98: 12 | CQ98: 30 | CS98: 12 | CT98: 12 | CU98: 14 | CW98: 10.5 | CX98: 10.5 | CY98: 26 | DA98: 15 | DB98: 15 | DC98: 22 | DE98: 90 | DF98: 90 | DG98: 90 | DH98: 80 | DI98: 80
A99: =IF(C99="","",SUBTOTAL(3,$C$14:C99)) -> 86 | B99: ='[1]4'!O88 -> 486 | C99: س86 | D99: 15 | E99: ='[1]4'!N88 -> 4/4 | F99: ='[1]4'!I88 -> ذكر | G99: ='[1]4'!E88 -> 2011-12-26 | H99: ='[1]4'!F88 -> 5 | I99: ='[1]4'!G88 -> 9 | J99: ='[1]4'!H88 -> 9 | K99: ='[1]4'!J88 -> مسلم | L99: ='[1]4'!K88 -> ناجح ومنقول | M99: ='[1]4'!P88 -> 386 | P99: 25 | Q99: 25 | S99: 40 | T99: 40 | V99: 30 | W99: 30 | Y99: 30 | Z99: 30 | AB99: 37 | AC99: 37 | AE99: 25 | AF99: 25 | AH99: 35 | AI99: 35 | AK99: 40 | AL99: 40 | AN99: 90 | AO99: 90 | AP99: 90 | AQ99: 80 | AR99: 80 | AS99: 9 | AT99: 9 | AU99: 10.5 | AW99: 15 | AX99: 15 | AY99: 28 | BA99: 15 | BB99: 10.5 | BC99: 20 | BE99: 12 | BF99: 12 | BG99: 20 | BI99: 9 | BJ99: 9 | BK99: 20 | BM99: 10.5 | BN99: 10.5 | BO99: 18 | BQ99: 10.5 | BR99: 10.5 | BS99: 16 | BU99: 15 | BV99: 15 | BW99: 20 | BY99: 9 | BZ99: 9 | CA99: 10.5 | CC99: 15 | CD99: 15 | CE99: 28 | CG99: 15 | CH99: 10.5 | CI99: 20 | CK99: 12 | CL99: 12 | CM99: 20 | CO99: 9 | CP99: 9 | CQ99: 20 | CS99: 10.5 | CT99: 10.5 | CU99: 18 | CW99: 10.5 | CX99: 10.5 | CY99: 16 | DA99: 15 | DB99: 15 | DC99: 20 | DE99: 90 | DF99: 90 | DG99: 90 | DH99: 80 | DI99: 80
A100: =IF(C100="","",SUBTOTAL(3,$C$14:C100)) -> 87 | B100: ='[1]4'!O89 -> 487 | C100: س87 | D100: 15 | E100: ='[1]4'!N89 -> 4/4 | F100: ='[1]4'!I89 -> ذكر | G100: ='[1]4'!E89 -> 2011-09-03 | H100: ='[1]4'!F89 -> 28 | I100: ='[1]4'!G89 -> 0 | J100: ='[1]4'!H89 -> 10 | K100: ='[1]4'!J89 -> مسلم | L100: ='[1]4'!K89 -> ناجح ومنقول | M100: ='[1]4'!P89 -> 387 | P100: 35 | Q100: 35 | S100: 40 | T100: 40 | V100: 40 | W100: 40 | Y100: 40 | Z100: 40 | AB100: 38 | AC100: 38 | AE100: 35 | AF100: 35 | AH100: 40 | AI100: 40 | AK100: 40 | AL100: 40 | AN100: 90 | AO100: 90 | AP100: 95 | AQ100: 80 | AR100: 80 | AS100: 14.5 | AT100: 14.5 | AU100: 11.5 | AW100: 15 | AX100: 15 | AY100: 26 | BA100: 15 | BB100: 12 | BC100: 20 | BE100: 15 | BF100: 15 | BG100: 28 | BI100: 15 | BJ100: 15 | BK100: 30 | BM100: 15 | BN100: 15 | BO100: 20 | BQ100: 12 | BR100: 12 | BS100: 20 | BU100: 15 | BV100: 15 | BW100: 26 | BY100: 14.5 | BZ100: 14.5 | CA100: 11.5 | CC100: 15 | CD100: 15 | CE100: 26 | CG100: 15 | CH100: 12 | CI100: 20 | CK100: 15 | CL100: 15 | CM100: 28 | CO100: 15 | CP100: 15 | CQ100: 30 | CS100: 15 | CT100: 15 | CU100: 20 | CW100: 12 | CX100: 12 | CY100: 20 | DA100: 15 | DB100: 15 | DC100: 26 | DE100: 90 | DF100: 90 | DG100: 95 | DH100: 80 | DI100: 80
A101: =IF(C101="","",SUBTOTAL(3,$C$14:C101)) -> 88 | B101: ='[1]4'!O90 -> 488 | C101: س88 | D101: 15 | E101: ='[1]4'!N90 -> 1/4 | F101: ='[1]4'!I90 -> ذكر | G101: ='[1]4'!E90 -> 2012-05-20 | H101: ='[1]4'!F90 -> 11 | I101: ='[1]4'!G90 -> 4 | J101: ='[1]4'!H90 -> 9 | K101: ='[1]4'!J90 -> مسلم | L101: ='[1]4'!K90 -> ناجح ومنقول | M101: ='[1]4'!P90 -> 388 | P101: 40 | Q101: 40 | S101: 40 | T101: 40 | V101: 40 | W101: 40 | Y101: 40 | Z101: 40 | AB101: 40 | AC101: 40 | AE101: 40 | AF101: 40 | AH101: 40 | AI101: 40 | AK101: 40 | AL101: 40 | AN101: 90 | AO101: 90 | AP101: 95 | AQ101: 80 | AR101: 80 | AS101: 14.5 | AT101: 14.5 | AU101: 24 | AW101: 15 | AX101: 15 | AY101: 30 | BA101: 15 | BB101: 15 | BC101: 24 | BE101: 15 | BF101: 15 | BG101: 30 | BI101: 15 | BJ101: 15 | BK101: 30 | BM101: 15 | BN101: 15 | BO101: 26 | BQ101: 12 | BR101: 12 | BS101: 28 | BU101: 15 | BV101: 15 | BW101: 22 | BY101: 14.5 | BZ101: 14.5 | CA101: 24 | CC101: 15 | CD101: 15 | CE101: 30 | CG101: 15 | CH101: 15 | CI101: 24 | CK101: 15 | CL101: 15 | CM101: 30 | CO101: 15 | CP101: 15 | CQ101: 30 | CS101: 15 | CT101: 15 | CU101: 26 | CW101: 12 | CX101: 12 | CY101: 28 | DA101: 15 | DB101: 15 | DC101: 22 | DE101: 90 | DF101: 90 | DG101: 95 | DH101: 80 | DI101: 80
A102: =IF(C102="","",SUBTOTAL(3,$C$14:C102)) -> 89 | B102: ='[1]4'!O91 -> 489 | C102: س89 | D102: 15 | E102: ='[1]4'!N91 -> 1/4 | F102: ='[1]4'!I91 -> ذكر | G102: ='[1]4'!E91 -> 2012-05-15 | H102: ='[1]4'!F91 -> 16 | I102: ='[1]4'!G91 -> 4 | J102: ='[1]4'!H91 -> 9 | K102: ='[1]4'!J91 -> مسلم | L102: ='[1]4'!K91 -> ناجح ومنقول | M102: ='[1]4'!P91 -> 389 | P102: 25 | Q102: 25 | S102: 20 | T102: 20 | V102: 40 | W102: 40 | Y102: 30 | Z102: 30 | AB102: 30 | AC102: 30 | AE102: 25 | AF102: 25 | AH102: 40 | AI102: 40 | AK102: 40 | AL102: 40 | AN102: 90 | AO102: 90 | AP102: 95 | AQ102: 80 | AR102: 80 | AS102: 13 | AT102: 13 | AU102: 24 | AW102: 15 | AX102: 15 | AY102: 28 | BA102: 15 | BB102: 15 | BC102: 24 | BE102: 15 | BF102: 15 | BG102: 30 | BI102: 15 | BJ102: 15 | BK102: 30 | BM102: 15 | BN102: 15 | BO102: 26 | BQ102: 12 | BR102: 12 | BS102: 24 | BU102: 15 | BV102: 15 | BW102: 20 | BY102: 13 | BZ102: 13 | CA102: 24 | CC102: 15 | CD102: 15 | CE102: 28 | CG102: 15 | CH102: 15 | CI102: 24 | CK102: 15 | CL102: 15 | CM102: 30 | CO102: 15 | CP102: 15 | CQ102: 30 | CS102: 15 | CT102: 15 | CU102: 26 | CW102: 12 | CX102: 12 | CY102: 24 | DA102: 15 | DB102: 15 | DC102: 20 | DE102: 90 | DF102: 90 | DG102: 95 | DH102: 80 | DI102: 80
A103: =IF(C103="","",SUBTOTAL(3,$C$14:C103)) -> 90 | B103: ='[1]4'!O92 -> 490 | C103: س90 | D103: 15 | E103: ='[1]4'!N92 -> 2/4 | F103: ='[1]4'!I92 -> ذكر | G103: ='[1]4'!E92 -> 2012-03-17 | H103: ='[1]4'!F92 -> 14 | I103: ='[1]4'!G92 -> 6 | J103: ='[1]4'!H92 -> 9 | K103: ='[1]4'!J92 -> مسلم | L103: ='[1]4'!K92 -> ناجح ومنقول | M103: ='[1]4'!P92 -> 390 | P103: غ | Q103: غ | S103: غ | T103: غ | V103: غ | W103: غ | Y103: غ | Z103: غ | AB103: غ | AC103: غ | AE103: غ | AF103: غ | AH103: غ | AI103: غ | AK103: غ | AL103: غ | AN103: غ | AO103: غ | AP103: غ | AQ103: غ | AR103: غ | AS103: غ | AT103: غ | AU103: غ | AW103: غ | AX103: غ | AY103: غ | BA103: 15 | BB103: غ | BC103: غ | BE103: غ | BF103: غ | BG103: غ | BI103: غ | BJ103: غ | BK103: غ | BM103: غ | BN103: غ | BO103: غ | BQ103: غ | BR103: غ | BS103: غ | BU103: غ | BV103: غ | BW103: غ | BY103: غ | BZ103: غ | CA103: غ | CC103: غ | CD103: غ | CE103: غ | CG103: 15 | CH103: غ | CI103: غ | CK103: غ | CL103: غ | CM103: غ | CO103: غ | CP103: غ | CQ103: غ | CS103: غ | CT103: غ | CU103: غ | CW103: غ | CX103: غ | CY103: غ | DA103: غ | DB103: غ | DC103: غ | DE103: غ | DF103: غ | DG103: غ | DH103: غ | DI103: غ
A104: =IF(C104="","",SUBTOTAL(3,$C$14:C104)) -> 91 | B104: ='[1]4'!O93 -> 491 | C104: س91 | D104: 15 | E104: ='[1]4'!N93 -> 1/4 | F104: ='[1]4'!I93 -> ذكر | G104: ='[1]4'!E93 -> 2010-10-01 | H104: ='[1]4'!F93 -> 0 | I104: ='[1]4'!G93 -> 0 | J104: ='[1]4'!H93 -> 11 | K104: ='[1]4'!J93 -> مسلم | L104: ='[1]4'!K93 -> راسب وباق للاعادة | M104: ='[1]4'!P93 -> 391 | P104: غ | Q104: غ | S104: غ | T104: غ | V104: غ | W104: غ | Y104: غ | Z104: غ | AB104: غ | AC104: غ | AE104: غ | AF104: غ | AH104: غ | AI104: غ | AK104: غ | AL104: غ | AN104: غ | AO104: غ | AP104: غ | AQ104: غ | AR104: غ | AS104: غ | AT104: غ | AU104: غ | AW104: غ | AX104: غ | AY104: غ | BA104: 15 | BB104: غ | BC104: غ | BE104: غ | BF104: غ | BG104: غ | BI104: غ | BJ104: غ | BK104: غ | BM104: غ | BN104: غ | BO104: غ | BQ104: غ | BR104: غ | BS104: غ | BU104: غ | BV104: غ | BW104: غ | BY104: غ | BZ104: غ | CA104: غ | CC104: غ | CD104: غ | CE104: غ | CG104: 15 | CH104: غ | CI104: غ | CK104: غ | CL104: غ | CM104: غ | CO104: غ | CP104: غ | CQ104: غ | CS104: غ | CT104: غ | CU104: غ | CW104: غ | CX104: غ | CY104: غ | DA104: غ | DB104: غ | DC104: غ | DE104: غ | DF104: غ | DG104: غ | DH104: غ | DI104: غ
A105: =IF(C105="","",SUBTOTAL(3,$C$14:C105)) -> 92 | B105: ='[1]4'!O94 -> 492 | C105: س92 | D105: 15 | E105: ='[1]4'!N94 -> 1/4 | F105: ='[1]4'!I94 -> ذكر | G105: ='[1]4'!E94 -> 2012-01-01 | H105: ='[1]4'!F94 -> 0 | I105: ='[1]4'!G94 -> 9 | J105: ='[1]4'!H94 -> 9 | K105: ='[1]4'!J94 -> مسلم | L105: ='[1]4'!K94 -> ناجح ومنقول | M105: ='[1]4'!P94 -> 392 | P105: 40 | Q105: 40 | S105: 40 | T105: 40 | V105: 40 | W105: 40 | Y105: 40 | Z105: 40 | AB105: 39 | AC105: 39 | AE105: 40 | AF105: 40 | AH105: 40 | AI105: 40 | AK105: 40 | AL105: 40 | AN105: 90 | AO105: 90 | AP105: 90 | AQ105: 80 | AR105: 80 | AS105: 14.5 | AT105: 14.5 | AU105: 16 | AW105: 15 | AX105: 15 | AY105: 28 | BA105: 15 | BB105: 15 | BC105: 22 | BE105: 15 | BF105: 15 | BG105: 28 | BI105: 15 | BJ105: 15 | BK105: 26 | BM105: 12 | BN105: 12 | BO105: 24 | BQ105: 12 | BR105: 12 | BS105: 18 | BU105: 15 | BV105: 15 | BW105: 22 | BY105: 14.5 | BZ105: 14.5 | CA105: 16 | CC105: 15 | CD105: 15 | CE105: 28 | CG105: 15 | CH105: 15 | CI105: 22 | CK105: 15 | CL105: 15 | CM105: 28 | CO105: 15 | CP105: 15 | CQ105: 26 | CS105: 12 | CT105: 12 | CU105: 24 | CW105: 12 | CX105: 12 | CY105: 18 | DA105: 15 | DB105: 15 | DC105: 22 | DE105: 90 | DF105: 90 | DG105: 90 | DH105: 80 | DI105: 80
A106: =IF(C106="","",SUBTOTAL(3,$C$14:C106)) -> 93 | B106: ='[1]4'!O95 -> 493 | C106: س93 | D106: 15 | E106: ='[1]4'!N95 -> 1/4 | F106: ='[1]4'!I95 -> ذكر | G106: ='[1]4'!E95 -> 2012-09-04 | H106: ='[1]4'!F95 -> 27 | I106: ='[1]4'!G95 -> 0 | J106: ='[1]4'!H95 -> 9 | K106: ='[1]4'!J95 -> مسلم | L106: ='[1]4'!K95 -> ناجح ومنقول | M106: ='[1]4'!P95 -> 393 | P106: 37 | Q106: 37 | S106: 40 | T106: 40 | V106: 35 | W106: 35 | Y106: 36 | Z106: 36 | AB106: 30 | AC106: 30 | AE106: 40 | AF106: 40 | AH106: 35 | AI106: 35 | AK106: 40 | AL106: 40 | AN106: 90 | AO106: 90 | AP106: 90 | AQ106: 80 | AR106: 80 | AS106: 14.5 | AT106: 14.5 | AU106: 10.5 | AW106: 15 | AX106: 15 | AY106: 28 | BA106: 15 | BB106: 13.5 | BC106: 22 | BE106: 15 | BF106: 15 | BG106: 28 | BI106: 9 | BJ106: 9 | BK106: 30 | BM106: 7.5 | BN106: 7.5 | BO106: 20 | BQ106: 12 | BR106: 12 | BS106: 16 | BU106: 15 | BV106: 15 | BW106: 22 | BY106: 14.5 | BZ106: 14.5 | CA106: 10.5 | CC106: 15 | CD106: 15 | CE106: 28 | CG106: 15 | CH106: 13.5 | CI106: 22 | CK106: 15 | CL106: 15 | CM106: 28 | CO106: 9 | CP106: 9 | CQ106: 30 | CS106: 7.5 | CT106: 7.5 | CU106: 20 | CW106: 12 | CX106: 12 | CY106: 16 | DA106: 15 | DB106: 15 | DC106: 22 | DE106: 90 | DF106: 90 | DG106: 90 | DH106: 80 | DI106: 80
A107: =IF(C107="","",SUBTOTAL(3,$C$14:C107)) -> 94 | B107: ='[1]4'!O96 -> 494 | C107: س94 | D107: 15 | E107: ='[1]4'!N96 -> 1/4 | F107: ='[1]4'!I96 -> ذكر | G107: ='[1]4'!E96 -> 2012-09-13 | H107: ='[1]4'!F96 -> 18 | I107: ='[1]4'!G96 -> 0 | J107: ='[1]4'!H96 -> 9 | K107: ='[1]4'!J96 -> مسلم | L107: ='[1]4'!K96 -> ناجح ومنقول | M107: ='[1]4'!P96 -> 394 | P107: 39 | Q107: 39 | S107: 40 | T107: 40 | V107: 35 | W107: 35 | Y107: 40 | Z107: 40 | AB107: 39 | AC107: 39 | AE107: 40 | AF107: 40 | AH107: 35 | AI107: 35 | AK107: 40 | AL107: 40 | AN107: 90 | AO107: 90 | AP107: 90 | AQ107: 80 | AR107: 80 | AS107: 14.5 | AT107: 14.5 | AU107: 10.5 | AW107: 15 | AX107: 15 | AY107: 28 | BA107: 15 | BB107: 13.5 | BC107: 16 | BE107: 15 | BF107: 15 | BG107: 28 | BI107: 15 | BJ107: 15 | BK107: 26 | BM107: 10.5 | BN107: 10.5 | BO107: 14 | BQ107: 12 | BR107: 12 | BS107: 12 | BU107: 15 | BV107: 15 | BW107: 14 | BY107: 14.5 | BZ107: 14.5 | CA107: 10.5 | CC107: 15 | CD107: 15 | CE107: 28 | CG107: 15 | CH107: 13.5 | CI107: 16 | CK107: 15 | CL107: 15 | CM107: 28 | CO107: 15 | CP107: 15 | CQ107: 26 | CS107: 10.5 | CT107: 10.5 | CU107: 14 | CW107: 12 | CX107: 12 | CY107: 12 | DA107: 15 | DB107: 15 | DC107: 14 | DE107: 90 | DF107: 90 | DG107: 90 | DH107: 80 | DI107: 80
A108: =IF(C108="","",SUBTOTAL(3,$C$14:C108)) -> 95 | B108: ='[1]4'!O97 -> 495 | C108: س95 | D108: 15 | E108: ='[1]4'!N97 -> 3/4 | F108: ='[1]4'!I97 -> ذكر | G108: ='[1]4'!E97 -> 2012-08-07 | H108: ='[1]4'!F97 -> 24 | I108: ='[1]4'!G97 -> 1 | J108: ='[1]4'!H97 -> 9 | K108: ='[1]4'!J97 -> مسلم | L108: ='[1]4'!K97 -> ناجح ومنقول | M108: ='[1]4'!P97 -> 395 | P108: 40 | Q108: 40 | S108: 40 | T108: 40 | V108: 40 | W108: 40 | Y108: 39 | Z108: 39 | AB108: 40 | AC108: 40 | AE108: 40 | AF108: 40 | AH108: 40 | AI108: 40 | AK108: 40 | AL108: 40 | AN108: 90 | AO108: 90 | AP108: 95 | AQ108: 80 | AR108: 80 | AS108: 14.5 | AT108: 14.5 | AU108: 10.5 | AW108: 15 | AX108: 15 | AY108: 24 | BA108: 15 | BB108: 13.5 | BC108: 18 | BE108: 15 | BF108: 15 | BG108: 28 | BI108: 15 | BJ108: 15 | BK108: 28 | BM108: 12 | BN108: 12 | BO108: 18 | BQ108: 12 | BR108: 12 | BS108: 14 | BU108: 15 | BV108: 15 | BW108: 14 | BY108: 14.5 | BZ108: 14.5 | CA108: 10.5 | CC108: 15 | CD108: 15 | CE108: 24 | CG108: 15 | CH108: 13.5 | CI108: 18 | CK108: 15 | CL108: 15 | CM108: 28 | CO108: 15 | CP108: 15 | CQ108: 28 | CS108: 12 | CT108: 12 | CU108: 18 | CW108: 12 | CX108: 12 | CY108: 14 | DA108: 15 | DB108: 15 | DC108: 14 | DE108: 90 | DF108: 90 | DG108: 95 | DH108: 80 | DI108: 80
A109: =IF(C109="","",SUBTOTAL(3,$C$14:C109)) -> 96 | B109: ='[1]4'!O98 -> 496 | C109: س96 | D109: 15 | E109: ='[1]4'!N98 -> 2/4 | F109: ='[1]4'!I98 -> ذكر | G109: ='[1]4'!E98 -> 2012-03-31 | H109: ='[1]4'!F98 -> 0 | I109: ='[1]4'!G98 -> 6 | J109: ='[1]4'!H98 -> 9 | K109: ='[1]4'!J98 -> مسلم | L109: ='[1]4'!K98 -> ناجح ومنقول | M109: ='[1]4'!P98 -> 396 | P109: 25 | Q109: 25 | S109: 35 | T109: 35 | V109: 40 | W109: 40 | Y109: 21 | Z109: 21 | AB109: 40 | AC109: 40 | AE109: 30 | AF109: 30 | AH109: 35 | AI109: 35 | AK109: 40 | AL109: 40 | AN109: 90 | AO109: 90 | AP109: 95 | AQ109: 80 | AR109: 80 | AS109: 14.5 | AT109: 14.5 | AU109: 10.5 | AW109: 14 | AX109: 14 | AY109: 28 | BA109: 15 | BB109: 10.5 | BC109: 18 | BE109: 15 | BF109: 15 | BG109: 22 | BI109: 9 | BJ109: 9 | BK109: 26 | BM109: 12 | BN109: 12 | BO109: 18 | BQ109: 7.5 | BR109: 7.5 | BS109: 12 | BU109: 15 | BV109: 15 | BW109: 22 | BY109: 14.5 | BZ109: 14.5 | CA109: 10.5 | CC109: 14 | CD109: 14 | CE109: 28 | CG109: 15 | CH109: 10.5 | CI109: 18 | CK109: 15 | CL109: 15 | CM109: 22 | CO109: 9 | CP109: 9 | CQ109: 26 | CS109: 12 | CT109: 12 | CU109: 18 | CW109: 7.5 | CX109: 7.5 | CY109: 12 | DA109: 15 | DB109: 15 | DC109: 22 | DE109: 90 | DF109: 90 | DG109: 95 | DH109: 80 | DI109: 80
A110: =IF(C110="","",SUBTOTAL(3,$C$14:C110)) -> 97 | B110: ='[1]4'!O99 -> 497 | C110: س97 | D110: 15 | E110: ='[1]4'!N99 -> 4/4 | F110: ='[1]4'!I99 -> ذكر | G110: ='[1]4'!E99 -> 2012-08-12 | H110: ='[1]4'!F99 -> 19 | I110: ='[1]4'!G99 -> 1 | J110: ='[1]4'!H99 -> 9 | K110: ='[1]4'!J99 -> مسلم | L110: ='[1]4'!K99 -> ناجح ومنقول | M110: ='[1]4'!P99 -> 397 | P110: 30 | Q110: 30 | S110: 30 | T110: 30 | V110: 35 | W110: 35 | Y110: 40 | Z110: 40 | AB110: 40 | AC110: 40 | AE110: 30 | AF110: 30 | AH110: 35 | AI110: 35 | AK110: 40 | AL110: 40 | AN110: 90 | AO110: 90 | AP110: 95 | AQ110: 90 | AR110: 90 | AS110: 14.5 | AT110: 14.5 | AU110: 15 | AW110: 15 | AX110: 15 | AY110: 28 | BA110: 15 | BB110: 15 | BC110: 26 | BE110: 15 | BF110: 15 | BG110: 22 | BI110: 9 | BJ110: 9 | BK110: 22 | BM110: 13.5 | BN110: 13.5 | BO110: 22 | BQ110: 12 | BR110: 12 | BS110: 18 | BU110: 15 | BV110: 15 | BW110: 22 | BY110: 14.5 | BZ110: 14.5 | CA110: 15 | CC110: 15 | CD110: 15 | CE110: 28 | CG110: 15 | CH110: 15 | CI110: 26 | CK110: 15 | CL110: 15 | CM110: 22 | CO110: 9 | CP110: 9 | CQ110: 22 | CS110: 13.5 | CT110: 13.5 | CU110: 22 | CW110: 12 | CX110: 12 | CY110: 18 | DA110: 15 | DB110: 15 | DC110: 22 | DE110: 90 | DF110: 90 | DG110: 95 | DH110: 90 | DI110: 90
A111: =IF(C111="","",SUBTOTAL(3,$C$14:C111)) -> 98 | B111: ='[1]4'!O100 -> 498 | C111: س98 | D111: 15 | E111: ='[1]4'!N100 -> 2/4 | F111: ='[1]4'!I100 -> ذكر | G111: ='[1]4'!E100 -> 2011-10-11 | H111: ='[1]4'!F100 -> 20 | I111: ='[1]4'!G100 -> 11 | J111: ='[1]4'!H100 -> 9 | K111: ='[1]4'!J100 -> مسلم | L111: ='[1]4'!K100 -> ناجح ومنقول | M111: ='[1]4'!P100 -> 398 | P111: 30 | Q111: 30 | S111: 30 | T111: 30 | V111: 40 | W111: 40 | Y111: 40 | Z111: 40 | AB111: 40 | AC111: 40 | AE111: 30 | AF111: 30 | AH111: 35 | AI111: 35 | AK111: 40 | AL111: 40 | AN111: 90 | AO111: 90 | AP111: 90 | AQ111: 90 | AR111: 90 | AS111: 14.5 | AT111: 14.5 | AU111: 11.5 | AW111: 12 | AX111: 12 | AY111: 28 | BA111: 15 | BB111: 10.5 | BC111: 22 | BE111: 15 | BF111: 15 | BG111: 20 | BI111: 7.5 | BJ111: 7.5 | BK111: 22 | BM111: 12 | BN111: 12 | BO111: 22 | BQ111: 9 | BR111: 9 | BS111: 16 | BU111: 15 | BV111: 15 | BW111: 24 | BY111: 14.5 | BZ111: 14.5 | CA111: 11.5 | CC111: 12 | CD111: 12 | CE111: 28 | CG111: 15 | CH111: 10.5 | CI111: 22 | CK111: 15 | CL111: 15 | CM111: 20 | CO111: 7.5 | CP111: 7.5 | CQ111: 22 | CS111: 12 | CT111: 12 | CU111: 22 | CW111: 9 | CX111: 9 | CY111: 16 | DA111: 15 | DB111: 15 | DC111: 24 | DE111: 90 | DF111: 90 | DG111: 90 | DH111: 90 | DI111: 90
A112: =IF(C112="","",SUBTOTAL(3,$C$14:C112)) -> 99 | B112: ='[1]4'!O101 -> 499 | C112: س99 | D112: 15 | E112: ='[1]4'!N101 -> 2/4 | F112: ='[1]4'!I101 -> ذكر | G112: ='[1]4'!E101 -> 2012-08-12 | H112: ='[1]4'!F101 -> 19 | I112: ='[1]4'!G101 -> 1 | J112: ='[1]4'!H101 -> 9 | K112: ='[1]4'!J101 -> مسلم | L112: ='[1]4'!K101 -> ناجح ومنقول | M112: ='[1]4'!P101 -> 399 | P112: 30 | Q112: 30 | S112: 40 | T112: 40 | V112: 25 | W112: 25 | Y112: 20 | Z112: 20 | AB112: 39 | AC112: 39 | AE112: 30 | AF112: 30 | AH112: 35 | AI112: 35 | AK112: 35 | AL112: 35 | AN112: 90 | AO112: 90 | AP112: 95 | AQ112: 90 | AR112: 90 | AS112: 14.5 | AT112: 14.5 | AU112: 11.5 | AW112: 15 | AX112: 15 | AY112: 26 | BA112: 15 | BB112: 13.5 | BC112: 20 | BE112: 12 | BF112: 12 | BG112: 20 | BI112: 13.5 | BJ112: 13.5 | BK112: 24 | BM112: 12 | BN112: 12 | BO112: 20 | BQ112: 9 | BR112: 9 | BS112: 10 | BU112: 15 | BV112: 15 | BW112: 26 | BY112: 14.5 | BZ112: 14.5 | CA112: 11.5 | CC112: 15 | CD112: 15 | CE112: 26 | CG112: 15 | CH112: 13.5 | CI112: 20 | CK112: 12 | CL112: 12 | CM112: 20 | CO112: 13.5 | CP112: 13.5 | CQ112: 24 | CS112: 12 | CT112: 12 | CU112: 20 | CW112: 9 | CX112: 9 | CY112: 10 | DA112: 15 | DB112: 15 | DC112: 26 | DE112: 90 | DF112: 90 | DG112: 95 | DH112: 90 | DI112: 90
A113: =IF(C113="","",SUBTOTAL(3,$C$14:C113)) -> 100 | B113: ='[1]4'!O102 -> 500 | C113: س100 | D113: 15 | E113: ='[1]4'!N102 -> 4/4 | F113: ='[1]4'!I102 -> ذكر | G113: ='[1]4'!E102 -> 2012-05-07 | H113: ='[1]4'!F102 -> 24 | I113: ='[1]4'!G102 -> 4 | J113: ='[1]4'!H102 -> 9 | K113: ='[1]4'!J102 -> مسلم | L113: ='[1]4'!K102 -> ناجح ومنقول | M113: ='[1]4'!P102 -> 400 | P113: 30 | Q113: 30 | S113: 40 | T113: 40 | V113: 40 | W113: 40 | Y113: 40 | Z113: 40 | AB113: 40 | AC113: 40 | AE113: 40 | AF113: 40 | AH113: 35 | AI113: 35 | AK113: 35 | AL113: 35 | AN113: 90 | AO113: 90 | AP113: 95 | AQ113: 90 | AR113: 90 | AS113: 14.5 | AT113: 14.5 | AU113: 18.5 | AW113: 15 | AX113: 15 | AY113: 30 | BA113: 15 | BB113: 13.5 | BC113: 24 | BE113: 15 | BF113: 15 | BG113: 28 | BI113: 15 | BJ113: 15 | BK113: 30 | BM113: 13.5 | BN113: 13.5 | BO113: 30 | BQ113: 12 | BR113: 12 | BS113: 16 | BU113: 15 | BV113: 15 | BW113: 30 | BY113: 14.5 | BZ113: 14.5 | CA113: 18.5 | CC113: 15 | CD113: 15 | CE113: 30 | CG113: 15 | CH113: 13.5 | CI113: 24 | CK113: 15 | CL113: 15 | CM113: 28 | CO113: 15 | CP113: 15 | CQ113: 30 | CS113: 13.5 | CT113: 13.5 | CU113: 30 | CW113: 12 | CX113: 12 | CY113: 16 | DA113: 15 | DB113: 15 | DC113: 30 | DE113: 90 | DF113: 90 | DG113: 95 | DH113: 90 | DI113: 90
A114: =IF(C114="","",SUBTOTAL(3,$C$14:C114)) -> 101 | B114: ='[1]4'!O103 -> 501 | C114: س101 | D114: 15 | E114: ='[1]4'!N103 -> 4/4 | F114: ='[1]4'!I103 -> ذكر | G114: ='[1]4'!E103 -> 2011-11-01 | H114: ='[1]4'!F103 -> 0 | I114: ='[1]4'!G103 -> 11 | J114: ='[1]4'!H103 -> 9 | K114: ='[1]4'!J103 -> مسلم | L114: ='[1]4'!K103 -> ناجح ومنقول | M114: ='[1]4'!P103 -> 201 | P114: 25 | Q114: 25 | S114: 40 | T114: 40 | V114: 35 | W114: 35 | Y114: 40 | Z114: 40 | AB114: 40 | AC114: 40 | AE114: 40 | AF114: 40 | AH114: 35 | AI114: 35 | AK114: 40 | AL114: 40 | AN114: 90 | AO114: 90 | AP114: 90 | AQ114: 90 | AR114: 90 | AS114: 13.5 | AT114: 13.5 | AU114: 16.5 | AW114: 15 | AX114: 15 | AY114: 30 | BA114: 15 | BB114: 12 | BC114: 22 | BE114: 15 | BF114: 15 | BG114: 10 | BI114: 15 | BJ114: 15 | BK114: 30 | BM114: 10.5 | BN114: 10.5 | BO114: 30 | BQ114: 10.5 | BR114: 10.5 | BS114: 12 | BU114: 13.5 | BV114: 13.5 | BW114: 26 | BY114: 13.5 | BZ114: 13.5 | CA114: 16.5 | CC114: 15 | CD114: 15 | CE114: 30 | CG114: 15 | CH114: 12 | CI114: 22 | CK114: 15 | CL114: 15 | CM114: 10 | CO114: 15 | CP114: 15 | CQ114: 30 | CS114: 10.5 | CT114: 10.5 | CU114: 30 | CW114: 10.5 | CX114: 10.5 | CY114: 12 | DA114: 13.5 | DB114: 13.5 | DC114: 26 | DE114: 90 | DF114: 90 | DG114: 90 | DH114: 90 | DI114: 90
A115: =IF(C115="","",SUBTOTAL(3,$C$14:C115)) -> 102 | B115: ='[1]4'!O104 -> 502 | C115: س102 | D115: 15 | E115: ='[1]4'!N104 -> 1/4 | F115: ='[1]4'!I104 -> ذكر | G115: ='[1]4'!E104 -> 2012-09-04 | H115: ='[1]4'!F104 -> 27 | I115: ='[1]4'!G104 -> 0 | J115: ='[1]4'!H104 -> 9 | K115: ='[1]4'!J104 -> مسلم | L115: ='[1]4'!K104 -> ناجح ومنقول | M115: ='[1]4'!P104 -> 202 | P115: 38 | Q115: 38 | S115: 40 | T115: 40 | V115: 30 | W115: 30 | Y115: 36 | Z115: 36 | AB115: 37 | AC115: 37 | AE115: 40 | AF115: 40 | AH115: 35 | AI115: 35 | AK115: 35 | AL115: 35 | AN115: 90 | AO115: 90 | AP115: 95 | AQ115: 90 | AR115: 90 | AS115: 14.5 | AT115: 14.5 | AU115: 18 | AW115: 15 | AX115: 15 | AY115: 28 | BA115: 15 | BB115: 7.5 | BC115: 22 | BE115: 15 | BF115: 15 | BG115: 25 | BI115: 15 | BJ115: 15 | BK115: 30 | BM115: 10.5 | BN115: 10.5 | BO115: 24 | BQ115: 10.5 | BR115: 10.5 | BS115: 16 | BU115: 13.5 | BV115: 13.5 | BW115: 26 | BY115: 14.5 | BZ115: 14.5 | CA115: 18 | CC115: 15 | CD115: 15 | CE115: 28 | CG115: 15 | CH115: 7.5 | CI115: 22 | CK115: 15 | CL115: 15 | CM115: 25 | CO115: 15 | CP115: 15 | CQ115: 30 | CS115: 10.5 | CT115: 10.5 | CU115: 24 | CW115: 10.5 | CX115: 10.5 | CY115: 16 | DA115: 13.5 | DB115: 13.5 | DC115: 26 | DE115: 90 | DF115: 90 | DG115: 95 | DH115: 90 | DI115: 90
A116: =IF(C116="","",SUBTOTAL(3,$C$14:C116)) -> 103 | B116: ='[1]4'!O105 -> 503 | C116: س103 | D116: 15 | E116: ='[1]4'!N105 -> 4/4 | F116: ='[1]4'!I105 -> ذكر | G116: ='[1]4'!E105 -> 2012-02-14 | H116: ='[1]4'!F105 -> 17 | I116: ='[1]4'!G105 -> 7 | J116: ='[1]4'!H105 -> 9 | K116: ='[1]4'!J105 -> مسلم | L116: ='[1]4'!K105 -> ناجح ومنقول | M116: ='[1]4'!P105 -> 203 | P116: 35 | Q116: 35 | S116: 40 | T116: 40 | V116: 35 | W116: 35 | Y116: 40 | Z116: 40 | AB116: 37 | AC116: 37 | AE116: 35 | AF116: 35 | AH116: 35 | AI116: 35 | AK116: 40 | AL116: 40 | AN116: 90 | AO116: 90 | AP116: 95 | AQ116: 90 | AR116: 90 | AS116: 11.5 | AT116: 11.5 | AU116: 23.5 | AW116: 15 | AX116: 15 | AY116: 30 | BA116: 15 | BB116: 10.5 | BC116: 26 | BE116: 15 | BF116: 15 | BG116: 18 | BI116: 15 | BJ116: 15 | BK116: 26 | BM116: 12 | BN116: 12 | BO116: 26 | BQ116: 7.5 | BR116: 7.5 | BS116: 14 | BU116: 13.5 | BV116: 13.5 | BW116: 22 | BY116: 11.5 | BZ116: 11.5 | CA116: 23.5 | CC116: 15 | CD116: 15 | CE116: 30 | CG116: 15 | CH116: 10.5 | CI116: 26 | CK116: 15 | CL116: 15 | CM116: 18 | CO116: 15 | CP116: 15 | CQ116: 26 | CS116: 12 | CT116: 12 | CU116: 26 | CW116: 7.5 | CX116: 7.5 | CY116: 14 | DA116: 13.5 | DB116: 13.5 | DC116: 22 | DE116: 90 | DF116: 90 | DG116: 95 | DH116: 90 | DI116: 90
A117: =IF(C117="","",SUBTOTAL(3,$C$14:C117)) -> 104 | B117: ='[1]4'!O106 -> 504 | C117: س104 | D117: 15 | E117: ='[1]4'!N106 -> 3/4 | F117: ='[1]4'!I106 -> ذكر | G117: ='[1]4'!E106 -> 2012-08-22 | H117: ='[1]4'!F106 -> 9 | I117: ='[1]4'!G106 -> 1 | J117: ='[1]4'!H106 -> 9 | K117: ='[1]4'!J106 -> مسلم | L117: ='[1]4'!K106 -> ناجح ومنقول | M117: ='[1]4'!P106 -> 204 | P117: 40 | Q117: 40 | S117: 35 | T117: 35 | V117: 40 | W117: 40 | Y117: 37 | Z117: 37 | AB117: 40 | AC117: 40 | AE117: 35 | AF117: 35 | AH117: 35 | AI117: 35 | AK117: 35 | AL117: 35 | AN117: 90 | AO117: 90 | AP117: 90 | AQ117: 90 | AR117: 90 | AS117: 10 | AT117: 10 | AU117: 17.5 | AW117: 12 | AX117: 12 | AY117: 24 | BA117: 15 | BB117: 13.5 | BC117: 22 | BE117: 13.5 | BF117: 13.5 | BG117: 16 | BI117: 15 | BJ117: 15 | BK117: 28 | BM117: 9 | BN117: 9 | BO117: 22 | BQ117: 10.5 | BR117: 10.5 | BS117: 22 | BU117: 13.5 | BV117: 13.5 | BW117: 26 | BY117: 10 | BZ117: 10 | CA117: 17.5 | CC117: 12 | CD117: 12 | CE117: 24 | CG117: 15 | CH117: 13.5 | CI117: 22 | CK117: 13.5 | CL117: 13.5 | CM117: 16 | CO117: 15 | CP117: 15 | CQ117: 28 | CS117: 9 | CT117: 9 | CU117: 22 | CW117: 10.5 | CX117: 10.5 | CY117: 22 | DA117: 13.5 | DB117: 13.5 | DC117: 26 | DE117: 90 | DF117: 90 | DG117: 90 | DH117: 90 | DI117: 90
A118: =IF(C118="","",SUBTOTAL(3,$C$14:C118)) -> 105 | B118: ='[1]4'!O107 -> 505 | C118: س105 | D118: 15 | E118: ='[1]4'!N107 -> 4/4 | F118: ='[1]4'!I107 -> ذكر | G118: ='[1]4'!E107 -> 2012-08-27 | H118: ='[1]4'!F107 -> 4 | I118: ='[1]4'!G107 -> 1 | J118: ='[1]4'!H107 -> 9 | K118: ='[1]4'!J107 -> مسلم | L118: ='[1]4'!K107 -> ناجح ومنقول | M118: ='[1]4'!P107 -> 205 | P118: 25 | Q118: 25 | S118: 40 | T118: 40 | V118: 40 | W118: 40 | Y118: 40 | Z118: 40 | AB118: 37 | AC118: 37 | AE118: 40 | AF118: 40 | AH118: 40 | AI118: 40 | AK118: 40 | AL118: 40 | AN118: 90 | AO118: 90 | AP118: 95 | AQ118: 90 | AR118: 90 | AS118: 10 | AT118: 10 | AU118: 21 | AW118: 14 | AX118: 14 | AY118: 30 | BA118: 15 | BB118: 12 | BC118: 20 | BE118: 15 | BF118: 15 | BG118: 8 | BI118: 15 | BJ118: 15 | BK118: 30 | BM118: 10.5 | BN118: 10.5 | BO118: 28 | BQ118: 10.5 | BR118: 10.5 | BS118: 14 | BU118: 15 | BV118: 15 | BW118: 20 | BY118: 10 | BZ118: 10 | CA118: 21 | CC118: 14 | CD118: 14 | CE118: 30 | CG118: 15 | CH118: 12 | CI118: 20 | CK118: 15 | CL118: 15 | CM118: 8 | CO118: 15 | CP118: 15 | CQ118: 30 | CS118: 10.5 | CT118: 10.5 | CU118: 28 | CW118: 10.5 | CX118: 10.5 | CY118: 14 | DA118: 15 | DB118: 15 | DC118: 20 | DE118: 90 | DF118: 90 | DG118: 95 | DH118: 90 | DI118: 90
A119: =IF(C119="","",SUBTOTAL(3,$C$14:C119)) -> 106 | B119: ='[1]4'!O108 -> 506 | C119: س106 | D119: 15 | E119: ='[1]4'!N108 -> 2/4 | F119: ='[1]4'!I108 -> ذكر | G119: ='[1]4'!E108 -> 2011-03-11 | H119: ='[1]4'!F108 -> 20 | I119: ='[1]4'!G108 -> 6 | J119: ='[1]4'!H108 -> 10 | K119: ='[1]4'!J108 -> مسلم | L119: ='[1]4'!K108 -> ناجح ومنقول | M119: ='[1]4'!P108 -> 206 | P119: 40 | Q119: 40 | S119: 40 | T119: 40 | V119: 40 | W119: 40 | Y119: 40 | Z119: 40 | AB119: 40 | AC119: 40 | AE119: 35 | AF119: 35 | AH119: 35 | AI119: 35 | AK119: 40 | AL119: 40 | AN119: 90 | AO119: 90 | AP119: 95 | AQ119: 90 | AR119: 90 | AS119: 14.5 | AT119: 14.5 | AU119: 27 | AW119: 15 | AX119: 15 | AY119: 30 | BA119: 15 | BB119: 15 | BC119: 26 | BE119: 15 | BF119: 15 | BG119: 12 | BI119: 15 | BJ119: 15 | BK119: 26 | BM119: 15 | BN119: 15 | BO119: 26 | BQ119: 12 | BR119: 12 | BS119: 12 | BU119: 13.5 | BV119: 13.5 | BW119: 22 | BY119: 14.5 | BZ119: 14.5 | CA119: 27 | CC119: 15 | CD119: 15 | CE119: 30 | CG119: 15 | CH119: 15 | CI119: 26 | CK119: 15 | CL119: 15 | CM119: 12 | CO119: 15 | CP119: 15 | CQ119: 26 | CS119: 15 | CT119: 15 | CU119: 26 | CW119: 12 | CX119: 12 | CY119: 12 | DA119: 13.5 | DB119: 13.5 | DC119: 22 | DE119: 90 | DF119: 90 | DG119: 95 | DH119: 90 | DI119: 90
A120: =IF(C120="","",SUBTOTAL(3,$C$14:C120)) -> 107 | B120: ='[1]4'!O109 -> 507 | C120: س107 | D120: 15 | E120: ='[1]4'!N109 -> 3/4 | F120: ='[1]4'!I109 -> ذكر | G120: ='[1]4'!E109 -> 2012-02-05 | H120: ='[1]4'!F109 -> 26 | I120: ='[1]4'!G109 -> 7 | J120: ='[1]4'!H109 -> 9 | K120: ='[1]4'!J109 -> مسلم | L120: ='[1]4'!K109 -> ناجح ومنقول | M120: ='[1]4'!P109 -> 207 | P120: 35 | Q120: 35 | S120: 40 | T120: 40 | V120: 40 | W120: 40 | Y120: 39 | Z120: 39 | AB120: 40 | AC120: 40 | AE120: 40 | AF120: 40 | AH120: 40 | AI120: 40 | AK120: 40 | AL120: 40 | AN120: 90 | AO120: 90 | AP120: 95 | AQ120: 90 | AR120: 90 | AS120: 8.5 | AT120: 8.5 | AU120: 24 | AW120: 15 | AX120: 15 | AY120: 30 | BA120: 15 | BB120: 10.5 | BC120: 26 | BE120: 15 | BF120: 15 | BG120: 22 | BI120: 15 | BJ120: 15 | BK120: 30 | BM120: 10.5 | BN120: 10.5 | BO120: 28 | BQ120: 6 | BR120: 6 | BS120: 6 | BU120: 13.5 | BV120: 13.5 | BW120: 24 | BY120: 8.5 | BZ120: 8.5 | CA120: 24 | CC120: 15 | CD120: 15 | CE120: 30 | CG120: 15 | CH120: 10.5 | CI120: 26 | CK120: 15 | CL120: 15 | CM120: 22 | CO120: 15 | CP120: 15 | CQ120: 30 | CS120: 10.5 | CT120: 10.5 | CU120: 28 | CW120: 6 | CX120: 6 | CY120: 6 | DA120: 13.5 | DB120: 13.5 | DC120: 24 | DE120: 90 | DF120: 90 | DG120: 95 | DH120: 90 | DI120: 90
A121: =IF(C121="","",SUBTOTAL(3,$C$14:C121)) -> 108 | B121: ='[1]4'!O110 -> 508 | C121: س108 | D121: 15 | E121: ='[1]4'!N110 -> 1/4 | F121: ='[1]4'!I110 -> ذكر | G121: ='[1]4'!E110 -> 2011-06-07 | H121: ='[1]4'!F110 -> 24 | I121: ='[1]4'!G110 -> 3 | J121: ='[1]4'!H110 -> 10 | K121: ='[1]4'!J110 -> مسلم | L121: ='[1]4'!K110 -> ناجح ومنقول | M121: ='[1]4'!P110 -> 208 | P121: غ | Q121: غ | S121: غ | T121: غ | V121: غ | W121: غ | Y121: غ | Z121: غ | AB121: غ | AC121: غ | AE121: غ | AF121: غ | AH121: غ | AI121: غ | AK121: غ | AL121: غ | AN121: غ | AO121: غ | AP121: غ | AQ121: غ | AR121: غ | AS121: غ | AT121: غ | AU121: غ | AW121: غ | AX121: غ | AY121: غ | BA121: 15 | BB121: غ | BC121: غ | BE121: غ | BF121: غ | BG121: غ | BI121: غ | BJ121: غ | BK121: غ | BM121: غ | BN121: غ | BO121: غ | BQ121: غ | BR121: غ | BS121: غ | BU121: غ | BV121: غ | BW121: غ | BY121: غ | BZ121: غ | CA121: غ | CC121: غ | CD121: غ | CE121: غ | CG121: 15 | CH121: غ | CI121: غ | CK121: غ | CL121: غ | CM121: غ | CO121: غ | CP121: غ | CQ121: غ | CS121: غ | CT121: غ | CU121: غ | CW121: غ | CX121: غ | CY121: غ | DA121: غ | DB121: غ | DC121: غ | DE121: غ | DF121: غ | DG121: غ | DH121: غ | DI121: غ
A122: =IF(C122="","",SUBTOTAL(3,$C$14:C122)) -> 109 | B122: ='[1]4'!O111 -> 509 | C122: س109 | D122: 15 | E122: ='[1]4'!N111 -> 4/4 | F122: ='[1]4'!I111 -> ذكر | G122: ='[1]4'!E111 -> 2012-03-05 | H122: ='[1]4'!F111 -> 26 | I122: ='[1]4'!G111 -> 6 | J122: ='[1]4'!H111 -> 9 | K122: ='[1]4'!J111 -> مسلم | L122: ='[1]4'!K111 -> ناجح ومنقول | M122: ='[1]4'!P111 -> 209 | P122: 35 | Q122: 35 | S122: 40 | T122: 40 | V122: 40 | W122: 40 | Y122: 40 | Z122: 40 | AB122: 39 | AC122: 39 | AE122: 40 | AF122: 40 | AH122: 35 | AI122: 35 | AK122: 40 | AL122: 40 | AN122: 90 | AO122: 90 | AP122: 90 | AQ122: 90 | AR122: 90 | AS122: 11.5 | AT122: 11.5 | AU122: 17.5 | AW122: 15 | AX122: 15 | AY122: 30 | BA122: 15 | BB122: 15 | BC122: 26 | BE122: 15 | BF122: 15 | BG122: 18 | BI122: 14 | BJ122: 14 | BK122: 30 | BM122: 10.5 | BN122: 10.5 | BO122: 28 | BQ122: 9 | BR122: 9 | BS122: 18 | BU122: 13.5 | BV122: 13.5 | BW122: 24 | BY122: 11.5 | BZ122: 11.5 | CA122: 17.5 | CC122: 15 | CD122: 15 | CE122: 30 | CG122: 15 | CH122: 15 | CI122: 26 | CK122: 15 | CL122: 15 | CM122: 18 | CO122: 14 | CP122: 14 | CQ122: 30 | CS122: 10.5 | CT122: 10.5 | CU122: 28 | CW122: 9 | CX122: 9 | CY122: 18 | DA122: 13.5 | DB122: 13.5 | DC122: 24 | DE122: 90 | DF122: 90 | DG122: 90 | DH122: 90 | DI122: 90
A123: =IF(C123="","",SUBTOTAL(3,$C$14:C123)) -> 110 | B123: ='[1]4'!O112 -> 510 | C123: س110 | D123: 15 | E123: ='[1]4'!N112 -> 1/4 | F123: ='[1]4'!I112 -> ذكر | G123: ='[1]4'!E112 -> 2012-08-07 | H123: ='[1]4'!F112 -> 24 | I123: ='[1]4'!G112 -> 1 | J123: ='[1]4'!H112 -> 9 | K123: ='[1]4'!J112 -> مسلم | L123: ='[1]4'!K112 -> ناجح ومنقول | M123: ='[1]4'!P112 -> 210 | P123: 39 | Q123: 39 | S123: 40 | T123: 40 | V123: 40 | W123: 40 | Y123: 39 | Z123: 39 | AB123: 35 | AC123: 35 | AE123: 40 | AF123: 40 | AH123: 35 | AI123: 35 | AK123: 40 | AL123: 40 | AN123: 90 | AO123: 90 | AP123: 90 | AQ123: 90 | AR123: 90 | AS123: 11.5 | AT123: 11.5 | AU123: 25.5 | AW123: 15 | AX123: 15 | AY123: 28 | BA123: 15 | BB123: 10.5 | BC123: 24 | BE123: 15 | BF123: 15 | BG123: 10 | BI123: 15 | BJ123: 15 | BK123: 26 | BM123: 7.5 | BN123: 7.5 | BO123: 26 | BQ123: 9 | BR123: 9 | BS123: 16 | BU123: 13.5 | BV123: 13.5 | BW123: 22 | BY123: 11.5 | BZ123: 11.5 | CA123: 25.5 | CC123: 15 | CD123: 15 | CE123: 28 | CG123: 15 | CH123: 10.5 | CI123: 24 | CK123: 15 | CL123: 15 | CM123: 10 | CO123: 15 | CP123: 15 | CQ123: 26 | CS123: 7.5 | CT123: 7.5 | CU123: 26 | CW123: 9 | CX123: 9 | CY123: 16 | DA123: 13.5 | DB123: 13.5 | DC123: 22 | DE123: 90 | DF123: 90 | DG123: 90 | DH123: 90 | DI123: 90
A124: =IF(C124="","",SUBTOTAL(3,$C$14:C124)) -> 111 | B124: ='[1]4'!O113 -> 511 | C124: س111 | D124: 15 | E124: ='[1]4'!N113 -> 2/4 | F124: ='[1]4'!I113 -> ذكر | G124: ='[1]4'!E113 -> 2011-11-01 | H124: ='[1]4'!F113 -> 0 | I124: ='[1]4'!G113 -> 11 | J124: ='[1]4'!H113 -> 9 | K124: ='[1]4'!J113 -> مسلم | L124: ='[1]4'!K113 -> ناجح ومنقول | M124: ='[1]4'!P113 -> 211 | P124: 25 | Q124: 25 | S124: 35 | T124: 35 | V124: 35 | W124: 35 | Y124: 31 | Z124: 31 | AB124: 35 | AC124: 35 | AE124: 20 | AF124: 20 | AH124: 40 | AI124: 40 | AK124: 40 | AL124: 40 | AN124: 90 | AO124: 90 | AP124: 95 | AQ124: 90 | AR124: 90 | AS124: 11.5 | AT124: 11.5 | AU124: 12 | AW124: 12 | AX124: 12 | AY124: 30 | BA124: 15 | BB124: 12 | BC124: 16 | BE124: 15 | BF124: 15 | BG124: 12 | BI124: 15 | BJ124: 15 | BK124: 22 | BM124: 13.5 | BN124: 13.5 | BO124: 18 | BQ124: 10.5 | BR124: 10.5 | BS124: 24 | BU124: 15 | BV124: 15 | BW124: 24 | BY124: 11.5 | BZ124: 11.5 | CA124: 12 | CC124: 12 | CD124: 12 | CE124: 30 | CG124: 15 | CH124: 12 | CI124: 16 | CK124: 15 | CL124: 15 | CM124: 12 | CO124: 15 | CP124: 15 | CQ124: 22 | CS124: 13.5 | CT124: 13.5 | CU124: 18 | CW124: 10.5 | CX124: 10.5 | CY124: 24 | DA124: 15 | DB124: 15 | DC124: 24 | DE124: 90 | DF124: 90 | DG124: 95 | DH124: 90 | DI124: 90
A125: =IF(C125="","",SUBTOTAL(3,$C$14:C125)) -> 112 | B125: ='[1]4'!O114 -> 512 | C125: س112 | D125: 15 | E125: ='[1]4'!N114 -> 4/4 | F125: ='[1]4'!I114 -> أنثي | G125: ='[1]4'!E114 -> 2011-12-27 | H125: ='[1]4'!F114 -> 4 | I125: ='[1]4'!G114 -> 9 | J125: ='[1]4'!H114 -> 9 | K125: ='[1]4'!J114 -> مسلمة | L125: ='[1]4'!K114 -> ناجح ومنقول | M125: ='[1]4'!P114 -> 212 | P125: 40 | Q125: 40 | S125: 40 | T125: 40 | V125: 40 | W125: 40 | Y125: 40 | Z125: 40 | AB125: 40 | AC125: 40 | AE125: 40 | AF125: 40 | AH125: 40 | AI125: 40 | AK125: 40 | AL125: 40 | AN125: 90 | AO125: 90 | AP125: 90 | AQ125: 90 | AR125: 90 | AS125: 14.5 | AT125: 14.5 | AU125: 27 | AW125: 15 | AX125: 15 | AY125: 30 | BA125: 15 | BB125: 15 | BC125: 24 | BE125: 15 | BF125: 15 | BG125: 20 | BI125: 15 | BJ125: 15 | BK125: 30 | BM125: 15 | BN125: 15 | BO125: 28 | BQ125: 12 | BR125: 12 | BS125: 16 | BU125: 13.5 | BV125: 13.5 | BW125: 26 | BY125: 14.5 | BZ125: 14.5 | CA125: 27 | CC125: 15 | CD125: 15 | CE125: 30 | CG125: 15 | CH125: 15 | CI125: 24 | CK125: 15 | CL125: 15 | CM125: 20 | CO125: 15 | CP125: 15 | CQ125: 30 | CS125: 15 | CT125: 15 | CU125: 28 | CW125: 12 | CX125: 12 | CY125: 16 | DA125: 13.5 | DB125: 13.5 | DC125: 26 | DE125: 90 | DF125: 90 | DG125: 90 | DH125: 90 | DI125: 90
A126: =IF(C126="","",SUBTOTAL(3,$C$14:C126)) -> 113 | B126: ='[1]4'!O115 -> 513 | C126: س113 | D126: 15 | E126: ='[1]4'!N115 -> 2/4 | F126: ='[1]4'!I115 -> أنثي | G126: ='[1]4'!E115 -> 2011-10-25 | H126: ='[1]4'!F115 -> 6 | I126: ='[1]4'!G115 -> 11 | J126: ='[1]4'!H115 -> 9 | K126: ='[1]4'!J115 -> مسلمة | L126: ='[1]4'!K115 -> ناجح ومنقول | M126: ='[1]4'!P115 -> 213 | P126: 30 | Q126: 30 | S126: 40 | T126: 40 | V126: 40 | W126: 40 | Y126: 40 | Z126: 40 | AB126: 37 | AC126: 37 | AE126: 30 | AF126: 30 | AH126: 35 | AI126: 35 | AK126: 40 | AL126: 40 | AN126: 90 | AO126: 90 | AP126: 90 | AQ126: 90 | AR126: 90 | AS126: 10 | AT126: 10 | AU126: 24 | AW126: 15 | AX126: 15 | AY126: 30 | BA126: 15 | BB126: 15 | BC126: 24 | BE126: 15 | BF126: 15 | BG126: 14 | BI126: 15 | BJ126: 15 | BK126: 30 | BM126: 9 | BN126: 9 | BO126: 30 | BQ126: 12 | BR126: 12 | BS126: 16 | BU126: 15 | BV126: 15 | BW126: 26 | BY126: 10 | BZ126: 10 | CA126: 24 | CC126: 15 | CD126: 15 | CE126: 30 | CG126: 15 | CH126: 15 | CI126: 24 | CK126: 15 | CL126: 15 | CM126: 14 | CO126: 15 | CP126: 15 | CQ126: 30 | CS126: 9 | CT126: 9 | CU126: 30 | CW126: 12 | CX126: 12 | CY126: 16 | DA126: 15 | DB126: 15 | DC126: 26 | DE126: 90 | DF126: 90 | DG126: 90 | DH126: 90 | DI126: 90
A127: =IF(C127="","",SUBTOTAL(3,$C$14:C127)) -> 114 | B127: ='[1]4'!O116 -> 514 | C127: س114 | D127: 15 | E127: ='[1]4'!N116 -> 4/4 | F127: ='[1]4'!I116 -> أنثي | G127: ='[1]4'!E116 -> 2011-09-20 | H127: ='[1]4'!F116 -> 11 | I127: ='[1]4'!G116 -> 0 | J127: ='[1]4'!H116 -> 10 | K127: ='[1]4'!J116 -> مسلمة | L127: ='[1]4'!K116 -> ناجح ومنقول | M127: ='[1]4'!P116 -> 214 | P127: 40 | Q127: 40 | S127: 35 | T127: 35 | V127: 35 | W127: 35 | Y127: 40 | Z127: 40 | AB127: 39 | AC127: 39 | AE127: 35 | AF127: 35 | AH127: 35 | AI127: 35 | AK127: 40 | AL127: 40 | AN127: 90 | AO127: 90 | AP127: 90 | AQ127: 90 | AR127: 90 | AS127: 11.5 | AT127: 11.5 | AU127: 24 | AW127: 14 | AX127: 14 | AY127: 28 | BA127: 15 | BB127: 13.5 | BC127: 26 | BE127: 15 | BF127: 15 | BG127: 26 | BI127: 15 | BJ127: 15 | BK127: 30 | BM127: 10.5 | BN127: 10.5 | BO127: 28 | BQ127: 12 | BR127: 12 | BS127: 18 | BU127: 13.5 | BV127: 13.5 | BW127: 22 | BY127: 11.5 | BZ127: 11.5 | CA127: 24 | CC127: 14 | CD127: 14 | CE127: 28 | CG127: 15 | CH127: 13.5 | CI127: 26 | CK127: 15 | CL127: 15 | CM127: 26 | CO127: 15 | CP127: 15 | CQ127: 30 | CS127: 10.5 | CT127: 10.5 | CU127: 28 | CW127: 12 | CX127: 12 | CY127: 18 | DA127: 13.5 | DB127: 13.5 | DC127: 22 | DE127: 90 | DF127: 90 | DG127: 90 | DH127: 90 | DI127: 90
A128: =IF(C128="","",SUBTOTAL(3,$C$14:C128)) -> 115 | B128: ='[1]4'!O117 -> 515 | C128: س115 | D128: 15 | E128: ='[1]4'!N117 -> 2/4 | F128: ='[1]4'!I117 -> أنثي | G128: ='[1]4'!E117 -> 2012-07-11 | H128: ='[1]4'!F117 -> 20 | I128: ='[1]4'!G117 -> 2 | J128: ='[1]4'!H117 -> 9 | K128: ='[1]4'!J117 -> مسلمة | L128: ='[1]4'!K117 -> ناجح ومنقول | M128: ='[1]4'!P117 -> 215 | P128: 24 | Q128: 24 | S128: 35 | T128: 35 | V128: 40 | W128: 40 | Y128: 25 | Z128: 25 | AB128: 39 | AC128: 39 | AE128: 35 | AF128: 35 | AH128: 35 | AI128: 35 | AK128: 35 | AL128: 35 | AN128: 90 | AO128: 90 | AP128: 90 | AQ128: 90 | AR128: 90 | AS128: 11.5 | AT128: 11.5 | AU128: 28.5 | AW128: 15 | AX128: 15 | AY128: 28 | BA128: 15 | BB128: 13.5 | BC128: 22 | BE128: 15 | BF128: 15 | BG128: 20 | BI128: 15 | BJ128: 15 | BK128: 30 | BM128: 12 | BN128: 12 | BO128: 28 | BQ128: 12 | BR128: 12 | BS128: 22 | BU128: 13.5 | BV128: 13.5 | BW128: 22 | BY128: 11.5 | BZ128: 11.5 | CA128: 28.5 | CC128: 15 | CD128: 15 | CE128: 28 | CG128: 15 | CH128: 13.5 | CI128: 22 | CK128: 15 | CL128: 15 | CM128: 20 | CO128: 15 | CP128: 15 | CQ128: 30 | CS128: 12 | CT128: 12 | CU128: 28 | CW128: 12 | CX128: 12 | CY128: 22 | DA128: 13.5 | DB128: 13.5 | DC128: 22 | DE128: 90 | DF128: 90 | DG128: 90 | DH128: 90 | DI128: 90
A129: =IF(C129="","",SUBTOTAL(3,$C$14:C129)) -> 116 | B129: ='[1]4'!O118 -> 516 | C129: س116 | D129: 15 | E129: ='[1]4'!N118 -> 2/4 | F129: ='[1]4'!I118 -> أنثي | G129: ='[1]4'!E118 -> 2012-09-09 | H129: ='[1]4'!F118 -> 22 | I129: ='[1]4'!G118 -> 0 | J129: ='[1]4'!H118 -> 9 | K129: ='[1]4'!J118 -> مسلمة | L129: ='[1]4'!K118 -> ناجح ومنقول | M129: ='[1]4'!P118 -> 216 | P129: 35 | Q129: 35 | S129: 40 | T129: 40 | V129: 40 | W129: 40 | Y129: 26 | Z129: 26 | AB129: 35 | AC129: 35 | AE129: 35 | AF129: 35 | AH129: 35 | AI129: 35 | AK129: 40 | AL129: 40 | AN129: 90 | AO129: 90 | AP129: 90 | AQ129: 90 | AR129: 90 | AS129: 13 | AT129: 13 | AU129: 15 | AW129: 15 | AX129: 15 | AY129: 28 | BA129: 15 | BB129: 13.5 | BC129: 18 | BE129: 15 | BF129: 15 | BG129: 20 | BI129: غ | BJ129: غ | BK129: 30 | BM129: 15 | BN129: 15 | BO129: 28 | BQ129: 12 | BR129: 12 | BS129: 22 | BU129: 15 | BV129: 15 | BW129: 24 | BY129: 13 | BZ129: 13 | CA129: 15 | CC129: 15 | CD129: 15 | CE129: 28 | CG129: 15 | CH129: 13.5 | CI129: 18 | CK129: 15 | CL129: 15 | CM129: 20 | CO129: غ | CP129: غ | CQ129: 30 | CS129: 15 | CT129: 15 | CU129: 28 | CW129: 12 | CX129: 12 | CY129: 22 | DA129: 15 | DB129: 15 | DC129: 24 | DE129: 90 | DF129: 90 | DG129: 90 | DH129: 90 | DI129: 90
A130: =IF(C130="","",SUBTOTAL(3,$C$14:C130)) -> 117 | B130: ='[1]4'!O119 -> 517 | C130: س117 | D130: 15 | E130: ='[1]4'!N119 -> 2/4 | F130: ='[1]4'!I119 -> أنثي | G130: ='[1]4'!E119 -> 2011-12-08 | H130: ='[1]4'!F119 -> 23 | I130: ='[1]4'!G119 -> 9 | J130: ='[1]4'!H119 -> 9 | K130: ='[1]4'!J119 -> مسلمة | L130: ='[1]4'!K119 -> ناجح ومنقول | M130: ='[1]4'!P119 -> 217 | P130: 40 | Q130: 40 | S130: 40 | T130: 40 | V130: 40 | W130: 40 | Y130: 40 | Z130: 40 | AB130: 40 | AC130: 40 | AE130: 35 | AF130: 35 | AH130: 35 | AI130: 35 | AK130: 40 | AL130: 40 | AN130: 90 | AO130: 90 | AP130: 90 | AQ130: 90 | AR130: 90 | AS130: 14.5 | AT130: 14.5 | AU130: 28.5 | AW130: 15 | AX130: 15 | AY130: 28 | BA130: 15 | BB130: 15 | BC130: 18 | BE130: 15 | BF130: 15 | BG130: 26 | BI130: 15 | BJ130: 15 | BK130: 30 | BM130: 15 | BN130: 15 | BO130: 28 | BQ130: 12 | BR130: 12 | BS130: 16 | BU130: 13.5 | BV130: 13.5 | BW130: 22 | BY130: 14.5 | BZ130: 14.5 | CA130: 28.5 | CC130: 15 | CD130: 15 | CE130: 28 | CG130: 15 | CH130: 15 | CI130: 18 | CK130: 15 | CL130: 15 | CM130: 26 | CO130: 15 | CP130: 15 | CQ130: 30 | CS130: 15 | CT130: 15 | CU130: 28 | CW130: 12 | CX130: 12 | CY130: 16 | DA130: 13.5 | DB130: 13.5 | DC130: 22 | DE130: 90 | DF130: 90 | DG130: 90 | DH130: 90 | DI130: 90
A131: =IF(C131="","",SUBTOTAL(3,$C$14:C131)) -> 118 | B131: ='[1]4'!O120 -> 518 | C131: س118 | D131: 15 | E131: ='[1]4'!N120 -> 2/4 | F131: ='[1]4'!I120 -> أنثي | G131: ='[1]4'!E120 -> 2011-11-20 | H131: ='[1]4'!F120 -> 11 | I131: ='[1]4'!G120 -> 10 | J131: ='[1]4'!H120 -> 9 | K131: ='[1]4'!J120 -> مسلمة | L131: ='[1]4'!K120 -> ناجح ومنقول | M131: ='[1]4'!P120 -> 218 | P131: 35 | Q131: 35 | S131: 40 | T131: 40 | V131: 40 | W131: 40 | Y131: 40 | Z131: 40 | AB131: 40 | AC131: 40 | AE131: 35 | AF131: 35 | AH131: 35 | AI131: 35 | AK131: 40 | AL131: 40 | AN131: 90 | AO131: 90 | AP131: 95 | AQ131: 90 | AR131: 90 | AS131: 13 | AT131: 13 | AU131: 28.5 | AW131: 15 | AX131: 15 | AY131: 30 | BA131: 15 | BB131: 15 | BC131: 22 | BE131: 15 | BF131: 15 | BG131: 24 | BI131: 15 | BJ131: 15 | BK131: 30 | BM131: 13.5 | BN131: 13.5 | BO131: 30 | BQ131: 12 | BR131: 12 | BS131: 16 | BU131: 13.5 | BV131: 13.5 | BW131: 26 | BY131: 13 | BZ131: 13 | CA131: 28.5 | CC131: 15 | CD131: 15 | CE131: 30 | CG131: 15 | CH131: 15 | CI131: 22 | CK131: 15 | CL131: 15 | CM131: 24 | CO131: 15 | CP131: 15 | CQ131: 30 | CS131: 13.5 | CT131: 13.5 | CU131: 30 | CW131: 12 | CX131: 12 | CY131: 16 | DA131: 13.5 | DB131: 13.5 | DC131: 26 | DE131: 90 | DF131: 90 | DG131: 95 | DH131: 90 | DI131: 90
A132: =IF(C132="","",SUBTOTAL(3,$C$14:C132)) -> 119 | B132: ='[1]4'!O121 -> 519 | C132: س119 | D132: 15 | E132: ='[1]4'!N121 -> 2/4 | F132: ='[1]4'!I121 -> أنثي | G132: ='[1]4'!E121 -> 2012-02-01 | H132: ='[1]4'!F121 -> 0 | I132: ='[1]4'!G121 -> 8 | J132: ='[1]4'!H121 -> 9 | K132: ='[1]4'!J121 -> مسلمة | L132: ='[1]4'!K121 -> ناجح ومنقول | M132: ='[1]4'!P121 -> 219 | P132: 40 | Q132: 40 | S132: 35 | T132: 35 | V132: 40 | W132: 40 | Y132: 35 | Z132: 35 | AB132: 40 | AC132: 40 | AE132: 35 | AF132: 35 | AH132: 40 | AI132: 40 | AK132: 35 | AL132: 35 | AN132: 90 | AO132: 90 | AP132: 90 | AQ132: 90 | AR132: 90 | AS132: 11.5 | AT132: 11.5 | AU132: 28 | AW132: 15 | AX132: 15 | AY132: 30 | BA132: 15 | BB132: 15 | BC132: 18 | BE132: 15 | BF132: 15 | BG132: 18 | BI132: 15 | BJ132: 15 | BK132: 30 | BM132: 15 | BN132: 15 | BO132: 30 | BQ132: 9 | BR132: 9 | BS132: 16 | BU132: 13.5 | BV132: 13.5 | BW132: 26 | BY132: 11.5 | BZ132: 11.5 | CA132: 28 | CC132: 15 | CD132: 15 | CE132: 30 | CG132: 15 | CH132: 15 | CI132: 18 | CK132: 15 | CL132: 15 | CM132: 18 | CO132: 15 | CP132: 15 | CQ132: 30 | CS132: 15 | CT132: 15 | CU132: 30 | CW132: 9 | CX132: 9 | CY132: 16 | DA132: 13.5 | DB132: 13.5 | DC132: 26 | DE132: 90 | DF132: 90 | DG132: 90 | DH132: 90 | DI132: 90
A133: =IF(C133="","",SUBTOTAL(3,$C$14:C133)) -> 120 | B133: ='[1]4'!O122 -> 520 | C133: س120 | D133: 15 | E133: ='[1]4'!N122 -> 2/4 | F133: ='[1]4'!I122 -> أنثي | G133: ='[1]4'!E122 -> 2012-08-04 | H133: ='[1]4'!F122 -> 27 | I133: ='[1]4'!G122 -> 1 | J133: ='[1]4'!H122 -> 9 | K133: ='[1]4'!J122 -> مسلمة | L133: ='[1]4'!K122 -> ناجح ومنقول | M133: ='[1]4'!P122 -> 220 | P133: 40 | Q133: 40 | S133: 40 | T133: 40 | V133: 40 | W133: 40 | Y133: 40 | Z133: 40 | AB133: 40 | AC133: 40 | AE133: 40 | AF133: 40 | AH133: 40 | AI133: 40 | AK133: 40 | AL133: 40 | AN133: 90 | AO133: 90 | AP133: 90 | AQ133: 90 | AR133: 90 | AS133: 14.5 | AT133: 14.5 | AU133: 28 | AW133: 15 | AX133: 15 | AY133: 30 | BA133: 15 | BB133: 15 | BC133: 24 | BE133: 15 | BF133: 15 | BG133: 18 | BI133: 15 | BJ133: 15 | BK133: 30 | BM133: 15 | BN133: 15 | BO133: 30 | BQ133: 12 | BR133: 12 | BS133: 18 | BU133: 15 | BV133: 15 | BW133: 26 | BY133: 14.5 | BZ133: 14.5 | CA133: 28 | CC133: 15 | CD133: 15 | CE133: 30 | CG133: 15 | CH133: 15 | CI133: 24 | CK133: 15 | CL133: 15 | CM133: 18 | CO133: 15 | CP133: 15 | CQ133: 30 | CS133: 15 | CT133: 15 | CU133: 30 | CW133: 12 | CX133: 12 | CY133: 18 | DA133: 15 | DB133: 15 | DC133: 26 | DE133: 90 | DF133: 90 | DG133: 90 | DH133: 90 | DI133: 90
A134: =IF(C134="","",SUBTOTAL(3,$C$14:C134)) -> 121 | B134: ='[1]4'!O123 -> 521 | C134: س121 | D134: 15 | E134: ='[1]4'!N123 -> 2/4 | F134: ='[1]4'!I123 -> أنثي | G134: ='[1]4'!E123 -> 2011-08-12 | H134: ='[1]4'!F123 -> 19 | I134: ='[1]4'!G123 -> 1 | J134: ='[1]4'!H123 -> 10 | K134: ='[1]4'!J123 -> مسلمة | L134: ='[1]4'!K123 -> ناجح ومنقول | M134: ='[1]4'!P123 -> 221 | P134: 40 | Q134: 40 | S134: 40 | T134: 40 | V134: 40 | W134: 40 | Y134: 30 | Z134: 30 | AB134: 40 | AC134: 40 | AE134: 40 | AF134: 40 | AH134: 40 | AI134: 40 | AK134: 40 | AL134: 40 | AN134: 90 | AO134: 90 | AP134: 95 | AQ134: 90 | AR134: 90 | AS134: 14.5 | AT134: 14.5 | AU134: 29.5 | AW134: 15 | AX134: 15 | AY134: 30 | BA134: 15 | BB134: 13.5 | BC134: 28 | BE134: 15 | BF134: 15 | BG134: 28 | BI134: 15 | BJ134: 15 | BK134: 30 | BM134: 15 | BN134: 15 | BO134: 30 | BQ134: 13.5 | BR134: 13.5 | BS134: 18 | BU134: 13.5 | BV134: 13.5 | BW134: 28 | BY134: 14.5 | BZ134: 14.5 | CA134: 29.5 | CC134: 15 | CD134: 15 | CE134: 30 | CG134: 15 | CH134: 13.5 | CI134: 28 | CK134: 15 | CL134: 15 | CM134: 28 | CO134: 15 | CP134: 15 | CQ134: 30 | CS134: 15 | CT134: 15 | CU134: 30 | CW134: 13.5 | CX134: 13.5 | CY134: 18 | DA134: 13.5 | DB134: 13.5 | DC134: 28 | DE134: 90 | DF134: 90 | DG134: 95 | DH134: 90 | DI134: 90
A135: =IF(C135="","",SUBTOTAL(3,$C$14:C135)) -> 122 | B135: ='[1]4'!O124 -> 522 | C135: س122 | D135: 15 | E135: ='[1]4'!N124 -> 1/4 | F135: ='[1]4'!I124 -> أنثي | G135: ='[1]4'!E124 -> 2011-10-24 | H135: ='[1]4'!F124 -> 7 | I135: ='[1]4'!G124 -> 11 | J135: ='[1]4'!H124 -> 9 | K135: ='[1]4'!J124 -> مسلمة | L135: ='[1]4'!K124 -> ناجح ومنقول | M135: ='[1]4'!P124 -> 222 | P135: 39 | Q135: 39 | S135: 40 | T135: 40 | V135: 40 | W135: 40 | Y135: 40 | Z135: 40 | AB135: 40 | AC135: 40 | AE135: 40 | AF135: 40 | AH135: 40 | AI135: 40 | AK135: 40 | AL135: 40 | AN135: 90 | AO135: 90 | AP135: 90 | AQ135: 90 | AR135: 90 | AS135: 14.5 | AT135: 14.5 | AU135: 23.5 | AW135: 15 | AX135: 15 | AY135: 30 | BA135: 15 | BB135: 15 | BC135: 24 | BE135: 15 | BF135: 15 | BG135: 26 | BI135: 15 | BJ135: 15 | BK135: 30 | BM135: 15 | BN135: 15 | BO135: 30 | BQ135: 13.5 | BR135: 13.5 | BS135: 26 | BU135: 13.5 | BV135: 13.5 | BW135: 28 | BY135: 14.5 | BZ135: 14.5 | CA135: 23.5 | CC135: 15 | CD135: 15 | CE135: 30 | CG135: 15 | CH135: 15 | CI135: 24 | CK135: 15 | CL135: 15 | CM135: 26 | CO135: 15 | CP135: 15 | CQ135: 30 | CS135: 15 | CT135: 15 | CU135: 30 | CW135: 13.5 | CX135: 13.5 | CY135: 26 | DA135: 13.5 | DB135: 13.5 | DC135: 28 | DE135: 90 | DF135: 90 | DG135: 90 | DH135: 90 | DI135: 90
A136: =IF(C136="","",SUBTOTAL(3,$C$14:C136)) -> 123 | B136: ='[1]4'!O125 -> 523 | C136: س123 | D136: 15 | E136: ='[1]4'!N125 -> 1/4 | F136: ='[1]4'!I125 -> أنثي | G136: ='[1]4'!E125 -> 2011-10-26 | H136: ='[1]4'!F125 -> 5 | I136: ='[1]4'!G125 -> 11 | J136: ='[1]4'!H125 -> 9 | K136: ='[1]4'!J125 -> مسلمة | L136: ='[1]4'!K125 -> ناجح ومنقول | M136: ='[1]4'!P125 -> 223 | P136: 25 | Q136: 25 | S136: 25 | T136: 25 | V136: 30 | W136: 30 | Y136: 25 | Z136: 25 | AB136: 30 | AC136: 30 | AE136: 25 | AF136: 25 | AH136: 40 | AI136: 40 | AK136: 40 | AL136: 40 | AN136: 90 | AO136: 90 | AP136: 95 | AQ136: 90 | AR136: 90 | AS136: غ | AT136: غ | AU136: 16.5 | AW136: 15 | AX136: 15 | AY136: 20 | BA136: 15 | BB136: 13.5 | BC136: 18 | BE136: 15 | BF136: 15 | BG136: 20 | BI136: 15 | BJ136: 15 | BK136: 30 | BM136: غ | BN136: غ | BO136: 20 | BQ136: 13.5 | BR136: 13.5 | BS136: 12 | BU136: 12 | BV136: 12 | BW136: 26 | BY136: غ | BZ136: غ | CA136: 16.5 | CC136: 15 | CD136: 15 | CE136: 20 | CG136: 15 | CH136: 13.5 | CI136: 18 | CK136: 15 | CL136: 15 | CM136: 20 | CO136: 15 | CP136: 15 | CQ136: 30 | CS136: غ | CT136: غ | CU136: 20 | CW136: 13.5 | CX136: 13.5 | CY136: 12 | DA136: 12 | DB136: 12 | DC136: 26 | DE136: 90 | DF136: 90 | DG136: 95 | DH136: 90 | DI136: 90
A137: =IF(C137="","",SUBTOTAL(3,$C$14:C137)) -> 124 | B137: ='[1]4'!O126 -> 524 | C137: س124 | D137: 15 | E137: ='[1]4'!N126 -> 1/4 | F137: ='[1]4'!I126 -> أنثي | G137: ='[1]4'!E126 -> 2012-02-21 | H137: ='[1]4'!F126 -> 10 | I137: ='[1]4'!G126 -> 7 | J137: ='[1]4'!H126 -> 9 | K137: ='[1]4'!J126 -> مسلمة | L137: ='[1]4'!K126 -> ناجح ومنقول | M137: ='[1]4'!P126 -> 224 | P137: 40 | Q137: 40 | S137: 40 | T137: 40 | V137: 40 | W137: 40 | Y137: 40 | Z137: 40 | AB137: 40 | AC137: 40 | AE137: 40 | AF137: 40 | AH137: 35 | AI137: 35 | AK137: 40 | AL137: 40 | AN137: 90 | AO137: 90 | AP137: 90 | AQ137: 90 | AR137: 90 | AS137: 14.5 | AT137: 14.5 | AU137: 16.5 | AW137: 15 | AX137: 15 | AY137: 30 | BA137: 15 | BB137: 15 | BC137: 20 | BE137: 15 | BF137: 15 | BG137: 22 | BI137: 15 | BJ137: 15 | BK137: 30 | BM137: 13.5 | BN137: 13.5 | BO137: 18 | BQ137: 12 | BR137: 12 | BS137: 16 | BU137: 13.5 | BV137: 13.5 | BW137: 28 | BY137: 14.5 | BZ137: 14.5 | CA137: 16.5 | CC137: 15 | CD137: 15 | CE137: 30 | CG137: 15 | CH137: 15 | CI137: 20 | CK137: 15 | CL137: 15 | CM137: 22 | CO137: 15 | CP137: 15 | CQ137: 30 | CS137: 13.5 | CT137: 13.5 | CU137: 18 | CW137: 12 | CX137: 12 | CY137: 16 | DA137: 13.5 | DB137: 13.5 | DC137: 28 | DE137: 90 | DF137: 90 | DG137: 90 | DH137: 90 | DI137: 90
A138: =IF(C138="","",SUBTOTAL(3,$C$14:C138)) -> 125 | B138: ='[1]4'!O127 -> 525 | C138: س125 | D138: 15 | E138: ='[1]4'!N127 -> 2/4 | F138: ='[1]4'!I127 -> أنثي | G138: ='[1]4'!E127 -> 2012-01-19 | H138: ='[1]4'!F127 -> 12 | I138: ='[1]4'!G127 -> 8 | J138: ='[1]4'!H127 -> 9 | K138: ='[1]4'!J127 -> مسلمة | L138: ='[1]4'!K127 -> ناجح ومنقول | M138: ='[1]4'!P127 -> 225 | P138: غ | Q138: غ | S138: غ | T138: غ | V138: غ | W138: غ | Y138: غ | Z138: غ | AB138: غ | AC138: غ | AE138: غ | AF138: غ | AH138: غ | AI138: غ | AK138: غ | AL138: غ | AN138: غ | AO138: غ | AP138: غ | AQ138: غ | AR138: غ | AS138: 14.5 | AT138: 14.5 | AU138: غ | AW138: 15 | AX138: 15 | AY138: غ | BA138: 15 | BB138: 15 | BC138: غ | BE138: 15 | BF138: 15 | BG138: غ | BI138: 14 | BJ138: 14 | BK138: غ | BM138: 13.5 | BN138: 13.5 | BO138: غ | BQ138: 12 | BR138: 12 | BS138: غ | BU138: 13.5 | BV138: 13.5 | BW138: غ | BY138: 14.5 | BZ138: 14.5 | CA138: غ | CC138: 15 | CD138: 15 | CE138: غ | CG138: 15 | CH138: 15 | CI138: غ | CK138: 15 | CL138: 15 | CM138: غ | CO138: 14 | CP138: 14 | CQ138: غ | CS138: 13.5 | CT138: 13.5 | CU138: غ | CW138: 12 | CX138: 12 | CY138: غ | DA138: 13.5 | DB138: 13.5 | DC138: غ | DE138: غ | DF138: غ | DG138: غ | DH138: غ | DI138: غ
A139: =IF(C139="","",SUBTOTAL(3,$C$14:C139)) -> 126 | B139: ='[1]4'!O128 -> 526 | C139: س126 | D139: 15 | E139: ='[1]4'!N128 -> 2/4 | F139: ='[1]4'!I128 -> أنثي | G139: ='[1]4'!E128 -> 2011-10-10 | H139: ='[1]4'!F128 -> 21 | I139: ='[1]4'!G128 -> 11 | J139: ='[1]4'!H128 -> 9 | K139: ='[1]4'!J128 -> مسلمة | L139: ='[1]4'!K128 -> ناجح ومنقول | M139: ='[1]4'!P128 -> 226 | P139: 40 | Q139: 40 | S139: 40 | T139: 40 | V139: 40 | W139: 40 | Y139: 38 | Z139: 38 | AB139: 39 | AC139: 39 | AE139: 35 | AF139: 35 | AH139: 35 | AI139: 35 | AK139: 35 | AL139: 35 | AN139: 90 | AO139: 90 | AP139: 90 | AQ139: 90 | AR139: 90 | AS139: 13 | AT139: 13 | AU139: 19 | AW139: 15 | AX139: 15 | AY139: 28 | BA139: 15 | BB139: 13.5 | BC139: 16 | BE139: 13.5 | BF139: 13.5 | BG139: 22 | BI139: 14 | BJ139: 14 | BK139: 30 | BM139: 10.5 | BN139: 10.5 | BO139: 24 | BQ139: 12 | BR139: 12 | BS139: 20 | BU139: 13.5 | BV139: 13.5 | BW139: 26 | BY139: 13 | BZ139: 13 | CA139: 19 | CC139: 15 | CD139: 15 | CE139: 28 | CG139: 15 | CH139: 13.5 | CI139: 16 | CK139: 13.5 | CL139: 13.5 | CM139: 22 | CO139: 14 | CP139: 14 | CQ139: 30 | CS139: 10.5 | CT139: 10.5 | CU139: 24 | CW139: 12 | CX139: 12 | CY139: 20 | DA139: 13.5 | DB139: 13.5 | DC139: 26 | DE139: 90 | DF139: 90 | DG139: 90 | DH139: 90 | DI139: 90
A140: =IF(C140="","",SUBTOTAL(3,$C$14:C140)) -> 127 | B140: ='[1]4'!O129 -> 527 | C140: س127 | D140: 15 | E140: ='[1]4'!N129 -> 4/4 | F140: ='[1]4'!I129 -> أنثي | G140: ='[1]4'!E129 -> 2011-10-14 | H140: ='[1]4'!F129 -> 17 | I140: ='[1]4'!G129 -> 11 | J140: ='[1]4'!H129 -> 9 | K140: ='[1]4'!J129 -> مسلمة | L140: ='[1]4'!K129 -> ناجح ومنقول | M140: ='[1]4'!P129 -> 227 | P140: 35 | Q140: 35 | S140: 40 | T140: 40 | V140: 40 | W140: 40 | Y140: 40 | Z140: 40 | AB140: 40 | AC140: 40 | AE140: 40 | AF140: 40 | AH140: 40 | AI140: 40 | AK140: 40 | AL140: 40 | AN140: 90 | AO140: 90 | AP140: 90 | AQ140: 90 | AR140: 90 | AS140: 14.5 | AT140: 14.5 | AU140: 21 | AW140: 15 | AX140: 15 | AY140: 30 | BA140: 15 | BB140: 13.5 | BC140: 22 | BE140: 15 | BF140: 15 | BG140: 22 | BI140: 15 | BJ140: 15 | BK140: 30 | BM140: 15 | BN140: 15 | BO140: 26 | BQ140: 13.5 | BR140: 13.5 | BS140: 26 | BU140: 13.5 | BV140: 13.5 | BW140: 28 | BY140: 14.5 | BZ140: 14.5 | CA140: 21 | CC140: 15 | CD140: 15 | CE140: 30 | CG140: 15 | CH140: 13.5 | CI140: 22 | CK140: 15 | CL140: 15 | CM140: 22 | CO140: 15 | CP140: 15 | CQ140: 30 | CS140: 15 | CT140: 15 | CU140: 26 | CW140: 13.5 | CX140: 13.5 | CY140: 26 | DA140: 13.5 | DB140: 13.5 | DC140: 28 | DE140: 90 | DF140: 90 | DG140: 90 | DH140: 90 | DI140: 90
A141: =IF(C141="","",SUBTOTAL(3,$C$14:C141)) -> 128 | B141: ='[1]4'!O130 -> 528 | C141: س128 | D141: 15 | E141: ='[1]4'!N130 -> 2/4 | F141: ='[1]4'!I130 -> أنثي | G141: ='[1]4'!E130 -> 2011-12-01 | H141: ='[1]4'!F130 -> 0 | I141: ='[1]4'!G130 -> 10 | J141: ='[1]4'!H130 -> 9 | K141: ='[1]4'!J130 -> مسلمة | L141: ='[1]4'!K130 -> ناجح ومنقول | M141: ='[1]4'!P130 -> 228 | P141: 35 | Q141: 35 | S141: 40 | T141: 40 | V141: 25 | W141: 25 | Y141: 40 | Z141: 40 | AB141: 40 | AC141: 40 | AE141: 35 | AF141: 35 | AH141: 35 | AI141: 35 | AK141: 40 | AL141: 40 | AN141: 90 | AO141: 90 | AP141: 90 | AQ141: 90 | AR141: 90 | AS141: 14.5 | AT141: 14.5 | AU141: 23.5 | AW141: 15 | AX141: 15 | AY141: 30 | BA141: 15 | BB141: 15 | BC141: 18 | BE141: 15 | BF141: 15 | BG141: 26 | BI141: 15 | BJ141: 15 | BK141: 30 | BM141: 15 | BN141: 15 | BO141: 28 | BQ141: 12 | BR141: 12 | BS141: 14 | BU141: 15 | BV141: 15 | BW141: 28 | BY141: 14.5 | BZ141: 14.5 | CA141: 23.5 | CC141: 15 | CD141: 15 | CE141: 30 | CG141: 15 | CH141: 15 | CI141: 18 | CK141: 15 | CL141: 15 | CM141: 26 | CO141: 15 | CP141: 15 | CQ141: 30 | CS141: 15 | CT141: 15 | CU141: 28 | CW141: 12 | CX141: 12 | CY141: 14 | DA141: 15 | DB141: 15 | DC141: 28 | DE141: 90 | DF141: 90 | DG141: 90 | DH141: 90 | DI141: 90
A142: =IF(C142="","",SUBTOTAL(3,$C$14:C142)) -> 129 | B142: ='[1]4'!O131 -> 529 | C142: س129 | D142: 15 | E142: ='[1]4'!N131 -> 3/4 | F142: ='[1]4'!I131 -> أنثي | G142: ='[1]4'!E131 -> 2012-06-19 | H142: ='[1]4'!F131 -> 12 | I142: ='[1]4'!G131 -> 3 | J142: ='[1]4'!H131 -> 9 | K142: ='[1]4'!J131 -> مسلمة | L142: ='[1]4'!K131 -> ناجح ومنقول | M142: ='[1]4'!P131 -> 229 | P142: 40 | Q142: 40 | S142: 40 | T142: 40 | V142: 40 | W142: 40 | Y142: 38 | Z142: 38 | AB142: 40 | AC142: 40 | AE142: 40 | AF142: 40 | AH142: 35 | AI142: 35 | AK142: 35 | AL142: 35 | AN142: 90 | AO142: 90 | AP142: 90 | AQ142: 90 | AR142: 90 | AS142: 13 | AT142: 13 | AU142: 13.5 | AW142: 15 | AX142: 15 | AY142: 30 | BA142: 15 | BB142: 15 | BC142: 16 | BE142: 15 | BF142: 15 | BG142: 18 | BI142: 13.5 | BJ142: 13.5 | BK142: 30 | BM142: 11.5 | BN142: 11.5 | BO142: 28 | BQ142: 12 | BR142: 12 | BS142: 14 | BU142: 13.5 | BV142: 13.5 | BW142: 28 | BY142: 13 | BZ142: 13 | CA142: 13.5 | CC142: 15 | CD142: 15 | CE142: 30 | CG142: 15 | CH142: 15 | CI142: 16 | CK142: 15 | CL142: 15 | CM142: 18 | CO142: 13.5 | CP142: 13.5 | CQ142: 30 | CS142: 11.5 | CT142: 11.5 | CU142: 28 | CW142: 12 | CX142: 12 | CY142: 14 | DA142: 13.5 | DB142: 13.5 | DC142: 28 | DE142: 90 | DF142: 90 | DG142: 90 | DH142: 90 | DI142: 90
A143: =IF(C143="","",SUBTOTAL(3,$C$14:C143)) -> 130 | B143: ='[1]4'!O132 -> 530 | C143: س130 | D143: 15 | E143: ='[1]4'!N132 -> 2/4 | F143: ='[1]4'!I132 -> أنثي | G143: ='[1]4'!E132 -> 2012-01-28 | H143: ='[1]4'!F132 -> 3 | I143: ='[1]4'!G132 -> 8 | J143: ='[1]4'!H132 -> 9 | K143: ='[1]4'!J132 -> مسلمة | L143: ='[1]4'!K132 -> ناجح ومنقول | M143: ='[1]4'!P132 -> 230 | P143: 35 | Q143: 35 | S143: 40 | T143: 40 | V143: 25 | W143: 25 | Y143: 40 | Z143: 40 | AB143: 40 | AC143: 40 | AE143: 35 | AF143: 35 | AH143: 40 | AI143: 40 | AK143: 40 | AL143: 40 | AN143: 90 | AO143: 90 | AP143: 90 | AQ143: 90 | AR143: 90 | AS143: 14.5 | AT143: 14.5 | AU143: 12 | AW143: 15 | AX143: 15 | AY143: 30 | BA143: 15 | BB143: 15 | BC143: 16 | BE143: 15 | BF143: 15 | BG143: 22 | BI143: 15 | BJ143: 15 | BK143: 30 | BM143: 13.5 | BN143: 13.5 | BO143: 24 | BQ143: 12 | BR143: 12 | BS143: 12 | BU143: 15 | BV143: 15 | BW143: 28 | BY143: 14.5 | BZ143: 14.5 | CA143: 12 | CC143: 15 | CD143: 15 | CE143: 30 | CG143: 15 | CH143: 15 | CI143: 16 | CK143: 15 | CL143: 15 | CM143: 22 | CO143: 15 | CP143: 15 | CQ143: 30 | CS143: 13.5 | CT143: 13.5 | CU143: 24 | CW143: 12 | CX143: 12 | CY143: 12 | DA143: 15 | DB143: 15 | DC143: 28 | DE143: 90 | DF143: 90 | DG143: 90 | DH143: 90 | DI143: 90
A144: =IF(C144="","",SUBTOTAL(3,$C$14:C144)) -> 131 | B144: ='[1]4'!O133 -> 531 | C144: س131 | D144: 15 | E144: ='[1]4'!N133 -> 3/4 | F144: ='[1]4'!I133 -> أنثي | G144: ='[1]4'!E133 -> 2012-08-17 | H144: ='[1]4'!F133 -> 14 | I144: ='[1]4'!G133 -> 1 | J144: ='[1]4'!H133 -> 9 | K144: ='[1]4'!J133 -> مسلمة | L144: ='[1]4'!K133 -> ناجح ومنقول | M144: ='[1]4'!P133 -> 231 | P144: 40 | Q144: 40 | S144: 40 | T144: 40 | V144: 40 | W144: 40 | Y144: 35 | Z144: 35 | AB144: 40 | AC144: 40 | AE144: 40 | AF144: 40 | AH144: 40 | AI144: 40 | AK144: 35 | AL144: 35 | AN144: 90 | AO144: 90 | AP144: 90 | AQ144: 90 | AR144: 90 | AS144: 14.5 | AT144: 14.5 | AU144: 16.5 | AW144: 15 | AX144: 15 | AY144: 28 | BA144: 15 | BB144: 15 | BC144: 22 | BE144: 12 | BF144: 12 | BG144: 30 | BI144: 15 | BJ144: 15 | BK144: 30 | BM144: 13.5 | BN144: 13.5 | BO144: 22 | BQ144: 12 | BR144: 12 | BS144: 18 | BU144: 13.5 | BV144: 13.5 | BW144: 28 | BY144: 14.5 | BZ144: 14.5 | CA144: 16.5 | CC144: 15 | CD144: 15 | CE144: 28 | CG144: 15 | CH144: 15 | CI144: 22 | CK144: 12 | CL144: 12 | CM144: 30 | CO144: 15 | CP144: 15 | CQ144: 30 | CS144: 13.5 | CT144: 13.5 | CU144: 22 | CW144: 12 | CX144: 12 | CY144: 18 | DA144: 13.5 | DB144: 13.5 | DC144: 28 | DE144: 90 | DF144: 90 | DG144: 90 | DH144: 90 | DI144: 90
A145: =IF(C145="","",SUBTOTAL(3,$C$14:C145)) -> 132 | B145: ='[1]4'!O134 -> 532 | C145: س132 | D145: 15 | E145: ='[1]4'!N134 -> 2/4 | F145: ='[1]4'!I134 -> أنثي | G145: ='[1]4'!E134 -> 2012-05-26 | H145: ='[1]4'!F134 -> 5 | I145: ='[1]4'!G134 -> 4 | J145: ='[1]4'!H134 -> 9 | K145: ='[1]4'!J134 -> مسلمة | L145: ='[1]4'!K134 -> ناجح ومنقول | M145: ='[1]4'!P134 -> 232 | P145: غ | Q145: غ | S145: غ | T145: غ | V145: غ | W145: غ | Y145: غ | Z145: غ | AB145: غ | AC145: غ | AE145: غ | AF145: غ | AH145: غ | AI145: غ | AK145: غ | AL145: غ | AN145: غ | AO145: غ | AP145: غ | AQ145: غ | AR145: غ | AS145: غ | AT145: غ | AU145: غ | AW145: غ | AX145: غ | AY145: غ | BA145: 15 | BB145: غ | BC145: غ | BE145: غ | BF145: غ | BG145: غ | BI145: غ | BJ145: غ | BK145: غ | BM145: غ | BN145: غ | BO145: غ | BQ145: غ | BR145: غ | BS145: غ | BU145: غ | BV145: غ | BW145: غ | BY145: غ | BZ145: غ | CA145: غ | CC145: غ | CD145: غ | CE145: غ | CG145: 15 | CH145: غ | CI145: غ | CK145: غ | CL145: غ | CM145: غ | CO145: غ | CP145: غ | CQ145: غ | CS145: غ | CT145: غ | CU145: غ | CW145: غ | CX145: غ | CY145: غ | DA145: غ | DB145: غ | DC145: غ | DE145: غ | DF145: غ | DG145: غ | DH145: غ | DI145: غ
A146: =IF(C146="","",SUBTOTAL(3,$C$14:C146)) -> 133 | B146: ='[1]4'!O135 -> 533 | C146: س133 | D146: 15 | E146: ='[1]4'!N135 -> 4/4 | F146: ='[1]4'!I135 -> أنثي | G146: ='[1]4'!E135 -> 2012-07-19 | H146: ='[1]4'!F135 -> 12 | I146: ='[1]4'!G135 -> 2 | J146: ='[1]4'!H135 -> 9 | K146: ='[1]4'!J135 -> مسلمة | L146: ='[1]4'!K135 -> ناجح ومنقول | M146: ='[1]4'!P135 -> 233 | P146: 21 | Q146: 21 | S146: 35 | T146: 35 | V146: 35 | W146: 35 | Y146: 35 | Z146: 35 | AB146: 40 | AC146: 40 | AE146: 21 | AF146: 21 | AH146: 25 | AI146: 25 | AK146: 35 | AL146: 35 | AN146: 90 | AO146: 90 | AP146: 95 | AQ146: 90 | AR146: 90 | AS146: غ | AT146: غ | AU146: 10.5 | AW146: 12 | AX146: 12 | AY146: 20 | BA146: 15 | BB146: 10.5 | BC146: 16 | BE146: 12 | BF146: 12 | BG146: 8 | BI146: 15 | BJ146: 15 | BK146: 28 | BM146: 15 | BN146: 15 | BO146: 20 | BQ146: 10.5 | BR146: 10.5 | BS146: 18 | BU146: 13.5 | BV146: 13.5 | BW146: 28 | BY146: غ | BZ146: غ | CA146: 10.5 | CC146: 12 | CD146: 12 | CE146: 20 | CG146: 15 | CH146: 10.5 | CI146: 16 | CK146: 12 | CL146: 12 | CM146: 8 | CO146: 15 | CP146: 15 | CQ146: 28 | CS146: 15 | CT146: 15 | CU146: 20 | CW146: 10.5 | CX146: 10.5 | CY146: 18 | DA146: 13.5 | DB146: 13.5 | DC146: 28 | DE146: 90 | DF146: 90 | DG146: 95 | DH146: 90 | DI146: 90
A147: =IF(C147="","",SUBTOTAL(3,$C$14:C147)) -> 134 | B147: ='[1]4'!O136 -> 534 | C147: س134 | D147: 15 | E147: ='[1]4'!N136 -> 4/4 | F147: ='[1]4'!I136 -> أنثي | G147: ='[1]4'!E136 -> 2012-06-20 | H147: ='[1]4'!F136 -> 11 | I147: ='[1]4'!G136 -> 3 | J147: ='[1]4'!H136 -> 9 | K147: ='[1]4'!J136 -> مسلمة | L147: ='[1]4'!K136 -> ناجح ومنقول | M147: ='[1]4'!P136 -> 234 | P147: 35 | Q147: 35 | S147: 35 | T147: 35 | V147: 40 | W147: 40 | Y147: 40 | Z147: 40 | AB147: 40 | AC147: 40 | AE147: 35 | AF147: 35 | AH147: 35 | AI147: 35 | AK147: 40 | AL147: 40 | AN147: 90 | AO147: 90 | AP147: 95 | AQ147: 90 | AR147: 90 | AS147: 13 | AT147: 13 | AU147: 19.5 | AW147: 14 | AX147: 14 | AY147: 30 | BA147: 15 | BB147: 15 | BC147: 22 | BE147: 15 | BF147: 15 | BG147: 16 | BI147: 13.5 | BJ147: 13.5 | BK147: 30 | BM147: 15 | BN147: 15 | BO147: 22 | BQ147: 13.5 | BR147: 13.5 | BS147: 12 | BU147: 13.5 | BV147: 13.5 | BW147: 24 | BY147: 13 | BZ147: 13 | CA147: 19.5 | CC147: 14 | CD147: 14 | CE147: 30 | CG147: 15 | CH147: 15 | CI147: 22 | CK147: 15 | CL147: 15 | CM147: 16 | CO147: 13.5 | CP147: 13.5 | CQ147: 30 | CS147: 15 | CT147: 15 | CU147: 22 | CW147: 13.5 | CX147: 13.5 | CY147: 12 | DA147: 13.5 | DB147: 13.5 | DC147: 24 | DE147: 90 | DF147: 90 | DG147: 95 | DH147: 90 | DI147: 90
A148: =IF(C148="","",SUBTOTAL(3,$C$14:C148)) -> 135 | B148: ='[1]4'!O137 -> 535 | C148: س135 | D148: 15 | E148: ='[1]4'!N137 -> 4/4 | F148: ='[1]4'!I137 -> أنثي | G148: ='[1]4'!E137 -> 2012-07-17 | H148: ='[1]4'!F137 -> 14 | I148: ='[1]4'!G137 -> 2 | J148: ='[1]4'!H137 -> 9 | K148: ='[1]4'!J137 -> مسلمة | L148: ='[1]4'!K137 -> ناجح ومنقول | M148: ='[1]4'!P137 -> 235 | P148: 40 | Q148: 40 | S148: 40 | T148: 40 | V148: 40 | W148: 40 | Y148: 40 | Z148: 40 | AB148: 40 | AC148: 40 | AE148: 40 | AF148: 40 | AH148: 40 | AI148: 40 | AK148: 40 | AL148: 40 | AN148: 90 | AO148: 90 | AP148: 90 | AQ148: 90 | AR148: 90 | AS148: 14.5 | AT148: 14.5 | AU148: 25.5 | AW148: 15 | AX148: 15 | AY148: 30 | BA148: 15 | BB148: 15 | BC148: 24 | BE148: 15 | BF148: 15 | BG148: 24 | BI148: 15 | BJ148: 15 | BK148: 30 | BM148: 10.5 | BN148: 10.5 | BO148: 24 | BQ148: 13.5 | BR148: 13.5 | BS148: 18 | BU148: 13.5 | BV148: 13.5 | BW148: 28 | BY148: 14.5 | BZ148: 14.5 | CA148: 25.5 | CC148: 15 | CD148: 15 | CE148: 30 | CG148: 15 | CH148: 15 | CI148: 24 | CK148: 15 | CL148: 15 | CM148: 24 | CO148: 15 | CP148: 15 | CQ148: 30 | CS148: 10.5 | CT148: 10.5 | CU148: 24 | CW148: 13.5 | CX148: 13.5 | CY148: 18 | DA148: 13.5 | DB148: 13.5 | DC148: 28 | DE148: 90 | DF148: 90 | DG148: 90 | DH148: 90 | DI148: 90
A149: =IF(C149="","",SUBTOTAL(3,$C$14:C149)) -> 136 | B149: ='[1]4'!O138 -> 536 | C149: س136 | D149: 15 | E149: ='[1]4'!N138 -> 2/4 | F149: ='[1]4'!I138 -> أنثي | G149: ='[1]4'!E138 -> 2012-05-01 | H149: ='[1]4'!F138 -> 0 | I149: ='[1]4'!G138 -> 5 | J149: ='[1]4'!H138 -> 9 | K149: ='[1]4'!J138 -> مسلمة | L149: ='[1]4'!K138 -> ناجح ومنقول | M149: ='[1]4'!P138 -> 236 | P149: 35 | Q149: 35 | S149: 40 | T149: 40 | V149: 25 | W149: 25 | Y149: 31 | Z149: 31 | AB149: 40 | AC149: 40 | AE149: 35 | AF149: 35 | AH149: 35 | AI149: 35 | AK149: 40 | AL149: 40 | AN149: 90 | AO149: 90 | AP149: 90 | AQ149: 90 | AR149: 90 | AS149: 11.5 | AT149: 11.5 | AU149: 17 | AW149: 15 | AX149: 15 | AY149: 30 | BA149: 15 | BB149: 15 | BC149: 20 | BE149: 12 | BF149: 12 | BG149: 12 | BI149: 15 | BJ149: 15 | BK149: 30 | BM149: 13.5 | BN149: 13.5 | BO149: 24 | BQ149: 13.5 | BR149: 13.5 | BS149: 22 | BU149: 13.5 | BV149: 13.5 | BW149: 28 | BY149: 11.5 | BZ149: 11.5 | CA149: 17 | CC149: 15 | CD149: 15 | CE149: 30 | CG149: 15 | CH149: 15 | CI149: 20 | CK149: 12 | CL149: 12 | CM149: 12 | CO149: 15 | CP149: 15 | CQ149: 30 | CS149: 13.5 | CT149: 13.5 | CU149: 24 | CW149: 13.5 | CX149: 13.5 | CY149: 22 | DA149: 13.5 | DB149: 13.5 | DC149: 28 | DE149: 90 | DF149: 90 | DG149: 90 | DH149: 90 | DI149: 90
A150: =IF(C150="","",SUBTOTAL(3,$C$14:C150)) -> 137 | B150: ='[1]4'!O139 -> 537 | C150: س137 | D150: 15 | E150: ='[1]4'!N139 -> 4/4 | F150: ='[1]4'!I139 -> أنثي | G150: ='[1]4'!E139 -> 2011-11-12 | H150: ='[1]4'!F139 -> 19 | I150: ='[1]4'!G139 -> 10 | J150: ='[1]4'!H139 -> 9 | K150: ='[1]4'!J139 -> مسلمة | L150: ='[1]4'!K139 -> ناجح ومنقول | M150: ='[1]4'!P139 -> 237 | P150: 35 | Q150: 35 | S150: 40 | T150: 40 | V150: 40 | W150: 40 | Y150: 40 | Z150: 40 | AB150: 40 | AC150: 40 | AE150: 35 | AF150: 35 | AH150: 40 | AI150: 40 | AK150: 40 | AL150: 40 | AN150: 90 | AO150: 90 | AP150: 95 | AQ150: 90 | AR150: 90 | AS150: 14.5 | AT150: 14.5 | AU150: 16.5 | AW150: 15 | AX150: 15 | AY150: 30 | BA150: 15 | BB150: 15 | BC150: 20 | BE150: 15 | BF150: 15 | BG150: 10 | BI150: 15 | BJ150: 15 | BK150: 30 | BM150: 15 | BN150: 15 | BO150: 20 | BQ150: 12 | BR150: 12 | BS150: 10 | BU150: 13.5 | BV150: 13.5 | BW150: 28 | BY150: 14.5 | BZ150: 14.5 | CA150: 16.5 | CC150: 15 | CD150: 15 | CE150: 30 | CG150: 15 | CH150: 15 | CI150: 20 | CK150: 15 | CL150: 15 | CM150: 10 | CO150: 15 | CP150: 15 | CQ150: 30 | CS150: 15 | CT150: 15 | CU150: 20 | CW150: 12 | CX150: 12 | CY150: 10 | DA150: 13.5 | DB150: 13.5 | DC150: 28 | DE150: 90 | DF150: 90 | DG150: 95 | DH150: 90 | DI150: 90
A151: =IF(C151="","",SUBTOTAL(3,$C$14:C151)) -> 138 | B151: ='[1]4'!O140 -> 538 | C151: س138 | D151: 15 | E151: ='[1]4'!N140 -> 3/4 | F151: ='[1]4'!I140 -> أنثي | G151: ='[1]4'!E140 -> 2012-08-16 | H151: ='[1]4'!F140 -> 15 | I151: ='[1]4'!G140 -> 1 | J151: ='[1]4'!H140 -> 9 | K151: ='[1]4'!J140 -> مسلمة | L151: ='[1]4'!K140 -> ناجح ومنقول | M151: ='[1]4'!P140 -> 238 | P151: 40 | Q151: 40 | S151: 40 | T151: 40 | V151: 40 | W151: 40 | Y151: 38 | Z151: 38 | AB151: 40 | AC151: 40 | AE151: 40 | AF151: 40 | AH151: 40 | AI151: 40 | AK151: 35 | AL151: 35 | AN151: 90 | AO151: 90 | AP151: 95 | AQ151: 90 | AR151: 90 | AS151: 14.5 | AT151: 14.5 | AU151: 18 | AW151: 15 | AX151: 15 | AY151: 30 | BA151: 15 | BB151: 15 | BC151: 16 | BE151: 15 | BF151: 15 | BG151: 20 | BI151: 15 | BJ151: 15 | BK151: 28 | BM151: 13.5 | BN151: 13.5 | BO151: 24 | BQ151: 12 | BR151: 12 | BS151: 12 | BU151: 15 | BV151: 15 | BW151: 28 | BY151: 14.5 | BZ151: 14.5 | CA151: 18 | CC151: 15 | CD151: 15 | CE151: 30 | CG151: 15 | CH151: 15 | CI151: 16 | CK151: 15 | CL151: 15 | CM151: 20 | CO151: 15 | CP151: 15 | CQ151: 28 | CS151: 13.5 | CT151: 13.5 | CU151: 24 | CW151: 12 | CX151: 12 | CY151: 12 | DA151: 15 | DB151: 15 | DC151: 28 | DE151: 90 | DF151: 90 | DG151: 95 | DH151: 90 | DI151: 90
A152: =IF(C152="","",SUBTOTAL(3,$C$14:C152)) -> 139 | B152: ='[1]4'!O141 -> 539 | C152: س139 | D152: 15 | E152: ='[1]4'!N141 -> 1/4 | F152: ='[1]4'!I141 -> أنثي | G152: ='[1]4'!E141 -> 2012-08-11 | H152: ='[1]4'!F141 -> 20 | I152: ='[1]4'!G141 -> 1 | J152: ='[1]4'!H141 -> 9 | K152: ='[1]4'!J141 -> مسلمة | L152: ='[1]4'!K141 -> ناجح ومنقول | M152: ='[1]4'!P141 -> 239 | P152: 40 | Q152: 40 | S152: 40 | T152: 40 | V152: 40 | W152: 40 | Y152: 35 | Z152: 35 | AB152: 40 | AC152: 40 | AE152: 40 | AF152: 40 | AH152: 40 | AI152: 40 | AK152: 40 | AL152: 40 | AN152: 90 | AO152: 90 | AP152: 90 | AQ152: 90 | AR152: 90 | AS152: 14.5 | AT152: 14.5 | AU152: 15.5 | AW152: 15 | AX152: 15 | AY152: 30 | BA152: 15 | BB152: 15 | BC152: 20 | BE152: 15 | BF152: 15 | BG152: 26 | BI152: 13.5 | BJ152: 13.5 | BK152: 30 | BM152: 15 | BN152: 15 | BO152: 24 | BQ152: 12 | BR152: 12 | BS152: 24 | BU152: 13.5 | BV152: 13.5 | BW152: 28 | BY152: 14.5 | BZ152: 14.5 | CA152: 15.5 | CC152: 15 | CD152: 15 | CE152: 30 | CG152: 15 | CH152: 15 | CI152: 20 | CK152: 15 | CL152: 15 | CM152: 26 | CO152: 13.5 | CP152: 13.5 | CQ152: 30 | CS152: 15 | CT152: 15 | CU152: 24 | CW152: 12 | CX152: 12 | CY152: 24 | DA152: 13.5 | DB152: 13.5 | DC152: 28 | DE152: 90 | DF152: 90 | DG152: 90 | DH152: 90 | DI152: 90
A153: =IF(C153="","",SUBTOTAL(3,$C$14:C153)) -> 140 | B153: ='[1]4'!O142 -> 540 | C153: س140 | D153: 15 | E153: ='[1]4'!N142 -> 4/4 | F153: ='[1]4'!I142 -> أنثي | G153: ='[1]4'!E142 -> 2011-12-09 | H153: ='[1]4'!F142 -> 22 | I153: ='[1]4'!G142 -> 9 | J153: ='[1]4'!H142 -> 9 | K153: ='[1]4'!J142 -> مسلمة | L153: ='[1]4'!K142 -> ناجح ومنقول | M153: ='[1]4'!P142 -> 240 | P153: 40 | Q153: 40 | S153: 40 | T153: 40 | V153: 40 | W153: 40 | Y153: 40 | Z153: 40 | AB153: 40 | AC153: 40 | AE153: 40 | AF153: 40 | AH153: 40 | AI153: 40 | AK153: 35 | AL153: 35 | AN153: 90 | AO153: 90 | AP153: 90 | AQ153: 90 | AR153: 90 | AS153: 14.5 | AT153: 14.5 | AU153: 17.5 | AW153: 15 | AX153: 15 | AY153: 30 | BA153: 15 | BB153: 15 | BC153: 20 | BE153: 15 | BF153: 15 | BG153: 28 | BI153: 15 | BJ153: 15 | BK153: 30 | BM153: 15 | BN153: 15 | BO153: 26 | BQ153: 12 | BR153: 12 | BS153: 24 | BU153: 13.5 | BV153: 13.5 | BW153: 28 | BY153: 14.5 | BZ153: 14.5 | CA153: 17.5 | CC153: 15 | CD153: 15 | CE153: 30 | CG153: 15 | CH153: 15 | CI153: 20 | CK153: 15 | CL153: 15 | CM153: 28 | CO153: 15 | CP153: 15 | CQ153: 30 | CS153: 15 | CT153: 15 | CU153: 26 | CW153: 12 | CX153: 12 | CY153: 24 | DA153: 13.5 | DB153: 13.5 | DC153: 28 | DE153: 90 | DF153: 90 | DG153: 90 | DH153: 90 | DI153: 90
A154: =IF(C154="","",SUBTOTAL(3,$C$14:C154)) -> 141 | B154: ='[1]4'!O143 -> 541 | C154: س141 | D154: 15 | E154: ='[1]4'!N143 -> 2/4 | F154: ='[1]4'!I143 -> أنثي | G154: ='[1]4'!E143 -> 2012-06-01 | H154: ='[1]4'!F143 -> 0 | I154: ='[1]4'!G143 -> 4 | J154: ='[1]4'!H143 -> 9 | K154: ='[1]4'!J143 -> مسلمة | L154: ='[1]4'!K143 -> ناجح ومنقول | M154: ='[1]4'!P143 -> 241 | P154: 40 | Q154: 40 | S154: 40 | T154: 40 | V154: 40 | W154: 40 | Y154: 37 | Z154: 37 | AB154: 40 | AC154: 40 | AE154: 40 | AF154: 40 | AH154: 40 | AI154: 40 | AK154: 35 | AL154: 35 | AN154: 90 | AO154: 90 | AP154: 90 | AQ154: 90 | AR154: 90 | AS154: 14.5 | AT154: 14.5 | AU154: 21.5 | AW154: 15 | AX154: 15 | AY154: 30 | BA154: 15 | BB154: 15 | BC154: 26 | BE154: 15 | BF154: 15 | BG154: 22 | BI154: 15 | BJ154: 15 | BK154: 30 | BM154: 15 | BN154: 15 | BO154: 22 | BQ154: 13.5 | BR154: 13.5 | BS154: 24 | BU154: 12 | BV154: 12 | BW154: 24 | BY154: 14.5 | BZ154: 14.5 | CA154: 21.5 | CC154: 15 | CD154: 15 | CE154: 30 | CG154: 15 | CH154: 15 | CI154: 26 | CK154: 15 | CL154: 15 | CM154: 22 | CO154: 15 | CP154: 15 | CQ154: 30 | CS154: 15 | CT154: 15 | CU154: 22 | CW154: 13.5 | CX154: 13.5 | CY154: 24 | DA154: 12 | DB154: 12 | DC154: 24 | DE154: 90 | DF154: 90 | DG154: 90 | DH154: 90 | DI154: 90
A155: =IF(C155="","",SUBTOTAL(3,$C$14:C155)) -> 142 | B155: ='[1]4'!O144 -> 542 | C155: س142 | D155: 15 | E155: ='[1]4'!N144 -> 1/4 | F155: ='[1]4'!I144 -> أنثي | G155: ='[1]4'!E144 -> 2011-11-26 | H155: ='[1]4'!F144 -> 5 | I155: ='[1]4'!G144 -> 10 | J155: ='[1]4'!H144 -> 9 | K155: ='[1]4'!J144 -> مسلمة | L155: ='[1]4'!K144 -> ناجح ومنقول | M155: ='[1]4'!P144 -> 242 | P155: 40 | Q155: 40 | S155: 38 | T155: 38 | V155: 40 | W155: 40 | Y155: 40 | Z155: 40 | AB155: 40 | AC155: 40 | AE155: 40 | AF155: 40 | AH155: 40 | AI155: 40 | AK155: 40 | AL155: 40 | AN155: 90 | AO155: 90 | AP155: 95 | AQ155: 90 | AR155: 90 | AS155: 15 | AT155: 15 | AU155: 25.5 | AW155: 15 | AX155: 15 | AY155: 28 | BA155: 15 | BB155: 15 | BC155: 24 | BE155: 15 | BF155: 15 | BG155: 26 | BI155: غ | BJ155: غ | BK155: 30 | BM155: 15 | BN155: 15 | BO155: 26 | BQ155: 10.5 | BR155: 10.5 | BS155: 22 | BU155: 13.5 | BV155: 13.5 | BW155: 28 | BY155: 15 | BZ155: 15 | CA155: 25.5 | CC155: 15 | CD155: 15 | CE155: 28 | CG155: 15 | CH155: 15 | CI155: 24 | CK155: 15 | CL155: 15 | CM155: 26 | CO155: غ | CP155: غ | CQ155: 30 | CS155: 15 | CT155: 15 | CU155: 26 | CW155: 10.5 | CX155: 10.5 | CY155: 22 | DA155: 13.5 | DB155: 13.5 | DC155: 28 | DE155: 90 | DF155: 90 | DG155: 95 | DH155: 90 | DI155: 90
A156: =IF(C156="","",SUBTOTAL(3,$C$14:C156)) -> 143 | B156: ='[1]4'!O145 -> 543 | C156: س143 | D156: 15 | E156: ='[1]4'!N145 -> 2/4 | F156: ='[1]4'!I145 -> أنثي | G156: ='[1]4'!E145 -> 2012-02-06 | H156: ='[1]4'!F145 -> 25 | I156: ='[1]4'!G145 -> 7 | J156: ='[1]4'!H145 -> 9 | K156: ='[1]4'!J145 -> مسلمة | L156: ='[1]4'!K145 -> ناجح ومنقول | M156: ='[1]4'!P145 -> 243 | P156: 35 | Q156: 35 | S156: 40 | T156: 40 | V156: 40 | W156: 40 | Y156: 38 | Z156: 38 | AB156: 37 | AC156: 37 | AE156: 40 | AF156: 40 | AH156: 35 | AI156: 35 | AK156: 35 | AL156: 35 | AN156: 90 | AO156: 90 | AP156: 95 | AQ156: 90 | AR156: 90 | AS156: 14.5 | AT156: 14.5 | AU156: 19.5 | AW156: 11 | AX156: 11 | AY156: 28 | BA156: 15 | BB156: 15 | BC156: 22 | BE156: 15 | BF156: 15 | BG156: 16 | BI156: 15 | BJ156: 15 | BK156: 30 | BM156: 13.5 | BN156: 13.5 | BO156: 22 | BQ156: 9 | BR156: 9 | BS156: 16 | BU156: 13.5 | BV156: 13.5 | BW156: 26 | BY156: 14.5 | BZ156: 14.5 | CA156: 19.5 | CC156: 11 | CD156: 11 | CE156: 28 | CG156: 15 | CH156: 15 | CI156: 22 | CK156: 15 | CL156: 15 | CM156: 16 | CO156: 15 | CP156: 15 | CQ156: 30 | CS156: 13.5 | CT156: 13.5 | CU156: 22 | CW156: 9 | CX156: 9 | CY156: 16 | DA156: 13.5 | DB156: 13.5 | DC156: 26 | DE156: 90 | DF156: 90 | DG156: 95 | DH156: 90 | DI156: 90
A157: =IF(C157="","",SUBTOTAL(3,$C$14:C157)) -> 144 | B157: ='[1]4'!O146 -> 544 | C157: س144 | D157: 15 | E157: ='[1]4'!N146 -> 2/4 | F157: ='[1]4'!I146 -> أنثي | G157: ='[1]4'!E146 -> 2012-04-07 | H157: ='[1]4'!F146 -> 24 | I157: ='[1]4'!G146 -> 5 | J157: ='[1]4'!H146 -> 9 | K157: ='[1]4'!J146 -> مسلمة | L157: ='[1]4'!K146 -> ناجح ومنقول | M157: ='[1]4'!P146 -> 244 | P157: 30 | Q157: 30 | S157: 35 | T157: 35 | V157: 40 | W157: 40 | Y157: 35 | Z157: 35 | AB157: 40 | AC157: 40 | AE157: 25 | AF157: 25 | AH157: 35 | AI157: 35 | AK157: 35 | AL157: 35 | AN157: 90 | AO157: 90 | AP157: 90 | AQ157: 90 | AR157: 90 | AS157: 14.5 | AT157: 14.5 | AU157: 24 | AW157: 12 | AX157: 12 | AY157: 24 | BA157: 15 | BB157: 15 | BC157: 22 | BE157: 15 | BF157: 15 | BG157: 30 | BI157: 15 | BJ157: 15 | BK157: 30 | BM157: 13.5 | BN157: 13.5 | BO157: 28 | BQ157: 12 | BR157: 12 | BS157: 26 | BU157: 13.5 | BV157: 13.5 | BW157: 22 | BY157: 14.5 | BZ157: 14.5 | CA157: 24 | CC157: 12 | CD157: 12 | CE157: 24 | CG157: 15 | CH157: 15 | CI157: 22 | CK157: 15 | CL157: 15 | CM157: 30 | CO157: 15 | CP157: 15 | CQ157: 30 | CS157: 13.5 | CT157: 13.5 | CU157: 28 | CW157: 12 | CX157: 12 | CY157: 26 | DA157: 13.5 | DB157: 13.5 | DC157: 22 | DE157: 90 | DF157: 90 | DG157: 90 | DH157: 90 | DI157: 90
A158: =IF(C158="","",SUBTOTAL(3,$C$14:C158)) -> 145 | B158: ='[1]4'!O147 -> 545 | C158: س145 | D158: 15 | E158: ='[1]4'!N147 -> 1/4 | F158: ='[1]4'!I147 -> أنثي | G158: ='[1]4'!E147 -> 2012-01-02 | H158: ='[1]4'!F147 -> 29 | I158: ='[1]4'!G147 -> 8 | J158: ='[1]4'!H147 -> 9 | K158: ='[1]4'!J147 -> مسلمة | L158: ='[1]4'!K147 -> ناجح ومنقول | M158: ='[1]4'!P147 -> 245 | P158: 40 | Q158: 40 | S158: 40 | T158: 40 | V158: 40 | W158: 40 | Y158: 40 | Z158: 40 | AB158: 40 | AC158: 40 | AE158: 40 | AF158: 40 | AH158: 40 | AI158: 40 | AK158: 40 | AL158: 40 | AN158: 90 | AO158: 90 | AP158: 90 | AQ158: 90 | AR158: 90 | AS158: 14.5 | AT158: 14.5 | AU158: 25.5 | AW158: 15 | AX158: 15 | AY158: 30 | BA158: 15 | BB158: 15 | BC158: 24 | BE158: 15 | BF158: 15 | BG158: 28 | BI158: 15 | BJ158: 15 | BK158: 30 | BM158: 9 | BN158: 9 | BO158: 28 | BQ158: 15 | BR158: 15 | BS158: 28 | BU158: 12 | BV158: 12 | BW158: 28 | BY158: 14.5 | BZ158: 14.5 | CA158: 25.5 | CC158: 15 | CD158: 15 | CE158: 30 | CG158: 15 | CH158: 15 | CI158: 24 | CK158: 15 | CL158: 15 | CM158: 28 | CO158: 15 | CP158: 15 | CQ158: 30 | CS158: 9 | CT158: 9 | CU158: 28 | CW158: 15 | CX158: 15 | CY158: 28 | DA158: 12 | DB158: 12 | DC158: 28 | DE158: 90 | DF158: 90 | DG158: 90 | DH158: 90 | DI158: 90
A159: =IF(C159="","",SUBTOTAL(3,$C$14:C159)) -> 146 | B159: ='[1]4'!O148 -> 546 | C159: س146 | D159: 15 | E159: ='[1]4'!N148 -> 2/4 | F159: ='[1]4'!I148 -> أنثي | G159: ='[1]4'!E148 -> 2012-02-10 | H159: ='[1]4'!F148 -> 21 | I159: ='[1]4'!G148 -> 7 | J159: ='[1]4'!H148 -> 9 | K159: ='[1]4'!J148 -> مسلمة | L159: ='[1]4'!K148 -> ناجح ومنقول | M159: ='[1]4'!P148 -> 246 | P159: 28 | Q159: 28 | S159: 35 | T159: 35 | V159: 40 | W159: 40 | Y159: 26 | Z159: 26 | AB159: 40 | AC159: 40 | AE159: 18 | AF159: 18 | AH159: 35 | AI159: 35 | AK159: 40 | AL159: 40 | AN159: 90 | AO159: 90 | AP159: 95 | AQ159: 90 | AR159: 90 | AS159: 14.5 | AT159: 14.5 | AU159: 22 | AW159: 12 | AX159: 12 | AY159: 28 | BA159: 15 | BB159: 13.5 | BC159: 22 | BE159: 15 | BF159: 15 | BG159: 12 | BI159: 7.5 | BJ159: 7.5 | BK159: 30 | BM159: 15 | BN159: 15 | BO159: 20 | BQ159: 13.5 | BR159: 13.5 | BS159: 8 | BU159: 13.5 | BV159: 13.5 | BW159: 26 | BY159: 14.5 | BZ159: 14.5 | CA159: 22 | CC159: 12 | CD159: 12 | CE159: 28 | CG159: 15 | CH159: 13.5 | CI159: 22 | CK159: 15 | CL159: 15 | CM159: 12 | CO159: 7.5 | CP159: 7.5 | CQ159: 30 | CS159: 15 | CT159: 15 | CU159: 20 | CW159: 13.5 | CX159: 13.5 | CY159: 8 | DA159: 13.5 | DB159: 13.5 | DC159: 26 | DE159: 90 | DF159: 90 | DG159: 95 | DH159: 90 | DI159: 90
A160: =IF(C160="","",SUBTOTAL(3,$C$14:C160)) -> 147 | B160: ='[1]4'!O149 -> 547 | C160: س147 | D160: 15 | E160: ='[1]4'!N149 -> 2/4 | F160: ='[1]4'!I149 -> أنثي | G160: ='[1]4'!E149 -> 2012-06-04 | H160: ='[1]4'!F149 -> 27 | I160: ='[1]4'!G149 -> 3 | J160: ='[1]4'!H149 -> 9 | K160: ='[1]4'!J149 -> مسلمة | L160: ='[1]4'!K149 -> ناجح ومنقول | M160: ='[1]4'!P149 -> 247 | P160: 35 | Q160: 35 | S160: 40 | T160: 40 | V160: 40 | W160: 40 | Y160: 39 | Z160: 39 | AB160: 40 | AC160: 40 | AE160: 35 | AF160: 35 | AH160: 40 | AI160: 40 | AK160: 40 | AL160: 40 | AN160: 90 | AO160: 90 | AP160: 95 | AQ160: 90 | AR160: 90 | AS160: 14.5 | AT160: 14.5 | AU160: 25.5 | AW160: 15 | AX160: 15 | AY160: 30 | BA160: 15 | BB160: 13.5 | BC160: 24 | BE160: 15 | BF160: 15 | BG160: 26 | BI160: 13.5 | BJ160: 13.5 | BK160: 30 | BM160: 15 | BN160: 15 | BO160: 28 | BQ160: 12 | BR160: 12 | BS160: 8 | BU160: 12 | BV160: 12 | BW160: 26 | BY160: 14.5 | BZ160: 14.5 | CA160: 25.5 | CC160: 15 | CD160: 15 | CE160: 30 | CG160: 15 | CH160: 13.5 | CI160: 24 | CK160: 15 | CL160: 15 | CM160: 26 | CO160: 13.5 | CP160: 13.5 | CQ160: 30 | CS160: 15 | CT160: 15 | CU160: 28 | CW160: 12 | CX160: 12 | CY160: 8 | DA160: 12 | DB160: 12 | DC160: 26 | DE160: 90 | DF160: 90 | DG160: 95 | DH160: 90 | DI160: 90
A161: =IF(C161="","",SUBTOTAL(3,$C$14:C161)) -> 148 | B161: ='[1]4'!O150 -> 548 | C161: س148 | D161: 15 | E161: ='[1]4'!N150 -> 2/4 | F161: ='[1]4'!I150 -> أنثي | G161: ='[1]4'!E150 -> 2012-01-01 | H161: ='[1]4'!F150 -> 0 | I161: ='[1]4'!G150 -> 9 | J161: ='[1]4'!H150 -> 9 | K161: ='[1]4'!J150 -> مسلمة | L161: ='[1]4'!K150 -> ناجح ومنقول | M161: ='[1]4'!P150 -> 248 | P161: 40 | Q161: 40 | S161: 40 | T161: 40 | V161: 40 | W161: 40 | Y161: 40 | Z161: 40 | AB161: 40 | AC161: 40 | AE161: 40 | AF161: 40 | AH161: 40 | AI161: 40 | AK161: 40 | AL161: 40 | AN161: 90 | AO161: 90 | AP161: 95 | AQ161: 90 | AR161: 90 | AS161: 14.5 | AT161: 14.5 | AU161: 30 | AW161: 15 | AX161: 15 | AY161: 30 | BA161: 15 | BB161: 15 | BC161: 20 | BE161: 15 | BF161: 15 | BG161: 30 | BI161: 15 | BJ161: 15 | BK161: 30 | BM161: 15 | BN161: 15 | BO161: 28 | BQ161: 12 | BR161: 12 | BS161: 26 | BU161: 13.5 | BV161: 13.5 | BW161: 26 | BY161: 14.5 | BZ161: 14.5 | CA161: 30 | CC161: 15 | CD161: 15 | CE161: 30 | CG161: 15 | CH161: 15 | CI161: 20 | CK161: 15 | CL161: 15 | CM161: 30 | CO161: 15 | CP161: 15 | CQ161: 30 | CS161: 15 | CT161: 15 | CU161: 28 | CW161: 12 | CX161: 12 | CY161: 26 | DA161: 13.5 | DB161: 13.5 | DC161: 26 | DE161: 90 | DF161: 90 | DG161: 95 | DH161: 90 | DI161: 90
A162: =IF(C162="","",SUBTOTAL(3,$C$14:C162)) -> 149 | B162: ='[1]4'!O151 -> 549 | C162: س149 | D162: 15 | E162: ='[1]4'!N151 -> 1/4 | F162: ='[1]4'!I151 -> أنثي | G162: ='[1]4'!E151 -> 2012-11-20 | H162: ='[1]4'!F151 -> 11 | I162: ='[1]4'!G151 -> 10 | J162: ='[1]4'!H151 -> 8 | K162: ='[1]4'!J151 -> مسلمة | L162: ='[1]4'!K151 -> ناجح ومنقول | M162: ='[1]4'!P151 -> 249 | P162: 40 | Q162: 40 | S162: 40 | T162: 40 | V162: 40 | W162: 40 | Y162: 40 | Z162: 40 | AB162: 40 | AC162: 40 | AE162: 40 | AF162: 40 | AH162: 40 | AI162: 40 | AK162: 40 | AL162: 40 | AN162: 90 | AO162: 90 | AP162: 90 | AQ162: 90 | AR162: 90 | AS162: 14.5 | AT162: 14.5 | AU162: 21.5 | AW162: 15 | AX162: 15 | AY162: 30 | BA162: 15 | BB162: 15 | BC162: 24 | BE162: 15 | BF162: 15 | BG162: 28 | BI162: 15 | BJ162: 15 | BK162: 26 | BM162: 15 | BN162: 15 | BO162: 24 | BQ162: 12 | BR162: 12 | BS162: 14 | BU162: 13.5 | BV162: 13.5 | BW162: 26 | BY162: 14.5 | BZ162: 14.5 | CA162: 21.5 | CC162: 15 | CD162: 15 | CE162: 30 | CG162: 15 | CH162: 15 | CI162: 24 | CK162: 15 | CL162: 15 | CM162: 28 | CO162: 15 | CP162: 15 | CQ162: 26 | CS162: 15 | CT162: 15 | CU162: 24 | CW162: 12 | CX162: 12 | CY162: 14 | DA162: 13.5 | DB162: 13.5 | DC162: 26 | DE162: 90 | DF162: 90 | DG162: 90 | DH162: 90 | DI162: 90
A163: =IF(C163="","",SUBTOTAL(3,$C$14:C163)) -> 150 | B163: ='[1]4'!O152 -> 550 | C163: س150 | D163: 15 | E163: ='[1]4'!N152 -> 2/4 | F163: ='[1]4'!I152 -> أنثي | G163: ='[1]4'!E152 -> 2012-08-25 | H163: ='[1]4'!F152 -> 6 | I163: ='[1]4'!G152 -> 1 | J163: ='[1]4'!H152 -> 9 | K163: ='[1]4'!J152 -> مسلمة | L163: ='[1]4'!K152 -> ناجح ومنقول | M163: ='[1]4'!P152 -> 250 | P163: 25 | Q163: 25 | S163: 40 | T163: 40 | V163: 40 | W163: 40 | Y163: 20 | Z163: 20 | AB163: 40 | AC163: 40 | AE163: 20 | AF163: 20 | AH163: 40 | AI163: 40 | AK163: 35 | AL163: 35 | AN163: 90 | AO163: 90 | AP163: 90 | AQ163: 90 | AR163: 90 | AS163: 14.5 | AT163: 14.5 | AU163: 27 | AW163: 15 | AX163: 15 | AY163: 30 | BA163: 15 | BB163: 13.5 | BC163: 26 | BE163: 15 | BF163: 15 | BG163: 28 | BI163: 15 | BJ163: 15 | BK163: 30 | BM163: 15 | BN163: 15 | BO163: 30 | BQ163: 7.5 | BR163: 7.5 | BS163: 24 | BU163: 13.5 | BV163: 13.5 | BW163: 26 | BY163: 14.5 | BZ163: 14.5 | CA163: 27 | CC163: 15 | CD163: 15 | CE163: 30 | CG163: 15 | CH163: 13.5 | CI163: 26 | CK163: 15 | CL163: 15 | CM163: 28 | CO163: 15 | CP163: 15 | CQ163: 30 | CS163: 15 | CT163: 15 | CU163: 30 | CW163: 7.5 | CX163: 7.5 | CY163: 24 | DA163: 13.5 | DB163: 13.5 | DC163: 26 | DE163: 90 | DF163: 90 | DG163: 90 | DH163: 90 | DI163: 90
A164: =IF(C164="","",SUBTOTAL(3,$C$14:C164)) -> 151 | B164: ='[1]4'!O153 -> 551 | C164: س151 | D164: 15 | E164: ='[1]4'!N153 -> 4/4 | F164: ='[1]4'!I153 -> أنثي | G164: ='[1]4'!E153 -> 2011-11-24 | H164: ='[1]4'!F153 -> 7 | I164: ='[1]4'!G153 -> 10 | J164: ='[1]4'!H153 -> 9 | K164: ='[1]4'!J153 -> مسلمة | L164: ='[1]4'!K153 -> ناجح ومنقول | M164: ='[1]4'!P153 -> 251 | P164: 40 | Q164: 40 | S164: 40 | T164: 40 | V164: 40 | W164: 40 | Y164: 30 | Z164: 30 | AB164: 40 | AC164: 40 | AE164: 40 | AF164: 40 | AH164: 40 | AI164: 40 | AK164: 40 | AL164: 40 | AN164: 90 | AO164: 90 | AP164: 90 | AQ164: 90 | AR164: 90 | AS164: 14.5 | AT164: 14.5 | AU164: 27 | AW164: 15 | AX164: 15 | AY164: 28 | BA164: 15 | BB164: 15 | BC164: 26 | BE164: 15 | BF164: 15 | BG164: 30 | BI164: 15 | BJ164: 15 | BK164: 30 | BM164: 15 | BN164: 15 | BO164: 28 | BQ164: 12 | BR164: 12 | BS164: 24 | BU164: 13.5 | BV164: 13.5 | BW164: 26 | BY164: 14.5 | BZ164: 14.5 | CA164: 27 | CC164: 15 | CD164: 15 | CE164: 28 | CG164: 15 | CH164: 15 | CI164: 26 | CK164: 15 | CL164: 15 | CM164: 30 | CO164: 15 | CP164: 15 | CQ164: 30 | CS164: 15 | CT164: 15 | CU164: 28 | CW164: 12 | CX164: 12 | CY164: 24 | DA164: 13.5 | DB164: 13.5 | DC164: 26 | DE164: 90 | DF164: 90 | DG164: 90 | DH164: 90 | DI164: 90
A165: =IF(C165="","",SUBTOTAL(3,$C$14:C165)) -> 152 | B165: ='[1]4'!O154 -> 552 | C165: س152 | D165: 15 | E165: ='[1]4'!N154 -> 3/4 | F165: ='[1]4'!I154 -> أنثي | G165: ='[1]4'!E154 -> 2012-05-16 | H165: ='[1]4'!F154 -> 15 | I165: ='[1]4'!G154 -> 4 | J165: ='[1]4'!H154 -> 9 | K165: ='[1]4'!J154 -> مسلمة | L165: ='[1]4'!K154 -> ناجح ومنقول | M165: ='[1]4'!P154 -> 252 | P165: 40 | Q165: 40 | S165: 40 | T165: 40 | V165: 40 | W165: 40 | Y165: 39 | Z165: 39 | AB165: 40 | AC165: 40 | AE165: 40 | AF165: 40 | AH165: 40 | AI165: 40 | AK165: 40 | AL165: 40 | AN165: 90 | AO165: 90 | AP165: 95 | AQ165: 90 | AR165: 90 | AS165: 14.5 | AT165: 14.5 | AU165: 15 | AW165: 15 | AX165: 15 | AY165: 26 | BA165: 15 | BB165: 15 | BC165: 24 | BE165: 15 | BF165: 15 | BG165: 26 | BI165: 15 | BJ165: 15 | BK165: 30 | BM165: 15 | BN165: 15 | BO165: 24 | BQ165: 13.5 | BR165: 13.5 | BS165: 20 | BU165: 13.5 | BV165: 13.5 | BW165: 20 | BY165: 14.5 | BZ165: 14.5 | CA165: 15 | CC165: 15 | CD165: 15 | CE165: 26 | CG165: 15 | CH165: 15 | CI165: 24 | CK165: 15 | CL165: 15 | CM165: 26 | CO165: 15 | CP165: 15 | CQ165: 30 | CS165: 15 | CT165: 15 | CU165: 24 | CW165: 13.5 | CX165: 13.5 | CY165: 20 | DA165: 13.5 | DB165: 13.5 | DC165: 20 | DE165: 90 | DF165: 90 | DG165: 95 | DH165: 90 | DI165: 90
A166: =IF(C166="","",SUBTOTAL(3,$C$14:C166)) -> 153 | B166: ='[1]4'!O155 -> 553 | C166: س153 | D166: 15 | E166: ='[1]4'!N155 -> 2/4 | F166: ='[1]4'!I155 -> أنثي | G166: ='[1]4'!E155 -> 2011-11-17 | H166: ='[1]4'!F155 -> 14 | I166: ='[1]4'!G155 -> 10 | J166: ='[1]4'!H155 -> 9 | K166: ='[1]4'!J155 -> مسلمة | L166: ='[1]4'!K155 -> ناجح ومنقول | M166: ='[1]4'!P155 -> 253 | P166: 40 | Q166: 40 | S166: 40 | T166: 40 | V166: 40 | W166: 40 | Y166: 40 | Z166: 40 | AB166: 40 | AC166: 40 | AE166: 40 | AF166: 40 | AH166: 40 | AI166: 40 | AK166: 40 | AL166: 40 | AN166: 90 | AO166: 90 | AP166: 95 | AQ166: 90 | AR166: 90 | AS166: 14.5 | AT166: 14.5 | AU166: 21 | AW166: 15 | AX166: 15 | AY166: 28 | BA166: 15 | BB166: 13.5 | BC166: 24 | BE166: 15 | BF166: 15 | BG166: 30 | BI166: 12 | BJ166: 12 | BK166: 30 | BM166: 15 | BN166: 15 | BO166: 18 | BQ166: 10.5 | BR166: 10.5 | BS166: 14 | BU166: 13.5 | BV166: 13.5 | BW166: 26 | BY166: 14.5 | BZ166: 14.5 | CA166: 21 | CC166: 15 | CD166: 15 | CE166: 28 | CG166: 15 | CH166: 13.5 | CI166: 24 | CK166: 15 | CL166: 15 | CM166: 30 | CO166: 12 | CP166: 12 | CQ166: 30 | CS166: 15 | CT166: 15 | CU166: 18 | CW166: 10.5 | CX166: 10.5 | CY166: 14 | DA166: 13.5 | DB166: 13.5 | DC166: 26 | DE166: 90 | DF166: 90 | DG166: 95 | DH166: 90 | DI166: 90
A167: =IF(C167="","",SUBTOTAL(3,$C$14:C167)) -> 154 | B167: ='[1]4'!O156 -> 554 | C167: س154 | D167: 15 | E167: ='[1]4'!N156 -> 3/4 | F167: ='[1]4'!I156 -> أنثي | G167: ='[1]4'!E156 -> 2012-02-06 | H167: ='[1]4'!F156 -> 25 | I167: ='[1]4'!G156 -> 7 | J167: ='[1]4'!H156 -> 9 | K167: ='[1]4'!J156 -> مسلمة | L167: ='[1]4'!K156 -> ناجح ومنقول | M167: ='[1]4'!P156 -> 254 | P167: 40 | Q167: 40 | S167: 40 | T167: 40 | V167: 40 | W167: 40 | Y167: 40 | Z167: 40 | AB167: 40 | AC167: 40 | AE167: 40 | AF167: 40 | AH167: 40 | AI167: 40 | AK167: 35 | AL167: 35 | AN167: 90 | AO167: 90 | AP167: 90 | AQ167: 90 | AR167: 90 | AS167: 7.5 | AT167: 7.5 | AU167: 16.5 | AW167: 10 | AX167: 10 | AY167: 24 | BA167: 15 | BB167: 15 | BC167: 20 | BE167: 12 | BF167: 12 | BG167: 26 | BI167: 13.5 | BJ167: 13.5 | BK167: 28 | BM167: 15 | BN167: 15 | BO167: 26 | BQ167: 15 | BR167: 15 | BS167: 24 | BU167: 15 | BV167: 15 | BW167: 26 | BY167: 7.5 | BZ167: 7.5 | CA167: 16.5 | CC167: 10 | CD167: 10 | CE167: 24 | CG167: 15 | CH167: 15 | CI167: 20 | CK167: 12 | CL167: 12 | CM167: 26 | CO167: 13.5 | CP167: 13.5 | CQ167: 28 | CS167: 15 | CT167: 15 | CU167: 26 | CW167: 15 | CX167: 15 | CY167: 24 | DA167: 15 | DB167: 15 | DC167: 26 | DE167: 90 | DF167: 90 | DG167: 90 | DH167: 90 | DI167: 90
A168: =IF(C168="","",SUBTOTAL(3,$C$14:C168)) -> 155 | B168: ='[1]4'!O157 -> 555 | C168: س155 | D168: 15 | E168: ='[1]4'!N157 -> 3/4 | F168: ='[1]4'!I157 -> أنثي | G168: ='[1]4'!E157 -> 2011-12-08 | H168: ='[1]4'!F157 -> 23 | I168: ='[1]4'!G157 -> 9 | J168: ='[1]4'!H157 -> 9 | K168: ='[1]4'!J157 -> مسلمة | L168: ='[1]4'!K157 -> ناجح ومنقول | M168: ='[1]4'!P157 -> 255 | P168: 25 | Q168: 25 | S168: 40 | T168: 40 | V168: 40 | W168: 40 | Y168: 39 | Z168: 39 | AB168: 40 | AC168: 40 | AE168: 40 | AF168: 40 | AH168: 40 | AI168: 40 | AK168: 35 | AL168: 35 | AN168: 90 | AO168: 90 | AP168: 90 | AQ168: 90 | AR168: 90 | AS168: 14.5 | AT168: 14.5 | AU168: 17 | AW168: 14 | AX168: 14 | AY168: 28 | BA168: 15 | BB168: 15 | BC168: 20 | BE168: 15 | BF168: 15 | BG168: 26 | BI168: 15 | BJ168: 15 | BK168: 30 | BM168: 15 | BN168: 15 | BO168: 20 | BQ168: 13.5 | BR168: 13.5 | BS168: 18 | BU168: 13.5 | BV168: 13.5 | BW168: 20 | BY168: 14.5 | BZ168: 14.5 | CA168: 17 | CC168: 14 | CD168: 14 | CE168: 28 | CG168: 15 | CH168: 15 | CI168: 20 | CK168: 15 | CL168: 15 | CM168: 26 | CO168: 15 | CP168: 15 | CQ168: 30 | CS168: 15 | CT168: 15 | CU168: 20 | CW168: 13.5 | CX168: 13.5 | CY168: 18 | DA168: 13.5 | DB168: 13.5 | DC168: 20 | DE168: 90 | DF168: 90 | DG168: 90 | DH168: 90 | DI168: 90
A169: =IF(C169="","",SUBTOTAL(3,$C$14:C169)) -> 156 | B169: ='[1]4'!O158 -> 556 | C169: س156 | D169: 15 | E169: ='[1]4'!N158 -> 4/4 | F169: ='[1]4'!I158 -> أنثي | G169: ='[1]4'!E158 -> 2012-03-20 | H169: ='[1]4'!F158 -> 11 | I169: ='[1]4'!G158 -> 6 | J169: ='[1]4'!H158 -> 9 | K169: ='[1]4'!J158 -> مسلمة | L169: ='[1]4'!K158 -> ناجح ومنقول | M169: ='[1]4'!P158 -> 256 | P169: 35 | Q169: 35 | S169: 40 | T169: 40 | V169: 35 | W169: 35 | Y169: 40 | Z169: 40 | AB169: 40 | AC169: 40 | AE169: 40 | AF169: 40 | AH169: 40 | AI169: 40 | AK169: 40 | AL169: 40 | AN169: 90 | AO169: 90 | AP169: 90 | AQ169: 90 | AR169: 90 | AS169: 9 | AT169: 9 | AU169: 17 | AW169: 14 | AX169: 14 | AY169: 28 | BA169: 15 | BB169: 15 | BC169: 22 | BE169: 12 | BF169: 12 | BG169: 26 | BI169: 15 | BJ169: 15 | BK169: 30 | BM169: 15 | BN169: 15 | BO169: 20 | BQ169: 13.5 | BR169: 13.5 | BS169: 12 | BU169: 12 | BV169: 12 | BW169: 24 | BY169: 9 | BZ169: 9 | CA169: 17 | CC169: 14 | CD169: 14 | CE169: 28 | CG169: 15 | CH169: 15 | CI169: 22 | CK169: 12 | CL169: 12 | CM169: 26 | CO169: 15 | CP169: 15 | CQ169: 30 | CS169: 15 | CT169: 15 | CU169: 20 | CW169: 13.5 | CX169: 13.5 | CY169: 12 | DA169: 12 | DB169: 12 | DC169: 24 | DE169: 90 | DF169: 90 | DG169: 90 | DH169: 90 | DI169: 90
A170: =IF(C170="","",SUBTOTAL(3,$C$14:C170)) -> 157 | B170: ='[1]4'!O159 -> 557 | C170: س157 | D170: 15 | E170: ='[1]4'!N159 -> 2/4 | F170: ='[1]4'!I159 -> أنثي | G170: ='[1]4'!E159 -> 2011-11-11 | H170: ='[1]4'!F159 -> 20 | I170: ='[1]4'!G159 -> 10 | J170: ='[1]4'!H159 -> 9 | K170: ='[1]4'!J159 -> مسلمة | L170: ='[1]4'!K159 -> ناجح ومنقول | M170: ='[1]4'!P159 -> 257 | P170: غ | Q170: غ | S170: غ | T170: غ | V170: غ | W170: غ | Y170: غ | Z170: غ | AB170: غ | AC170: غ | AE170: غ | AF170: غ | AH170: غ | AI170: غ | AK170: غ | AL170: غ | AN170: غ | AO170: غ | AP170: غ | AQ170: غ | AR170: غ | AS170: غ | AT170: غ | AU170: غ | AW170: غ | AX170: غ | AY170: غ | BA170: 15 | BB170: غ | BC170: غ | BE170: غ | BF170: غ | BG170: غ | BI170: غ | BJ170: غ | BK170: غ | BM170: غ | BN170: غ | BO170: غ | BQ170: غ | BR170: غ | BS170: غ | BU170: غ | BV170: غ | BW170: غ | BY170: غ | BZ170: غ | CA170: غ | CC170: غ | CD170: غ | CE170: غ | CG170: 15 | CH170: غ | CI170: غ | CK170: غ | CL170: غ | CM170: غ | CO170: غ | CP170: غ | CQ170: غ | CS170: غ | CT170: غ | CU170: غ | CW170: غ | CX170: غ | CY170: غ | DA170: غ | DB170: غ | DC170: غ | DE170: غ | DF170: غ | DG170: غ | DH170: غ | DI170: غ
A171: =IF(C171="","",SUBTOTAL(3,$C$14:C171)) -> 158 | B171: ='[1]4'!O160 -> 558 | C171: س158 | D171: 15 | E171: ='[1]4'!N160 -> 3/4 | F171: ='[1]4'!I160 -> أنثي | G171: ='[1]4'!E160 -> 2012-08-23 | H171: ='[1]4'!F160 -> 8 | I171: ='[1]4'!G160 -> 1 | J171: ='[1]4'!H160 -> 9 | K171: ='[1]4'!J160 -> مسلمة | L171: ='[1]4'!K160 -> ناجح ومنقول | M171: ='[1]4'!P160 -> 258 | P171: 40 | Q171: 40 | S171: 40 | T171: 40 | V171: 40 | W171: 40 | Y171: 38 | Z171: 38 | AB171: 40 | AC171: 40 | AE171: 40 | AF171: 40 | AH171: 40 | AI171: 40 | AK171: 35 | AL171: 35 | AN171: 90 | AO171: 90 | AP171: 95 | AQ171: 90 | AR171: 90 | AS171: 14.5 | AT171: 14.5 | AU171: 12 | AW171: 15 | AX171: 15 | AY171: 30 | BA171: 15 | BB171: 15 | BC171: 26 | BE171: 15 | BF171: 15 | BG171: 26 | BI171: 9 | BJ171: 9 | BK171: 30 | BM171: 15 | BN171: 15 | BO171: 26 | BQ171: 12 | BR171: 12 | BS171: 16 | BU171: 13.5 | BV171: 13.5 | BW171: 18 | BY171: 14.5 | BZ171: 14.5 | CA171: 12 | CC171: 15 | CD171: 15 | CE171: 30 | CG171: 15 | CH171: 15 | CI171: 26 | CK171: 15 | CL171: 15 | CM171: 26 | CO171: 9 | CP171: 9 | CQ171: 30 | CS171: 15 | CT171: 15 | CU171: 26 | CW171: 12 | CX171: 12 | CY171: 16 | DA171: 13.5 | DB171: 13.5 | DC171: 18 | DE171: 90 | DF171: 90 | DG171: 95 | DH171: 90 | DI171: 90
A172: =IF(C172="","",SUBTOTAL(3,$C$14:C172)) -> 159 | B172: ='[1]4'!O161 -> 559 | C172: س159 | D172: 15 | E172: ='[1]4'!N161 -> 1/4 | F172: ='[1]4'!I161 -> أنثي | G172: ='[1]4'!E161 -> 2012-08-22 | H172: ='[1]4'!F161 -> 9 | I172: ='[1]4'!G161 -> 1 | J172: ='[1]4'!H161 -> 9 | K172: ='[1]4'!J161 -> مسلمة | L172: ='[1]4'!K161 -> ناجح ومنقول | M172: ='[1]4'!P161 -> 259 | P172: 40 | Q172: 40 | S172: 40 | T172: 40 | V172: 40 | W172: 40 | Y172: 40 | Z172: 40 | AB172: 40 | AC172: 40 | AE172: 40 | AF172: 40 | AH172: 40 | AI172: 40 | AK172: 40 | AL172: 40 | AN172: 90 | AO172: 90 | AP172: 90 | AQ172: 90 | AR172: 90 | AS172: 15 | AT172: 15 | AU172: 25.5 | AW172: 15 | AX172: 15 | AY172: 30 | BA172: 15 | BB172: 15 | BC172: 28 | BE172: 15 | BF172: 15 | BG172: 30 | BI172: 15 | BJ172: 15 | BK172: 30 | BM172: 15 | BN172: 15 | BO172: 28 | BQ172: 12 | BR172: 12 | BS172: 18 | BU172: 12 | BV172: 12 | BW172: 26 | BY172: 15 | BZ172: 15 | CA172: 25.5 | CC172: 15 | CD172: 15 | CE172: 30 | CG172: 15 | CH172: 15 | CI172: 28 | CK172: 15 | CL172: 15 | CM172: 30 | CO172: 15 | CP172: 15 | CQ172: 30 | CS172: 15 | CT172: 15 | CU172: 28 | CW172: 12 | CX172: 12 | CY172: 18 | DA172: 12 | DB172: 12 | DC172: 26 | DE172: 90 | DF172: 90 | DG172: 90 | DH172: 90 | DI172: 90
A173: =IF(C173="","",SUBTOTAL(3,$C$14:C173)) -> 160 | B173: ='[1]4'!O162 -> 560 | C173: س160 | D173: 15 | E173: ='[1]4'!N162 -> 4/4 | F173: ='[1]4'!I162 -> أنثي | G173: ='[1]4'!E162 -> 2011-10-20 | H173: ='[1]4'!F162 -> 11 | I173: ='[1]4'!G162 -> 11 | J173: ='[1]4'!H162 -> 9 | K173: ='[1]4'!J162 -> مسلمة | L173: ='[1]4'!K162 -> ناجح ومنقول | M173: ='[1]4'!P162 -> 260 | P173: 40 | Q173: 40 | S173: 40 | T173: 40 | V173: 40 | W173: 40 | Y173: 40 | Z173: 40 | AB173: 40 | AC173: 40 | AE173: 40 | AF173: 40 | AH173: 40 | AI173: 40 | AK173: 40 | AL173: 40 | AN173: 90 | AO173: 90 | AP173: 95 | AQ173: 90 | AR173: 90 | AS173: 14.5 | AT173: 14.5 | AU173: 27 | AW173: 15 | AX173: 15 | AY173: 30 | BA173: 15 | BB173: 15 | BC173: 26 | BE173: 15 | BF173: 15 | BG173: 28 | BI173: 15 | BJ173: 15 | BK173: 30 | BM173: 15 | BN173: 15 | BO173: 28 | BQ173: 12 | BR173: 12 | BS173: 20 | BU173: 13.5 | BV173: 13.5 | BW173: 26 | BY173: 14.5 | BZ173: 14.5 | CA173: 27 | CC173: 15 | CD173: 15 | CE173: 30 | CG173: 15 | CH173: 15 | CI173: 26 | CK173: 15 | CL173: 15 | CM173: 28 | CO173: 15 | CP173: 15 | CQ173: 30 | CS173: 15 | CT173: 15 | CU173: 28 | CW173: 12 | CX173: 12 | CY173: 20 | DA173: 13.5 | DB173: 13.5 | DC173: 26 | DE173: 90 | DF173: 90 | DG173: 95 | DH173: 90 | DI173: 90
A174: =IF(C174="","",SUBTOTAL(3,$C$14:C174)) -> 161 | B174: ='[1]4'!O163 -> 561 | C174: س161 | D174: 15 | E174: ='[1]4'!N163 -> 1/4 | F174: ='[1]4'!I163 -> أنثي | G174: ='[1]4'!E163 -> 2011-12-18 | H174: ='[1]4'!F163 -> 13 | I174: ='[1]4'!G163 -> 9 | J174: ='[1]4'!H163 -> 9 | K174: ='[1]4'!J163 -> مسلمة | L174: ='[1]4'!K163 -> ناجح ومنقول | M174: ='[1]4'!P163 -> 261 | P174: 39 | Q174: 39 | S174: 40 | T174: 40 | V174: 40 | W174: 40 | Y174: 40 | Z174: 40 | AB174: 37 | AC174: 37 | AE174: 39 | AF174: 39 | AH174: 40 | AI174: 40 | AK174: 40 | AL174: 40 | AN174: 90 | AO174: 90 | AP174: 90 | AQ174: 90 | AR174: 90 | AS174: 14 | AT174: 14 | AU174: 27 | AW174: 15 | AX174: 15 | AY174: 28 | BA174: 15 | BB174: 15 | BC174: 16 | BE174: 15 | BF174: 15 | BG174: 20 | BI174: 15 | BJ174: 15 | BK174: 30 | BM174: 15 | BN174: 15 | BO174: 22 | BQ174: 13.5 | BR174: 13.5 | BS174: 24 | BU174: 12 | BV174: 12 | BW174: 28 | BY174: 14 | BZ174: 14 | CA174: 27 | CC174: 15 | CD174: 15 | CE174: 28 | CG174: 15 | CH174: 15 | CI174: 16 | CK174: 15 | CL174: 15 | CM174: 20 | CO174: 15 | CP174: 15 | CQ174: 30 | CS174: 15 | CT174: 15 | CU174: 22 | CW174: 13.5 | CX174: 13.5 | CY174: 24 | DA174: 12 | DB174: 12 | DC174: 28 | DE174: 90 | DF174: 90 | DG174: 90 | DH174: 90 | DI174: 90
A175: =IF(C175="","",SUBTOTAL(3,$C$14:C175)) -> 162 | B175: ='[1]4'!O164 -> 562 | C175: س162 | D175: 15 | E175: ='[1]4'!N164 -> 3/4 | F175: ='[1]4'!I164 -> أنثي | G175: ='[1]4'!E164 -> 2012-05-09 | H175: ='[1]4'!F164 -> 22 | I175: ='[1]4'!G164 -> 4 | J175: ='[1]4'!H164 -> 9 | K175: ='[1]4'!J164 -> مسلمة | L175: ='[1]4'!K164 -> ناجح ومنقول | M175: ='[1]4'!P164 -> 262 | P175: 40 | Q175: 40 | S175: 40 | T175: 40 | V175: 40 | W175: 40 | Y175: 38 | Z175: 38 | AB175: 40 | AC175: 40 | AE175: 40 | AF175: 40 | AH175: 40 | AI175: 40 | AK175: 35 | AL175: 35 | AN175: 90 | AO175: 90 | AP175: 90 | AQ175: 90 | AR175: 90 | AS175: 14.5 | AT175: 14.5 | AU175: 18 | AW175: 15 | AX175: 15 | AY175: 28 | BA175: 15 | BB175: 15 | BC175: 20 | BE175: 15 | BF175: 15 | BG175: 30 | BI175: 15 | BJ175: 15 | BK175: 30 | BM175: 15 | BN175: 15 | BO175: 28 | BQ175: 13.5 | BR175: 13.5 | BS175: 26 | BU175: 13.5 | BV175: 13.5 | BW175: 26 | BY175: 14.5 | BZ175: 14.5 | CA175: 18 | CC175: 15 | CD175: 15 | CE175: 28 | CG175: 15 | CH175: 15 | CI175: 20 | CK175: 15 | CL175: 15 | CM175: 30 | CO175: 15 | CP175: 15 | CQ175: 30 | CS175: 15 | CT175: 15 | CU175: 28 | CW175: 13.5 | CX175: 13.5 | CY175: 26 | DA175: 13.5 | DB175: 13.5 | DC175: 26 | DE175: 90 | DF175: 90 | DG175: 90 | DH175: 90 | DI175: 90
A176: =IF(C176="","",SUBTOTAL(3,$C$14:C176)) -> 163 | B176: ='[1]4'!O165 -> 563 | C176: س163 | D176: 15 | E176: ='[1]4'!N165 -> 4/4 | F176: ='[1]4'!I165 -> أنثي | G176: ='[1]4'!E165 -> 2011-04-09 | H176: ='[1]4'!F165 -> 22 | I176: ='[1]4'!G165 -> 5 | J176: ='[1]4'!H165 -> 10 | K176: ='[1]4'!J165 -> مسلمة | L176: ='[1]4'!K165 -> ناجح ومنقول | M176: ='[1]4'!P165 -> 263 | P176: 35 | Q176: 35 | S176: 40 | T176: 40 | V176: 40 | W176: 40 | Y176: 40 | Z176: 40 | AB176: 40 | AC176: 40 | AE176: 40 | AF176: 40 | AH176: 40 | AI176: 40 | AK176: 40 | AL176: 40 | AN176: 90 | AO176: 90 | AP176: 90 | AQ176: 90 | AR176: 90 | AS176: 14.5 | AT176: 14.5 | AU176: 28.5 | AW176: 10 | AX176: 10 | AY176: 28 | BA176: 15 | BB176: 15 | BC176: 20 | BE176: 15 | BF176: 15 | BG176: 30 | BI176: 7.5 | BJ176: 7.5 | BK176: 30 | BM176: 12 | BN176: 12 | BO176: 16 | BQ176: 13.5 | BR176: 13.5 | BS176: 26 | BU176: 12 | BV176: 12 | BW176: 22 | BY176: 14.5 | BZ176: 14.5 | CA176: 28.5 | CC176: 10 | CD176: 10 | CE176: 28 | CG176: 15 | CH176: 15 | CI176: 20 | CK176: 15 | CL176: 15 | CM176: 30 | CO176: 7.5 | CP176: 7.5 | CQ176: 30 | CS176: 12 | CT176: 12 | CU176: 16 | CW176: 13.5 | CX176: 13.5 | CY176: 26 | DA176: 12 | DB176: 12 | DC176: 22 | DE176: 90 | DF176: 90 | DG176: 90 | DH176: 90 | DI176: 90
A177: =IF(C177="","",SUBTOTAL(3,$C$14:C177)) -> 164 | B177: ='[1]4'!O166 -> 564 | C177: س164 | D177: 15 | E177: ='[1]4'!N166 -> 2/4 | F177: ='[1]4'!I166 -> أنثي | G177: ='[1]4'!E166 -> 2012-01-25 | H177: ='[1]4'!F166 -> 6 | I177: ='[1]4'!G166 -> 8 | J177: ='[1]4'!H166 -> 9 | K177: ='[1]4'!J166 -> مسلمة | L177: ='[1]4'!K166 -> ناجح ومنقول | M177: ='[1]4'!P166 -> 264 | P177: 16 | Q177: 16 | S177: 30 | T177: 30 | V177: 35 | W177: 35 | Y177: 35 | Z177: 35 | AB177: 40 | AC177: 40 | AE177: 16 | AF177: 16 | AH177: 33 | AI177: 33 | AK177: 35 | AL177: 35 | AN177: 90 | AO177: 90 | AP177: 90 | AQ177: 90 | AR177: 90 | AS177: 14.5 | AT177: 14.5 | AU177: 16 | AW177: 9 | AX177: 9 | AY177: 28 | BA177: 15 | BB177: 15 | BC177: 20 | BE177: 15 | BF177: 15 | BG177: 30 | BI177: 9 | BJ177: 9 | BK177: 30 | BM177: 12 | BN177: 12 | BO177: 24 | BQ177: 13.5 | BR177: 13.5 | BS177: 26 | BU177: 12 | BV177: 12 | BW177: 26 | BY177: 14.5 | BZ177: 14.5 | CA177: 16 | CC177: 9 | CD177: 9 | CE177: 28 | CG177: 15 | CH177: 15 | CI177: 20 | CK177: 15 | CL177: 15 | CM177: 30 | CO177: 9 | CP177: 9 | CQ177: 30 | CS177: 12 | CT177: 12 | CU177: 24 | CW177: 13.5 | CX177: 13.5 | CY177: 26 | DA177: 12 | DB177: 12 | DC177: 26 | DE177: 90 | DF177: 90 | DG177: 90 | DH177: 90 | DI177: 90
A178: =IF(C178="","",SUBTOTAL(3,$C$14:C178)) -> 165 | B178: ='[1]4'!O167 -> 565 | C178: س165 | D178: 15 | E178: ='[1]4'!N167 -> 4/4 | F178: ='[1]4'!I167 -> أنثي | G178: ='[1]4'!E167 -> 2012-08-11 | H178: ='[1]4'!F167 -> 20 | I178: ='[1]4'!G167 -> 1 | J178: ='[1]4'!H167 -> 9 | K178: ='[1]4'!J167 -> مسلمة | L178: ='[1]4'!K167 -> ناجح ومنقول | M178: ='[1]4'!P167 -> 265 | P178: 40 | Q178: 40 | S178: 40 | T178: 40 | V178: 40 | W178: 40 | Y178: 40 | Z178: 40 | AB178: 40 | AC178: 40 | AE178: 40 | AF178: 40 | AH178: 40 | AI178: 40 | AK178: 40 | AL178: 40 | AN178: 90 | AO178: 90 | AP178: 90 | AQ178: 90 | AR178: 90 | AS178: 14.5 | AT178: 14.5 | AU178: 27 | AW178: 10 | AX178: 10 | AY178: 28 | BA178: 15 | BB178: 15 | BC178: 22 | BE178: 15 | BF178: 15 | BG178: 30 | BI178: 15 | BJ178: 15 | BK178: 30 | BM178: 15 | BN178: 15 | BO178: 28 | BQ178: 13.5 | BR178: 13.5 | BS178: 26 | BU178: 15 | BV178: 15 | BW178: 28 | BY178: 14.5 | BZ178: 14.5 | CA178: 27 | CC178: 10 | CD178: 10 | CE178: 28 | CG178: 15 | CH178: 15 | CI178: 22 | CK178: 15 | CL178: 15 | CM178: 30 | CO178: 15 | CP178: 15 | CQ178: 30 | CS178: 15 | CT178: 15 | CU178: 28 | CW178: 13.5 | CX178: 13.5 | CY178: 26 | DA178: 15 | DB178: 15 | DC178: 28 | DE178: 90 | DF178: 90 | DG178: 90 | DH178: 90 | DI178: 90
A179: =IF(C179="","",SUBTOTAL(3,$C$14:C179)) -> 166 | B179: ='[1]4'!O168 -> 566 | C179: س166 | D179: 15 | E179: ='[1]4'!N168 -> 4/4 | F179: ='[1]4'!I168 -> أنثي | G179: ='[1]4'!E168 -> 2012-03-26 | H179: ='[1]4'!F168 -> 5 | I179: ='[1]4'!G168 -> 6 | J179: ='[1]4'!H168 -> 9 | K179: ='[1]4'!J168 -> مسلمة | L179: ='[1]4'!K168 -> ناجح ومنقول | M179: ='[1]4'!P168 -> 266 | P179: 35 | Q179: 35 | S179: 40 | T179: 40 | V179: 40 | W179: 40 | Y179: 40 | Z179: 40 | AB179: 39 | AC179: 39 | AE179: 35 | AF179: 35 | AH179: 35 | AI179: 35 | AK179: 40 | AL179: 40 | AN179: 90 | AO179: 90 | AP179: 90 | AQ179: 90 | AR179: 90 | AS179: 14.5 | AT179: 14.5 | AU179: 25.5 | AW179: 10 | AX179: 10 | AY179: 26 | BA179: 15 | BB179: 15 | BC179: 26 | BE179: 15 | BF179: 15 | BG179: 30 | BI179: 15 | BJ179: 15 | BK179: 30 | BM179: 15 | BN179: 15 | BO179: 26 | BQ179: 13.5 | BR179: 13.5 | BS179: 26 | BU179: 15 | BV179: 15 | BW179: 26 | BY179: 14.5 | BZ179: 14.5 | CA179: 25.5 | CC179: 10 | CD179: 10 | CE179: 26 | CG179: 15 | CH179: 15 | CI179: 26 | CK179: 15 | CL179: 15 | CM179: 30 | CO179: 15 | CP179: 15 | CQ179: 30 | CS179: 15 | CT179: 15 | CU179: 26 | CW179: 13.5 | CX179: 13.5 | CY179: 26 | DA179: 15 | DB179: 15 | DC179: 26 | DE179: 90 | DF179: 90 | DG179: 90 | DH179: 90 | DI179: 90
A180: =IF(C180="","",SUBTOTAL(3,$C$14:C180)) -> 167 | B180: ='[1]4'!O169 -> 567 | C180: س167 | D180: 15 | E180: ='[1]4'!N169 -> 4/4 | F180: ='[1]4'!I169 -> أنثي | G180: ='[1]4'!E169 -> 2012-03-08 | H180: ='[1]4'!F169 -> 23 | I180: ='[1]4'!G169 -> 6 | J180: ='[1]4'!H169 -> 9 | K180: ='[1]4'!J169 -> مسلمة | L180: ='[1]4'!K169 -> ناجح ومنقول | M180: ='[1]4'!P169 -> 267 | P180: 30 | Q180: 30 | S180: 40 | T180: 40 | V180: 35 | W180: 35 | Y180: 40 | Z180: 40 | AB180: 39 | AC180: 39 | AE180: 35 | AF180: 35 | AH180: 40 | AI180: 40 | AK180: 40 | AL180: 40 | AN180: 85 | AO180: 85 | AP180: 85 | AQ180: 85 | AR180: 90 | AS180: 14.5 | AT180: 14.5 | AU180: 21 | AW180: 15 | AX180: 15 | AY180: 28 | BA180: 15 | BB180: 15 | BC180: 18 | BE180: 15 | BF180: 15 | BG180: 22 | BI180: 15 | BJ180: 15 | BK180: 30 | BM180: 15 | BN180: 15 | BO180: 24 | BQ180: 13.5 | BR180: 13.5 | BS180: 24 | BU180: 15 | BV180: 15 | BW180: 26 | BY180: 14.5 | BZ180: 14.5 | CA180: 21 | CC180: 15 | CD180: 15 | CE180: 28 | CG180: 15 | CH180: 15 | CI180: 18 | CK180: 15 | CL180: 15 | CM180: 22 | CO180: 15 | CP180: 15 | CQ180: 30 | CS180: 15 | CT180: 15 | CU180: 24 | CW180: 13.5 | CX180: 13.5 | CY180: 24 | DA180: 15 | DB180: 15 | DC180: 26 | DE180: 85 | DF180: 85 | DG180: 85 | DH180: 85 | DI180: 90
A181: =IF(C181="","",SUBTOTAL(3,$C$14:C181)) -> 168 | B181: ='[1]4'!O170 -> 568 | C181: س168 | D181: 15 | E181: ='[1]4'!N170 -> 4/4 | F181: ='[1]4'!I170 -> أنثي | G181: ='[1]4'!E170 -> 2012-01-19 | H181: ='[1]4'!F170 -> 12 | I181: ='[1]4'!G170 -> 8 | J181: ='[1]4'!H170 -> 9 | K181: ='[1]4'!J170 -> مسلمة | L181: ='[1]4'!K170 -> ناجح ومنقول | M181: ='[1]4'!P170 -> 268 | P181: 30 | Q181: 30 | S181: 30 | T181: 30 | V181: 40 | W181: 40 | Y181: 40 | Z181: 40 | AB181: 40 | AC181: 40 | AE181: 40 | AF181: 40 | AH181: 40 | AI181: 40 | AK181: 40 | AL181: 40 | AN181: 85 | AO181: 85 | AP181: 85 | AQ181: 85 | AR181: 85 | AS181: غ | AT181: غ | AU181: 28.5 | AW181: 15 | AX181: 15 | AY181: 20 | BA181: 15 | BB181: 15 | BC181: 26 | BE181: 15 | BF181: 15 | BG181: 22 | BI181: 15 | BJ181: 15 | BK181: 30 | BM181: غ | BN181: غ | BO181: 26 | BQ181: 13.5 | BR181: 13.5 | BS181: 28 | BU181: 15 | BV181: 15 | BW181: 24 | BY181: غ | BZ181: غ | CA181: 28.5 | CC181: 15 | CD181: 15 | CE181: 20 | CG181: 15 | CH181: 15 | CI181: 26 | CK181: 15 | CL181: 15 | CM181: 22 | CO181: 15 | CP181: 15 | CQ181: 30 | CS181: غ | CT181: غ | CU181: 26 | CW181: 13.5 | CX181: 13.5 | CY181: 28 | DA181: 15 | DB181: 15 | DC181: 24 | DE181: 85 | DF181: 85 | DG181: 85 | DH181: 85 | DI181: 85
A182: =IF(C182="","",SUBTOTAL(3,$C$14:C182)) -> 169 | B182: ='[1]4'!O171 -> 569 | C182: س169 | D182: 15 | E182: ='[1]4'!N171 -> 1/4 | F182: ='[1]4'!I171 -> أنثي | G182: ='[1]4'!E171 -> 2012-08-22 | H182: ='[1]4'!F171 -> 9 | I182: ='[1]4'!G171 -> 1 | J182: ='[1]4'!H171 -> 9 | K182: ='[1]4'!J171 -> مسلمة | L182: ='[1]4'!K171 -> ناجح ومنقول | M182: ='[1]4'!P171 -> 269 | P182: 40 | Q182: 40 | S182: 35 | T182: 35 | V182: 40 | W182: 40 | Y182: 40 | Z182: 40 | AB182: 40 | AC182: 40 | AE182: 40 | AF182: 40 | AH182: 40 | AI182: 40 | AK182: 40 | AL182: 40 | AN182: 85 | AO182: 85 | AP182: 85 | AQ182: 85 | AR182: 85 | AS182: 14.5 | AT182: 14.5 | AU182: 29.5 | AW182: 15 | AX182: 15 | AY182: 24 | BA182: 15 | BB182: 15 | BC182: 28 | BE182: 15 | BF182: 15 | BG182: 28 | BI182: 15 | BJ182: 15 | BK182: 30 | BM182: 15 | BN182: 15 | BO182: 28 | BQ182: 13.5 | BR182: 13.5 | BS182: 28 | BU182: 15 | BV182: 15 | BW182: 26 | BY182: 14.5 | BZ182: 14.5 | CA182: 29.5 | CC182: 15 | CD182: 15 | CE182: 24 | CG182: 15 | CH182: 15 | CI182: 28 | CK182: 15 | CL182: 15 | CM182: 28 | CO182: 15 | CP182: 15 | CQ182: 30 | CS182: 15 | CT182: 15 | CU182: 28 | CW182: 13.5 | CX182: 13.5 | CY182: 28 | DA182: 15 | DB182: 15 | DC182: 26 | DE182: 85 | DF182: 85 | DG182: 85 | DH182: 85 | DI182: 85
A183: =IF(C183="","",SUBTOTAL(3,$C$14:C183)) -> 170 | B183: ='[1]4'!O172 -> 570 | C183: س170 | D183: 15 | E183: ='[1]4'!N172 -> 3/4 | F183: ='[1]4'!I172 -> أنثي | G183: ='[1]4'!E172 -> 2012-04-25 | H183: ='[1]4'!F172 -> 6 | I183: ='[1]4'!G172 -> 5 | J183: ='[1]4'!H172 -> 9 | K183: ='[1]4'!J172 -> مسلمة | L183: ='[1]4'!K172 -> ناجح ومنقول | M183: ='[1]4'!P172 -> 270 | P183: 40 | Q183: 40 | S183: 40 | T183: 40 | V183: 40 | W183: 40 | Y183: 38 | Z183: 38 | AB183: 35 | AC183: 35 | AE183: 40 | AF183: 40 | AH183: 40 | AI183: 40 | AK183: 35 | AL183: 35 | AN183: 85 | AO183: 85 | AP183: 85 | AQ183: 85 | AR183: 85 | AS183: 14.5 | AT183: 14.5 | AU183: 28.5 | AW183: 15 | AX183: 15 | AY183: 26 | BA183: 15 | BB183: 15 | BC183: 26 | BE183: 15 | BF183: 15 | BG183: 22 | BI183: 13.5 | BJ183: 13.5 | BK183: 30 | BM183: 15 | BN183: 15 | BO183: 22 | BQ183: 9 | BR183: 9 | BS183: 28 | BU183: 15 | BV183: 15 | BW183: 22 | BY183: 14.5 | BZ183: 14.5 | CA183: 28.5 | CC183: 15 | CD183: 15 | CE183: 26 | CG183: 15 | CH183: 15 | CI183: 26 | CK183: 15 | CL183: 15 | CM183: 22 | CO183: 13.5 | CP183: 13.5 | CQ183: 30 | CS183: 15 | CT183: 15 | CU183: 22 | CW183: 9 | CX183: 9 | CY183: 28 | DA183: 15 | DB183: 15 | DC183: 22 | DE183: 85 | DF183: 85 | DG183: 85 | DH183: 85 | DI183: 85
A184: =IF(C184="","",SUBTOTAL(3,$C$14:C184)) -> 171 | B184: ='[1]4'!O173 -> 571 | C184: س171 | D184: 15 | E184: ='[1]4'!N173 -> 4/4 | F184: ='[1]4'!I173 -> أنثي | G184: ='[1]4'!E173 -> 2012-06-19 | H184: ='[1]4'!F173 -> 12 | I184: ='[1]4'!G173 -> 3 | J184: ='[1]4'!H173 -> 9 | K184: ='[1]4'!J173 -> مسلمة | L184: ='[1]4'!K173 -> ناجح ومنقول | M184: ='[1]4'!P173 -> 271 | P184: 40 | Q184: 40 | S184: 40 | T184: 40 | V184: 40 | W184: 40 | Y184: 40 | Z184: 40 | AB184: 37 | AC184: 37 | AE184: 40 | AF184: 40 | AH184: 40 | AI184: 40 | AK184: 40 | AL184: 40 | AN184: 85 | AO184: 85 | AP184: 85 | AQ184: 85 | AR184: 85 | AS184: 14.5 | AT184: 14.5 | AU184: 26 | AW184: 15 | AX184: 15 | AY184: 28 | BA184: 15 | BB184: 15 | BC184: 24 | BE184: 15 | BF184: 15 | BG184: 28 | BI184: 15 | BJ184: 15 | BK184: 30 | BM184: 15 | BN184: 15 | BO184: 28 | BQ184: 13.5 | BR184: 13.5 | BS184: 22 | BU184: 13.5 | BV184: 13.5 | BW184: 22 | BY184: 14.5 | BZ184: 14.5 | CA184: 26 | CC184: 15 | CD184: 15 | CE184: 28 | CG184: 15 | CH184: 15 | CI184: 24 | CK184: 15 | CL184: 15 | CM184: 28 | CO184: 15 | CP184: 15 | CQ184: 30 | CS184: 15 | CT184: 15 | CU184: 28 | CW184: 13.5 | CX184: 13.5 | CY184: 22 | DA184: 13.5 | DB184: 13.5 | DC184: 22 | DE184: 85 | DF184: 85 | DG184: 85 | DH184: 85 | DI184: 85
A185: =IF(C185="","",SUBTOTAL(3,$C$14:C185)) -> 172 | B185: ='[1]4'!O174 -> 572 | C185: س172 | D185: 15 | E185: ='[1]4'!N174 -> 2/4 | F185: ='[1]4'!I174 -> أنثي | G185: ='[1]4'!E174 -> 2012-04-05 | H185: ='[1]4'!F174 -> 26 | I185: ='[1]4'!G174 -> 5 | J185: ='[1]4'!H174 -> 9 | K185: ='[1]4'!J174 -> مسلمة | L185: ='[1]4'!K174 -> ناجح ومنقول | M185: ='[1]4'!P174 -> 272 | P185: 23 | Q185: 23 | S185: 40 | T185: 40 | V185: 40 | W185: 40 | Y185: 30 | Z185: 30 | AB185: 39 | AC185: 39 | AE185: 19 | AF185: 19 | AH185: 29 | AI185: 29 | AK185: 35 | AL185: 35 | AN185: 85 | AO185: 85 | AP185: 85 | AQ185: 85 | AR185: 85 | AS185: غ | AT185: غ | AU185: 13.5 | AW185: 15 | AX185: 15 | AY185: 28 | BA185: 15 | BB185: 15 | BC185: 24 | BE185: 13.5 | BF185: 13.5 | BG185: 22 | BI185: 15 | BJ185: 15 | BK185: 30 | BM185: غ | BN185: غ | BO185: 30 | BQ185: 13.5 | BR185: 13.5 | BS185: 22 | BU185: 13.5 | BV185: 13.5 | BW185: 24 | BY185: غ | BZ185: غ | CA185: 13.5 | CC185: 15 | CD185: 15 | CE185: 28 | CG185: 15 | CH185: 15 | CI185: 24 | CK185: 13.5 | CL185: 13.5 | CM185: 22 | CO185: 15 | CP185: 15 | CQ185: 30 | CS185: غ | CT185: غ | CU185: 30 | CW185: 13.5 | CX185: 13.5 | CY185: 22 | DA185: 13.5 | DB185: 13.5 | DC185: 24 | DE185: 85 | DF185: 85 | DG185: 85 | DH185: 85 | DI185: 85
A186: =IF(C186="","",SUBTOTAL(3,$C$14:C186)) -> 173 | B186: ='[1]4'!O175 -> 573 | C186: س173 | D186: 15 | E186: ='[1]4'!N175 -> 2/4 | F186: ='[1]4'!I175 -> أنثي | G186: ='[1]4'!E175 -> 2011-12-17 | H186: ='[1]4'!F175 -> 14 | I186: ='[1]4'!G175 -> 9 | J186: ='[1]4'!H175 -> 9 | K186: ='[1]4'!J175 -> مسلمة | L186: ='[1]4'!K175 -> ناجح ومنقول | M186: ='[1]4'!P175 -> 273 | P186: 40 | Q186: 40 | S186: 40 | T186: 40 | V186: 40 | W186: 40 | Y186: 40 | Z186: 40 | AB186: 40 | AC186: 40 | AE186: 40 | AF186: 40 | AH186: 40 | AI186: 40 | AK186: 40 | AL186: 40 | AN186: 85 | AO186: 85 | AP186: 85 | AQ186: 85 | AR186: 85 | AS186: 14.5 | AT186: 14.5 | AU186: 30 | AW186: 15 | AX186: 15 | AY186: 28 | BA186: 15 | BB186: 11.5 | BC186: 28 | BE186: 15 | BF186: 15 | BG186: 30 | BI186: 15 | BJ186: 15 | BK186: 30 | BM186: 15 | BN186: 15 | BO186: 30 | BQ186: 13.5 | BR186: 13.5 | BS186: 24 | BU186: 13.5 | BV186: 13.5 | BW186: 30 | BY186: 14.5 | BZ186: 14.5 | CA186: 30 | CC186: 15 | CD186: 15 | CE186: 28 | CG186: 15 | CH186: 11.5 | CI186: 28 | CK186: 15 | CL186: 15 | CM186: 30 | CO186: 15 | CP186: 15 | CQ186: 30 | CS186: 15 | CT186: 15 | CU186: 30 | CW186: 13.5 | CX186: 13.5 | CY186: 24 | DA186: 13.5 | DB186: 13.5 | DC186: 30 | DE186: 85 | DF186: 85 | DG186: 85 | DH186: 85 | DI186: 85
A187: =IF(C187="","",SUBTOTAL(3,$C$14:C187)) -> 174 | B187: ='[1]4'!O176 -> 574 | C187: س174 | D187: 15 | E187: ='[1]4'!N176 -> 2/4 | F187: ='[1]4'!I176 -> أنثي | G187: ='[1]4'!E176 -> 2012-03-14 | H187: ='[1]4'!F176 -> 17 | I187: ='[1]4'!G176 -> 6 | J187: ='[1]4'!H176 -> 9 | K187: ='[1]4'!J176 -> مسلمة | L187: ='[1]4'!K176 -> ناجح ومنقول | M187: ='[1]4'!P176 -> 274 | P187: 23 | Q187: 23 | S187: 40 | T187: 40 | V187: 40 | W187: 40 | Y187: 26 | Z187: 26 | AB187: 35 | AC187: 35 | AE187: 23 | AF187: 23 | AH187: 35 | AI187: 35 | AK187: 35 | AL187: 35 | AN187: 90 | AO187: 90 | AP187: 90 | AQ187: 95 | AR187: 85 | AS187: 12.5 | AT187: 12.5 | AU187: 22.5 | AW187: 15 | AX187: 15 | AY187: 22 | BA187: 15 | BB187: 15 | BC187: 26 | BE187: 13.5 | BF187: 13.5 | BG187: 20 | BI187: 15 | BJ187: 15 | BK187: 30 | BM187: 15 | BN187: 15 | BO187: 12 | BQ187: 13.5 | BR187: 13.5 | BS187: 20 | BU187: 15 | BV187: 15 | BW187: 28 | BY187: 12.5 | BZ187: 12.5 | CA187: 22.5 | CC187: 15 | CD187: 15 | CE187: 22 | CG187: 15 | CH187: 15 | CI187: 26 | CK187: 13.5 | CL187: 13.5 | CM187: 20 | CO187: 15 | CP187: 15 | CQ187: 30 | CS187: 15 | CT187: 15 | CU187: 12 | CW187: 13.5 | CX187: 13.5 | CY187: 20 | DA187: 15 | DB187: 15 | DC187: 28 | DE187: 90 | DF187: 90 | DG187: 90 | DH187: 95 | DI187: 85
A188: =IF(C188="","",SUBTOTAL(3,$C$14:C188)) -> 175 | B188: ='[1]4'!O177 -> 575 | C188: س175 | D188: 15 | E188: ='[1]4'!N177 -> 4/4 | F188: ='[1]4'!I177 -> أنثي | G188: ='[1]4'!E177 -> 2012-07-21 | H188: ='[1]4'!F177 -> 10 | I188: ='[1]4'!G177 -> 2 | J188: ='[1]4'!H177 -> 9 | K188: ='[1]4'!J177 -> مسلمة | L188: ='[1]4'!K177 -> ناجح ومنقول | M188: ='[1]4'!P177 -> 275 | P188: 25 | Q188: 25 | S188: 30 | T188: 30 | V188: 40 | W188: 40 | Y188: 40 | Z188: 40 | AB188: 37 | AC188: 37 | AE188: 40 | AF188: 40 | AH188: 40 | AI188: 40 | AK188: 40 | AL188: 40 | AN188: 90 | AO188: 90 | AP188: 90 | AQ188: 90 | AR188: 95 | AS188: 14.5 | AT188: 14.5 | AU188: 24.5 | AW188: غ | AX188: غ | AY188: 30 | BA188: 15 | BB188: 15 | BC188: 24 | BE188: 13.5 | BF188: 13.5 | BG188: 28 | BI188: 15 | BJ188: 15 | BK188: 28 | BM188: 15 | BN188: 15 | BO188: 26 | BQ188: 13.5 | BR188: 13.5 | BS188: 24 | BU188: 13.5 | BV188: 13.5 | BW188: 30 | BY188: 14.5 | BZ188: 14.5 | CA188: 24.5 | CC188: غ | CD188: غ | CE188: 30 | CG188: 15 | CH188: 15 | CI188: 24 | CK188: 13.5 | CL188: 13.5 | CM188: 28 | CO188: 15 | CP188: 15 | CQ188: 28 | CS188: 15 | CT188: 15 | CU188: 26 | CW188: 13.5 | CX188: 13.5 | CY188: 24 | DA188: 13.5 | DB188: 13.5 | DC188: 30 | DE188: 90 | DF188: 90 | DG188: 90 | DH188: 90 | DI188: 95
A189: =IF(C189="","",SUBTOTAL(3,$C$14:C189)) -> 176 | B189: ='[1]4'!O178 -> 576 | C189: س176 | D189: 15 | E189: ='[1]4'!N178 -> 4/4 | F189: ='[1]4'!I178 -> أنثي | G189: ='[1]4'!E178 -> 2012-09-11 | H189: ='[1]4'!F178 -> 20 | I189: ='[1]4'!G178 -> 0 | J189: ='[1]4'!H178 -> 9 | K189: ='[1]4'!J178 -> مسلمة | L189: ='[1]4'!K178 -> ناجح ومنقول | M189: ='[1]4'!P178 -> 276 | P189: 35 | Q189: 35 | S189: 40 | T189: 40 | V189: 40 | W189: 40 | Y189: 40 | Z189: 40 | AB189: 39 | AC189: 39 | AE189: 35 | AF189: 35 | AH189: 35 | AI189: 35 | AK189: 40 | AL189: 40 | AN189: 90 | AO189: 90 | AP189: 90 | AQ189: 90 | AR189: 95 | AS189: 14.5 | AT189: 14.5 | AU189: 18 | AW189: 15 | AX189: 15 | AY189: 28 | BA189: 15 | BB189: 15 | BC189: 26 | BE189: 13.5 | BF189: 13.5 | BG189: 20 | BI189: 15 | BJ189: 15 | BK189: 28 | BM189: 15 | BN189: 15 | BO189: 28 | BQ189: 13.5 | BR189: 13.5 | BS189: 20 | BU189: 15 | BV189: 15 | BW189: 30 | BY189: 14.5 | BZ189: 14.5 | CA189: 18 | CC189: 15 | CD189: 15 | CE189: 28 | CG189: 15 | CH189: 15 | CI189: 26 | CK189: 13.5 | CL189: 13.5 | CM189: 20 | CO189: 15 | CP189: 15 | CQ189: 28 | CS189: 15 | CT189: 15 | CU189: 28 | CW189: 13.5 | CX189: 13.5 | CY189: 20 | DA189: 15 | DB189: 15 | DC189: 30 | DE189: 90 | DF189: 90 | DG189: 90 | DH189: 90 | DI189: 95
A190: =IF(C190="","",SUBTOTAL(3,$C$14:C190)) -> 177 | B190: ='[1]4'!O179 -> 577 | C190: س177 | D190: 15 | E190: ='[1]4'!N179 -> 4/4 | F190: ='[1]4'!I179 -> أنثي | G190: ='[1]4'!E179 -> 2012-10-17 | H190: ='[1]4'!F179 -> 14 | I190: ='[1]4'!G179 -> 11 | J190: ='[1]4'!H179 -> 8 | K190: ='[1]4'!J179 -> مسلمة | L190: ='[1]4'!K179 -> ناجح ومنقول | M190: ='[1]4'!P179 -> 277 | P190: 35 | Q190: 35 | S190: 40 | T190: 40 | V190: 40 | W190: 40 | Y190: 40 | Z190: 40 | AB190: 35 | AC190: 35 | AE190: 35 | AF190: 35 | AH190: 35 | AI190: 35 | AK190: 40 | AL190: 40 | AN190: 90 | AO190: 90 | AP190: 90 | AQ190: 90 | AR190: 90 | AS190: 14.5 | AT190: 14.5 | AU190: 21.5 | AW190: 15 | AX190: 15 | AY190: 26 | BA190: 15 | BB190: 12 | BC190: 24 | BE190: 15 | BF190: 15 | BG190: 26 | BI190: 15 | BJ190: 15 | BK190: 28 | BM190: 15 | BN190: 15 | BO190: 26 | BQ190: 13.5 | BR190: 13.5 | BS190: 24 | BU190: 13.5 | BV190: 13.5 | BW190: 30 | BY190: 14.5 | BZ190: 14.5 | CA190: 21.5 | CC190: 15 | CD190: 15 | CE190: 26 | CG190: 15 | CH190: 12 | CI190: 24 | CK190: 15 | CL190: 15 | CM190: 26 | CO190: 15 | CP190: 15 | CQ190: 28 | CS190: 15 | CT190: 15 | CU190: 26 | CW190: 13.5 | CX190: 13.5 | CY190: 24 | DA190: 13.5 | DB190: 13.5 | DC190: 30 | DE190: 90 | DF190: 90 | DG190: 90 | DH190: 90 | DI190: 90
A191: =IF(C191="","",SUBTOTAL(3,$C$14:C191)) -> 178 | B191: ='[1]4'!O180 -> 578 | C191: س178 | D191: 15 | E191: ='[1]4'!N180 -> 3/4 | F191: ='[1]4'!I180 -> أنثي | G191: ='[1]4'!E180 -> 2012-09-17 | H191: ='[1]4'!F180 -> 14 | I191: ='[1]4'!G180 -> 0 | J191: ='[1]4'!H180 -> 9 | K191: ='[1]4'!J180 -> مسلمة | L191: ='[1]4'!K180 -> ناجح ومنقول | M191: ='[1]4'!P180 -> 278 | P191: غ | Q191: غ | S191: غ | T191: غ | V191: غ | W191: غ | Y191: غ | Z191: غ | AB191: غ | AC191: غ | AE191: غ | AF191: غ | AH191: غ | AI191: غ | AK191: غ | AL191: غ | AN191: غ | AO191: غ | AP191: غ | AQ191: غ | AR191: غ | AS191: 10.5 | AT191: 10.5 | AU191: غ | AW191: 14 | AX191: 14 | AY191: غ | BA191: 15 | BB191: 12 | BC191: غ | BE191: 13.5 | BF191: 13.5 | BG191: غ | BI191: 15 | BJ191: 15 | BK191: غ | BM191: 15 | BN191: 15 | BO191: غ | BQ191: 9 | BR191: 9 | BS191: غ | BU191: 15 | BV191: 15 | BW191: غ | BY191: 10.5 | BZ191: 10.5 | CA191: غ | CC191: 14 | CD191: 14 | CE191: غ | CG191: 15 | CH191: 12 | CI191: غ | CK191: 13.5 | CL191: 13.5 | CM191: غ | CO191: 15 | CP191: 15 | CQ191: غ | CS191: 15 | CT191: 15 | CU191: غ | CW191: 9 | CX191: 9 | CY191: غ | DA191: 15 | DB191: 15 | DC191: غ | DE191: غ | DF191: غ | DG191: غ | DH191: غ | DI191: غ
A192: =IF(C192="","",SUBTOTAL(3,$C$14:C192)) -> 179 | B192: ='[1]4'!O181 -> 579 | C192: س179 | D192: 15 | E192: ='[1]4'!N181 -> 3/4 | F192: ='[1]4'!I181 -> أنثي | G192: ='[1]4'!E181 -> 2012-04-29 | H192: ='[1]4'!F181 -> 2 | I192: ='[1]4'!G181 -> 5 | J192: ='[1]4'!H181 -> 9 | K192: ='[1]4'!J181 -> مسلمة | L192: ='[1]4'!K181 -> ناجح ومنقول | M192: ='[1]4'!P181 -> 279 | P192: 30 | Q192: 30 | S192: 33 | T192: 33 | V192: 40 | W192: 40 | Y192: 38 | Z192: 38 | AB192: 40 | AC192: 40 | AE192: 25 | AF192: 25 | AH192: 40 | AI192: 40 | AK192: 35 | AL192: 35 | AN192: 90 | AO192: 90 | AP192: 95 | AQ192: 90 | AR192: 90 | AS192: 7.5 | AT192: 7.5 | AU192: 18 | AW192: 14 | AX192: 14 | AY192: 28 | BA192: 15 | BB192: 15 | BC192: 22 | BE192: 13.5 | BF192: 13.5 | BG192: 20 | BI192: 15 | BJ192: 15 | BK192: 30 | BM192: 13.5 | BN192: 13.5 | BO192: 14 | BQ192: 13.5 | BR192: 13.5 | BS192: 24 | BU192: 13.5 | BV192: 13.5 | BW192: 26 | BY192: 7.5 | BZ192: 7.5 | CA192: 18 | CC192: 14 | CD192: 14 | CE192: 28 | CG192: 15 | CH192: 15 | CI192: 22 | CK192: 13.5 | CL192: 13.5 | CM192: 20 | CO192: 15 | CP192: 15 | CQ192: 30 | CS192: 13.5 | CT192: 13.5 | CU192: 14 | CW192: 13.5 | CX192: 13.5 | CY192: 24 | DA192: 13.5 | DB192: 13.5 | DC192: 26 | DE192: 90 | DF192: 90 | DG192: 95 | DH192: 90 | DI192: 90
A193: =IF(C193="","",SUBTOTAL(3,$C$14:C193)) -> 180 | B193: ='[1]4'!O182 -> 580 | C193: س180 | D193: 15 | E193: ='[1]4'!N182 -> 1/4 | F193: ='[1]4'!I182 -> أنثي | G193: ='[1]4'!E182 -> 2012-09-06 | H193: ='[1]4'!F182 -> 25 | I193: ='[1]4'!G182 -> 0 | J193: ='[1]4'!H182 -> 9 | K193: ='[1]4'!J182 -> مسلمة | L193: ='[1]4'!K182 -> ناجح ومنقول | M193: ='[1]4'!P182 -> 280 | P193: غ | Q193: غ | S193: غ | T193: غ | V193: غ | W193: غ | Y193: غ | Z193: غ | AB193: غ | AC193: غ | AE193: غ | AF193: غ | AH193: غ | AI193: غ | AK193: غ | AL193: غ | AN193: 90 | AO193: 90 | AP193: 90 | AQ193: 90 | AR193: غ | AS193: غ | AT193: غ | AU193: 16.5 | AW193: غ | AX193: غ | AY193: 28 | BA193: 15 | BB193: 15 | BC193: 22 | BE193: 13.5 | BF193: 13.5 | BG193: 20 | BI193: غ | BJ193: غ | BK193: 30 | BM193: غ | BN193: غ | BO193: 24 | BQ193: 13.5 | BR193: 13.5 | BS193: 20 | BU193: 15 | BV193: 15 | BW193: 26 | BY193: غ | BZ193: غ | CA193: 16.5 | CC193: غ | CD193: غ | CE193: 28 | CG193: 15 | CH193: 15 | CI193: 22 | CK193: 13.5 | CL193: 13.5 | CM193: 20 | CO193: غ | CP193: غ | CQ193: 30 | CS193: غ | CT193: غ | CU193: 24 | CW193: 13.5 | CX193: 13.5 | CY193: 20 | DA193: 15 | DB193: 15 | DC193: 26 | DE193: 90 | DF193: 90 | DG193: 90 | DH193: 90 | DI193: غ
A194: =IF(C194="","",SUBTOTAL(3,$C$14:C194)) -> 181 | B194: ='[1]4'!O183 -> 581 | C194: س181 | D194: 15 | E194: ='[1]4'!N183 -> 4/4 | F194: ='[1]4'!I183 -> أنثي | G194: ='[1]4'!E183 -> 2012-07-27 | H194: ='[1]4'!F183 -> 4 | I194: ='[1]4'!G183 -> 2 | J194: ='[1]4'!H183 -> 9 | K194: ='[1]4'!J183 -> مسلمة | L194: ='[1]4'!K183 -> ناجح ومنقول | M194: ='[1]4'!P183 -> 281 | P194: 40 | Q194: 40 | S194: 40 | T194: 40 | V194: 40 | W194: 40 | Y194: 40 | Z194: 40 | AB194: 40 | AC194: 40 | AE194: 40 | AF194: 40 | AH194: 40 | AI194: 40 | AK194: 40 | AL194: 40 | AN194: 90 | AO194: 90 | AP194: 95 | AQ194: 90 | AR194: 90 | AS194: 14.5 | AT194: 14.5 | AU194: 22.5 | AW194: 14 | AX194: 14 | AY194: 30 | BA194: 15 | BB194: 15 | BC194: 28 | BE194: 15 | BF194: 15 | BG194: 30 | BI194: 14 | BJ194: 14 | BK194: 30 | BM194: 15 | BN194: 15 | BO194: 30 | BQ194: 15 | BR194: 15 | BS194: 28 | BU194: 13.5 | BV194: 13.5 | BW194: 20 | BY194: 14.5 | BZ194: 14.5 | CA194: 22.5 | CC194: 14 | CD194: 14 | CE194: 30 | CG194: 15 | CH194: 15 | CI194: 28 | CK194: 15 | CL194: 15 | CM194: 30 | CO194: 14 | CP194: 14 | CQ194: 30 | CS194: 15 | CT194: 15 | CU194: 30 | CW194: 15 | CX194: 15 | CY194: 28 | DA194: 13.5 | DB194: 13.5 | DC194: 20 | DE194: 90 | DF194: 90 | DG194: 95 | DH194: 90 | DI194: 90
A195: =IF(C195="","",SUBTOTAL(3,$C$14:C195)) -> 182 | B195: ='[1]4'!O184 -> 582 | C195: س182 | D195: 15 | E195: ='[1]4'!N184 -> 1/4 | F195: ='[1]4'!I184 -> أنثي | G195: ='[1]4'!E184 -> 2011-12-19 | H195: ='[1]4'!F184 -> 12 | I195: ='[1]4'!G184 -> 9 | J195: ='[1]4'!H184 -> 9 | K195: ='[1]4'!J184 -> مسلمة | L195: ='[1]4'!K184 -> ناجح ومنقول | M195: ='[1]4'!P184 -> 282 | P195: 30 | Q195: 30 | S195: 40 | T195: 40 | V195: 40 | W195: 40 | Y195: 40 | Z195: 40 | AB195: 37 | AC195: 37 | AE195: 35 | AF195: 35 | AH195: 35 | AI195: 35 | AK195: 40 | AL195: 40 | AN195: 90 | AO195: 90 | AP195: 95 | AQ195: 90 | AR195: 90 | AS195: 14.5 | AT195: 14.5 | AU195: 12 | AW195: 15 | AX195: 15 | AY195: 30 | BA195: 15 | BB195: 15 | BC195: 24 | BE195: 15 | BF195: 15 | BG195: 26 | BI195: 9 | BJ195: 9 | BK195: 30 | BM195: 15 | BN195: 15 | BO195: 28 | BQ195: 15 | BR195: 15 | BS195: 26 | BU195: 12 | BV195: 12 | BW195: 20 | BY195: 14.5 | BZ195: 14.5 | CA195: 12 | CC195: 15 | CD195: 15 | CE195: 30 | CG195: 15 | CH195: 15 | CI195: 24 | CK195: 15 | CL195: 15 | CM195: 26 | CO195: 9 | CP195: 9 | CQ195: 30 | CS195: 15 | CT195: 15 | CU195: 28 | CW195: 15 | CX195: 15 | CY195: 26 | DA195: 12 | DB195: 12 | DC195: 20 | DE195: 90 | DF195: 90 | DG195: 95 | DH195: 90 | DI195: 90
A196: =IF(C196="","",SUBTOTAL(3,$C$14:C196)) -> 183 | B196: ='[1]4'!O185 -> 583 | C196: س183 | D196: 15 | E196: ='[1]4'!N185 -> 2/4 | F196: ='[1]4'!I185 -> أنثي | G196: ='[1]4'!E185 -> 2012-03-22 | H196: ='[1]4'!F185 -> 9 | I196: ='[1]4'!G185 -> 6 | J196: ='[1]4'!H185 -> 9 | K196: ='[1]4'!J185 -> مسلمة | L196: ='[1]4'!K185 -> ناجح ومنقول | M196: ='[1]4'!P185 -> 283 | P196: 40 | Q196: 40 | S196: 40 | T196: 40 | V196: 40 | W196: 40 | Y196: 40 | Z196: 40 | AB196: 40 | AC196: 40 | AE196: 40 | AF196: 40 | AH196: 40 | AI196: 40 | AK196: 40 | AL196: 40 | AN196: 90 | AO196: 90 | AP196: 90 | AQ196: 90 | AR196: 90 | AS196: 14.5 | AT196: 14.5 | AU196: 30 | AW196: 15 | AX196: 15 | AY196: 28 | BA196: 15 | BB196: 15 | BC196: 28 | BE196: 15 | BF196: 15 | BG196: 30 | BI196: 15 | BJ196: 15 | BK196: 30 | BM196: 15 | BN196: 15 | BO196: 30 | BQ196: 15 | BR196: 15 | BS196: 30 | BU196: 13.5 | BV196: 13.5 | BW196: 28 | BY196: 14.5 | BZ196: 14.5 | CA196: 30 | CC196: 15 | CD196: 15 | CE196: 28 | CG196: 15 | CH196: 15 | CI196: 28 | CK196: 15 | CL196: 15 | CM196: 30 | CO196: 15 | CP196: 15 | CQ196: 30 | CS196: 15 | CT196: 15 | CU196: 30 | CW196: 15 | CX196: 15 | CY196: 30 | DA196: 13.5 | DB196: 13.5 | DC196: 28 | DE196: 90 | DF196: 90 | DG196: 90 | DH196: 90 | DI196: 90
A197: =IF(C197="","",SUBTOTAL(3,$C$14:C197)) -> 184 | B197: ='[1]4'!O186 -> 584 | C197: س184 | D197: 15 | E197: ='[1]4'!N186 -> 4/4 | F197: ='[1]4'!I186 -> أنثي | G197: ='[1]4'!E186 -> 2012-07-25 | H197: ='[1]4'!F186 -> 6 | I197: ='[1]4'!G186 -> 2 | J197: ='[1]4'!H186 -> 9 | K197: ='[1]4'!J186 -> مسلمة | L197: ='[1]4'!K186 -> ناجح ومنقول | M197: ='[1]4'!P186 -> 284 | P197: 33 | Q197: 33 | S197: 35 | T197: 35 | V197: 40 | W197: 40 | Y197: 40 | Z197: 40 | AB197: 40 | AC197: 40 | AE197: 40 | AF197: 40 | AH197: 40 | AI197: 40 | AK197: 40 | AL197: 40 | AN197: 90 | AO197: 90 | AP197: 90 | AQ197: 90 | AR197: 90 | AS197: 13.5 | AT197: 13.5 | AU197: 25.5 | AW197: 15 | AX197: 15 | AY197: 30 | BA197: 15 | BB197: 15 | BC197: 26 | BE197: 15 | BF197: 15 | BG197: 30 | BI197: 15 | BJ197: 15 | BK197: 30 | BM197: 15 | BN197: 15 | BO197: 26 | BQ197: 15 | BR197: 15 | BS197: 28 | BU197: 12 | BV197: 12 | BW197: 20 | BY197: 13.5 | BZ197: 13.5 | CA197: 25.5 | CC197: 15 | CD197: 15 | CE197: 30 | CG197: 15 | CH197: 15 | CI197: 26 | CK197: 15 | CL197: 15 | CM197: 30 | CO197: 15 | CP197: 15 | CQ197: 30 | CS197: 15 | CT197: 15 | CU197: 26 | CW197: 15 | CX197: 15 | CY197: 28 | DA197: 12 | DB197: 12 | DC197: 20 | DE197: 90 | DF197: 90 | DG197: 90 | DH197: 90 | DI197: 90
A198: =IF(C198="","",SUBTOTAL(3,$C$14:C198)) -> 185 | B198: ='[1]4'!O187 -> 585 | C198: س185 | D198: 15 | E198: ='[1]4'!N187 -> 2/4 | F198: ='[1]4'!I187 -> أنثي | G198: ='[1]4'!E187 -> 2012-04-19 | H198: ='[1]4'!F187 -> 12 | I198: ='[1]4'!G187 -> 5 | J198: ='[1]4'!H187 -> 9 | K198: ='[1]4'!J187 -> مسلمة | L198: ='[1]4'!K187 -> ناجح ومنقول | M198: ='[1]4'!P187 -> 285 | P198: 35 | Q198: 35 | S198: 40 | T198: 40 | V198: 40 | W198: 40 | Y198: 40 | Z198: 40 | AB198: 40 | AC198: 40 | AE198: 35 | AF198: 35 | AH198: 35 | AI198: 35 | AK198: 35 | AL198: 35 | AN198: 90 | AO198: 90 | AP198: 95 | AQ198: 90 | AR198: 90 | AS198: 13.5 | AT198: 13.5 | AU198: 13.5 | AW198: 15 | AX198: 15 | AY198: 30 | BA198: 15 | BB198: 15 | BC198: 26 | BE198: 15 | BF198: 15 | BG198: 28 | BI198: 15 | BJ198: 15 | BK198: 30 | BM198: 15 | BN198: 15 | BO198: 26 | BQ198: 15 | BR198: 15 | BS198: 24 | BU198: 13.5 | BV198: 13.5 | BW198: 14 | BY198: 13.5 | BZ198: 13.5 | CA198: 13.5 | CC198: 15 | CD198: 15 | CE198: 30 | CG198: 15 | CH198: 15 | CI198: 26 | CK198: 15 | CL198: 15 | CM198: 28 | CO198: 15 | CP198: 15 | CQ198: 30 | CS198: 15 | CT198: 15 | CU198: 26 | CW198: 15 | CX198: 15 | CY198: 24 | DA198: 13.5 | DB198: 13.5 | DC198: 14 | DE198: 90 | DF198: 90 | DG198: 95 | DH198: 90 | DI198: 90
A199: =IF(C199="","",SUBTOTAL(3,$C$14:C199)) -> 186 | B199: ='[1]4'!O188 -> 586 | C199: س186 | D199: 15 | E199: ='[1]4'!N188 -> 2/4 | F199: ='[1]4'!I188 -> أنثي | G199: ='[1]4'!E188 -> 2012-04-19 | H199: ='[1]4'!F188 -> 12 | I199: ='[1]4'!G188 -> 5 | J199: ='[1]4'!H188 -> 9 | K199: ='[1]4'!J188 -> مسلمة | L199: ='[1]4'!K188 -> ناجح ومنقول | M199: ='[1]4'!P188 -> 286 | P199: 30 | Q199: 30 | S199: 30 | T199: 30 | V199: 40 | W199: 40 | Y199: 40 | Z199: 40 | AB199: 40 | AC199: 40 | AE199: 35 | AF199: 35 | AH199: 40 | AI199: 40 | AK199: 35 | AL199: 35 | AN199: 90 | AO199: 90 | AP199: 90 | AQ199: 90 | AR199: 90 | AS199: 14.5 | AT199: 14.5 | AU199: 24 | AW199: 15 | AX199: 15 | AY199: 28 | BA199: 15 | BB199: 15 | BC199: 26 | BE199: 15 | BF199: 15 | BG199: 30 | BI199: 15 | BJ199: 15 | BK199: 30 | BM199: 15 | BN199: 15 | BO199: 30 | BQ199: 15 | BR199: 15 | BS199: 26 | BU199: 13.5 | BV199: 13.5 | BW199: 20 | BY199: 14.5 | BZ199: 14.5 | CA199: 24 | CC199: 15 | CD199: 15 | CE199: 28 | CG199: 15 | CH199: 15 | CI199: 26 | CK199: 15 | CL199: 15 | CM199: 30 | CO199: 15 | CP199: 15 | CQ199: 30 | CS199: 15 | CT199: 15 | CU199: 30 | CW199: 15 | CX199: 15 | CY199: 26 | DA199: 13.5 | DB199: 13.5 | DC199: 20 | DE199: 90 | DF199: 90 | DG199: 90 | DH199: 90 | DI199: 90
A200: =IF(C200="","",SUBTOTAL(3,$C$14:C200)) -> 187 | B200: ='[1]4'!O189 -> 587 | C200: س187 | D200: 15 | E200: ='[1]4'!N189 -> 1/4 | F200: ='[1]4'!I189 -> أنثي | G200: ='[1]4'!E189 -> 2012-04-05 | H200: ='[1]4'!F189 -> 26 | I200: ='[1]4'!G189 -> 5 | J200: ='[1]4'!H189 -> 9 | K200: ='[1]4'!J189 -> مسلمة | L200: ='[1]4'!K189 -> ناجح ومنقول | M200: ='[1]4'!P189 -> 287 | P200: 39 | Q200: 39 | S200: 40 | T200: 40 | V200: 40 | W200: 40 | Y200: 40 | Z200: 40 | AB200: 40 | AC200: 40 | AE200: 40 | AF200: 40 | AH200: 40 | AI200: 40 | AK200: 40 | AL200: 40 | AN200: 90 | AO200: 90 | AP200: 90 | AQ200: 90 | AR200: 90 | AS200: 14.5 | AT200: 14.5 | AU200: 23 | AW200: 10 | AX200: 10 | AY200: 26 | BA200: 15 | BB200: 15 | BC200: 22 | BE200: 15 | BF200: 15 | BG200: 26 | BI200: 10.5 | BJ200: 10.5 | BK200: 26 | BM200: 10.5 | BN200: 10.5 | BO200: 12 | BQ200: 15 | BR200: 15 | BS200: 26 | BU200: 12 | BV200: 12 | BW200: 18 | BY200: 14.5 | BZ200: 14.5 | CA200: 23 | CC200: 10 | CD200: 10 | CE200: 26 | CG200: 15 | CH200: 15 | CI200: 22 | CK200: 15 | CL200: 15 | CM200: 26 | CO200: 10.5 | CP200: 10.5 | CQ200: 26 | CS200: 10.5 | CT200: 10.5 | CU200: 12 | CW200: 15 | CX200: 15 | CY200: 26 | DA200: 12 | DB200: 12 | DC200: 18 | DE200: 90 | DF200: 90 | DG200: 90 | DH200: 90 | DI200: 90
A201: =IF(C201="","",SUBTOTAL(3,$C$14:C201)) -> 188 | B201: ='[1]4'!O190 -> 588 | C201: س188 | D201: 15 | E201: ='[1]4'!N190 -> 4/4 | F201: ='[1]4'!I190 -> أنثي | G201: ='[1]4'!E190 -> 2012-07-21 | H201: ='[1]4'!F190 -> 10 | I201: ='[1]4'!G190 -> 2 | J201: ='[1]4'!H190 -> 9 | K201: ='[1]4'!J190 -> مسلمة | L201: ='[1]4'!K190 -> ناجح ومنقول | M201: ='[1]4'!P190 -> 288 | P201: 40 | Q201: 40 | S201: 40 | T201: 40 | V201: 40 | W201: 40 | Y201: 40 | Z201: 40 | AB201: 40 | AC201: 40 | AE201: 40 | AF201: 40 | AH201: 40 | AI201: 40 | AK201: 40 | AL201: 40 | AN201: 90 | AO201: 90 | AP201: 90 | AQ201: 90 | AR201: 90 | AS201: 13.5 | AT201: 13.5 | AU201: 25 | AW201: 12 | AX201: 12 | AY201: 28 | BA201: 15 | BB201: 15 | BC201: 24 | BE201: 15 | BF201: 15 | BG201: 26 | BI201: 14 | BJ201: 14 | BK201: 30 | BM201: 12 | BN201: 12 | BO201: 24 | BQ201: 15 | BR201: 15 | BS201: 26 | BU201: 12 | BV201: 12 | BW201: 20 | BY201: 13.5 | BZ201: 13.5 | CA201: 25 | CC201: 12 | CD201: 12 | CE201: 28 | CG201: 15 | CH201: 15 | CI201: 24 | CK201: 15 | CL201: 15 | CM201: 26 | CO201: 14 | CP201: 14 | CQ201: 30 | CS201: 12 | CT201: 12 | CU201: 24 | CW201: 15 | CX201: 15 | CY201: 26 | DA201: 12 | DB201: 12 | DC201: 20 | DE201: 90 | DF201: 90 | DG201: 90 | DH201: 90 | DI201: 90
A202: =IF(C202="","",SUBTOTAL(3,$C$14:C202)) -> 189 | B202: ='[1]4'!O191 -> 589 | C202: س189 | D202: 15 | E202: ='[1]4'!N191 -> 4/4 | F202: ='[1]4'!I191 -> أنثي | G202: ='[1]4'!E191 -> 2012-07-19 | H202: ='[1]4'!F191 -> 12 | I202: ='[1]4'!G191 -> 2 | J202: ='[1]4'!H191 -> 9 | K202: ='[1]4'!J191 -> مسلمة | L202: ='[1]4'!K191 -> ناجح ومنقول | M202: ='[1]4'!P191 -> 289 | P202: 35 | Q202: 35 | S202: 40 | T202: 40 | V202: 40 | W202: 40 | Y202: 40 | Z202: 40 | AB202: 40 | AC202: 40 | AE202: 35 | AF202: 35 | AH202: 35 | AI202: 35 | AK202: 40 | AL202: 40 | AN202: 90 | AO202: 90 | AP202: 90 | AQ202: 90 | AR202: 90 | AS202: 14.5 | AT202: 14.5 | AU202: 24 | AW202: 12 | AX202: 12 | AY202: 28 | BA202: 15 | BB202: 15 | BC202: 24 | BE202: 15 | BF202: 15 | BG202: 26 | BI202: 15 | BJ202: 15 | BK202: 30 | BM202: 10.5 | BN202: 10.5 | BO202: 26 | BQ202: 13.5 | BR202: 13.5 | BS202: 26 | BU202: 12 | BV202: 12 | BW202: 20 | BY202: 14.5 | BZ202: 14.5 | CA202: 24 | CC202: 12 | CD202: 12 | CE202: 28 | CG202: 15 | CH202: 15 | CI202: 24 | CK202: 15 | CL202: 15 | CM202: 26 | CO202: 15 | CP202: 15 | CQ202: 30 | CS202: 10.5 | CT202: 10.5 | CU202: 26 | CW202: 13.5 | CX202: 13.5 | CY202: 26 | DA202: 12 | DB202: 12 | DC202: 20 | DE202: 90 | DF202: 90 | DG202: 90 | DH202: 90 | DI202: 90
A203: =IF(C203="","",SUBTOTAL(3,$C$14:C203)) -> 190 | B203: ='[1]4'!O192 -> 590 | C203: س190 | D203: 15 | E203: ='[1]4'!N192 -> 3/4 | F203: ='[1]4'!I192 -> أنثي | G203: ='[1]4'!E192 -> 2012-01-15 | H203: ='[1]4'!F192 -> 16 | I203: ='[1]4'!G192 -> 8 | J203: ='[1]4'!H192 -> 9 | K203: ='[1]4'!J192 -> مسلمة | L203: ='[1]4'!K192 -> ناجح ومنقول | M203: ='[1]4'!P192 -> 290 | P203: 40 | Q203: 40 | S203: 40 | T203: 40 | V203: 40 | W203: 40 | Y203: 38 | Z203: 38 | AB203: 40 | AC203: 40 | AE203: 40 | AF203: 40 | AH203: 40 | AI203: 40 | AK203: 40 | AL203: 40 | AN203: 90 | AO203: 90 | AP203: 90 | AQ203: 90 | AR203: 90 | AS203: 14.5 | AT203: 14.5 | AU203: 21 | AW203: 10 | AX203: 10 | AY203: 28 | BA203: 15 | BB203: 15 | BC203: 24 | BE203: 12 | BF203: 12 | BG203: 26 | BI203: 10.5 | BJ203: 10.5 | BK203: 30 | BM203: 9 | BN203: 9 | BO203: 22 | BQ203: 15 | BR203: 15 | BS203: 14 | BU203: 15 | BV203: 15 | BW203: 20 | BY203: 14.5 | BZ203: 14.5 | CA203: 21 | CC203: 10 | CD203: 10 | CE203: 28 | CG203: 15 | CH203: 15 | CI203: 24 | CK203: 12 | CL203: 12 | CM203: 26 | CO203: 10.5 | CP203: 10.5 | CQ203: 30 | CS203: 9 | CT203: 9 | CU203: 22 | CW203: 15 | CX203: 15 | CY203: 14 | DA203: 15 | DB203: 15 | DC203: 20 | DE203: 90 | DF203: 90 | DG203: 90 | DH203: 90 | DI203: 90
A204: =IF(C204="","",SUBTOTAL(3,$C$14:C204)) -> 191 | B204: ='[1]4'!O193 -> 591 | C204: س191 | D204: 15 | E204: ='[1]4'!N193 -> 4/4 | F204: ='[1]4'!I193 -> أنثي | G204: ='[1]4'!E193 -> 2011-11-09 | H204: ='[1]4'!F193 -> 22 | I204: ='[1]4'!G193 -> 10 | J204: ='[1]4'!H193 -> 9 | K204: ='[1]4'!J193 -> مسلمة | L204: ='[1]4'!K193 -> ناجح ومنقول | M204: ='[1]4'!P193 -> 291 | P204: 25 | Q204: 25 | S204: 30 | T204: 30 | V204: 40 | W204: 40 | Y204: 25 | Z204: 25 | AB204: 37 | AC204: 37 | AE204: 40 | AF204: 40 | AH204: 40 | AI204: 40 | AK204: 40 | AL204: 40 | AN204: 90 | AO204: 90 | AP204: 90 | AQ204: 90 | AR204: 90 | AS204: 8.5 | AT204: 8.5 | AU204: 13.5 | AW204: 11 | AX204: 11 | AY204: 28 | BA204: 15 | BB204: 15 | BC204: 20 | BE204: 10.5 | BF204: 10.5 | BG204: 22 | BI204: 14 | BJ204: 14 | BK204: 30 | BM204: 7.5 | BN204: 7.5 | BO204: 20 | BQ204: 15 | BR204: 15 | BS204: 12 | BU204: 15 | BV204: 15 | BW204: 20 | BY204: 8.5 | BZ204: 8.5 | CA204: 13.5 | CC204: 11 | CD204: 11 | CE204: 28 | CG204: 15 | CH204: 15 | CI204: 20 | CK204: 10.5 | CL204: 10.5 | CM204: 22 | CO204: 14 | CP204: 14 | CQ204: 30 | CS204: 7.5 | CT204: 7.5 | CU204: 20 | CW204: 15 | CX204: 15 | CY204: 12 | DA204: 15 | DB204: 15 | DC204: 20 | DE204: 90 | DF204: 90 | DG204: 90 | DH204: 90 | DI204: 90
A205: =IF(C205="","",SUBTOTAL(3,$C$14:C205)) -> 192 | B205: ='[1]4'!O194 -> 592 | C205: س192 | D205: 15 | E205: ='[1]4'!N194 -> 4/4 | F205: ='[1]4'!I194 -> أنثي | G205: ='[1]4'!E194 -> 2011-10-30 | H205: ='[1]4'!F194 -> 1 | I205: ='[1]4'!G194 -> 11 | J205: ='[1]4'!H194 -> 9 | K205: ='[1]4'!J194 -> مسلمة | L205: ='[1]4'!K194 -> ناجح ومنقول | M205: ='[1]4'!P194 -> 292 | P205: 40 | Q205: 40 | S205: 40 | T205: 40 | V205: 40 | W205: 40 | Y205: 40 | Z205: 40 | AB205: 40 | AC205: 40 | AE205: 40 | AF205: 40 | AH205: 40 | AI205: 40 | AK205: 40 | AL205: 40 | AN205: 90 | AO205: 90 | AP205: 95 | AQ205: 90 | AR205: 90 | AS205: 13.5 | AT205: 13.5 | AU205: 28.5 | AW205: 10 | AX205: 10 | AY205: 30 | BA205: 15 | BB205: 15 | BC205: 26 | BE205: 15 | BF205: 15 | BG205: 30 | BI205: 15 | BJ205: 15 | BK205: 30 | BM205: 15 | BN205: 15 | BO205: 30 | BQ205: 15 | BR205: 15 | BS205: 24 | BU205: 13.5 | BV205: 13.5 | BW205: 20 | BY205: 13.5 | BZ205: 13.5 | CA205: 28.5 | CC205: 10 | CD205: 10 | CE205: 30 | CG205: 15 | CH205: 15 | CI205: 26 | CK205: 15 | CL205: 15 | CM205: 30 | CO205: 15 | CP205: 15 | CQ205: 30 | CS205: 15 | CT205: 15 | CU205: 30 | CW205: 15 | CX205: 15 | CY205: 24 | DA205: 13.5 | DB205: 13.5 | DC205: 20 | DE205: 90 | DF205: 90 | DG205: 95 | DH205: 90 | DI205: 90
... 29 more rows

Sheet سجل
B1: بسم الله الرحمن الرحيم
GT5: انشطة نصف العام
A7: 1 | E7: 5 | F7: 6 | G7: 7 | H7: 8 | I7: 9 | J7: 10 | K7: 11 | L7: 12 | M7: 13 | N7: 14 | O7: 15 | P7: 16 | Q7: 17 | R7: 18 | S7: 19 | T7: 20 | U7: 21 | V7: 22 | W7: 23 | X7: 24 | Y7: 25 | Z7: 26 | AA7: 27 | AB7: 28 | AC7: 29 | AD7: 30 | AE7: 31 | AF7: 32 | AG7: 33 | AH7: 34 | AI7: 35 | AJ7: 36 | AK7: 37 | AL7: 38 | AM7: 39 | AN7: 40 | AO7: 41 | AP7: 42 | AQ7: 43 | AR7: 44 | AS7: 45 | AT7: 46 | AU7: 47 | AV7: 48 | AW7: 49 | AX7: 50 | AY7: 51 | AZ7: 52 | BA7: 53 | BB7: 54 | BC7: 55 | BD7: 56 | BE7: 57 | BF7: 58 | BG7: 59 | BH7: 60 | BI7: 61 | BJ7: 62 | BK7: 63 | BL7: 64 | BM7: 65 | BN7: 66 | BO7: 67 | BP7: 68 | BQ7: 69 | BR7: 70 | BS7: 71 | BT7: 72 | BU7: 73 | BV7: 74 | BW7: 75 | BX7: 76 | BY7: 77 | BZ7: 78 | CA7: 79 | CB7: 80 | CC7: 81 | CD7: 82 | CE7: 83 | CF7: 84 | CG7: 85 | CH7: 86 | CI7: 87 | CJ7: 88 | CK7: 89 | CL7: 90 | CM7: 91 | CN7: 92 | CO7: 93 | CP7: 94 | CQ7: 95 | CR7: 96 | CS7: 97 | CT7: 98 | CU7: 99 | CV7: 100 | CW7: 101 | CX7: 102 | CY7: 103 | CZ7: 104 | DA7: 105 | DB7: 106 | DC7: 107 | DD7: 108 | DE7: 109 | DF7: 110 | DG7: 111 | DH7: 112 | DI7: 113 | DJ7: 114 | DK7: 115 | DL7: 116 | DM7: 117 | DN7: 118 | DO7: 119 | DP7: 120 | DQ7: 121 | DR7: 122 | DS7: 123 | DT7: 124 | DU7: 125 | DV7: 126 | DW7: 127 | DX7: 128 | DY7: 129 | DZ7: 130 | EA7: 131 | EB7: 132 | EC7: 133 | ED7: 134 | EE7: 135 | EF7: 136 | EG7: 137 | EH7: 138 | EI7: 139 | EJ7: 140 | EK7: 141 | EL7: 142 | EM7: 143 | EN7: 144 | EO7: 145 | EP7: 146 | EQ7: 147 | ER7: 148 | ES7: 149 | ET7: 150 | EU7: 151 | EV7: 152 | EW7: 153 | EX7: 154 | EY7: 155 | EZ7: 156 | FA7: 157 | FB7: 158 | FC7: 159 | FD7: 160 | FE7: 161 | FF7: 162 | FG7: 163 | FH7: 164 | FI7: 165 | FJ7: 166 | FK7: 167 | FL7: 168 | FM7: 169 | FN7: 170 | FO7: 171 | FP7: 172 | FQ7: 173 | FR7: 174 | FS7: 175 | FT7: 176 | FU7: 177 | FV7: 178 | FW7: 179 | FX7: 180 | FY7: 181 | FZ7: 182 | GA7: 183 | GB7: 184 | GC7: 185 | GD7: 186 | GE7: 187 | GF7: 188 | GG7: 189 | GH7: 190 | GI7: 191 | GJ7: 192 | GK7: 193 | GL7: 194 | GM7: 195 | GN7: 196 | GO7: 197 | GP7: 198 | GQ7: 199 | GR7: 200 | GS7: 201 | GT7: 202 | GU7: 203 | GV7: 204 | GW7: 205 | GX7: 206 | GY7: 207 | GZ7: 208 | HA7: 209 | HB7: 210 | HC7: 211 | HD7: 212 | HE7: 213 | HF7: 214 | HG7: 215 | HH7: 216 | HI7: 217 | HJ7: 218 | HK7: 219 | HL7: 220 | HM7: 221 | HN7: 222 | HO7: 223
A8: 1 | B8: 2 | C8: 3 | D8: 4 | E8: 5 | F8: 6 | G8: 7 | H8: 8 | I8: 9 | J8: 10 | K8: 11 | L8: 12 | M8: 13 | N8: 14 | O8: 15 | P8: 16 | Q8: 17 | R8: 18 | S8: 19 | T8: 20 | U8: 21 | V8: 22 | W8: 23 | X8: 24 | Y8: 25 | Z8: 26 | AA8: 27 | AB8: 28 | AC8: 29 | AD8: 30 | AE8: 31 | AF8: 32 | AH8: 33 | AI8: 34 | AJ8: 35 | AK8: 36 | AL8: 37 | AM8: 38 | AN8: 39 | AO8: 40 | AP8: 41 | AQ8: 42 | AR8: 43 | AS8: 44 | AT8: 45 | AU8: 46 | AV8: 47 | AW8: 48 | AX8: 49 | AY8: 50 | AZ8: 51 | BB8: 52 | BC8: 53 | BD8: 54 | BE8: 55 | BF8: 56 | BG8: 57 | BH8: 58 | BI8: 59 | BJ8: 60 | BK8: 61 | BL8: 62 | BM8: 63 | BN8: 64 | BO8: 65 | BP8: 66 | BQ8: 67 | BR8: 68 | BS8: 69 | BU8: 70 | BV8: 71 | BW8: 72 | BX8: 73 | BY8: 74 | BZ8: 75 | CA8: 76 | CB8: 77 | CC8: 78 | CD8: 79 | CE8: 80 | CF8: 81 | CG8: 82 | CH8: 83 | CI8: 84 | CJ8: 85 | CK8: 86 | CL8: 87 | CM8: 88 | CO8: 89 | CP8: 90 | CQ8: 91 | CR8: 92 | CS8: 93 | CT8: 94 | CU8: 95 | CV8: 96 | CW8: 97 | CX8: 98 | CY8: 99 | CZ8: 100 | DA8: 101 | DB8: 102 | DC8: 103 | DD8: 104 | DE8: 105 | DF8: 106 | DG8: 107 | DI8: 108 | DJ8: 109 | DK8: 110 | DL8: 111 | DM8: 112 | DN8: 113 | DO8: 114 | DP8: 115 | DQ8: 116 | DR8: 117 | DS8: 118 | DT8: 119 | DU8: 120 | DV8: 121 | DW8: 122 | DX8: 123 | DY8: 124 | DZ8: 125 | EA8: 126 | EB8: 127 | ED8: 128 | EE8: 130 | EF8: 131 | EG8: 132 | EH8: 133 | EI8: 134 | EJ8: 135 | EK8: 136 | EL8: 137 | EM8: 138 | EN8: 139 | EO8: 140 | EP8: 141 | EQ8: 142 | ER8: 143 | ES8: 144 | ET8: 145 | EU8: 146 | EV8: 147 | EX8: 148 | EY8: 150 | EZ8: 151 | FA8: 152 | FB8: 153 | FC8: 154 | FD8: 155 | FE8: 156 | FF8: 157 | FG8: 158 | FH8: 159 | FI8: 160 | FJ8: 161 | FK8: 162 | FL8: 163 | FM8: 164 | FN8: 165 | FO8: 166 | FP8: 167 | FQ8: 168 | FR8: 169 | FS8: 170 | FT8: 171 | FU8: 172 | FV8: 173 | FW8: 174 | FX8: 175 | FY8: 176 | FZ8: 177 | GA8: 178 | GB8: 179 | GC8: 180 | GD8: 181 | GE8: 182 | GF8: 183 | GG8: 184 | GH8: 185 | GI8: 186 | GJ8: 187 | GN8: 188 | GP8: 189 | GT8: 190 | GV8: 191 | GZ8: 192 | HB8: 193 | HF8: 194 | HH8: 195 | HL8: 196 | HN8: 197 | IR8: 209 | IS8: 210 | IT8: 211 | IU8: 212 | IV8: 213 | IW8: 214 | IX8: 215 | IY8: 216 | IZ8: 217 | JA8: 218 | JB8: 219 | JC8: 220 | JD8: 221 | JE8: 222 | JF8: 223 | JG8: 224 | JH8: 225 | JI8: 226 | JJ8: 227 | JK8: 228 | JL8: 229 | JM8: 230 | JN8: 231 | JO8: 232 | JP8: 233 | JQ8: 234 | JR8: 235 | JS8: 236 | JT8: 237 | JU8: 238 | JV8: 239 | JW8: 240 | JX8: 241 | JY8: 242 | JZ8: 243 | KA8: 244 | KB8: 245 | KC8: 246 | KD8: 247 | KE8: 248 | KF8: 249 | KG8: 250 | KH8: 251 | KI8: 252 | KJ8: 253 | KK8: 254 | KL8: 255 | KM8: 256 | KN8: 257 | KO8: 258 | KP8: 259 | KQ8: 260 | KR8: 261 | KS8: 262 | KT8: 263 | KU8: 264 | KV8: 265 | KW8: 266 | KX8: 267 | KY8: 268 | KZ8: 269 | LA8: 270 | LB8: 271 | LC8: 272 | LD8: 273 | LE8: 274 | LF8: 275
KV9: 1 | KW9: 2 | KX9: 3 | KY9: 4 | KZ9: 5 | LA9: 6 | LB9: 7 | LC9: 8 | LD9: 9 | LE9: 10 | LF9: 11 | LG9: 12 | LH9: 13
KX10: العدد | KY10: =COUNTA(LC14:LC297) -> 220
KX11: أعلي رقم | KY11: =MAX(KW14:KX331) -> 620 | LM11: العشرة الأوائل | LR11: العشرة الأوائل
KV12: م | KW12: اكتب أول رقم جلوس | KY12: =SUM(KY14:KY345) -> 220 | KZ12: =COUNT(KZ14:KZ44) -> 11 | LA12: م | LB12: رقم الجلوس | LC12: الاسم | LD12: النوع | LE12: الحالة | LM12: رقم الجلوس | LN12: اسم الطالب | LO12: المجموع | LP12: الترتيب | LQ12: النتيجة | LR12: م | LS12: رقم الجلوس | LT12: اسم الطالب | LU12: المجموع | LV12: الترتيب | LW12: مجموع | LX12: المركز
KW13: من | KX13: إلي | KY13: عدد اللجنة | KZ13: اللجنة | LF13: اللجنة | LG13: نهلية اللجنة | LH13: الديانة | LT13: اسم الطالب | LU13: المجموع | LV13: الترتيب | LW13: مجموع | LX13: المركز
A14: =IF(C14="","",SUBTOTAL(3,$C$14:C14)) ->  | Q14: =IF(P14="غ","غ",IF(P14<>"غ","")) ->  | R14: =IF(AND(P14="",Q14=""),"",IF(AND(P14="غ",Q14="غ"),"غ",IF(AND(P14="صفر",Q14="صفر"),"صفر",SUM(P14:Q14)))) ->  | V14: =IF(AND(S14="",T14="",U14=""),"",IF(AND(S14="غ",T14="غ",U14="غ"),"غ",IF(AND(S14="صفر",T14="صفر",U14="صفر"),"صفر",SUM(S14:U14)))) ->  | W14: =IF(AND(R14="",V14=""),"",IF(AND(R14="غ",V14="غ"),"غ",IF(AND(R14="صفر",V14="صفر"),"صفر",SUM(R14,V14)))) ->  | X14: =IF(W14="","",IF(W14="غ","غ",IF(W14>=84.5,"ممتاز",IF(W14>=64.5,"جيد جدا",IF(W14>=49.5,"جيد",IF(W14>=1,"ضعيف")))))) ->  | Z14: =IF(Y14="غ","غ",IF(Y14<>"غ","")) ->  | AA14: =IF(AND(Y14="",Z14=""),"",IF(AND(Y14="غ",Z14="غ"),"غ",IF(AND(Y14="صفر",Z14="صفر"),"صفر",SUM(Y14:Z14)))) ->  | AE14: =IF(AND(AB14="",AC14="",AD14=""),"",IF(AND(AB14="غ",AC14="غ",AD14="غ"),"غ",IF(AND(AB14="صفر",AC14="صفر",AD14="صفر"),"صفر",SUM(AB14:AD14)))) ->  | AF14: =IF(AND(AA14="",AE14=""),"",IF(AND(AA14="غ",AE14="غ"),"غ",IF(AND(AA14="صفر",AE14="صفر"),"صفر",SUM(AA14,AE14)))) ->  | AG14: =IF(AND(W14="",AF14=""),"",IF(AND(W14="غ",AF14="غ"),"غ",IF(AND(W14="صفر",AF14="صفر"),"صفر",SUM(W14,AF14)))) ->  | AH14: =IF(AND(AG14=""),"",IF(AND(AG14="غ"),"غ",IF(AND(AG14="صفر"),"صفر",AG14/2))) ->  | AI14: =IF(AH14="","",IF(AH14="غ","غ",IF(AH14>=84.5,"ممتاز",IF(AH14>=64.5,"جيد جدا",IF(AH14>=49.5,"جيد",IF(AH14>=1,"ضعيف")))))) ->  | AK14: =IF(AJ14="غ","غ",IF(AJ14<>"غ","")) ->  | AL14: =IF(AND(AJ14="",AK14=""),"",IF(AND(AJ14="غ",AK14="غ"),"غ",IF(AND(AJ14="صفر",AK14="صفر"),"صفر",SUM(AJ14:AK14)))) ->  | AP14: =IF(AND(AM14="",AN14="",AO14=""),"",IF(AND(AM14="غ",AN14="غ",AO14="غ"),"غ",IF(AND(AM14="صفر",AN14="صفر",AO14="صفر"),"صفر",SUM(AM14:AO14)))) ->  | AQ14: =IF(AND(AL14="",AP14=""),"",IF(AND(AL14="غ",AP14="غ"),"غ",IF(AND(AL14="صفر",AP14="صفر"),"صفر",SUM(AL14,AP14)))) ->  | AR14: =IF(AQ14="","",IF(AQ14="غ","غ",IF(AQ14>=84.5,"ممتاز",IF(AQ14>=64.5,"جيد جدا",IF(AQ14>=49.5,"جيد",IF(AQ14>=1,"ضعيف")))))) ->  | AT14: =IF(AS14="غ","غ",IF(AS14<>"غ","")) ->  | AU14: =IF(AND(AS14="",AT14=""),"",IF(AND(AS14="غ",AT14="غ"),"غ",IF(AND(AS14="صفر",AT14="صفر"),"صفر",SUM(AS14:AT14)))) ->  | AY14: =IF(AND(AV14="",AW14="",AX14=""),"",IF(AND(AV14="غ",AW14="غ",AX14="غ"),"غ",IF(AND(AV14="صفر",AW14="صفر",AX14="صفر"),"صفر",SUM(AV14:AX14)))) ->  | AZ14: =IF(AND(AU14="",AY14=""),"",IF(AND(AU14="غ",AY14="غ"),"غ",IF(AND(AU14="صفر",AY14="صفر"),"صفر",SUM(AU14,AY14)))) ->  | BA14: =IF(AND(AQ14="",AZ14=""),"",IF(AND(AQ14="غ",AZ14="غ"),"غ",IF(AND(AQ14="صفر",AZ14="صفر"),"صفر",SUM(AQ14,AZ14)))) ->  | BB14: =IF(AND(BA14=""),"",IF(AND(BA14="غ"),"غ",IF(AND(BA14="صفر"),"صفر",BA14/2))) ->  | BC14: =IF(BB14="","",IF(BB14="غ","غ",IF(BB14>=84.5,"ممتاز",IF(BB14>=64.5,"جيد جدا",IF(BB14>=49.5,"جيد",IF(BB14>=1,"ضعيف")))))) ->  | BE14: =IF(BD14="غ","غ",IF(BD14<>"غ","")) ->  | BF14: =IF(AND(BD14="",BE14=""),"",IF(AND(BD14="غ",BE14="غ"),"غ",IF(AND(BD14="صفر",BE14="صفر"),"صفر",SUM(BD14:BE14)))) ->  | BJ14: =IF(AND(BG14="",BH14="",BI14=""),"",IF(AND(BG14="غ",BH14="غ",BI14="غ"),"غ",IF(AND(BG14="صفر",BH14="صفر",BI14="صفر"),"صفر",SUM(BG14:BI14)))) ->  | BK14: =IF(AND(BF14="",BJ14=""),"",IF(AND(BF14="غ",BJ14="غ"),"غ",IF(AND(BF14="صفر",BJ14="صفر"),"صفر",SUM(BF14,BJ14)))) ->  | BL14: =IF(BK14="","",IF(BK14="غ","غ",IF(BK14>=84.5,"ممتاز",IF(BK14>=64.5,"جيد جدا",IF(BK14>=49.5,"جيد",IF(BK14>=1,"ضعيف")))))) ->  | BN14: =IF(BM14="غ","غ",IF(BM14<>"غ","")) ->  | BO14: =IF(AND(BM14="",BN14=""),"",IF(AND(BM14="غ",BN14="غ"),"غ",IF(AND(BM14="صفر",BN14="صفر"),"صفر",SUM(BM14:BN14)))) ->  | BS14: =IF(AND(BP14="",BQ14="",BR14=""),"",IF(AND(BP14="غ",BQ14="غ",BR14="غ"),"غ",IF(AND(BP14="صفر",BQ14="صفر",BR14="صفر"),"صفر",SUM(BP14:BR14)))) ->  | BT14: =IF(AND(BO14="",BS14=""),"",IF(AND(BO14="غ",BS14="غ"),"غ",IF(AND(BO14="صفر",BS14="صفر"),"صفر",SUM(BO14,BS14)))) ->  | BU14: =IF(AND(BK14="",BT14=""),"",IF(AND(BK14="غ",BT14="غ"),"غ",IF(AND(BK14="صفر",BT14="صفر"),"صفر",SUM(BK14,BT14)))) ->  | BV14: =IF(AND(BU14=""),"",IF(AND(BU14="غ"),"غ",IF(AND(BU14="صفر"),"صفر",BU14/2))) ->  | BW14: =IF(BV14="","",IF(BV14="غ","غ",IF(BV14>=84.5,"ممتاز",IF(BV14>=64.5,"جيد جدا",IF(BV14>=49.5,"جيد",IF(BV14>=1,"ضعيف")))))) ->  | BY14: =IF(BX14="غ","غ",IF(BX14<>"غ","")) ->  | BZ14: =IF(AND(BX14="",BY14=""),"",IF(AND(BX14="غ",BY14="غ"),"غ",IF(AND(BX14="صفر",BY14="صفر"),"صفر",SUM(BX14:BY14)))) ->  | CD14: =IF(AND(CA14="",CB14="",CC14=""),"",IF(AND(CA14="غ",CB14="غ",CC14="غ"),"غ",IF(AND(CA14="صفر",CB14="صفر",CC14="صفر"),"صفر",SUM(CA14:CC14)))) ->  | CE14: =IF(AND(BZ14="",CD14=""),"",IF(AND(BZ14="غ",CD14="غ"),"غ",IF(AND(BZ14="صفر",CD14="صفر"),"صفر",SUM(BZ14,CD14)))) ->  | CF14: =IF(CE14="","",IF(CE14="غ","غ",IF(CE14>=84.5,"ممتاز",IF(CE14>=64.5,"جيد جدا",IF(CE14>=49.5,"جيد",IF(CE14>=1,"ضعيف")))))) ->  | CH14: =IF(CG14="غ","غ",IF(CG14<>"غ","")) ->  | CI14: =IF(AND(CG14="",CH14=""),"",IF(AND(CG14="غ",CH14="غ"),"غ",IF(AND(CG14="صفر",CH14="صفر"),"صفر",SUM(CG14:CH14)))) ->  | CM14: =IF(AND(CJ14="",CK14="",CL14=""),"",IF(AND(CJ14="غ",CK14="غ",CL14="غ"),"غ",IF(AND(CJ14="صفر",CK14="صفر",CL14="صفر"),"صفر",SUM(CJ14:CL14)))) ->  | CN14: =IF(AND(CI14="",CM14=""),"",IF(AND(CI14="غ",CM14="غ"),"غ",IF(AND(CI14="صفر",CM14="صفر"),"صفر",SUM(CI14,CM14)))) ->  | CO14: =IF(AND(CE14="",CN14=""),"",IF(AND(CE14="غ",CN14="غ"),"غ",IF(AND(CE14="صفر",CN14="صفر"),"صفر",SUM(CE14,CN14)))) ->  | CP14: =IF(AND(CO14=""),"",IF(AND(CO14="غ"),"غ",IF(AND(CO14="صفر"),"صفر",CO14/2))) ->  | CQ14: =IF(CP14="","",IF(CP14="غ","غ",IF(CP14>=84.5,"ممتاز",IF(CP14>=64.5,"جيد جدا",IF(CP14>=49.5,"جيد",IF(CP14>=1,"ضعيف")))))) ->  | CS14: =IF(CR14="غ","غ",IF(CR14<>"غ","")) ->  | CT14: =IF(AND(CR14="",CS14=""),"",IF(AND(CR14="غ",CS14="غ"),"غ",IF(AND(CR14="صفر",CS14="صفر"),"صفر",SUM(CR14:CS14)))) ->  | CX14: =IF(AND(CU14="",CV14="",CW14=""),"",IF(AND(CU14="غ",CV14="غ",CW14="غ"),"غ",IF(AND(CU14="صفر",CV14="صفر",CW14="صفر"),"صفر",SUM(CU14:CW14)))) ->  | CY14: =IF(AND(CT14="",CX14=""),"",IF(AND(CT14="غ",CX14="غ"),"غ",IF(AND(CT14="صفر",CX14="صفر"),"صفر",SUM(CT14,CX14)))) ->  | CZ14: =IF(CY14="","",IF(CY14="غ","غ",IF(CY14>=84.5,"ممتاز",IF(CY14>=64.5,"جيد جدا",IF(CY14>=49.5,"جيد",IF(CY14>=1,"ضعيف")))))) ->  | DB14: =IF(DA14="غ","غ",IF(DA14<>"غ","")) ->  | DC14: =IF(AND(DA14="",DB14=""),"",IF(AND(DA14="غ",DB14="غ"),"غ",IF(AND(DA14="صفر",DB14="صفر"),"صفر",SUM(DA14:DB14)))) ->  | DG14: =IF(AND(DD14="",DE14="",DF14=""),"",IF(AND(DD14="غ",DE14="غ",DF14="غ"),"غ",IF(AND(DD14="صفر",DE14="صفر",DF14="صفر"),"صفر",SUM(DD14:DF14)))) ->  | DH14: =IF(AND(DC14="",DG14=""),"",IF(AND(DC14="غ",DG14="غ"),"غ",IF(AND(DC14="صفر",DG14="صفر"),"صفر",SUM(DC14,DG14)))) ->  | DI14: =IF(AND(CY14="",DH14=""),"",IF(AND(CY14="غ",DH14="غ"),"غ",IF(AND(CY14="صفر",DH14="صفر"),"صفر",SUM(CY14,DH14)))) ->  | DJ14: =IF(AND(DI14=""),"",IF(AND(DI14="غ"),"غ",IF(AND(DI14="صفر"),"صفر",DI14/2))) ->  | DK14: =IF(DJ14="","",IF(DJ14="غ","غ",IF(DJ14>=84.5,"ممتاز",IF(DJ14>=64.5,"جيد جدا",IF(DJ14>=49.5,"جيد",IF(DJ14>=1,"ضعيف")))))) ->  | DM14: =IF(DL14="غ","غ",IF(DL14<>"غ","")) ->  | DN14: =IF(AND(DL14="",DM14=""),"",IF(AND(DL14="غ",DM14="غ"),"غ",IF(AND(DL14="صفر",DM14="صفر"),"صفر",SUM(DL14:DM14)))) ->  | DR14: =IF(AND(DO14="",DP14="",DQ14=""),"",IF(AND(DO14="غ",DP14="غ",DQ14="غ"),"غ",IF(AND(DO14="صفر",DP14="صفر",DQ14="صفر"),"صفر",SUM(DO14:DQ14)))) ->  | DS14: =IF(AND(DN14="",DR14=""),"",IF(AND(DN14="غ",DR14="غ"),"غ",IF(AND(DN14="صفر",DR14="صفر"),"صفر",SUM(DN14,DR14)))) ->  | DT14: =IF(DS14="","",IF(DS14="غ","غ",IF(DS14>=84.5,"ممتاز",IF(DS14>=64.5,"جيد جدا",IF(DS14>=49.5,"جيد",IF(DS14>=1,"ضعيف")))))) ->  | DV14: =IF(DU14="غ","غ",IF(DU14<>"غ","")) ->  | DW14: =IF(AND(DU14="",DV14=""),"",IF(AND(DU14="غ",DV14="غ"),"غ",IF(AND(DU14="صفر",DV14="صفر"),"صفر",SUM(DU14:DV14)))) ->  | EA14: =IF(AND(DX14="",DY14="",DZ14=""),"",IF(AND(DX14="غ",DY14="غ",DZ14="غ"),"غ",IF(AND(DX14="صفر",DY14="صفر",DZ14="صفر"),"صفر",SUM(DX14:DZ14)))) ->  | EB14: =IF(AND(DW14="",EA14=""),"",IF(AND(DW14="غ",EA14="غ"),"غ",IF(AND(DW14="صفر",EA14="صفر"),"صفر",SUM(DW14,EA14)))) ->  | EC14: =IF(AND(DS14="",EB14=""),"",IF(AND(DS14="غ",EB14="غ"),"غ",IF(AND(DS14="صفر",EB14="صفر"),"صفر",SUM(DS14,EB14)))) ->  | ED14: =IF(AND(EC14=""),"",IF(AND(EC14="غ"),"غ",IF(AND(EC14="صفر"),"صفر",EC14/2))) ->  | EE14: =IF(ED14="","",IF(ED14="غ","غ",IF(ED14>=84.5,"ممتاز",IF(ED14>=64.5,"جيد جدا",IF(ED14>=49.5,"جيد",IF(ED14>=1,"ضعيف")))))) ->  | EG14: =IF(EF14="غ","غ",IF(EF14<>"غ","")) ->  | EH14: =IF(AND(EF14="",EG14=""),"",IF(AND(EF14="غ",EG14="غ"),"غ",IF(AND(EF14="صفر",EG14="صفر"),"صفر",SUM(EF14:EG14)))) ->  | EL14: =IF(AND(EI14="",EJ14="",EK14=""),"",IF(AND(EI14="غ",EJ14="غ",EK14="غ"),"غ",IF(AND(EI14="صفر",EJ14="صفر",EK14="صفر"),"صفر",SUM(EI14:EK14)))) ->  | EM14: =IF(AND(EH14="",EL14=""),"",IF(AND(EH14="غ",EL14="غ"),"غ",IF(AND(EH14="صفر",EL14="صفر"),"صفر",SUM(EH14,EL14)))) ->  | EN14: =IF(EM14="","",IF(EM14="غ","غ",IF(EM14>=84.5,"ممتاز",IF(EM14>=64.5,"جيد جدا",IF(EM14>=49.5,"جيد",IF(EM14>=1,"ضعيف")))))) ->  | EP14: =IF(EO14="غ","غ",IF(EO14<>"غ","")) ->  | EQ14: =IF(AND(EO14="",EP14=""),"",IF(AND(EO14="غ",EP14="غ"),"غ",IF(AND(EO14="صفر",EP14="صفر"),"صفر",SUM(EO14:EP14)))) ->  | EU14: =IF(AND(ER14="",ES14="",ET14=""),"",IF(AND(ER14="غ",ES14="غ",ET14="غ"),"غ",IF(AND(ER14="صفر",ES14="صفر",ET14="صفر"),"صفر",SUM(ER14:ET14)))) ->  | EV14: =IF(AND(EQ14="",EU14=""),"",IF(AND(EQ14="غ",EU14="غ"),"غ",IF(AND(EQ14="صفر",EU14="صفر"),"صفر",SUM(EQ14,EU14)))) ->  | EW14: =IF(AND(EM14="",EV14=""),"",IF(AND(EM14="غ",EV14="غ"),"غ",IF(AND(EM14="صفر",EV14="صفر"),"صفر",SUM(EM14,EV14)))) ->  | EX14: =IF(AND(EW14=""),"",IF(AND(EW14="غ"),"غ",IF(AND(EW14="صفر"),"صفر",EW14/2))) ->  | EY14: =IF(EX14="","",IF(EX14="غ","غ",IF(EX14>=84.5,"ممتاز",IF(EX14>=64.5,"جيد جدا",IF(EX14>=49.5,"جيد",IF(EX14>=1,"ضعيف")))))) ->  | FA14: =IF(EZ14="غ","غ",IF(EZ14<>"غ","")) ->  | FB14: =IF(AND(EZ14="",FA14=""),"",IF(AND(EZ14="غ",FA14="غ"),"غ",IF(AND(EZ14="صفر",FA14="صفر"),"صفر",SUM(EZ14:FA14)))) ->  | FF14: =IF(AND(FC14="",FD14="",FE14=""),"",IF(AND(FC14="غ",FD14="غ",FE14="غ"),"غ",IF(AND(FC14="صفر",FD14="صفر",FE14="صفر"),"صفر",SUM(FC14:FE14)))) ->  | FG14: =IF(AND(FB14="",FF14=""),"",IF(AND(FB14="غ",FF14="غ"),"غ",IF(AND(FB14="صفر",FF14="صفر"),"صفر",SUM(FB14,FF14)))) ->  | FH14: =IF(FG14="","",IF(FG14="غ","غ",IF(FG14>=84.5,"ممتاز",IF(FG14>=64.5,"جيد جدا",IF(FG14>=49.5,"جيد",IF(FG14>=1,"ضعيف")))))) ->  | FJ14: =IF(FI14="غ","غ",IF(FI14<>"غ","")) ->  | FK14: =IF(AND(FI14="",FJ14=""),"",IF(AND(FI14="غ",FJ14="غ"),"غ",IF(AND(FI14="صفر",FJ14="صفر"),"صفر",SUM(FI14:FJ14)))) ->  | FO14: =IF(AND(FL14="",FM14="",FN14=""),"",IF(AND(FL14="غ",FM14="غ",FN14="غ"),"غ",IF(AND(FL14="صفر",FM14="صفر",FN14="صفر"),"صفر",SUM(FL14:FN14)))) ->  | FP14: =IF(AND(FK14="",FO14=""),"",IF(AND(FK14="غ",FO14="غ"),"غ",IF(AND(FK14="صفر",FO14="صفر"),"صفر",SUM(FK14,FO14)))) ->  | FQ14: =IF(AND(FG14="",FP14=""),"",IF(AND(FG14="غ",FP14="غ"),"غ",IF(AND(FG14="صفر",FP14="صفر"),"صفر",SUM(FG14,FP14)))) ->  | FR14: =IF(AND(FQ14=""),"",IF(AND(FQ14="غ"),"غ",IF(AND(FQ14="صفر"),"صفر",FQ14/2))) ->  | FS14: =IF(FR14="","",IF(FR14="غ","غ",IF(FR14>=84.5,"ممتاز",IF(FR14>=64.5,"جيد جدا",IF(FR14>=49.5,"جيد",IF(FR14>=1,"ضعيف")))))) ->  | FT14: =IF(AND(W14="",AQ14="",BK14="",CE14="",CY14="",DS14="",EM14="",FG14=""),"",IF(AND(W14="غ",AQ14="غ",BK14="غ",CE14="غ",CY14="غ",DS14="غ",EM14="غ",FG14="غ"),"غ",IF(AND(W14="صفر",AQ14="صفر",BK14="صفر",CE14="صفر",CY14="صفر",DS14="صفر",EM14="صفر",FG14="صفر"),"صفر",SUM(W14,AQ14,BK14,CE14,CY14,DS14,EM14,FG14)))) ->  | FU14: =IF(FT14="","",IF(FT14="غ","غ",IF(FT14>=680,"ممتاز",IF(FT14>=520,"جيد جدا",IF(FT14>=400,"جيد",IF(FT14>=1,"ضعيف")))))) ->  | GL14: =IF(AND(GJ14="",GK14=""),"",IF(AND(GJ14="غ",GK14="غ"),"غ",IF(AND(GJ14="صفر",GK14="صفر"),"صفر",SUM(GJ14,GK14)))) ->  | GM14: =IF(AND(GL14=""),"",IF(AND(GL14="غ"),"غ",IF(AND(GL14="صفر"),"صفر",GL14/2))) ->  | GN14: =IF(GJ14="","",IF(GJ14="غ","غ",IF(GJ14>=85,"ممتاز",IF(GJ14>=65,"جيد جدا",IF(GJ14>=50,"جيد",IF(GJ14>=1,"ضعيف")))))) ->  | GO14: =IF(GM14="","",IF(GM14="غ","غ",IF(GM14>=85,"ممتاز",IF(GM14>=65,"جيد جدا",IF(GM14>=50,"جيد",IF(GM14>=1,"ضعيف")))))) ->  | GR14: =IF(AND(GP14="",GQ14=""),"",IF(AND(GP14="غ",GQ14="غ"),"غ",IF(AND(GP14="صفر",GQ14="صفر"),"صفر",SUM(GP14,GQ14)))) ->  | GS14: =IF(AND(GR14=""),"",IF(AND(GR14="غ"),"غ",IF(AND(GR14="صفر"),"صفر",GR14/2))) ->  | GT14: =IF(GP14="","",IF(GP14="غ","غ",IF(GP14>=85,"ممتاز",IF(GP14>=65,"جيد جدا",IF(GP14>=50,"جيد",IF(GP14>=1,"ضعيف")))))) ->  | GU14: =IF(GS14="","",IF(GS14="غ","غ",IF(GS14>=85,"ممتاز",IF(GS14>=65,"جيد جدا",IF(GS14>=50,"جيد",IF(GS14>=1,"ضعيف")))))) ->  | GX14: =IF(AND(GV14="",GW14=""),"",IF(AND(GV14="غ",GW14="غ"),"غ",IF(AND(GV14="صفر",GW14="صفر"),"صفر",SUM(GV14,GW14)))) ->  | GY14: =IF(AND(GX14=""),"",IF(AND(GX14="غ"),"غ",IF(AND(GX14="صفر"),"صفر",GX14/2))) ->  | GZ14: =IF(GV14="","",IF(GV14="غ","غ",IF(GV14>=85,"ممتاز",IF(GV14>=65,"جيد جدا",IF(GV14>=50,"جيد",IF(GV14>=1,"ضعيف")))))) ->  | HA14: =IF(GY14="","",IF(GY14="غ","غ",IF(GY14>=85,"ممتاز",IF(GY14>=65,"جيد جدا",IF(GY14>=50,"جيد",IF(GY14>=1,"ضعيف")))))) ->  | HD14: =IF(AND(HB14="",HC14=""),"",IF(AND(HB14="غ",HC14="غ"),"غ",IF(AND(HB14="صفر",HC14="صفر"),"صفر",SUM(HB14,HC14)))) ->  | HE14: =IF(AND(HD14=""),"",IF(AND(HD14="غ"),"غ",IF(AND(HD14="صفر"),"صفر",HD14/2))) ->  | HF14: =IF(HB14="","",IF(HB14="غ","غ",IF(HB14>=85,"ممتاز",IF(HB14>=65,"جيد جدا",IF(HB14>=50,"جيد",IF(HB14>=1,"ضعيف")))))) ->  | HG14: =IF(HE14="","",IF(HE14="غ","غ",IF(HE14>=85,"ممتاز",IF(HE14>=65,"جيد جدا",IF(HE14>=50,"جيد",IF(HE14>=1,"ضعيف")))))) ->  | HJ14: =IF(AND(HH14="",HI14=""),"",IF(AND(HH14="غ",HI14="غ"),"غ",IF(AND(HH14="صفر",HI14="صفر"),"صفر",SUM(HH14,HI14)))) ->  | HK14: =IF(AND(HJ14=""),"",IF(AND(HJ14="غ"),"غ",IF(AND(HJ14="صفر"),"صفر",HJ14/2))) ->  | HL14: =IF(HH14="","",IF(HH14="غ","غ",IF(HH14>=85,"ممتاز",IF(HH14>=65,"جيد جدا",IF(HH14>=50,"جيد",IF(HH14>=1,"ضعيف")))))) ->  | HM14: =IF(HK14="","",IF(HK14="غ","غ",IF(HK14>=85,"ممتاز",IF(HK14>=65,"جيد جدا",IF(HK14>=50,"جيد",IF(HK14>=1,"ضعيف")))))) ->  | KV14: =IF(KW14="","",COUNT($KW$14:KW14)) -> 1 | KW14: 401 | KX14: =IF(KY14="","",KW14+KY14-1) -> 420 | KY14: 20 | KZ14: =IF(KW14="","",COUNT(KW$14:KW14)) -> 1 | LA14: 1 | LB14: =$KW$14 -> 401 | LC14: =C14 -> 0 | LD14: =F14 -> 0 | LE14: =L14 -> 0 | LF14: =IF(LB14="","",VLOOKUP(LB14,saad1,4)) -> 1 | LG14: =IF(LF14=LF15,"","نهاية اللجنة") ->  | LH14: =K14 -> 0 | LM14: =B14 -> 0 | LN14: 0 | LO14: =IF(FT14="","",IF(FT14="غ","غ",FT14+1/ROW()*0.001)) ->  | LP14: =IFERROR(IF(FT14=" "," ",IF(FT14="غ","غ",RANK(FT14,$M$14:$FT$233))),"") ->  | LQ14: =GB14 -> 0 | LR14: 1 | LS14: =INDEX($LM$14:$LM$233,MATCH(LW14,$LO$14:$LO$233,0)) ->  | LT14: =INDEX($LN$14:$LN$233,MATCH(LW14,$LO$14:$LO$233,0)) ->  | LU14: =IF(LW14=" "," ",ROUNDDOWN(LW14,1)) ->  | LV14: =RANK(LU14,$LU$14:$LU$23) ->  | LW14: =IF(LO14=" "," ",LARGE($LO$14:$LO$233,LR14)) ->  | LX14: =IF(LV14=1,"الأول"," ") -> 
A15: =IF(C15="","",SUBTOTAL(3,$C$14:C15)) ->  | Q15: =IF(P15="غ","غ",IF(P15<>"غ","")) ->  | R15: =IF(AND(P15="",Q15=""),"",IF(AND(P15="غ",Q15="غ"),"غ",IF(AND(P15="صفر",Q15="صفر"),"صفر",SUM(P15:Q15)))) ->  | V15: =IF(AND(S15="",T15="",U15=""),"",IF(AND(S15="غ",T15="غ",U15="غ"),"غ",IF(AND(S15="صفر",T15="صفر",U15="صفر"),"صفر",SUM(S15:U15)))) ->  | W15: =IF(AND(R15="",V15=""),"",IF(AND(R15="غ",V15="غ"),"غ",IF(AND(R15="صفر",V15="صفر"),"صفر",SUM(R15,V15)))) ->  | X15: =IF(W15="","",IF(W15="غ","غ",IF(W15>=84.5,"ممتاز",IF(W15>=64.5,"جيد جدا",IF(W15>=49.5,"جيد",IF(W15>=1,"ضعيف")))))) ->  | Z15: =IF(Y15="غ","غ",IF(Y15<>"غ","")) ->  | AA15: =IF(AND(Y15="",Z15=""),"",IF(AND(Y15="غ",Z15="غ"),"غ",IF(AND(Y15="صفر",Z15="صفر"),"صفر",SUM(Y15:Z15)))) ->  | AE15: =IF(AND(AB15="",AC15="",AD15=""),"",IF(AND(AB15="غ",AC15="غ",AD15="غ"),"غ",IF(AND(AB15="صفر",AC15="صفر",AD15="صفر"),"صفر",SUM(AB15:AD15)))) ->  | AF15: =IF(AND(AA15="",AE15=""),"",IF(AND(AA15="غ",AE15="غ"),"غ",IF(AND(AA15="صفر",AE15="صفر"),"صفر",SUM(AA15,AE15)))) ->  | AG15: =IF(AND(W15="",AF15=""),"",IF(AND(W15="غ",AF15="غ"),"غ",IF(AND(W15="صفر",AF15="صفر"),"صفر",SUM(W15,AF15)))) ->  | AH15: =IF(AND(AG15=""),"",IF(AND(AG15="غ"),"غ",IF(AND(AG15="صفر"),"صفر",AG15/2))) ->  | AI15: =IF(AH15="","",IF(AH15="غ","غ",IF(AH15>=84.5,"ممتاز",IF(AH15>=64.5,"جيد جدا",IF(AH15>=49.5,"جيد",IF(AH15>=1,"ضعيف")))))) ->  | AK15: =IF(AJ15="غ","غ",IF(AJ15<>"غ","")) ->  | AL15: =IF(AND(AJ15="",AK15=""),"",IF(AND(AJ15="غ",AK15="غ"),"غ",IF(AND(AJ15="صفر",AK15="صفر"),"صفر",SUM(AJ15:AK15)))) ->  | AP15: =IF(AND(AM15="",AN15="",AO15=""),"",IF(AND(AM15="غ",AN15="غ",AO15="غ"),"غ",IF(AND(AM15="صفر",AN15="صفر",AO15="صفر"),"صفر",SUM(AM15:AO15)))) ->  | AQ15: =IF(AND(AL15="",AP15=""),"",IF(AND(AL15="غ",AP15="غ"),"غ",IF(AND(AL15="صفر",AP15="صفر"),"صفر",SUM(AL15,AP15)))) ->  | AR15: =IF(AQ15="","",IF(AQ15="غ","غ",IF(AQ15>=84.5,"ممتاز",IF(AQ15>=64.5,"جيد جدا",IF(AQ15>=49.5,"جيد",IF(AQ15>=1,"ضعيف")))))) ->  | AT15: =IF(AS15="غ","غ",IF(AS15<>"غ","")) ->  | AU15: =IF(AND(AS15="",AT15=""),"",IF(AND(AS15="غ",AT15="غ"),"غ",IF(AND(AS15="صفر",AT15="صفر"),"صفر",SUM(AS15:AT15)))) ->  | AY15: =IF(AND(AV15="",AW15="",AX15=""),"",IF(AND(AV15="غ",AW15="غ",AX15="غ"),"غ",IF(AND(AV15="صفر",AW15="صفر",AX15="صفر"),"صفر",SUM(AV15:AX15)))) ->  | AZ15: =IF(AND(AU15="",AY15=""),"",IF(AND(AU15="غ",AY15="غ"),"غ",IF(AND(AU15="صفر",AY15="صفر"),"صفر",SUM(AU15,AY15)))) ->  | BA15: =IF(AND(AQ15="",AZ15=""),"",IF(AND(AQ15="غ",AZ15="غ"),"غ",IF(AND(AQ15="صفر",AZ15="صفر"),"صفر",SUM(AQ15,AZ15)))) ->  | BB15: =IF(AND(BA15=""),"",IF(AND(BA15="غ"),"غ",IF(AND(BA15="صفر"),"صفر",BA15/2))) ->  | BC15: =IF(BB15="","",IF(BB15="غ","غ",IF(BB15>=84.5,"ممتاز",IF(BB15>=64.5,"جيد جدا",IF(BB15>=49.5,"جيد",IF(BB15>=1,"ضعيف")))))) ->  | BE15: =IF(BD15="غ","غ",IF(BD15<>"غ","")) ->  | BF15: =IF(AND(BD15="",BE15=""),"",IF(AND(BD15="غ",BE15="غ"),"غ",IF(AND(BD15="صفر",BE15="صفر"),"صفر",SUM(BD15:BE15)))) ->  | BJ15: =IF(AND(BG15="",BH15="",BI15=""),"",IF(AND(BG15="غ",BH15="غ",BI15="غ"),"غ",IF(AND(BG15="صفر",BH15="صفر",BI15="صفر"),"صفر",SUM(BG15:BI15)))) ->  | BK15: =IF(AND(BF15="",BJ15=""),"",IF(AND(BF15="غ",BJ15="غ"),"غ",IF(AND(BF15="صفر",BJ15="صفر"),"صفر",SUM(BF15,BJ15)))) ->  | BL15: =IF(BK15="","",IF(BK15="غ","غ",IF(BK15>=84.5,"ممتاز",IF(BK15>=64.5,"جيد جدا",IF(BK15>=49.5,"جيد",IF(BK15>=1,"ضعيف")))))) ->  | BN15: =IF(BM15="غ","غ",IF(BM15<>"غ","")) ->  | BO15: =IF(AND(BM15="",BN15=""),"",IF(AND(BM15="غ",BN15="غ"),"غ",IF(AND(BM15="صفر",BN15="صفر"),"صفر",SUM(BM15:BN15)))) ->  | BS15: =IF(AND(BP15="",BQ15="",BR15=""),"",IF(AND(BP15="غ",BQ15="غ",BR15="غ"),"غ",IF(AND(BP15="صفر",BQ15="صفر",BR15="صفر"),"صفر",SUM(BP15:BR15)))) ->  | BT15: =IF(AND(BO15="",BS15=""),"",IF(AND(BO15="غ",BS15="غ"),"غ",IF(AND(BO15="صفر",BS15="صفر"),"صفر",SUM(BO15,BS15)))) ->  | BU15: =IF(AND(BK15="",BT15=""),"",IF(AND(BK15="غ",BT15="غ"),"غ",IF(AND(BK15="صفر",BT15="صفر"),"صفر",SUM(BK15,BT15)))) ->  | BV15: =IF(AND(BU15=""),"",IF(AND(BU15="غ"),"غ",IF(AND(BU15="صفر"),"صفر",BU15/2))) ->  | BW15: =IF(BV15="","",IF(BV15="غ","غ",IF(BV15>=84.5,"ممتاز",IF(BV15>=64.5,"جيد جدا",IF(BV15>=49.5,"جيد",IF(BV15>=1,"ضعيف")))))) ->  | BY15: =IF(BX15="غ","غ",IF(BX15<>"غ","")) ->  | BZ15: =IF(AND(BX15="",BY15=""),"",IF(AND(BX15="غ",BY15="غ"),"غ",IF(AND(BX15="صفر",BY15="صفر"),"صفر",SUM(BX15:BY15)))) ->  | CD15: =IF(AND(CA15="",CB15="",CC15=""),"",IF(AND(CA15="غ",CB15="غ",CC15="غ"),"غ",IF(AND(CA15="صفر",CB15="صفر",CC15="صفر"),"صفر",SUM(CA15:CC15)))) ->  | CE15: =IF(AND(BZ15="",CD15=""),"",IF(AND(BZ15="غ",CD15="غ"),"غ",IF(AND(BZ15="صفر",CD15="صفر"),"صفر",SUM(BZ15,CD15)))) ->  | CF15: =IF(CE15="","",IF(CE15="غ","غ",IF(CE15>=84.5,"ممتاز",IF(CE15>=64.5,"جيد جدا",IF(CE15>=49.5,"جيد",IF(CE15>=1,"ضعيف")))))) ->  | CH15: =IF(CG15="غ","غ",IF(CG15<>"غ","")) ->  | CI15: =IF(AND(CG15="",CH15=""),"",IF(AND(CG15="غ",CH15="غ"),"غ",IF(AND(CG15="صفر",CH15="صفر"),"صفر",SUM(CG15:CH15)))) ->  | CM15: =IF(AND(CJ15="",CK15="",CL15=""),"",IF(AND(CJ15="غ",CK15="غ",CL15="غ"),"غ",IF(AND(CJ15="صفر",CK15="صفر",CL15="صفر"),"صفر",SUM(CJ15:CL15)))) ->  | CN15: =IF(AND(CI15="",CM15=""),"",IF(AND(CI15="غ",CM15="غ"),"غ",IF(AND(CI15="صفر",CM15="صفر"),"صفر",SUM(CI15,CM15)))) ->  | CO15: =IF(AND(CE15="",CN15=""),"",IF(AND(CE15="غ",CN15="غ"),"غ",IF(AND(CE15="صفر",CN15="صفر"),"صفر",SUM(CE15,CN15)))) ->  | CP15: =IF(AND(CO15=""),"",IF(AND(CO15="غ"),"غ",IF(AND(CO15="صفر"),"صفر",CO15/2))) ->  | CQ15: =IF(CP15="","",IF(CP15="غ","غ",IF(CP15>=84.5,"ممتاز",IF(CP15>=64.5,"جيد جدا",IF(CP15>=49.5,"جيد",IF(CP15>=1,"ضعيف")))))) ->  | CS15: =IF(CR15="غ","غ",IF(CR15<>"غ","")) ->  | CT15: =IF(AND(CR15="",CS15=""),"",IF(AND(CR15="غ",CS15="غ"),"غ",IF(AND(CR15="صفر",CS15="صفر"),"صفر",SUM(CR15:CS15)))) ->  | CX15: =IF(AND(CU15="",CV15="",CW15=""),"",IF(AND(CU15="غ",CV15="غ",CW15="غ"),"غ",IF(AND(CU15="صفر",CV15="صفر",CW15="صفر"),"صفر",SUM(CU15:CW15)))) ->  | CY15: =IF(AND(CT15="",CX15=""),"",IF(AND(CT15="غ",CX15="غ"),"غ",IF(AND(CT15="صفر",CX15="صفر"),"صفر",SUM(CT15,CX15)))) ->  | CZ15: =IF(CY15="","",IF(CY15="غ","غ",IF(CY15>=84.5,"ممتاز",IF(CY15>=64.5,"جيد جدا",IF(CY15>=49.5,"جيد",IF(CY15>=1,"ضعيف")))))) ->  | DB15: =IF(DA15="غ","غ",IF(DA15<>"غ","")) ->  | DC15: =IF(AND(DA15="",DB15=""),"",IF(AND(DA15="غ",DB15="غ"),"غ",IF(AND(DA15="صفر",DB15="صفر"),"صفر",SUM(DA15:DB15)))) ->  | DG15: =IF(AND(DD15="",DE15="",DF15=""),"",IF(AND(DD15="غ",DE15="غ",DF15="غ"),"غ",IF(AND(DD15="صفر",DE15="صفر",DF15="صفر"),"صفر",SUM(DD15:DF15)))) ->  | DH15: =IF(AND(DC15="",DG15=""),"",IF(AND(DC15="غ",DG15="غ"),"غ",IF(AND(DC15="صفر",DG15="صفر"),"صفر",SUM(DC15,DG15)))) ->  | DI15: =IF(AND(CY15="",DH15=""),"",IF(AND(CY15="غ",DH15="غ"),"غ",IF(AND(CY15="صفر",DH15="صفر"),"صفر",SUM(CY15,DH15)))) ->  | DJ15: =IF(AND(DI15=""),"",IF(AND(DI15="غ"),"غ",IF(AND(DI15="صفر"),"صفر",DI15/2))) ->  | DK15: =IF(DJ15="","",IF(DJ15="غ","غ",IF(DJ15>=84.5,"ممتاز",IF(DJ15>=64.5,"جيد جدا",IF(DJ15>=49.5,"جيد",IF(DJ15>=1,"ضعيف")))))) ->  | DM15: =IF(DL15="غ","غ",IF(DL15<>"غ","")) ->  | DN15: =IF(AND(DL15="",DM15=""),"",IF(AND(DL15="غ",DM15="غ"),"غ",IF(AND(DL15="صفر",DM15="صفر"),"صفر",SUM(DL15:DM15)))) ->  | DR15: =IF(AND(DO15="",DP15="",DQ15=""),"",IF(AND(DO15="غ",DP15="غ",DQ15="غ"),"غ",IF(AND(DO15="صفر",DP15="صفر",DQ15="صفر"),"صفر",SUM(DO15:DQ15)))) ->  | DS15: =IF(AND(DN15="",DR15=""),"",IF(AND(DN15="غ",DR15="غ"),"غ",IF(AND(DN15="صفر",DR15="صفر"),"صفر",SUM(DN15,DR15)))) ->  | DT15: =IF(DS15="","",IF(DS15="غ","غ",IF(DS15>=84.5,"ممتاز",IF(DS15>=64.5,"جيد جدا",IF(DS15>=49.5,"جيد",IF(DS15>=1,"ضعيف")))))) ->  | DV15: =IF(DU15="غ","غ",IF(DU15<>"غ","")) ->  | DW15: =IF(AND(DU15="",DV15=""),"",IF(AND(DU15="غ",DV15="غ"),"غ",IF(AND(DU15="صفر",DV15="صفر"),"صفر",SUM(DU15:DV15)))) ->  | EA15: =IF(AND(DX15="",DY15="",DZ15=""),"",IF(AND(DX15="غ",DY15="غ",DZ15="غ"),"غ",IF(AND(DX15="صفر",DY15="صفر",DZ15="صفر"),"صفر",SUM(DX15:DZ15)))) ->  | EB15: =IF(AND(DW15="",EA15=""),"",IF(AND(DW15="غ",EA15="غ"),"غ",IF(AND(DW15="صفر",EA15="صفر"),"صفر",SUM(DW15,EA15)))) ->  | EC15: =IF(AND(DS15="",EB15=""),"",IF(AND(DS15="غ",EB15="غ"),"غ",IF(AND(DS15="صفر",EB15="صفر"),"صفر",SUM(DS15,EB15)))) ->  | ED15: =IF(AND(EC15=""),"",IF(AND(EC15="غ"),"غ",IF(AND(EC15="صفر"),"صفر",EC15/2))) ->  | EE15: =IF(ED15="","",IF(ED15="غ","غ",IF(ED15>=84.5,"ممتاز",IF(ED15>=64.5,"جيد جدا",IF(ED15>=49.5,"جيد",IF(ED15>=1,"ضعيف")))))) ->  | EG15: =IF(EF15="غ","غ",IF(EF15<>"غ","")) ->  | EH15: =IF(AND(EF15="",EG15=""),"",IF(AND(EF15="غ",EG15="غ"),"غ",IF(AND(EF15="صفر",EG15="صفر"),"صفر",SUM(EF15:EG15)))) ->  | EL15: =IF(AND(EI15="",EJ15="",EK15=""),"",IF(AND(EI15="غ",EJ15="غ",EK15="غ"),"غ",IF(AND(EI15="صفر",EJ15="صفر",EK15="صفر"),"صفر",SUM(EI15:EK15)))) ->  | EM15: =IF(AND(EH15="",EL15=""),"",IF(AND(EH15="غ",EL15="غ"),"غ",IF(AND(EH15="صفر",EL15="صفر"),"صفر",SUM(EH15,EL15)))) ->  | EN15: =IF(EM15="","",IF(EM15="غ","غ",IF(EM15>=84.5,"ممتاز",IF(EM15>=64.5,"جيد جدا",IF(EM15>=49.5,"جيد",IF(EM15>=1,"ضعيف")))))) ->  | EP15: =IF(EO15="غ","غ",IF(EO15<>"غ","")) ->  | EQ15: =IF(AND(EO15="",EP15=""),"",IF(AND(EO15="غ",EP15="غ"),"غ",IF(AND(EO15="صفر",EP15="صفر"),"صفر",SUM(EO15:EP15)))) ->  | EU15: =IF(AND(ER15="",ES15="",ET15=""),"",IF(AND(ER15="غ",ES15="غ",ET15="غ"),"غ",IF(AND(ER15="صفر",ES15="صفر",ET15="صفر"),"صفر",SUM(ER15:ET15)))) ->  | EV15: =IF(AND(EQ15="",EU15=""),"",IF(AND(EQ15="غ",EU15="غ"),"غ",IF(AND(EQ15="صفر",EU15="صفر"),"صفر",SUM(EQ15,EU15)))) ->  | EW15: =IF(AND(EM15="",EV15=""),"",IF(AND(EM15="غ",EV15="غ"),"غ",IF(AND(EM15="صفر",EV15="صفر"),"صفر",SUM(EM15,EV15)))) ->  | EX15: =IF(AND(EW15=""),"",IF(AND(EW15="غ"),"غ",IF(AND(EW15="صفر"),"صفر",EW15/2))) ->  | EY15: =IF(EX15="","",IF(EX15="غ","غ",IF(EX15>=84.5,"ممتاز",IF(EX15>=64.5,"جيد جدا",IF(EX15>=49.5,"جيد",IF(EX15>=1,"ضعيف")))))) ->  | FA15: =IF(EZ15="غ","غ",IF(EZ15<>"غ","")) ->  | FB15: =IF(AND(EZ15="",FA15=""),"",IF(AND(EZ15="غ",FA15="غ"),"غ",IF(AND(EZ15="صفر",FA15="صفر"),"صفر",SUM(EZ15:FA15)))) ->  | FF15: =IF(AND(FC15="",FD15="",FE15=""),"",IF(AND(FC15="غ",FD15="غ",FE15="غ"),"غ",IF(AND(FC15="صفر",FD15="صفر",FE15="صفر"),"صفر",SUM(FC15:FE15)))) ->  | FG15: =IF(AND(FB15="",FF15=""),"",IF(AND(FB15="غ",FF15="غ"),"غ",IF(AND(FB15="صفر",FF15="صفر"),"صفر",SUM(FB15,FF15)))) ->  | FH15: =IF(FG15="","",IF(FG15="غ","غ",IF(FG15>=84.5,"ممتاز",IF(FG15>=64.5,"جيد جدا",IF(FG15>=49.5,"جيد",IF(FG15>=1,"ضعيف")))))) ->  | FJ15: =IF(FI15="غ","غ",IF(FI15<>"غ","")) ->  | FK15: =IF(AND(FI15="",FJ15=""),"",IF(AND(FI15="غ",FJ15="غ"),"غ",IF(AND(FI15="صفر",FJ15="صفر"),"صفر",SUM(FI15:FJ15)))) ->  | FO15: =IF(AND(FL15="",FM15="",FN15=""),"",IF(AND(FL15="غ",FM15="غ",FN15="غ"),"غ",IF(AND(FL15="صفر",FM15="صفر",FN15="صفر"),"صفر",SUM(FL15:FN15)))) ->  | FP15: =IF(AND(FK15="",FO15=""),"",IF(AND(FK15="غ",FO15="غ"),"غ",IF(AND(FK15="صفر",FO15="صفر"),"صفر",SUM(FK15,FO15)))) ->  | FQ15: =IF(AND(FG15="",FP15=""),"",IF(AND(FG15="غ",FP15="غ"),"غ",IF(AND(FG15="صفر",FP15="صفر"),"صفر",SUM(FG15,FP15)))) ->  | FR15: =IF(AND(FQ15=""),"",IF(AND(FQ15="غ"),"غ",IF(AND(FQ15="صفر"),"صفر",FQ15/2))) ->  | FS15: =IF(FR15="","",IF(FR15="غ","غ",IF(FR15>=84.5,"ممتاز",IF(FR15>=64.5,"جيد جدا",IF(FR15>=49.5,"جيد",IF(FR15>=1,"ضعيف")))))) ->  | FU15: =IF(FT15="","",IF(FT15="غ","غ",IF(FT15>=680,"ممتاز",IF(FT15>=520,"جيد جدا",IF(FT15>=400,"جيد",IF(FT15>=1,"ضعيف")))))) ->  | GL15: =IF(AND(GJ15="",GK15=""),"",IF(AND(GJ15="غ",GK15="غ"),"غ",IF(AND(GJ15="صفر",GK15="صفر"),"صفر",SUM(GJ15,GK15)))) ->  | GM15: =IF(AND(GL15=""),"",IF(AND(GL15="غ"),"غ",IF(AND(GL15="صفر"),"صفر",GL15/2))) ->  | GO15: =IF(GM15="","",IF(GM15="غ","غ",IF(GM15>=85,"ممتاز",IF(GM15>=65,"جيد جدا",IF(GM15>=50,"جيد",IF(GM15>=1,"ضعيف")))))) ->  | GR15: =IF(AND(GP15="",GQ15=""),"",IF(AND(GP15="غ",GQ15="غ"),"غ",IF(AND(GP15="صفر",GQ15="صفر"),"صفر",SUM(GP15,GQ15)))) ->  | GS15: =IF(AND(GR15=""),"",IF(AND(GR15="غ"),"غ",IF(AND(GR15="صفر"),"صفر",GR15/2))) ->  | GU15: =IF(GS15="","",IF(GS15="غ","غ",IF(GS15>=85,"ممتاز",IF(GS15>=65,"جيد جدا",IF(GS15>=50,"جيد",IF(GS15>=1,"ضعيف")))))) ->  | GX15: =IF(AND(GV15="",GW15=""),"",IF(AND(GV15="غ",GW15="غ"),"غ",IF(AND(GV15="صفر",GW15="صفر"),"صفر",SUM(GV15,GW15)))) ->  | GY15: =IF(AND(GX15=""),"",IF(AND(GX15="غ"),"غ",IF(AND(GX15="صفر"),"صفر",GX15/2))) ->  | HA15: =IF(GY15="","",IF(GY15="غ","غ",IF(GY15>=85,"ممتاز",IF(GY15>=65,"جيد جدا",IF(GY15>=50,"جيد",IF(GY15>=1,"ضعيف")))))) ->  | HD15: =IF(AND(HB15="",HC15=""),"",IF(AND(HB15="غ",HC15="غ"),"غ",IF(AND(HB15="صفر",HC15="صفر"),"صفر",SUM(HB15,HC15)))) ->  | HE15: =IF(AND(HD15=""),"",IF(AND(HD15="غ"),"غ",IF(AND(HD15="صفر"),"صفر",HD15/2))) ->  | HG15: =IF(HE15="","",IF(HE15="غ","غ",IF(HE15>=85,"ممتاز",IF(HE15>=65,"جيد جدا",IF(HE15>=50,"جيد",IF(HE15>=1,"ضعيف")))))) ->  | HJ15: =IF(AND(HH15="",HI15=""),"",IF(AND(HH15="غ",HI15="غ"),"غ",IF(AND(HH15="صفر",HI15="صفر"),"صفر",SUM(HH15,HI15)))) ->  | HK15: =IF(AND(HJ15=""),"",IF(AND(HJ15="غ"),"غ",IF(AND(HJ15="صفر"),"صفر",HJ15/2))) ->  | HM15: =IF(HK15="","",IF(HK15="غ","غ",IF(HK15>=85,"ممتاز",IF(HK15>=65,"جيد جدا",IF(HK15>=50,"جيد",IF(HK15>=1,"ضعيف")))))) ->  | KV15: =IF(KW15="","",COUNT($KW$14:KW15)) -> 2 | KW15: =IF(KY15="","",KX14+1) -> 421 | KX15: =IF(KY15="","",KW15+KY15-1) -> 440 | KY15: 20 | KZ15: =IF(KW15="","",COUNT(KW$14:KW15)) -> 2 | LA15: =IF(LA14="","",IF(LA14+1>$KY$10,"",LA14+1)) -> 2 | LB15: =IF(LB14="","",IF(LB14+1>$KY$11,"",LB14+1)) -> 402 | LC15: 0 | LD15: 0 | LE15: 0 | LF15: =IF(LB15="","",VLOOKUP(LB15,saad1,4)) -> 1 | LG15: =IF(LF15=LF16,"","نهاية اللجنة") ->  | LH15: 0 | LM15: 0 | LN15: 0 | LQ15: 0 | LR15: 2 | LS15: =INDEX($LM$14:$LM$233,MATCH(LW15,$LO$14:$LO$233,0)) ->  | LT15: =INDEX($LN$14:$LN$233,MATCH(LW15,$LO$14:$LO$233,0)) ->  | LU15: =IF(LW15=" "," ",ROUNDDOWN(LW15,1)) ->  | LV15: =RANK(LU15,$LU$14:$LU$23) ->  | LW15: =IF(LO15=" "," ",LARGE($LO$14:$LO$233,LR15)) ->  | LX15: =IF(LV15=LV14,LX14&" مكرر ",IF(LV15=2," الثاني "," ")) -> 
A16: =IF(C16="","",SUBTOTAL(3,$C$14:C16)) ->  | R16: =IF(AND(P16="",Q16=""),"",IF(AND(P16="غ",Q16="غ"),"غ",IF(AND(P16="صفر",Q16="صفر"),"صفر",SUM(P16:Q16)))) ->  | BL16: =IF(BK16="","",IF(BK16="غ","غ",IF(BK16>=84.5,"ممتاز",IF(BK16>=64.5,"جيد جدا",IF(BK16>=49.5,"جيد",IF(BK16>=1,"ضعيف")))))) ->  | KV16: =IF(KW16="","",COUNT($KW$14:KW16)) -> 3 | KW16: =IF(KY16="","",KX15+1) -> 441 | KX16: =IF(KY16="","",KW16+KY16-1) -> 460 | KY16: 20 | KZ16: =IF(KW16="","",COUNT(KW$14:KW16)) -> 3 | LA16: =IF(LA15="","",IF(LA15+1>$KY$10,"",LA15+1)) -> 3 | LB16: =IF(LB15="","",IF(LB15+1>$KY$11,"",LB15+1)) -> 403 | LC16: 0 | LD16: 0 | LE16: 0 | LF16: 1 | LH16: 0 | LM16: 0 | LN16: 0 | LQ16: 0 | LR16: 3 | LX16: =IF(LV16=LV15,LX15&" مكرر ",IF(LV16=2," الثاني "," ")) -> 
A17: =IF(C17="","",SUBTOTAL(3,$C$14:C17)) ->  | R17: =IF(AND(P17="",Q17=""),"",IF(AND(P17="غ",Q17="غ"),"غ",IF(AND(P17="صفر",Q17="صفر"),"صفر",SUM(P17:Q17)))) ->  | KV17: =IF(KW17="","",COUNT($KW$14:KW17)) -> 4 | KW17: 461 | KX17: =IF(KY17="","",KW17+KY17-1) -> 480 | KY17: 20 | KZ17: =IF(KW17="","",COUNT(KW$14:KW17)) -> 4 | LA17: =IF(LA16="","",IF(LA16+1>$KY$10,"",LA16+1)) -> 4 | LB17: 404 | LC17: 0 | LD17: 0 | LE17: 0 | LF17: 1 | LH17: 0 | LM17: 0 | LN17: 0 | LQ17: 0 | LR17: 4
A18: =IF(C18="","",SUBTOTAL(3,$C$14:C18)) ->  | KV18: =IF(KW18="","",COUNT($KW$14:KW18)) -> 5 | KW18: 481 | KX18: 500 | KY18: 20 | KZ18: =IF(KW18="","",COUNT(KW$14:KW18)) -> 5 | LA18: 5 | LB18: 405 | LC18: 0 | LD18: 0 | LE18: 0 | LF18: 1 | LH18: 0 | LM18: 0 | LN18: 0 | LQ18: 0 | LR18: 5
A19: =IF(C19="","",SUBTOTAL(3,$C$14:C19)) ->  | AQ19: =IF(AND(AL19="",AP19=""),"",IF(AND(AL19="غ",AP19="غ"),"غ",IF(AND(AL19="صفر",AP19="صفر"),"صفر",SUM(AL19,AP19)))) ->  | BF19: =IF(AND(BD19="",BE19=""),"",IF(AND(BD19="غ",BE19="غ"),"غ",IF(AND(BD19="صفر",BE19="صفر"),"صفر",SUM(BD19:BE19)))) ->  | BZ19: =IF(AND(BX19="",BY19=""),"",IF(AND(BX19="غ",BY19="غ"),"غ",IF(AND(BX19="صفر",BY19="صفر"),"صفر",SUM(BX19:BY19)))) ->  | CD19: =IF(AND(CA19="",CB19="",CC19=""),"",IF(AND(CA19="غ",CB19="غ",CC19="غ"),"غ",IF(AND(CA19="صفر",CB19="صفر",CC19="صفر"),"صفر",SUM(CA19:CC19)))) ->  | CT19: =IF(AND(CR19="",CS19=""),"",IF(AND(CR19="غ",CS19="غ"),"غ",IF(AND(CR19="صفر",CS19="صفر"),"صفر",SUM(CR19:CS19)))) ->  | CX19: =IF(AND(CU19="",CV19="",CW19=""),"",IF(AND(CU19="غ",CV19="غ",CW19="غ"),"غ",IF(AND(CU19="صفر",CV19="صفر",CW19="صفر"),"صفر",SUM(CU19:CW19)))) ->  | DN19: =IF(AND(DL19="",DM19=""),"",IF(AND(DL19="غ",DM19="غ"),"غ",IF(AND(DL19="صفر",DM19="صفر"),"صفر",SUM(DL19:DM19)))) ->  | DR19: =IF(AND(DO19="",DP19="",DQ19=""),"",IF(AND(DO19="غ",DP19="غ",DQ19="غ"),"غ",IF(AND(DO19="صفر",DP19="صفر",DQ19="صفر"),"صفر",SUM(DO19:DQ19)))) ->  | EH19: =IF(AND(EF19="",EG19=""),"",IF(AND(EF19="غ",EG19="غ"),"غ",IF(AND(EF19="صفر",EG19="صفر"),"صفر",SUM(EF19:EG19)))) ->  | EL19: =IF(AND(EI19="",EJ19="",EK19=""),"",IF(AND(EI19="غ",EJ19="غ",EK19="غ"),"غ",IF(AND(EI19="صفر",EJ19="صفر",EK19="صفر"),"صفر",SUM(EI19:EK19)))) ->  | FB19: =IF(AND(EZ19="",FA19=""),"",IF(AND(EZ19="غ",FA19="غ"),"غ",IF(AND(EZ19="صفر",FA19="صفر"),"صفر",SUM(EZ19:FA19)))) ->  | FF19: =IF(AND(FC19="",FD19="",FE19=""),"",IF(AND(FC19="غ",FD19="غ",FE19="غ"),"غ",IF(AND(FC19="صفر",FD19="صفر",FE19="صفر"),"صفر",SUM(FC19:FE19)))) ->  | KV19: =IF(KW19="","",COUNT($KW$14:KW19)) -> 6 | KW19: 501 | KX19: 520 | KY19: 20 | KZ19: =IF(KW19="","",COUNT(KW$14:KW19)) -> 6 | LA19: 6 | LB19: 406 | LC19: 0 | LD19: 0 | LE19: 0 | LF19: 1 | LH19: 0 | LM19: 0 | LN19: 0 | LQ19: 0 | LR19: 6
A20: =IF(C20="","",SUBTOTAL(3,$C$14:C20)) ->  | DR20: =IF(AND(DO20="",DP20="",DQ20=""),"",IF(AND(DO20="غ",DP20="غ",DQ20="غ"),"غ",IF(AND(DO20="صفر",DP20="صفر",DQ20="صفر"),"صفر",SUM(DO20:DQ20)))) ->  | KV20: =IF(KW20="","",COUNT($KW$14:KW20)) -> 7 | KW20: 521 | KX20: 540 | KY20: 20 | KZ20: =IF(KW20="","",COUNT(KW$14:KW20)) -> 7 | LA20: 7 | LB20: 407 | LC20: 0 | LD20: 0 | LE20: 0 | LF20: 1 | LH20: 0 | LM20: 0 | LN20: 0 | LQ20: 0 | LR20: 7
A21: =IF(C21="","",SUBTOTAL(3,$C$14:C21)) ->  | KV21: =IF(KW21="","",COUNT($KW$14:KW21)) -> 8 | KW21: 541 | KX21: 560 | KY21: 20 | KZ21: =IF(KW21="","",COUNT(KW$14:KW21)) -> 8 | LA21: 8 | LB21: 408 | LC21: 0 | LD21: 0 | LE21: 0 | LF21: 1 | LH21: 0 | LM21: 0 | LN21: 0 | LQ21: 0 | LR21: 8
A22: =IF(C22="","",SUBTOTAL(3,$C$14:C22)) ->  | KV22: =IF(KW22="","",COUNT($KW$14:KW22)) -> 9 | KW22: 561 | KX22: 580 | KY22: 20 | KZ22: =IF(KW22="","",COUNT(KW$14:KW22)) -> 9 | LA22: 9 | LB22: 409 | LC22: 0 | LD22: 0 | LE22: 0 | LF22: 1 | LH22: 0 | LM22: 0 | LN22: 0 | LQ22: 0 | LR22: 9
A23: =IF(C23="","",SUBTOTAL(3,$C$14:C23)) ->  | KV23: =IF(KW23="","",COUNT($KW$14:KW23)) -> 10 | KW23: 581 | KX23: 600 | KY23: 20 | KZ23: =IF(KW23="","",COUNT(KW$14:KW23)) -> 10 | LA23: 10 | LB23: 410 | LC23: 0 | LD23: 0 | LE23: 0 | LF23: 1 | LH23: 0 | LM23: 0 | LN23: 0 | LQ23: 0 | LR23: 10
A24: =IF(C24="","",SUBTOTAL(3,$C$14:C24)) ->  | KV24: =IF(KW24="","",COUNT($KW$14:KW24)) -> 11 | KW24: 601 | KX24: 620 | KY24: 20 | KZ24: =IF(KW24="","",COUNT(KW$14:KW24)) -> 11 | LA24: 11 | LB24: 411 | LC24: 0 | LD24: 0 | LE24: 0 | LF24: 1 | LH24: 0 | LM24: 0 | LN24: 0 | LQ24: 0
A25: =IF(C25="","",SUBTOTAL(3,$C$14:C25)) ->  | LA25: 12 | LB25: 412 | LC25: 0 | LD25: 0 | LE25: 0 | LF25: 1 | LH25: 0 | LM25: 0 | LN25: 0 | LQ25: 0
A26: =IF(C26="","",SUBTOTAL(3,$C$14:C26)) ->  | LA26: 13 | LB26: 413 | LC26: 0 | LD26: 0 | LE26: 0 | LF26: 1 | LH26: 0 | LM26: 0 | LN26: 0 | LQ26: 0
A27: =IF(C27="","",SUBTOTAL(3,$C$14:C27)) ->  | LA27: 14 | LB27: 414 | LC27: 0 | LD27: 0 | LE27: 0 | LF27: 1 | LH27: 0 | LM27: 0 | LN27: 0 | LQ27: 0
A28: =IF(C28="","",SUBTOTAL(3,$C$14:C28)) ->  | LA28: 15 | LB28: 415 | LC28: 0 | LD28: 0 | LE28: 0 | LF28: 1 | LH28: 0 | LM28: 0 | LN28: 0 | LQ28: 0
A29: =IF(C29="","",SUBTOTAL(3,$C$14:C29)) ->  | LA29: 16 | LB29: 416 | LC29: 0 | LD29: 0 | LE29: 0 | LF29: 1 | LH29: 0 | LM29: 0 | LN29: 0 | LQ29: 0
A30: =IF(C30="","",SUBTOTAL(3,$C$14:C30)) ->  | KV30: =IF(KW30="","",COUNT($FL$14:KW30)) ->  | KZ30: =IF(KW30="","",COUNT(KW$14:KW30)) ->  | LA30: 17 | LB30: 417 | LC30: 0 | LD30: 0 | LE30: 0 | LF30: 1 | LH30: 0 | LM30: 0 | LN30: 0 | LQ30: 0
A31: =IF(C31="","",SUBTOTAL(3,$C$14:C31)) ->  | KV31: =IF(KW31="","",COUNT($FL$14:KW31)) ->  | KZ31: =IF(KW31="","",COUNT(KW$14:KW31)) ->  | LA31: 18 | LB31: 418 | LC31: 0 | LD31: 0 | LE31: 0 | LF31: 1 | LH31: 0 | LM31: 0 | LN31: 0 | LQ31: 0
A32: =IF(C32="","",SUBTOTAL(3,$C$14:C32)) ->  | KV32: =IF(KW32="","",COUNT($FL$14:KW32)) ->  | KZ32: =IF(KW32="","",COUNT(KW$14:KW32)) ->  | LA32: 19 | LB32: 419 | LC32: 0 | LD32: 0 | LE32: 0 | LF32: 1 | LH32: 0 | LM32: 0 | LN32: 0 | LQ32: 0
A33: =IF(C33="","",SUBTOTAL(3,$C$14:C33)) ->  | KV33: =IF(KW33="","",COUNT($FL$14:KW33)) ->  | KZ33: =IF(KW33="","",COUNT(KW$14:KW33)) ->  | LA33: 20 | LB33: 420 | LC33: 0 | LD33: 0 | LE33: 0 | LF33: 1 | LG33: نهاية اللجنة | LH33: 0 | LM33: 0 | LN33: 0 | LQ33: 0
A34: =IF(C34="","",SUBTOTAL(3,$C$14:C34)) ->  | KV34: =IF(KW34="","",COUNT($FL$14:KW34)) ->  | KZ34: =IF(KW34="","",COUNT(KW$14:KW34)) ->  | LA34: 21 | LB34: 421 | LC34: 0 | LD34: 0 | LE34: 0 | LF34: 2 | LH34: 0 | LM34: 0 | LN34: 0 | LQ34: 0
A35: =IF(C35="","",SUBTOTAL(3,$C$14:C35)) ->  | KV35: =IF(KW35="","",COUNT($FL$14:KW35)) ->  | KZ35: =IF(KW35="","",COUNT(KW$14:KW35)) ->  | LA35: 22 | LB35: 422 | LC35: 0 | LD35: 0 | LE35: 0 | LF35: 2 | LH35: 0 | LM35: 0 | LN35: 0 | LQ35: 0
A36: =IF(C36="","",SUBTOTAL(3,$C$14:C36)) ->  | KV36: =IF(KW36="","",COUNT($FL$14:KW36)) ->  | KZ36: =IF(KW36="","",COUNT(KW$14:KW36)) ->  | LA36: 23 | LB36: 423 | LC36: 0 | LD36: 0 | LE36: 0 | LF36: 2 | LH36: 0 | LM36: 0 | LN36: 0 | LQ36: 0
A37: =IF(C37="","",SUBTOTAL(3,$C$14:C37)) ->  | KV37: =IF(KW37="","",COUNT($FL$14:KW37)) ->  | KZ37: =IF(KW37="","",COUNT(KW$14:KW37)) ->  | LA37: 24 | LB37: 424 | LC37: 0 | LD37: 0 | LE37: 0 | LF37: 2 | LH37: 0 | LM37: 0 | LN37: 0 | LQ37: 0
A38: =IF(C38="","",SUBTOTAL(3,$C$14:C38)) ->  | KV38: =IF(KW38="","",COUNT($FL$14:KW38)) ->  | KZ38: =IF(KW38="","",COUNT(KW$14:KW38)) ->  | LA38: 25 | LB38: 425 | LC38: 0 | LD38: 0 | LE38: 0 | LF38: 2 | LH38: 0 | LM38: 0 | LN38: 0 | LQ38: 0
A39: =IF(C39="","",SUBTOTAL(3,$C$14:C39)) ->  | KV39: =IF(KW39="","",COUNT($FL$14:KW39)) ->  | KZ39: =IF(KW39="","",COUNT(KW$14:KW39)) ->  | LA39: 26 | LB39: 426 | LC39: 0 | LD39: 0 | LE39: 0 | LF39: 2 | LH39: 0 | LM39: 0 | LN39: 0 | LQ39: 0
A40: =IF(C40="","",SUBTOTAL(3,$C$14:C40)) ->  | KV40: =IF(KW40="","",COUNT($FL$14:KW40)) ->  | KZ40: =IF(KW40="","",COUNT(KW$14:KW40)) ->  | LA40: 27 | LB40: 427 | LC40: 0 | LD40: 0 | LE40: 0 | LF40: 2 | LH40: 0 | LM40: 0 | LN40: 0 | LQ40: 0
A41: =IF(C41="","",SUBTOTAL(3,$C$14:C41)) ->  | KV41: =IF(KW41="","",COUNT($FL$14:KW41)) ->  | KZ41: =IF(KW41="","",COUNT(KW$14:KW41)) ->  | LA41: 28 | LB41: 428 | LC41: 0 | LD41: 0 | LE41: 0 | LF41: 2 | LH41: 0 | LM41: 0 | LN41: 0 | LQ41: 0
A42: =IF(C42="","",SUBTOTAL(3,$C$14:C42)) ->  | KV42: =IF(KW42="","",COUNT($FL$14:KW42)) ->  | KZ42: =IF(KW42="","",COUNT(KW$14:KW42)) ->  | LA42: 29 | LB42: 429 | LC42: 0 | LD42: 0 | LE42: 0 | LF42: 2 | LH42: 0 | LM42: 0 | LN42: 0 | LQ42: 0
A43: =IF(C43="","",SUBTOTAL(3,$C$14:C43)) ->  | KV43: =IF(KW43="","",COUNT($FL$14:KW43)) ->  | KZ43: =IF(KW43="","",COUNT(KW$14:KW43)) ->  | LA43: 30 | LB43: 430 | LC43: 0 | LD43: 0 | LE43: 0 | LF43: 2 | LH43: 0 | LM43: 0 | LN43: 0 | LQ43: 0
A44: =IF(C44="","",SUBTOTAL(3,$C$14:C44)) ->  | KV44: =IF(KW44="","",COUNT($FL$14:KW44)) ->  | KZ44: =IF(KW44="","",COUNT(KW$14:KW44)) ->  | LA44: 31 | LB44: 431 | LC44: 0 | LD44: 0 | LE44: 0 | LF44: 2 | LH44: 0 | LM44: 0 | LN44: 0 | LQ44: 0
A45: =IF(C45="","",SUBTOTAL(3,$C$14:C45)) ->  | KV45: =IF(KW45="","",COUNT($FL$14:KW45)) ->  | KZ45: =IF(KW45="","",COUNT(KW$14:KW45)) ->  | LA45: 32 | LB45: 432 | LC45: 0 | LD45: 0 | LE45: 0 | LF45: 2 | LH45: 0 | LM45: 0 | LN45: 0 | LQ45: 0
A46: =IF(C46="","",SUBTOTAL(3,$C$14:C46)) ->  | KV46: =IF(KW46="","",COUNT($FL$14:KW46)) ->  | KZ46: =IF(KW46="","",COUNT(KW$14:KW46)) ->  | LA46: 33 | LB46: 433 | LC46: 0 | LD46: 0 | LE46: 0 | LF46: 2 | LH46: 0 | LM46: 0 | LN46: 0 | LQ46: 0
A47: =IF(C47="","",SUBTOTAL(3,$C$14:C47)) ->  | KV47: =IF(KW47="","",COUNT($FL$14:KW47)) ->  | KZ47: =IF(KW47="","",COUNT(KW$14:KW47)) ->  | LA47: 34 | LB47: 434 | LC47: 0 | LD47: 0 | LE47: 0 | LF47: 2 | LH47: 0 | LM47: 0 | LN47: 0 | LQ47: 0
A48: =IF(C48="","",SUBTOTAL(3,$C$14:C48)) ->  | KV48: =IF(KW48="","",COUNT($FL$14:KW48)) ->  | KZ48: =IF(KW48="","",COUNT(KW$14:KW48)) ->  | LA48: 35 | LB48: 435 | LC48: 0 | LD48: 0 | LE48: 0 | LF48: 2 | LH48: 0 | LM48: 0 | LN48: 0 | LQ48: 0
A49: =IF(C49="","",SUBTOTAL(3,$C$14:C49)) ->  | KV49: =IF(KW49="","",COUNT($FL$14:KW49)) ->  | KZ49: =IF(KW49="","",COUNT(KW$14:KW49)) ->  | LA49: 36 | LB49: 436 | LC49: 0 | LD49: 0 | LE49: 0 | LF49: 2 | LH49: 0 | LM49: 0 | LN49: 0 | LQ49: 0
A50: =IF(C50="","",SUBTOTAL(3,$C$14:C50)) ->  | KV50: =IF(KW50="","",COUNT($FL$14:KW50)) ->  | KZ50: =IF(KW50="","",COUNT(KW$14:KW50)) ->  | LA50: 37 | LB50: 437 | LC50: 0 | LD50: 0 | LE50: 0 | LF50: 2 | LH50: 0 | LM50: 0 | LN50: 0 | LQ50: 0
A51: =IF(C51="","",SUBTOTAL(3,$C$14:C51)) ->  | KV51: =IF(KW51="","",COUNT($FL$14:KW51)) ->  | KZ51: =IF(KW51="","",COUNT(KW$14:KW51)) ->  | LA51: 38 | LB51: 438 | LC51: 0 | LD51: 0 | LE51: 0 | LF51: 2 | LH51: 0 | LM51: 0 | LN51: 0 | LQ51: 0
A52: =IF(C52="","",SUBTOTAL(3,$C$14:C52)) ->  | KV52: =IF(KW52="","",COUNT($FL$14:KW52)) ->  | KZ52: =IF(KW52="","",COUNT(KW$14:KW52)) ->  | LA52: 39 | LB52: 439 | LC52: 0 | LD52: 0 | LE52: 0 | LF52: 2 | LH52: 0 | LM52: 0 | LN52: 0 | LQ52: 0
A53: =IF(C53="","",SUBTOTAL(3,$C$14:C53)) ->  | KV53: =IF(KW53="","",COUNT($FL$14:KW53)) ->  | KZ53: =IF(KW53="","",COUNT(KW$14:KW53)) ->  | LA53: 40 | LB53: 440 | LC53: 0 | LD53: 0 | LE53: 0 | LF53: 2 | LG53: نهاية اللجنة | LH53: 0 | LM53: 0 | LN53: 0 | LQ53: 0
A54: =IF(C54="","",SUBTOTAL(3,$C$14:C54)) ->  | KV54: =IF(KW54="","",COUNT($FL$14:KW54)) ->  | KZ54: =IF(KW54="","",COUNT(KW$14:KW54)) ->  | LA54: 41 | LB54: 441 | LC54: 0 | LD54: 0 | LE54: 0 | LF54: 3 | LH54: 0 | LM54: 0 | LN54: 0 | LQ54: 0
A55: =IF(C55="","",SUBTOTAL(3,$C$14:C55)) ->  | KV55: =IF(KW55="","",COUNT($FL$14:KW55)) ->  | KZ55: =IF(KW55="","",COUNT(KW$14:KW55)) ->  | LA55: 42 | LB55: 442 | LC55: 0 | LD55: 0 | LE55: 0 | LF55: 3 | LH55: 0 | LM55: 0 | LN55: 0 | LQ55: 0
A56: =IF(C56="","",SUBTOTAL(3,$C$14:C56)) ->  | KV56: =IF(KW56="","",COUNT($FL$14:KW56)) ->  | KZ56: =IF(KW56="","",COUNT(KW$14:KW56)) ->  | LA56: 43 | LB56: 443 | LC56: 0 | LD56: 0 | LE56: 0 | LF56: 3 | LH56: 0 | LM56: 0 | LN56: 0 | LQ56: 0
A57: =IF(C57="","",SUBTOTAL(3,$C$14:C57)) ->  | KV57: =IF(KW57="","",COUNT($FL$14:KW57)) ->  | KZ57: =IF(KW57="","",COUNT(KW$14:KW57)) ->  | LA57: 44 | LB57: 444 | LC57: 0 | LD57: 0 | LE57: 0 | LF57: 3 | LH57: 0 | LM57: 0 | LN57: 0 | LQ57: 0
A58: =IF(C58="","",SUBTOTAL(3,$C$14:C58)) ->  | KV58: =IF(KW58="","",COUNT($FL$14:KW58)) ->  | KZ58: =IF(KW58="","",COUNT(KW$14:KW58)) ->  | LA58: 45 | LB58: 445 | LC58: 0 | LD58: 0 | LE58: 0 | LF58: 3 | LH58: 0 | LM58: 0 | LN58: 0 | LQ58: 0
A59: =IF(C59="","",SUBTOTAL(3,$C$14:C59)) ->  | KV59: =IF(KW59="","",COUNT($FL$14:KW59)) ->  | KZ59: =IF(KW59="","",COUNT(KW$14:KW59)) ->  | LA59: 46 | LB59: 446 | LC59: 0 | LD59: 0 | LE59: 0 | LF59: 3 | LH59: 0 | LM59: 0 | LN59: 0 | LQ59: 0
A60: =IF(C60="","",SUBTOTAL(3,$C$14:C60)) ->  | KV60: =IF(KW60="","",COUNT($FL$14:KW60)) ->  | KZ60: =IF(KW60="","",COUNT(KW$14:KW60)) ->  | LA60: 47 | LB60: 447 | LC60: 0 | LD60: 0 | LE60: 0 | LF60: 3 | LH60: 0 | LM60: 0 | LN60: 0 | LQ60: 0
A61: =IF(C61="","",SUBTOTAL(3,$C$14:C61)) ->  | KV61: =IF(KW61="","",COUNT($FL$14:KW61)) ->  | KZ61: =IF(KW61="","",COUNT(KW$14:KW61)) ->  | LA61: 48 | LB61: 448 | LC61: 0 | LD61: 0 | LE61: 0 | LF61: 3 | LH61: 0 | LM61: 0 | LN61: 0 | LQ61: 0
A62: =IF(C62="","",SUBTOTAL(3,$C$14:C62)) ->  | KV62: =IF(KW62="","",COUNT($FL$14:KW62)) ->  | KZ62: =IF(KW62="","",COUNT(KW$14:KW62)) ->  | LA62: 49 | LB62: 449 | LC62: 0 | LD62: 0 | LE62: 0 | LF62: 3 | LH62: 0 | LM62: 0 | LN62: 0 | LQ62: 0
A63: =IF(C63="","",SUBTOTAL(3,$C$14:C63)) ->  | KV63: =IF(KW63="","",COUNT($FL$14:KW63)) ->  | KZ63: =IF(KW63="","",COUNT(KW$14:KW63)) ->  | LA63: 50 | LB63: 450 | LC63: 0 | LD63: 0 | LE63: 0 | LF63: 3 | LH63: 0 | LM63: 0 | LN63: 0 | LQ63: 0
A64: =IF(C64="","",SUBTOTAL(3,$C$14:C64)) ->  | KV64: =IF(KW64="","",COUNT($FL$14:KW64)) ->  | KZ64: =IF(KW64="","",COUNT(KW$14:KW64)) ->  | LA64: 51 | LB64: 451 | LC64: 0 | LD64: 0 | LE64: 0 | LF64: 3 | LH64: 0 | LM64: 0 | LN64: 0 | LQ64: 0
A65: =IF(C65="","",SUBTOTAL(3,$C$14:C65)) ->  | KV65: =IF(KW65="","",COUNT($FL$14:KW65)) ->  | KZ65: =IF(KW65="","",COUNT(KW$14:KW65)) ->  | LA65: 52 | LB65: 452 | LC65: 0 | LD65: 0 | LE65: 0 | LF65: 3 | LH65: 0 | LM65: 0 | LN65: 0 | LQ65: 0
A66: =IF(C66="","",SUBTOTAL(3,$C$14:C66)) ->  | KV66: =IF(KW66="","",COUNT($FL$14:KW66)) ->  | KZ66: =IF(KW66="","",COUNT(KW$14:KW66)) ->  | LA66: 53 | LB66: 453 | LC66: 0 | LD66: 0 | LE66: 0 | LF66: 3 | LH66: 0 | LM66: 0 | LN66: 0 | LQ66: 0
A67: =IF(C67="","",SUBTOTAL(3,$C$14:C67)) ->  | KV67: =IF(KW67="","",COUNT($FL$14:KW67)) ->  | KZ67: =IF(KW67="","",COUNT(KW$14:KW67)) ->  | LA67: 54 | LB67: 454 | LC67: 0 | LD67: 0 | LE67: 0 | LF67: 3 | LH67: 0 | LM67: 0 | LN67: 0 | LQ67: 0
A68: =IF(C68="","",SUBTOTAL(3,$C$14:C68)) ->  | KV68: =IF(KW68="","",COUNT($FL$14:KW68)) ->  | KZ68: =IF(KW68="","",COUNT(KW$14:KW68)) ->  | LA68: 55 | LB68: 455 | LC68: 0 | LD68: 0 | LE68: 0 | LF68: 3 | LH68: 0 | LM68: 0 | LN68: 0 | LQ68: 0
A69: =IF(C69="","",SUBTOTAL(3,$C$14:C69)) ->  | KV69: =IF(KW69="","",COUNT($FL$14:KW69)) ->  | KZ69: =IF(KW69="","",COUNT(KW$14:KW69)) ->  | LA69: 56 | LB69: 456 | LC69: 0 | LD69: 0 | LE69: 0 | LF69: 3 | LH69: 0 | LM69: 0 | LN69: 0 | LQ69: 0
A70: =IF(C70="","",SUBTOTAL(3,$C$14:C70)) ->  | KV70: =IF(KW70="","",COUNT($FL$14:KW70)) ->  | KZ70: =IF(KW70="","",COUNT(KW$14:KW70)) ->  | LA70: 57 | LB70: 457 | LC70: 0 | LD70: 0 | LE70: 0 | LF70: 3 | LH70: 0 | LM70: 0 | LN70: 0 | LQ70: 0
A71: =IF(C71="","",SUBTOTAL(3,$C$14:C71)) ->  | KV71: =IF(KW71="","",COUNT($FL$14:KW71)) ->  | KZ71: =IF(KW71="","",COUNT(KW$14:KW71)) ->  | LA71: 58 | LB71: 458 | LC71: 0 | LD71: 0 | LE71: 0 | LF71: 3 | LH71: 0 | LM71: 0 | LN71: 0 | LQ71: 0
A72: =IF(C72="","",SUBTOTAL(3,$C$14:C72)) ->  | KV72: =IF(KW72="","",COUNT($FL$14:KW72)) ->  | KZ72: =IF(KW72="","",COUNT(KW$14:KW72)) ->  | LA72: 59 | LB72: 459 | LC72: 0 | LD72: 0 | LE72: 0 | LF72: 3 | LH72: 0 | LM72: 0 | LN72: 0 | LQ72: 0
A73: =IF(C73="","",SUBTOTAL(3,$C$14:C73)) ->  | KV73: =IF(KW73="","",COUNT($FL$14:KW73)) ->  | KZ73: =IF(KW73="","",COUNT(KW$14:KW73)) ->  | LA73: 60 | LB73: 460 | LC73: 0 | LD73: 0 | LE73: 0 | LF73: 3 | LG73: نهاية اللجنة | LH73: 0 | LM73: 0 | LN73: 0 | LQ73: 0
A74: =IF(C74="","",SUBTOTAL(3,$C$14:C74)) ->  | KV74: =IF(KW74="","",COUNT($FL$14:KW74)) ->  | KZ74: =IF(KW74="","",COUNT(KW$14:KW74)) ->  | LA74: 61 | LB74: 461 | LC74: 0 | LD74: 0 | LE74: 0 | LF74: 4 | LH74: 0 | LM74: 0 | LN74: 0 | LQ74: 0
A75: =IF(C75="","",SUBTOTAL(3,$C$14:C75)) ->  | KV75: =IF(KW75="","",COUNT($FL$14:KW75)) ->  | KZ75: =IF(KW75="","",COUNT(KW$14:KW75)) ->  | LA75: 62 | LB75: 462 | LC75: 0 | LD75: 0 | LE75: 0 | LF75: 4 | LH75: 0 | LM75: 0 | LN75: 0 | LQ75: 0
A76: =IF(C76="","",SUBTOTAL(3,$C$14:C76)) ->  | KV76: =IF(KW76="","",COUNT($FL$14:KW76)) ->  | KZ76: =IF(KW76="","",COUNT(KW$14:KW76)) ->  | LA76: 63 | LB76: 463 | LC76: 0 | LD76: 0 | LE76: 0 | LF76: 4 | LH76: 0 | LM76: 0 | LN76: 0 | LQ76: 0
A77: =IF(C77="","",SUBTOTAL(3,$C$14:C77)) ->  | KV77: =IF(KW77="","",COUNT($FL$14:KW77)) ->  | KZ77: =IF(KW77="","",COUNT(KW$14:KW77)) ->  | LA77: 64 | LB77: 464 | LC77: 0 | LD77: 0 | LE77: 0 | LF77: 4 | LH77: 0 | LM77: 0 | LN77: 0 | LQ77: 0
A78: =IF(C78="","",SUBTOTAL(3,$C$14:C78)) ->  | FT78: =IF(AND(W78="",AQ78="",BK78="",CE78="",CY78="",DS78="",EM78="",FG78=""),"",IF(AND(W78="غ",AQ78="غ",BK78="غ",CE78="غ",CY78="غ",DS78="غ",EM78="غ",FG78="غ"),"غ",IF(AND(W78="صفر",AQ78="صفر",BK78="صفر",CE78="صفر",CY78="صفر",DS78="صفر",EM78="صفر",FG78="صفر"),"صفر",SUM(W78,AQ78,BK78,CE78,CY78,DS78,EM78,FG78)))) ->  | GN78: =IF(GJ78="","",IF(GJ78="غ","غ",IF(GJ78>=85,"ممتاز",IF(GJ78>=65,"جيد جدا",IF(GJ78>=50,"جيد",IF(GJ78>=1,"ضعيف")))))) ->  | GT78: =IF(GP78="","",IF(GP78="غ","غ",IF(GP78>=85,"ممتاز",IF(GP78>=65,"جيد جدا",IF(GP78>=50,"جيد",IF(GP78>=1,"ضعيف")))))) ->  | GZ78: =IF(GV78="","",IF(GV78="غ","غ",IF(GV78>=85,"ممتاز",IF(GV78>=65,"جيد جدا",IF(GV78>=50,"جيد",IF(GV78>=1,"ضعيف")))))) ->  | HF78: =IF(HB78="","",IF(HB78="غ","غ",IF(HB78>=85,"ممتاز",IF(HB78>=65,"جيد جدا",IF(HB78>=50,"جيد",IF(HB78>=1,"ضعيف")))))) ->  | HL78: =IF(HH78="","",IF(HH78="غ","غ",IF(HH78>=85,"ممتاز",IF(HH78>=65,"جيد جدا",IF(HH78>=50,"جيد",IF(HH78>=1,"ضعيف")))))) ->  | KV78: =IF(KW78="","",COUNT($FL$14:KW78)) ->  | KZ78: =IF(KW78="","",COUNT(KW$14:KW78)) ->  | LA78: 65 | LB78: 465 | LC78: =C78 -> 0 | LD78: =F78 -> 0 | LE78: =L78 -> 0 | LF78: =IF(LB78="","",VLOOKUP(LB78,saad1,4)) -> 4 | LH78: =K78 -> 0 | LM78: =B78 -> 0 | LN78: 0 | LO78: =IF(FT78="","",IF(FT78="غ","غ",FT78+1/ROW()*0.001)) ->  | LP78: =IFERROR(IF(FT78=" "," ",IF(FT78="غ","غ",RANK(FT78,$M$14:$FT$233))),"") ->  | LQ78: =GB78 -> 0
